Workbook

Sheet 01.BALANCE ENERGIA May-19 Def
B1: Mes | C1: 2019-05-01
B3: Total | C3: =+SUM(C9:C437) -> -2.250447869e-05 | D3: =+SUM(D9:D437) -> -2.250447869e-05
B4: Positivo | C4: =+SUMIF(C$9:C$437,">0") -> 4.737898786e+10 | D4: =+SUMIF(D$9:D$437,">0") -> 4.737898786e+10
B5: Negativo | C5: =+SUMIF(C$9:C$437,"<0") -> -4.737898786e+10 | D5: =+SUMIF(D$9:D$437,"<0") -> -4.737898786e+10 | J5: CUADRO DE PAGOS 01.BALANCE ENERGIA May-19 Def (Valores en $)
F6: ="Balance Energía "& TEXT(C1,"mmm-yy") -> Balance Energía may-yy
C7: Datos | K7: Reciben
B8: Empresa | C8: Energía SEN | D8: TOTAL | F8: Empresa | G8: Paga | H8: Recibe | J8: Pagan | K8: GASATACAMA | L8: GMETROPOLITANA | M8: IMELSA_ENERGIA | N8: COLBUN | O8: ARAUCO BIO | P8: SGA | Q8: NUEVA ENERGIA | R8: ELEKTRAGEN | S8: GESAN | T8: EL MANZANO | U8: ESPINOS | V8: ENLASA | W8: PARQUE_EOLICO_LEBU | X8: ORAFTI | Y8: GAS SUR | Z8: ALTO_MANGA_ENERGY | AA8: GENPAC | AB8: NORVIND | AC8: PANGUIPULLI | AD8: HIDROPALOMA | AE8: SWO | AF8: NUEVA DEGAN | AG8: BARRICK | AH8: CARRAN | AI8: DONGO | AJ8: INACAL | AK8: HIDROLIRCAY | AL8: LOS MORROS | AM8: DIUTO | AN8: LICAN | AO8: ENERGIA PACIFICO | AP8: DONGUIL | AQ8: PEHUI | AR8: COMASA | AS8: ENERBOSCH | AT8: HIDROMUCHI | AU8: BE FORESTALES | AV8: EL CANELO | AW8: CARBOMET | AX8: HIDRONALCAS | AY8: HIDROCALLAO | AZ8: MAPOCHO TREBAL | BA8: UCUQUER | BB8: TAMM | BC8: ROBLERIA | BD8: GENERHOM | BE8: WENKE | BF8: HIDROBONITO | BG8: ARRAYAN | BH8: SOLAIREDIRECT | BI8: SANTAMARTA | BJ8: RIO HUASCO | BK8: SANTA IRENE | BL8: CONTRA | BM8: COLMITO | BN8: COMMONPLACE | BO8: AMANECER SOLAR | BP8: SAN_ANDRES_SPA | BQ8: ENERGIA_LEON | BR8: ENERGIAS_DEL_FUTURO | BS8: BIOCRUZ | BT8: HBS | BU8: LOS_PADRES | BV8: LOS_CURUROS | BW8: LOMAS_COLORADAS | BX8: PAMA | BY8: RIO_PUMA | BZ8: GM_HOLDINGS | CA8: PH_PUNTA_SIERRA | CB8: UCUQUER_DOS | CC8: EBCO_ATACAMA | CD8: ATRIA_ENERGIA | CE8: EOLICA_TALTAL | CF8: PV_SALVADOR | CG8: COLLIL | CH8: MARIA_ELENA | CI8: LAS_FLORES | CJ8: BESALCO | CK8: LLEUQUEREO | CL8: CURILEUFU | CM8: BIOBIO_NEGRETE | CN8: LUZ_DEL_NORTE | CO8: RAKI | CP8: TRAILELFU | CQ8: GR_PAN_DE_AZUCAR | CR8: PUCLARO | CS8: HUAJACHE | CT8: EL_MIRADOR | CU8: RIO_MULCHEN | CV8: EGP_SUR | CW8: EL_MORADO | CX8: RENOVALIA_6 | CY8: RENOVALIA_7 | CZ8: AGSA | DA8: TILTIL_SOLAR | DB8: BELLAVISTA | DC8: MALLARAUCO | DD8: M_VILLARRICA | DE8: CHANLEUFU | DF8: RASO_POWER | DG8: LOS_LOROS | DH8: ALTOS_DEL_PAICO | DI8: EL_AGRIO | DJ8: LA_MONTAÑA_1 | DK8: DIVISADERO | DL8: CUMPEO | DM8: SAFIRA_ENERGIA_CHILE | DN8: TEATINOS | DO8: GR_HUINGAN | DP8: GR_COIGUE | DQ8: HORMIGA_SOLAR | DR8: GESTEL | DS8: CUZCUZ | DT8: GR_ARAUCARIA | DU8: MAINCO | DV8: EL_ARROYO | DW8: LOS_PINOS_BIO | DX8: EL_BOCO | DY8: SANTIAGO_SOLAR | DZ8: GENERADORA_PIUTEL | EA8: HIDRORIÑINAHUE | EB8: GR_CANELO | EC8: LA_LEONERA | ED8: CABO_LEONES | EE8: CHILE_GENERACION | EF8: RIO_COLORADO | EG8: LAS_TURCAS | EH8: GR_GUAYACAN | EI8: DOS_VALLES | EJ8: SOCER | EK8: COYANCO | EL8: GR_ESPINO | EM8: LA_MONTAÑA_2 | EN8: HIDROMUNILQUE | EO8: SAN_FRANCISCO | EP8: QUINTA_SOLAR | EQ8: VALLE_DE_LA_LUNA_II | ER8: GR_LINGUE | ES8: QUELTEHUE | ET8: CHESTER_SOLAR_IV | EU8: CHESTER_SOLAR_V | EV8: PV_CHANCON | EW8: PITIO | EX8: CH _SANTA_ELENA | EY8: AMPARO | EZ8: PARRONAL | FA8: GR_TIACA | FB8: GR_BOLDO | FC8: PV_PORTEZUELO | FD8: PLANETA_INVESTMENT | FE8: SOLAR_E | FF8: GORRIONES | FG8: PV_EL_PICURIO | FH8: CHINCOL | FI8: VILLA_PRAT_ENERGY | FJ8: PS_SANTALAURA | FK8: PV_LIBERTADORES | FL8: PFV_OCOA | FM8: ENERGEN | FN8: PV_LAS_PALOMAS | FO8: PALACIOS | FP8: ENERGIA_SIETE | FQ8: MINICENTRALES_ARAUCANIA | FR8: LA_ACACIA | FS8: GENERADORA_ERMITANO | FT8: GR_LITRE | FU8: GR_LAUREL | FV8: PATOS | FW8: TACORA_ENERGY | FX8: CH_CONVENTO_VIEJO | FY8: MINICENTRAL_ARRAYAN | FZ8: GR_TINEO | GA8: PV_RODEO | GB8: PV_LA_FRONTERA | GC8: EL_CERNICALO | GD8: FOTOVOLT_SOLAR_I | GE8: ABASTIBLE | GF8: SINERGIA_SOLAR_SPA | GG8: VALLE_SOLAR_OESTE_2 | GH8: PILPEN | GI8: HIDROELECTRICA SAN ANDRES | GJ8: LA_MANGA_ENERGY | GK8: NEOMAS | GL8: EL_QUEULE | GM8: LOA_SOLAR | GN8: PIQUERO | GO8: PARQUE_SOLAR | GP8: DIEGO_DE_ALMAGRO_SOLAR | GQ8: PFALICAHUE_SOLAR | GR8: LUNA_ENERGY | GS8: CALLE_LARGA_SPA | GT8: NUOVOSOL_SPA | GU8: APOLO_DEL_NORTE_SPA | GV8: SOLAR_UNO | GW8: COCHRANE | GX8: GENERACION_SOLAR_SPA | GY8: NORACID | GZ8: ANGAMOS | HA8: HELIO_ATACAMA_TRES | HB8: PLANTA_SOLAR_SPIII | HC8: VALLE_DE_LOS_VIENTOS | HD8: CALAMA_SOLAR_1 | HE8: PUERTO_SECO | HF8: TECNET | HG8: ENERNUEVAS | HH8: CAVANCHA | HI8: SPS_LA_HUAYCA | HJ8: LOS_PUQUIOS | HK8: PMGD_PICA_PILOT | HL8: FV_NORTE_GRANDE_5 | HM8: POZO_ALMONTE_SOLAR_1 | HN8: POZO_ALMONTE_SOLAR_3 | HO8: SOLAR_TI_CUATRO | HP8: SOLAR_LOS_PERALES_I | HQ8: VITUCO | HR8: POBLACION_SOLAR | HS8: AUSTRIAN_SOLAR | HT8: E_ALTOS_DE_TIL_TIL | HU8: SOLAR_TI_DIEZ | HV8: EL_NOGAL | HW8: TRICAHUE_SOLAR | HX8: GR_MOLLE | HY8: REDEN_CABILDO_SOLAR | HZ8: REDEN_TALHUEN_SOLAR | IA8: SANTA_CLARA | IB8: LAUREL_SPA | IC8: RIGEL_SPA | ID8: CUMBRES | IE8: SANTA_ADRIANA | IF8: GR_CHAQUIHUE | IG8: ISABEL_SOLAR_SPA | IH8: CRUCERO_SPA | II8: EL_ARREBOL | IJ8: FV_ARIZTIA | IK8: HIDROANGOL | IL8: DUQUECO | IM8: ZALDIVAR_TRANSMISION | IN8: Total
A9: =+MATCH(B9,RUT[EMPRESA],0) -> 108 | B9: ENEL_GENERACION | C9: -7282532491 | D9: =+C9 -> -7282532491 | F9: =IFERROR(INDEX($B$9:$B$511,MATCH(0,INDEX(COUNTIF($F$8:F8,$B$9:$B$511),0,0),0)),"") -> ENEL_GENERACION | G9: =IF(SUMIF($B$9:$B$400,F9,$D$9:$D$400)<-0.00001,SUMIF($B$9:$B$400,F9,$D$9:$D$400),"") -> -7282532491 | H9: =IF(SUMIF($B$9:$B$400,F9,$D$9:$D$400)>0.00001,SUMIF($B$9:$B$400,F9,$D$9:$D$400),"") ->  | J9: ENEL_GENERACION | K9: =$IN9*K$70/$IN$70 -> 891408805.1 | L9: 552279974.7 | M9: 8566846.758 | N9: 1810714274 | O9: 294562232.1 | P9: 68399372.8 | Q9: 21603478.9 | R9: 902818.9768 | S9: 1286440.903 | T9: 5851865.394 | U9: =$IN9*U$70/$IN$70 -> 2917099.119 | V9: 13873454.6 | W9: 2566352.447 | X9: 18729943.86 | Y9: 4018953.207 | Z9: 2260553.082 | AA9: 12207847.1 | AB9: 12109930.48 | AC9: 74438587.15 | AD9: 3838906.193 | AE9: =$IN9*AE$70/$IN$70 -> 7924.125222 | AF9: 2106175.955 | AG9: 348557.0144 | AH9: 2628339.962 | AI9: 13409968.65 | AJ9: 1616288.168 | AK9: 10132229.14 | AL9: 2740373.159 | AM9: 16815923.24 | AN9: 52244499.73 | AO9: =$IN9*AO$70/$IN$70 -> 44949203.63 | AP9: 1121581.769 | AQ9: 3021168.798 | AR9: 187187995.8 | AS9: 16446100.43 | AT9: 1743121.846 | AU9: 227386368.9 | AV9: 2643142.687 | AW9: 22080442.47 | AX9: 18307986.93 | AY9: =$IN9*AY$70/$IN$70 -> 6766865.809 | AZ9: 5471805.58 | BA9: 11381451.97 | BB9: 84655.33128 | BC9: 319806.2284 | BD9: 12411035.41 | BE9: 57682.33273 | BF9: 37261688.53 | BG9: 76793.47121 | BH9: 720291.9753 | BI9: =$IN9*BI$70/$IN$70 -> 39907594.57 | BJ9: 9725986.364 | BK9: 652983.2644 | BL9: 475627.7786 | BM9: 249670155.8 | BN9: 2384406.737 | BO9: 60266465.62 | BP9: 27238488.5 | BQ9: 16465079.49 | BR9: 47177.7699 | BS9: =$IN9*BS$70/$IN$70 -> 8051912.874 | BT9: 1621918.273 | BU9: 1678802.092 | BV9: 32684525.48 | BW9: 1961371.86 | BX9: 1814618.186 | BY9: 1731292.781 | BZ9: 34764433.39 | CA9: 95520266.2 | CB9: 10268636.34 | CC9: =$IN9*CC$70/$IN$70 -> 1514149.009 | CD9: 12761488.59 | CE9: 45819235.11 | CF9: 45368659.75 | CG9: 14413345.62 | CH9: 625946.3584 | CI9: 11046544.53 | CJ9: 1166589.579 | CK9: 4537061.276 | CL9: 1244720.681 | CM9: =$IN9*CM$70/$IN$70 -> 13030955.3 | CN9: 17505939.3 | CO9: 1025505.92 | CP9: 5062235.687 | CQ9: 2625152.91 | CR9: 973395.9336 | CS9: 2232120.777 | CT9: 3566838.826 | CU9: 602039.5964 | CV9: 17892494.12 | CW9: =$IN9*CW$70/$IN$70 -> 13295425.6 | CX9: 1780196.846 | CY9: 1430032.353 | CZ9: 4708920.936 | DA9: 1047757.784 | DB9: 557211.1006 | DC9: 12899296.33 | DD9: 632516.9851 | DE9: 12156277.87 | DF9: 260313.5221 | DG9: =$IN9*DG$70/$IN$70 -> 24016305.58 | DH9: 128819.1935 | DI9: 3049495.851 | DJ9: 160156.6212 | DK9: 2910682.001 | DL9: 8106109.932 | DM9: 24739738.46 | DN9: 397475.6819 | DO9: 5611197.364 | DP9: 2050265.265 | DQ9: =$IN9*DQ$70/$IN$70 -> 2114510.723 | DR9: 912387.3151 | DS9: 2042613.119 | DT9: 5982965.269 | DU9: 12102353.41 | DV9: 8324492.61 | DW9: 4710590.81 | DX9: 2635282.356 | DY9: 45556218.51 | DZ9: 1342533.423 | EA9: =$IN9*EA$70/$IN$70 -> 3480772.632 | EB9: 6329583.861 | EC9: 5799973.615 | ED9: 47867074.22 | EE9: 114386.1599 | EF9: 60493.23289 | EG9: 2244062.927 | EH9: 2489869.322 | EI9: 4291788.309 | EJ9: 16299272.8 | EK9: =$IN9*EK$70/$IN$70 -> 13738295.78 | EL9: 1706978.172 | EM9: 94577.63987 | EN9: 1129190.875 | EO9: 2153968.138 | EP9: 2190658.602 | EQ9: 2057049.069 | ER9: 5298396.838 | ES9: 2209747.846 | ET9: 5503221.945 | EU9: =$IN9*EU$70/$IN$70 -> 1767286.292 | EV9: 1583828.679 | EW9: 1390885.532 | EX9: 6581563.51 | EY9: 2511500.063 | EZ9: 1378001.65 | FA9: 1682853.253 | FB9: 1933870.674 | FC9: 1745107.37 | FD9: 2271547.717 | FE9: =$IN9*FE$70/$IN$70 -> 16264370.38 | FF9: 1363415.241 | FG9: 1535061.609 | FH9: 1484014.215 | FI9: 1526714.734 | FJ9: 2000615.184 | FK9: 5859520.794 | FL9: 2535882.097 | FM9: 39322.36557 | FN9: 1498770.314 | FO9: =$IN9*FO$70/$IN$70 -> 1688131.71 | FP9: 166498.4198 | FQ9: 9734198.913 | FR9: 6508621.489 | FS9: 121129.4864 | FT9: 5811035.52 | FU9: 2098172.941 | FV9: 1414148.127 | FW9: 6014805.798 | FX9: 0.6477572724 | FY9: =$IN9*FY$70/$IN$70 -> 1318074.008 | FZ9: 1241968.316 | GA9: 2081803.058 | GB9: 3325863.851 | GC9: 1589037.92 | GD9: 539558.7307 | GE9: 1147186.766 | GF9: 8444173.69 | GG9: 8533944.508 | GH9: 2272160.696 | GI9: =$IN9*GI$70/$IN$70 -> 21036058.23 | GJ9: 2013647.579 | GK9: 4728799.966 | GL9: 2967014.306 | GM9: 3748744.218 | GN9: 2536203.988 | GO9: 2095143.746 | GP9: 9793654.76 | GQ9: 2408676.355 | GR9: 1716071.072 | GS9: =$IN9*GS$70/$IN$70 -> 2566956.379 | GT9: 9738540.397 | GU9: 10524902.54 | GV9: 5380855.526 | GW9: 553872019.8 | GX9: 57793801.33 | GY9: 65102554.32 | GZ9: 389078289 | HA9: 92964239.14 | HB9: 20362252.13 | HC9: =$IN9*HC$70/$IN$70 -> 425977.6883 | HD9: 16102145.96 | HE9: 15194708.83 | HF9: 18137.34197 | HG9: 9740329.866 | HH9: 7994189.655 | HI9: 20741383.11 | HJ9: 1079487.74 | HK9: 369841.1238 | HL9: 48784305.23 | HM9: =$IN9*HM$70/$IN$70 -> 14714272.96 | HN9: 1744987.654 | HO9: 1810004.63 | HP9: 1338112.318 | HQ9: 1815332.512 | HR9: 1703348.963 | HS9: 5310246.877 | HT9: 1179972.081 | HU9: 1235909.52 | HV9: 9899884.063 | HW9: =$IN9*HW$70/$IN$70 -> 394158.3544 | HX9: 4277088.285 | HY9: 3062895.567 | HZ9: 3514339.539 | IA9: 1952952.414 | IB9: 3717934.007 | IC9: 6359546.813 | ID9: 39200640.31 | IE9: 1979729.896 | IF9: 5747570.639 | IG9: =$IN9*IG$70/$IN$70 -> 2481598.408 | IH9: 1934555.096 | II9: 126.0406316 | IJ9: 689288.4439 | IK9: 4273688.042 | IL9: 3034941.68 | IM9: 22580915.5 | IN9: 7282532491
A10: =+MATCH(B10,RUT[EMPRESA],0) -> 331 | B10: GASATACAMA | C10: 5799362654 | D10: =+C10 -> 5799362654 | F10: =IFERROR(INDEX($B$9:$B$511,MATCH(0,INDEX(COUNTIF($F$8:F9,$B$9:$B$511),0,0),0)),"") -> GASATACAMA | G10: =IF(SUMIF($B$9:$B$400,F10,$D$9:$D$400)<-0.00001,SUMIF($B$9:$B$400,F10,$D$9:$D$400),"") ->  | H10: =IF(SUMIF($B$9:$B$400,F10,$D$9:$D$400)>0.00001,SUMIF($B$9:$B$400,F10,$D$9:$D$400),"") -> 5799362654 | J10: AES_GENER | K10: 23093271.64 | L10: 14307634.62 | M10: 221936.914 | N10: 46909247.88 | O10: 7631072.975 | P10: 1771987.541 | Q10: 559670.27 | R10: 23388.86912 | S10: 33327.16601 | T10: 151601.2815 | U10: 75571.79376 | V10: 359412.4873 | W10: 66485.17926 | X10: 485227.0686 | Y10: 104116.9636 | Z10: 58562.99162 | AA10: 316262.4461 | AB10: 313725.7705 | AC10: 1928442.376 | AD10: 99452.57779 | AE10: 205.2862561 | AF10: 54563.62241 | AG10: 9029.888163 | AH10: 68091.05807 | AI10: 347405.1938 | AJ10: 41872.35026 | AK10: 262490.4742 | AL10: 70993.44476 | AM10: 435641.5161 | AN10: 1353471.513 | AO10: 1164476.011 | AP10: 29056.24481 | AQ10: 78267.87366 | AR10: 4849383.596 | AS10: 426060.7058 | AT10: 45158.16546 | AU10: 5890782.271 | AV10: 68474.5447 | AW10: 572026.7211 | AX10: 474295.6463 | AY10: 175305.7289 | AZ10: 141755.2664 | BA10: 294853.4505 | BB10: 2193.122337 | BC10: 8285.056266 | BD10: 321526.3418 | BE10: 1494.346669 | BF10: 965319.4924 | BG10: 1989.449152 | BH10: 18660.23552 | BI10: 1033865.626 | BJ10: 251966.1505 | BK10: 16916.5032 | BL10: 12321.84541 | BM10: 6468076.932 | BN10: 61771.60489 | BO10: 1561292.477 | BP10: 705653.5795 | BQ10: 426552.3867 | BR10: 1222.210337 | BS10: 208596.7854 | BT10: 42018.20651 | BU10: 43491.8665 | BV10: 846741.272 | BW10: 50812.25684 | BX10: 47010.38454 | BY10: 44851.71592 | BZ10: 900624.3817 | CA10: 2474594.644 | CB10: 266024.3056 | CC10: 39226.28336 | CD10: 330605.3528 | CE10: 1187015.471 | CF10: 1175342.646 | CG10: 373399.1675 | CH10: 16216.07192 | CI10: 286177.175 | CJ10: 30222.23911 | CK10: 117539.3242 | CL10: 32246.34157 | CM10: 337586.2891 | CN10: 453517.4091 | CO10: 26567.25697 | CP10: 131144.7488 | CQ10: 68008.49275 | CR10: 25217.27022 | CS10: 57826.41047 | CT10: 92404.26777 | CU10: 15596.73167 | CV10: 463531.6868 | CW10: 344437.7857 | CX10: 46118.6485 | CY10: 37047.11621 | CZ10: 121991.6044 | DA10: 27143.72461 | DB10: 14435.38277 | DC10: 334175.4676 | DD10: 16386.29378 | DE10: 314926.4686 | DF10: 6743.809175 | DG10: 622178.1359 | DH10: 3337.252909 | DI10: 79001.72812 | DJ10: 4149.095608 | DK10: 75405.54877 | DL10: 210000.8409 | DM10: 640919.7413 | DN10: 10297.19904 | DO10: 145366.418 | DP10: 53115.17278 | DQ10: 54779.54698 | DR10: 23636.75117 | DS10: 52916.93255 | DT10: 154997.6188 | DU10: 313529.4753 | DV10: 215658.3692 | DW10: 122034.865 | DX10: 68270.91113 | DY10: 1180201.635 | DZ10: 34780.3262 | EA10: 90174.59495 | EB10: 163977.2893 | EC10: 150256.9477 | ED10: 1240067.791 | EE10: 2963.343697 | EF10: 1567.167221 | EG10: 58135.78962 | EH10: 64503.77009 | EI10: 111185.163 | EJ10: 422256.9175 | EK10: 355910.9969 | EL10: 44221.80977 | EM10: 2450.174506 | EN10: 29253.37003 | EO10: 55801.75005 | EP10: 56752.27112 | EQ10: 53290.91733 | ER10: 137262.8549 | ES10: 57246.80639 | ET10: 142569.1541 | EU10: 45784.18138 | EV10: 41031.43889 | EW10: 36032.95955 | EX10: 170505.1971 | EY10: 65064.14661 | EZ10: 35699.18343 | FA10: 43596.81786 | FB10: 50099.79769 | FC10: 45209.6034 | FD10: 58847.82401 | FE10: 421352.7186 | FF10: 35321.30077 | FG10: 39768.05537 | FH10: 38445.59668 | FI10: 39551.81716 | FJ10: 51828.91356 | FK10: 151799.606 | FL10: 65695.79949 | FM10: 1018.704398 | FN10: 38827.87537 | FO10: 43733.56415 | FP10: 4313.38934 | FQ10: 252178.9088 | FR10: 168615.5255 | FS10: 3138.039604 | FT10: 150543.5228 | FU10: 54356.29243 | FV10: 36635.61168 | FW10: 155822.4951 | FX10: 0.0167811161 | FY10: 34146.66868 | FZ10: 32175.03745 | GA10: 53932.20626 | GB10: 86161.45244 | GC10: 41166.39203 | GD10: 13978.07186 | GE10: 29719.58035 | GF10: 218758.8856 | GG10: 221084.5323 | GH10: 58863.70414 | GI10: 544970.3932 | GJ10: 52166.53713 | GK10: 122506.6003 | GL10: 76864.92097 | GM10: 97116.79767 | GN10: 65704.13857 | GO10: 54277.81662 | GP10: 253719.201 | GQ10: 62400.34544 | GR10: 44457.37488 | GS10: 66500.825 | GT10: 252291.3814 | GU10: 272663.263 | GV10: 139399.0699 | GW10: 14348878.92 | GX10: 1497234.429 | GY10: 1686578.552 | GZ10: 10079652.08 | HA10: 2408376.96 | HB10: 527514.4435 | HC10: 11035.58593 | HD10: 417150.0536 | HE10: 393641.5442 | HF10: 469.8748348 | HG10: 252337.7403 | HH10: 207101.3795 | HI10: 537336.3958 | HJ10: 27965.73633 | HK10: 9581.284691 | HL10: 1263830.025 | HM10: 381195.138 | HN10: 45206.50197 | HO10: 46890.8635 | HP10: 34665.7909 | HQ10: 47028.8902 | HR10: 44127.78971 | HS10: 137569.8478 | HT10: 30568.93274 | HU10: 32018.07533 | HV10: 256471.2292 | HW10: 10211.25874 | HX10: 110804.337 | HY10: 79348.86772 | HZ10: 91044.19561 | IA10: 50594.13857 | IB10: 96318.61328 | IC10: 164753.5242 | ID10: 1015550.924 | IE10: 51287.84909 | IF10: 148899.3706 | IG10: 64289.49975 | IH10: 50117.52867 | II10: 3.26527013 | IJ10: 17857.0429 | IK10: 110716.2486 | IL10: 78624.68067 | IM10: 584992.2198 | IN10: 188664841.7
A11: =+MATCH(B11,RUT[EMPRESA],0) -> 4 | B11: AES_GENER | C11: -188664841.7 | D11: -188664841.7 | F11: =IFERROR(INDEX($B$9:$B$511,MATCH(0,INDEX(COUNTIF($F$8:F10,$B$9:$B$511),0,0),0)),"") -> AES_GENER | G11: -188664841.7 | J11: PEHUENCHE | K11: 373605875.2 | L11: 231470726 | M11: 3590523.52 | N11: 758903756.8 | O11: 123456465.6 | P11: 28667438.99 | Q11: 9054416.553 | R11: 378388.0886 | S11: 539171.1151 | T11: 2452624.744 | U11: 1222610.056 | V11: 5814620.766 | W11: 1075605.655 | X11: 7850065.007 | Y11: 1684417.432 | Z11: 947439.4999 | AA11: 5116533.932 | AB11: 5075495.272 | AC11: 31198585.14 | AD11: 1608956.407 | AE11: 3321.147067 | AF11: 882737.198 | AG11: 146086.675 | AH11: 1101585.766 | AI11: 5620365.251 | AJ11: 677416.1889 | AK11: 4246604.156 | AL11: 1148540.946 | AM11: 7047863.654 | AN11: 21896633.66 | AO11: 18839040.48 | AP11: 470075.6107 | AQ11: 1266227.579 | AR11: 78453942.35 | AS11: 6892864.091 | AT11: 730574.5235 | AU11: 95301822.09 | AV11: 1107789.862 | AW11: 9254320.785 | AX11: 7673215.072 | AY11: 2836118.298 | AZ11: 2293334.664 | BA11: 4770176.488 | BB11: 35480.61109 | BC11: 134036.6902 | BD11: 5201693.903 | BE11: 24175.72979 | BF11: 15617061.08 | BG11: 32185.56049 | BH11: 301887.655 | BI11: 16726009.11 | BJ11: 4076340.313 | BK11: 273677.3326 | BL11: 199344.3766 | BM11: 104641368.3 | BN11: 999348.8519 | BO11: 25258787.56 | BP11: 11416153.03 | BQ11: 6900818.568 | BR11: 19773.07372 | BS11: 3374705.23 | BT11: 679775.8698 | BU11: 703616.9278 | BV11: 13698687.6 | BW11: 822047.1304 | BX11: 760539.9585 | BY11: 725616.744 | BZ11: 14570415.38 | CA11: 40034305.75 | CB11: 4303774.929 | CC11: 634607.7832 | CD11: 5348575.294 | CE11: 19203686.72 | CF11: 19014842.28 | CG11: 6040899.051 | CH11: 262345.6665 | CI11: 4629810.604 | CJ11: 488939.2143 | CK11: 1901566.082 | CL11: 521685.4004 | CM11: 5461513.765 | CN11: 7337062.117 | CO11: 429808.4501 | CP11: 2121676.366 | CQ11: 1100250.014 | CR11: 407968.1933 | CS11: 935522.9967 | CT11: 1494927.954 | CU11: 252325.9015 | CV11: 7499074.37 | CW11: 5572358.147 | CX11: 746113.3399 | CY11: 599352.9408 | CZ11: 1973595.636 | DA11: 439134.6166 | DB11: 233537.4518 | DC11: 5406333.064 | DD11: 265099.5373 | DE11: 5094920.318 | DF11: 109102.1994 | DG11: 10065676.73 | DH11: 53990.50048 | DI11: 1278099.969 | DJ11: 67124.59455 | DK11: 1219920.524 | DL11: 3397420.216 | DM11: 10368880.8 | DN11: 166589.391 | DO11: 2351756.332 | DP11: 859303.9963 | DQ11: 886230.453 | DR11: 382398.3557 | DS11: 856096.8408 | DT11: 2507571.12 | DU11: 5072319.584 | DV11: 3488948.426 | DW11: 1974295.511 | DX11: 1104495.452 | DY11: 19093451.61 | DZ11: 562680.5249 | EA11: 1458856.025 | EB11: 2652845.366 | EC11: 2430875.942 | ED11: 20061973.87 | EE11: 47941.34986 | EF11: 25353.8299 | EG11: 940528.1719 | EH11: 1043550.167 | EI11: 1798767.657 | EJ11: 6831325.923 | EK11: 5757973.211 | EL11: 715426.0426 | EM11: 39639.23367 | EN11: 473264.7274 | EO11: 902767.7838 | EP11: 918145.4342 | EQ11: 862147.214 | ER11: 2220655.861 | ES11: 926146.0884 | ET11: 2306501.842 | EU11: 740702.2884 | EV11: 663811.8182 | EW11: 582945.7859 | EX11: 2758454.686 | EY11: 1052616.009 | EZ11: 577545.9135 | FA11: 705314.8442 | FB11: 810520.8759 | FC11: 731406.693 | FD11: 952047.5544 | FE11: 6816697.677 | FF11: 571432.4801 | FG11: 643372.6394 | FH11: 621977.7352 | FI11: 639874.3103 | FJ11: 838494.7316 | FK11: 2455833.263 | FL11: 1062834.97 | FM11: 16480.72884 | FN11: 628162.2883 | FO11: 707527.143 | FP11: 69782.55936 | FQ11: 4079782.344 | FR11: 2727883.339 | FS11: 50767.60239 | FT11: 2435512.19 | FU11: 879382.9873 | FV11: 592695.5685 | FW11: 2520916.073 | FX11: 0.2714870229 | FY11: 552429.1332 | FZ11: 520531.8333 | GA11: 872522.0675 | GB11: 1393930.896 | GC11: 665995.1071 | GD11: 226139.018 | GE11: 480807.1372 | GF11: 3539108.974 | GG11: 3576733.58 | GH11: 952304.4651 | GI11: 8816600.083 | GJ11: 843956.8486 | GK11: 1981927.304 | GL11: 1243530.432 | GM11: 1571167.86 | GN11: 1062969.88 | GO11: 878113.3957 | GP11: 4104701.386 | GQ11: 1009520.696 | GR11: 719237.0447 | GS11: 1075858.774 | GT11: 4081601.94 | GU11: 4411180.823 | GV11: 2255215.818 | GW11: 232137981.5 | GX11: 24222448.33 | GY11: 27285681.55 | GZ11: 163069888.7 | HA11: 38963027.66 | HB11: 8534195.517 | HC11: 178535.1077 | HD11: 6748706.431 | HE11: 6368382.786 | HF11: 7601.694624 | HG11: 4082351.94 | HH11: 3350512.364 | HI11: 8693096.306 | HJ11: 452433.2264 | HK11: 155007.2379 | HL11: 20446402.31 | HM11: 6167023.25 | HN11: 731356.5177 | HO11: 758606.332 | HP11: 560827.5582 | HQ11: 760839.3455 | HR11: 713904.9741 | HS11: 2225622.431 | HT11: 494548.0677 | HU11: 517992.4802 | HV11: 4149224.047 | HW11: 165199.0379 | HX11: 1792606.605 | HY11: 1283716.037 | HZ11: 1472924.534 | IA11: 818518.3854 | IB11: 1558254.732 | IC11: 2665403.392 | ID11: 16429711.54 | IE11: 829741.3221 | IF11: 2408912.888 | IG11: 1040083.674 | IH11: 810807.73 | II11: 52.82595395 | IJ11: 288893.503 | IK11: 1791181.501 | IL11: 1272000.048 | IM11: 9464078.266 | IN11: 3052243717
A12: =+MATCH(B12,RUT[EMPRESA],0) -> 338 | B12: GMETROPOLITANA | C12: 3593044898 | D12: 3593044898 | F12: =IFERROR(INDEX($B$9:$B$511,MATCH(0,INDEX(COUNTIF($F$8:F11,$B$9:$B$511),0,0),0)),"") -> GMETROPOLITANA | H12: 3593044898 | J12: GUACOLDA | K12: 279846324.9 | L12: 173381192.1 | M12: 2689451.313 | N12: 568450448.5 | O12: 92474022.74 | P12: 21473103.02 | Q12: 6782134.235 | R12: 283428.4015 | S12: 403861.5693 | T12: 1837117.847 | U12: 915785.7352 | V12: 4355392.568 | W12: 805673.3304 | X12: 5880024.883 | Y12: 1261698.649 | Z12: 709671.5542 | AA12: 3832496.522 | AB12: 3801756.86 | AC12: 23369036.66 | AD12: 1205175.205 | AE12: 2487.677156 | AF12: 661206.8416 | AG12: 109424.9899 | AH12: 825133.5131 | AI12: 4209887.115 | AJ12: 507412.8741 | AK12: 3180882.972 | AL12: 860304.8938 | AM12: 5279142.736 | AN12: 16401488.48 | AO12: 14111224.14 | AP12: 352106.1654 | AQ12: 948457.0718 | AR12: 58765262.81 | AS12: 5163041.622 | AT12: 547230.6756 | AU12: 71385024.81 | AV12: 829780.6383 | AW12: 6931870.811 | AX12: 5747556.933 | AY12: 2124370.454 | AZ12: 1717802.958 | BA12: 3573060.404 | BB12: 26576.45203 | BC12: 100399.0506 | BD12: 3896284.879 | BE12: 18108.62618 | BF12: 11697827.68 | BG12: 24108.32221 | BH12: 226126.3979 | BI12: 12528475.84 | BJ12: 3053348.278 | BK12: 204995.6942 | BL12: 149317.2214 | BM12: 78380732.99 | BN12: 748553.8159 | BO12: 18919881.46 | BP12: 8551172.997 | BQ12: 5168999.856 | BR12: 14810.85384 | BS12: 2527794.446 | BT12: 509180.3731 | BU12: 527038.3163 | BV12: 10260886.23 | BW12: 615747.4591 | BX12: 569676.0316 | BY12: 543517.0927 | BZ12: 10913846.56 | CA12: 29987358.55 | CB12: 3223706.256 | CC12: 475347.5994 | CD12: 4006305.144 | CE12: 14384359.32 | CF12: 14242906.99 | CG12: 4524884.406 | CH12: 196507.8054 | CI12: 3467920.524 | CJ12: 366235.7883 | CK12: 1424352.011 | CL12: 390764.0424 | CM12: 4090900.752 | CN12: 5495764.402 | CO12: 321944.3889 | CP12: 1589223.76 | CQ12: 824132.9791 | CR12: 305585.129 | CS12: 700745.5982 | CT12: 1119763.156 | CU12: 189002.5851 | CV12: 5617118.311 | CW12: 4173927.8 | CX12: 558869.8948 | CY12: 448940.2575 | CZ12: 1478305.14 | DA12: 328930.0751 | DB12: 174929.2556 | DC12: 4049568.113 | DD12: 198570.5691 | DE12: 3816307.027 | DF12: 81722.0809 | DG12: 7539610.127 | DH12: 40441.12832 | DI12: 957349.9856 | DJ12: 50279.11053 | DK12: 913771.1636 | DL12: 2544808.915 | DM12: 7766722.574 | DN12: 124782.3761 | DO12: 1761563.215 | DP12: 643654.3998 | DQ12: 663823.4347 | DR12: 286432.2582 | DS12: 641252.107 | DT12: 1878274.966 | DU12: 3799378.138 | DV12: 2613367.347 | DW12: 1478829.375 | DX12: 827312.9885 | DY12: 14301788.64 | DZ12: 421471.0941 | EA12: 1092743.782 | EB12: 1987091.413 | EC12: 1820827.09 | ED12: 15027252.06 | EE12: 35910.06314 | EF12: 18991.07212 | EG12: 704494.6824 | EH12: 781662.4375 | EI12: 1347351.719 | EJ12: 5116946.978 | EK12: 4312961.196 | EL12: 535883.8339 | EM12: 29691.43314 | EN12: 354494.9464 | EO12: 676210.5826 | EP12: 687729.0818 | EQ12: 645784.088 | ER12: 1663363.515 | ES12: 693721.9042 | ET12: 1727665.722 | EU12: 554816.7923 | EV12: 497222.6351 | EW12: 436650.6167 | EX12: 2066197.181 | EY12: 788453.1301 | EZ12: 432605.8879 | FA12: 528310.1262 | FB12: 607113.8155 | FC12: 547854.0051 | FD12: 713123.1786 | FE12: 5105989.814 | FF12: 428026.6722 | FG12: 481912.8409 | FH12: 465887.1686 | FI12: 479292.4471 | FJ12: 628067.3958 | FK12: 1839521.161 | FL12: 796107.5561 | FM12: 12344.75072 | FN12: 470519.6559 | FO12: 529967.2299 | FP12: 52270.03663 | FQ12: 3055926.502 | FR12: 2043297.972 | FS12: 38027.04373 | FT12: 1824299.833 | FU12: 658694.3984 | FV12: 443953.609 | FW12: 1888270.89 | FX12: 0.2033550612 | FY12: 413792.3758 | FZ12: 389899.9727 | GA12: 653555.2844 | GB12: 1044112.163 | GC12: 498858.0093 | GD12: 169387.5212 | GE12: 360144.5247 | GF12: 2650939.682 | GG12: 2679122.075 | GH12: 713315.6153 | GI12: 6603999.817 | GJ12: 632158.7484 | GK12: 1484545.906 | GL12: 931455.966 | GM12: 1176870.014 | GN12: 796208.6097 | GO12: 657743.4216 | GP12: 3074591.901 | GQ12: 756172.9501 | GR12: 538738.4329 | GS12: 805862.9269 | GT12: 3057289.455 | GU12: 3304157.734 | GV12: 1689250.359 | GW12: 173880994.2 | GX12: 18143620.31 | GY12: 20438109.28 | GZ12: 122146122.7 | HA12: 29184926.74 | HB12: 6392467.063 | HC12: 133730.2143 | HD12: 5055061.545 | HE12: 4770183.331 | HF12: 5693.985145 | HG12: 3057851.236 | HH12: 2509672.984 | HI12: 6511490.357 | HJ12: 338891.2865 | HK12: 116106.8622 | HL12: 15315204.94 | HM12: 4619356.672 | HN12: 547816.4217 | HO12: 568227.6649 | HP12: 420083.1451 | HQ12: 569900.2848 | HR12: 534744.4904 | HS12: 1667083.682 | HT12: 370437.0526 | HU12: 387997.8918 | HV12: 3107941.223 | HW12: 123740.9439 | HX12: 1342736.835 | HY12: 961556.6542 | HZ12: 1103281.68 | IA12: 613104.2825 | IB12: 1167197.544 | IC12: 1996497.896 | ID12: 12306536.64 | IE12: 621510.7284 | IF12: 1804375.85 | IG12: 779065.8904 | IH12: 607328.6811 | II12: 39.56883458 | IJ12: 216393.2381 | IK12: 1341669.373 | IL12: 952780.891 | IM12: 7088987.881 | IN12: 2286257374
A13: =+MATCH(B13,RUT[EMPRESA],0) -> 177 | B13: IMELSA_ENERGIA | C13: 55734530.41 | D13: 55734530.41 | F13: =IFERROR(INDEX($B$9:$B$511,MATCH(0,INDEX(COUNTIF($F$8:F12,$B$9:$B$511),0,0),0)),"") -> IMELSA_ENERGIA | H13: 55734530.41 | J13: TECNORED | K13: 29247870.31 | L13: 18120769.04 | M13: 281085.4252 | N13: 59411053.55 | O13: 9664833.816 | P13: 2244240.772 | Q13: 708828.2564 | R13: 29622.24761 | S13: 42209.20467 | T13: 192004.6102 | U13: 95712.468 | V13: 455199.678 | W13: 84204.17559 | X13: 614545.1625 | Y13: 131865.2245 | Z13: 74170.64201 | AA13: 400549.6991 | AB13: 397336.9729 | AC13: 2442392.459 | AD13: 125957.731 | AE13: 259.9971926 | AF13: 69105.39904 | AG13: 11436.4479 | AH13: 86238.03792 | AI13: 439992.3151 | AJ13: 53031.76999 | AK13: 332446.9337 | AL13: 89913.94105 | AM13: 551744.5411 | AN13: 1714185.842 | AO13: 1474821.06 | AP13: 36800.03825 | AQ13: 99127.08141 | AR13: 6141795.094 | AS13: 539610.3445 | AT13: 57193.28933 | AU13: 7460737.419 | AV13: 86723.72775 | AW13: 724477.8311 | AX13: 600700.4017 | AY13: 222026.541 | AZ13: 179534.529 | BA13: 373434.9821 | BB13: 2777.6124 | BC13: 10493.1105 | BD13: 407216.4781 | BE13: 1892.605702 | BF13: 1222587.244 | BG13: 2519.658179 | BH13: 23633.38365 | BI13: 1309401.639 | BJ13: 319117.7675 | BK13: 21424.92841 | BL13: 15605.74622 | BM13: 8191887.152 | BN13: 78234.3843 | BO13: 1977393.269 | BP13: 893717.6463 | BQ13: 540233.0636 | BR13: 1547.942188 | BS13: 264190.0127 | BT13: 53216.49846 | BU13: 55082.90426 | BV13: 1072406.686 | BW13: 64354.25526 | BX13: 59539.14419 | BY13: 56805.16779 | BZ13: 1140650.209 | CA13: 3134100.025 | CB13: 336922.5682 | CC13: 49680.49856 | CD13: 418715.1406 | CE13: 1503367.522 | CF13: 1488583.767 | CG13: 472913.9549 | CH13: 20537.82486 | CI13: 362446.3883 | CJ13: 38276.78224 | CK13: 148864.7847 | CL13: 40840.3292 | CM13: 427556.5694 | CN13: 574384.5467 | CO13: 33647.7091 | CP13: 166096.1974 | CQ13: 86133.46808 | CR13: 31937.93674 | CS13: 73237.75427 | CT13: 117030.9726 | CU13: 19753.42395 | CV13: 587067.7342 | CW13: 436234.0617 | CX13: 58409.75117 | CY13: 46920.56054 | CZ13: 154503.6442 | DA13: 34377.8114 | DB13: 18282.56341 | DC13: 423236.7284 | DD13: 20753.41263 | DE13: 398857.6695 | DF13: 8541.104924 | DG13: 787995.1229 | DH13: 4226.665748 | DI13: 100056.5158 | DJ13: 5254.873026 | DK13: 95501.91698 | DL13: 265968.2636 | DM13: 811731.5625 | DN13: 13041.51039 | DO13: 184108.0903 | DP13: 67270.92241 | DQ13: 69378.86976 | DR13: 29936.19281 | DS13: 67019.84909 | DT13: 196306.107 | DU13: 397088.363 | DV13: 273133.5824 | DW13: 154558.4342 | DX13: 86465.82371 | DY13: 1494737.727 | DZ13: 44049.64727 | EA13: 114207.0686 | EB13: 207678.9536 | EC13: 190301.9974 | ED13: 1570558.84 | EE13: 3753.105816 | EF13: 1984.833693 | EG13: 73629.58621 | EH13: 81694.70014 | EI13: 140817.1729 | EJ13: 534792.8069 | EK13: 450765.0038 | EL13: 56007.38506 | EM13: 3103.171664 | EN13: 37049.6994 | EO13: 70673.50065 | EP13: 71877.34554 | EQ13: 67493.50473 | ER13: 173844.8428 | ES13: 72503.67963 | ET13: 180565.3263 | EU13: 57986.14505 | EV13: 51966.74693 | EW13: 45636.12051 | EX13: 215946.6172 | EY13: 82404.42287 | EZ13: 45213.38956 | FA13: 55215.82626 | FB13: 63451.91829 | FC13: 57258.43603 | FD13: 74531.38522 | FE13: 533647.6294 | FF13: 44734.79723 | FG13: 50366.65848 | FH13: 48691.7507 | FI13: 50092.79053 | FJ13: 65641.86164 | FK13: 192255.7903 | FL13: 83204.41786 | FM13: 1290.199785 | FN13: 49175.91067 | FO13: 55389.01686 | FP13: 5462.952758 | FQ13: 319387.2281 | FR13: 213553.3283 | FS13: 3974.360013 | FT13: 190664.9478 | FU13: 68842.81345 | FV13: 46399.38575 | FW13: 197350.8215 | FX13: 0.02125345923 | FY13: 43247.11338 | FZ13: 40750.02178 | GA13: 68305.70387 | GB13: 109124.3816 | GC13: 52137.6665 | GD13: 17703.37436 | GE13: 37640.15967 | GF13: 277060.4189 | GG13: 280005.8748 | GH13: 74551.49756 | GI13: 690210.7085 | GJ13: 66069.46543 | GK13: 155155.8918 | GL13: 97350.22714 | GM13: 122999.441 | GN13: 83214.97938 | GO13: 68743.42301 | GP13: 321338.0244 | GQ13: 79030.6908 | GR13: 56305.73073 | GS13: 84223.99109 | GT13: 319529.6759 | GU13: 345330.8773 | GV13: 176550.3815 | GW13: 18173005.37 | GX13: 1896263.08 | GY13: 2136069.394 | GZ13: 12765984.89 | HA13: 3050234.634 | HB13: 668102.5655 | HC13: 13976.68512 | HD13: 528324.9102 | HE13: 498551.1369 | HF13: 595.1013977 | HG13: 319588.3899 | HH13: 262296.0654 | HI13: 680542.171 | HJ13: 35418.89785 | HK13: 12134.79737 | HL13: 1600653.959 | HM13: 482787.6332 | HN13: 57254.50803 | HO13: 59387.76954 | HP13: 43904.5871 | HQ13: 59562.58181 | HR13: 55888.30766 | HS13: 174233.6525 | HT13: 38715.87335 | HU13: 40551.22762 | HV13: 324823.4969 | HW13: 12932.6661 | HX13: 140334.8528 | HY13: 100496.1717 | HZ13: 115308.4269 | IA13: 64078.0062 | IB13: 121988.5321 | IC13: 208662.0632 | ID13: 1286205.877 | IE13: 64956.59783 | IF13: 188582.6118 | IG13: 81423.32451 | IH13: 63474.37476 | II13: 4.135498805 | IJ13: 22616.13179 | IK13: 140223.288 | IL13: 99578.98123 | IM13: 740898.7709 | IN13: 238945997.2
A14: =+MATCH(B14,RUT[EMPRESA],0) -> 56 | B14: COLBUN | C14: 1.178021653e+10 | D14: 1.178021653e+10 | F14: =IFERROR(INDEX($B$9:$B$511,MATCH(0,INDEX(COUNTIF($F$8:F13,$B$9:$B$511),0,0),0)),"") -> COLBUN | H14: 1.178021653e+10 | J14: PACIFIC HYDRO | K14: 2585173.622 | L14: 1601666.502 | M14: 24844.70216 | N14: 5251250.326 | O14: 854259.5811 | P14: 198364.9402 | Q14: 62652.22361 | R14: 2618.264247 | S14: 3730.805742 | T14: 16970.98791 | U14: 8459.875708 | V14: 40234.3893 | W14: 7442.675698 | X14: 54318.68805 | Y14: 11655.36144 | Z14: 6555.82732 | AA14: 35403.96293 | AB14: 35119.99507 | AC14: 215879.2586 | AD14: 11133.20731 | AE14: 22.98074619 | AF14: 6108.118397 | AG14: 1010.849786 | AH14: 7622.445616 | AI14: 38890.23422 | AJ14: 4687.395405 | AK14: 29384.46576 | AL14: 7947.352958 | AM14: 48767.83911 | AN14: 151514.2119 | AO14: 130357.1323 | AP14: 3252.697963 | AQ14: 8761.68806 | AR14: 542863.6854 | AS14: 47695.3164 | AT14: 5055.225607 | AU14: 659442.9396 | AV14: 7665.374983 | AW14: 64035.4651 | AX14: 53094.97125 | AY14: 19624.57953 | AZ14: 15868.7769 | BA14: 33007.3354 | BB14: 245.5088262 | BC14: 927.469665 | BD14: 35993.22913 | BE14: 167.284465 | BF14: 108062.5789 | BG14: 222.7086551 | BH14: 2088.917906 | BI14: 115735.9679 | BJ14: 28206.32156 | BK14: 1893.715993 | BL14: 1379.367559 | BM14: 724068.1237 | BN14: 6915.015161 | BO14: 174778.7057 | BP14: 78994.3083 | BQ14: 47750.35757 | BR14: 136.8201947 | BS14: 23351.34301 | BT14: 4703.723266 | BU14: 4868.691963 | BV14: 94788.35371 | BW14: 5688.172212 | BX14: 5262.572058 | BY14: 5020.920149 | BZ14: 100820.2922 | CA14: 277018.2111 | CB14: 29780.06011 | CC14: 4391.181752 | CD14: 37009.57797 | CE14: 132880.3096 | CF14: 131573.5965 | CG14: 41800.1266 | CH14: 1815.306294 | CI14: 32036.07074 | CJ14: 3383.22506 | CK14: 13157.92605 | CL14: 3609.812976 | CM14: 37791.05806 | CN14: 50768.95388 | CO14: 2974.068508 | CP14: 14680.98373 | CQ14: 7613.202851 | CR14: 2822.944396 | CS14: 6473.370828 | CT14: 10344.18506 | CU14: 1745.974322 | CV14: 51890.00104 | CW14: 38558.04807 | CX14: 5162.74677 | CY14: 4147.235137 | CZ14: 13656.33604 | DA14: 3038.601111 | DB14: 1615.967254 | DC14: 37409.23405 | DD14: 1834.361761 | DE14: 35254.40708 | DF14: 754.9349377 | DG14: 69649.65942 | DH14: 373.5883907 | DI14: 8843.839313 | DJ14: 464.4700277 | DK14: 8441.265432 | DL14: 23508.51983 | DM14: 71747.68628 | DN14: 1152.718755 | DO14: 16273.02684 | DP14: 5945.971871 | DQ14: 6132.290048 | DR14: 2646.013374 | DS14: 5923.779891 | DT14: 17351.19051 | DU14: 35098.02083 | DV14: 24141.85118 | DW14: 13661.17884 | DX14: 7642.579247 | DY14: 132117.5354 | DZ14: 3893.479592 | EA14: 10094.5846 | EB14: 18356.41867 | EC14: 16820.49662 | ED14: 138819.2454 | EE14: 331.7311672 | EF14: 175.4363532 | EG14: 6508.004242 | EH14: 7220.867079 | EI14: 12446.6102 | EJ14: 47269.50177 | EK14: 39842.41536 | EL14: 4950.405378 | EM14: 274.2845016 | EN14: 3274.765122 | EO14: 6246.720452 | EP14: 6353.126423 | EQ14: 5965.645574 | ER14: 15365.87441 | ES14: 6408.487117 | ET14: 15959.88746 | EU14: 5125.304886 | EV14: 4593.259679 | EW14: 4033.705487 | EX14: 19087.18456 | EY14: 7283.598363 | EZ14: 3996.340958 | FA14: 4880.44073 | FB14: 5608.416055 | FC14: 5060.983821 | FD14: 6587.712849 | FE14: 47168.28132 | FF14: 3954.038928 | FG14: 4451.830356 | FH14: 4303.787872 | FI14: 4427.623596 | FJ14: 5801.981731 | FK14: 16993.18933 | FL14: 7354.308672 | FM14: 114.0387459 | FN14: 4346.582016 | FO14: 4895.748778 | FP14: 482.8618705 | FQ14: 28230.13876 | FR14: 18875.64549 | FS14: 351.2874804 | FT14: 16852.57724 | FU14: 6084.908866 | FV14: 4101.169311 | FW14: 17443.53119 | FX14: 0.0018785601 | FY14: 3822.544874 | FZ14: 3601.830844 | GA14: 6037.434589 | GB14: 9645.333823 | GC14: 4608.366992 | GD14: 1564.773637 | GE14: 3326.954984 | GF14: 24488.93814 | GG14: 24749.28238 | GH14: 6589.490548 | GI14: 61006.6476 | GJ14: 5839.776963 | GK14: 13713.98719 | GL14: 8604.634683 | GM14: 10871.72868 | GN14: 7355.242189 | GO14: 6076.123901 | GP14: 28402.56659 | GQ14: 6985.39945 | GR14: 4976.775686 | GS14: 7444.427159 | GT14: 28242.72949 | GU14: 30523.25743 | GV14: 15605.01275 | GW14: 1606283.59 | GX14: 167607.7349 | GY14: 188803.8408 | GZ14: 1128365.486 | HA14: 269605.48 | HB14: 59052.54334 | HC14: 1235.37739 | HD14: 46697.81448 | HE14: 44066.15711 | HF14: 52.60008401 | HG14: 28247.91913 | HH14: 23183.93997 | HI14: 60152.06065 | HJ14: 3130.621118 | HK14: 1072.575806 | HL14: 141479.3059 | HM14: 42672.84561 | HN14: 5060.636632 | HO14: 5249.192288 | HP14: 3880.65795 | HQ14: 5264.643672 | HR14: 4939.880313 | HS14: 15400.24069 | HT14: 3422.035638 | HU14: 3584.259738 | HV14: 28710.64207 | HW14: 1143.098178 | HX14: 12403.97868 | HY14: 8882.699814 | HZ14: 10191.93194 | IA14: 5663.754988 | IB14: 10782.37602 | IC14: 18443.3142 | ID14: 113685.7306 | IE14: 5741.412331 | IF14: 16668.52282 | IG14: 7196.88061 | IH14: 5610.400947 | II14: 0.3655302868 | IJ14: 1999.004601 | IK14: 12394.11764 | IL14: 8801.63078 | IM14: 65486.88635 | IN14: 21120063.87
A15: =+MATCH(B15,RUT[EMPRESA],0) -> 244 | B15: PEHUENCHE | C15: -3052243717 | D15: -3052243717 | F15: =IFERROR(INDEX($B$9:$B$511,MATCH(0,INDEX(COUNTIF($F$8:F14,$B$9:$B$511),0,0),0)),"") -> PEHUENCHE | G15: -3052243717 | J15: ELECTRICA CENIZAS | K15: 42729497.35 | L15: 26473426.76 | M15: 410650.0337 | N15: 86796215.52 | O15: 14119779.88 | P15: 3278709.838 | Q15: 1035558.308 | R15: 43276.44157 | S15: 61665.27954 | T15: 280507.9615 | U15: 139830.5451 | V15: 665021.187 | W15: 123017.5756 | X15: 897815.9985 | Y15: 192647.6936 | Z15: 108359.1461 | AA15: 585180.6344 | AB15: 580487.0216 | AC15: 3568198.333 | AD15: 184017.1771 | AE15: 379.8413093 | AF15: 100959.1103 | AG15: 16708.00865 | AH15: 125988.9343 | AI15: 642804.0831 | AJ15: 77476.44019 | AK15: 485686.3156 | AL15: 131359.2226 | AM15: 806067.8146 | AN15: 2504329.327 | AO15: 2154630.812 | AP15: 53762.79093 | AQ15: 144819.1036 | AR15: 8972817.999 | AS15: 788340.4342 | AT15: 83556.18644 | AU15: 10899718.73 | AV15: 126698.4999 | AW15: 1058421.459 | AX15: 877589.5799 | AY15: 324368.3179 | AZ15: 262289.8727 | BA15: 545567.5543 | BB15: 4057.935857 | BC15: 15329.84564 | BD15: 594920.4244 | BE15: 2764.990731 | BF15: 1786131.36 | BG15: 3681.079215 | BH15: 34527.04738 | BI15: 1912962.321 | BJ15: 466213.1518 | BK15: 31300.6182 | BL15: 22799.11954 | BM15: 11967887.46 | BN15: 114296.0455 | BO15: 2888860.608 | BP15: 1305671.332 | BQ15: 789250.1919 | BR15: 2261.456677 | BS15: 385966.7841 | BT15: 77746.31812 | BU15: 80473.03227 | BV15: 1566725.992 | BW15: 94017.95584 | BX15: 86983.34876 | BY15: 82989.16264 | BZ15: 1666425.95 | CA15: 4578744.273 | CB15: 492224.9665 | CC15: 72580.42068 | CD15: 611719.3252 | CE15: 2196335.591 | CF15: 2174737.355 | CG15: 690900.7516 | CH15: 30004.60968 | CI15: 529513.8354 | CJ15: 55920.23104 | CK15: 217483.0972 | CL15: 59665.4293 | CM15: 624636.1566 | CN15: 839143.5924 | CO15: 49157.41493 | CP15: 242657.2243 | CQ15: 125836.1637 | CR15: 46659.53345 | CS15: 106996.2494 | CT15: 170975.684 | CU15: 28858.64397 | CV15: 857673.0177 | CW15: 637313.4859 | CX15: 85333.36892 | CY15: 68548.3061 | CZ15: 225721.1545 | DA15: 50224.05342 | DB15: 26709.79926 | DC15: 618325.1111 | DD15: 30319.57132 | DE15: 582708.6742 | DF15: 12478.07503 | DG15: 1151216.658 | DH15: 6174.921488 | DI15: 146176.9551 | DJ15: 7677.074626 | DK15: 139522.9418 | DL15: 388564.7089 | DM15: 1185894.264 | DN15: 19052.91489 | DO15: 268971.5891 | DP15: 98279.04289 | DQ15: 101358.6357 | DR15: 43735.0979 | DS15: 97912.23885 | DT15: 286792.2071 | DU15: 580123.8166 | DV15: 399032.8375 | DW15: 225801.1996 | DX15: 126321.7166 | DY15: 2183727.945 | DZ15: 64354.06291 | EA15: 166850.1187 | EB15: 303407.2978 | EC15: 278020.5398 | ED15: 2294498.337 | EE15: 5483.077 | EF15: 2899.730651 | EG15: 107568.6939 | EH15: 119351.3728 | EI15: 205725.988 | EJ15: 781302.2821 | EK15: 658542.3769 | EL15: 81823.64684 | EM15: 4533.559674 | EN15: 54127.53187 | EO15: 103250.0188 | EP15: 105008.7686 | EQ15: 98604.22316 | ER15: 253977.5604 | ES15: 105923.8076 | ET15: 263795.8097 | EU15: 84714.50415 | EV15: 75920.50127 | EW15: 66671.8113 | EX15: 315485.8904 | EY15: 120388.2379 | EZ15: 66054.2251 | FA15: 80667.22384 | FB15: 92699.69215 | FC15: 83651.3621 | FD15: 108886.1716 | FE15: 779629.2421 | FF15: 65355.02855 | FG15: 73582.86182 | FH15: 71135.91555 | FI15: 73182.75611 | FJ15: 95899.07651 | FK15: 280874.9216 | FL15: 121556.9857 | FM15: 1884.909489 | FN15: 71843.24609 | FO15: 80920.24561 | FP15: 7981.067438 | FQ15: 466606.8186 | FR15: 311989.4296 | FS15: 5806.316966 | FT15: 278550.79 | FU15: 100575.4875 | FV15: 67786.89899 | FW15: 288318.4762 | FX15: 0.03105011134 | FY15: 63181.60593 | FZ15: 59533.49523 | GA15: 99790.80053 | GB15: 159424.5982 | GC15: 76170.20516 | GD15: 25863.63655 | GE15: 54990.16118 | GF15: 404769.7254 | GG15: 409072.8711 | GH15: 108915.5546 | GI15: 1008359.115 | GJ15: 96523.78166 | GK15: 226674.0518 | GL15: 142223.2193 | GM15: 179695.2815 | GN15: 121572.4155 | GO15: 100430.2836 | GP15: 469456.8224 | GQ15: 115459.4046 | GR15: 82259.51312 | GS15: 123046.5249 | GT15: 466814.9268 | GU15: 504509.0342 | GV15: 257930.2006 | GW15: 26549741.11 | GX15: 2770333.955 | GY15: 3120677.523 | GZ15: 18650387.59 | HA15: 4456221.643 | HB15: 976060.3591 | HC15: 20419.15269 | HD15: 771853.048 | HE15: 728355.2359 | HF15: 869.4097492 | HG15: 466900.7046 | HH15: 383199.8334 | HI15: 994233.9246 | HJ15: 51745.02231 | HK15: 17728.25804 | HL15: 2338465.616 | HM15: 705325.6415 | HN15: 83645.62352 | HO15: 86762.19889 | HP15: 64142.13815 | HQ15: 87017.5898 | HR15: 81649.68145 | HS15: 254545.5896 | HT15: 56561.71851 | HU15: 59243.06811 | HV15: 474548.9021 | HW15: 18893.89948 | HX15: 205021.3454 | HY15: 146819.2677 | HZ15: 168459.1415 | IA15: 93614.37145 | IB15: 178218.4003 | IC15: 304843.5658 | ID15: 1879074.614 | IE15: 94897.94453 | IF15: 275508.614 | IG15: 118954.9082 | IH15: 92732.4998 | II15: 6.041731699 | IJ15: 33040.89949 | IK15: 204858.3555 | IL15: 145479.3039 | IM15: 1082411.53 | IN15: 349086694
A16: =+MATCH(B16,RUT[EMPRESA],0) -> 156 | B16: GUACOLDA | C16: -2286257374 | D16: -2286257374 | F16: =IFERROR(INDEX($B$9:$B$511,MATCH(0,INDEX(COUNTIF($F$8:F15,$B$9:$B$511),0,0),0)),"") -> GUACOLDA | G16: -2286257374 | J16: PUNTILLA | K16: 15992468.07 | L16: 9908270.829 | M16: 153694.9405 | N16: 32485420.88 | O16: 5284642.764 | P16: 1227130.335 | Q16: 387580.8097 | R16: 16197.17415 | S16: 23079.60719 | T16: 104986.3653 | U16: 52334.70239 | V16: 248899.022 | W16: 46042.07332 | X16: 336027.676 | Y16: 72102.69908 | Z16: 40555.8289 | AA16: 219016.9132 | AB16: 217260.2239 | AC16: 1335477.865 | AD16: 68872.53566 | AE16: 142.1640878 | AF16: 37786.20036 | AG16: 6253.345145 | AH16: 47154.17065 | AI16: 240583.775 | AJ16: 28997.28695 | AK16: 181778.9438 | AL16: 49164.12087 | AM16: 301688.8704 | AN16: 937301.1451 | AO16: 806418.671 | AP16: 20121.92445 | AQ16: 54201.78178 | AR16: 3358277.402 | AS16: 295054.0026 | AT16: 31272.76768 | AU16: 4079463.006 | AV16: 47419.74141 | AW16: 396137.854 | AX16: 328457.4874 | AY16: 121402.0826 | AZ16: 98167.83896 | BA16: 204190.8338 | BB16: 1518.773064 | BC16: 5737.536882 | BD16: 222662.247 | BE16: 1034.859493 | BF16: 668499.5265 | BG16: 1377.726055 | BH16: 12922.5181 | BI16: 715968.8443 | BJ16: 174490.6776 | BK16: 11714.95496 | BL16: 8533.079346 | BM16: 4479248.995 | BN16: 42777.84603 | BO16: 1081220.56 | BP16: 488676.6376 | BQ16: 295394.4997 | BR16: 846.4006352 | BS16: 144456.6834 | BT16: 29098.29479 | BU16: 30118.82842 | BV16: 586382.1707 | BW16: 35188.31838 | BX16: 32555.45967 | BY16: 31060.54637 | BZ16: 623697.1049 | CA16: 1713697.238 | CB16: 184226.1798 | CC16: 27164.84238 | CD16: 228949.6105 | CE16: 822027.6155 | CF16: 813943.9933 | CG16: 258585.0266 | CH16: 11229.89485 | CI16: 198182.3712 | CJ16: 20929.39456 | CK16: 81397.90316 | CL16: 22331.1186 | CM16: 233784.023 | CN16: 314068.2185 | CO16: 18398.25969 | CP16: 90819.8821 | CQ16: 47096.99282 | CR16: 17463.3718 | CS16: 40045.73441 | CT16: 63991.46576 | CU16: 10800.99161 | CV16: 321003.2694 | CW16: 238528.7964 | CX16: 31937.91789 | CY16: 25655.7335 | CZ16: 84481.18 | DA16: 18797.47295 | DB16: 9996.738514 | DC16: 231421.9734 | DD16: 11347.77627 | DE16: 218091.7269 | DF16: 4670.19808 | DG16: 430868.5285 | DH16: 2311.102186 | DI16: 54709.988 | DJ16: 2873.316525 | DK16: 52219.57502 | DL16: 145429.0147 | DM16: 443847.3966 | DN16: 7130.978642 | DO16: 100668.6205 | DP16: 36783.12531 | DQ16: 37935.73165 | DR16: 16368.83652 | DS16: 36645.84071 | DT16: 107338.3845 | DU16: 217124.2862 | DV16: 149346.9455 | DW16: 84511.13865 | DX16: 47278.72184 | DY16: 817308.9223 | DZ16: 24085.94437 | EA16: 62447.38089 | EB16: 113556.953 | EC16: 104055.3922 | ED16: 858767.214 | EE16: 2052.163945 | EF16: 1085.288916 | EG16: 40259.98454 | EH16: 44669.91509 | EI16: 76997.54266 | EJ16: 292419.8171 | EK16: 246474.1827 | EL16: 30624.32607 | EM16: 1696.785893 | EN16: 20258.43688 | EO16: 38643.62398 | EP16: 39301.87536 | EQ16: 36904.83128 | ER16: 95056.77056 | ES16: 39644.34911 | ET16: 98731.46949 | EU16: 31706.29394 | EV16: 28414.94209 | EW16: 24953.41344 | EX16: 118077.6359 | EY16: 45057.98499 | EZ16: 24722.26802 | FA16: 30191.50895 | FB16: 34694.92877 | FC16: 31308.3893 | FD16: 40753.07999 | FE16: 291793.6446 | FF16: 24460.57811 | FG16: 27540.02835 | FH16: 26624.20409 | FI16: 27390.27985 | FJ16: 35892.36977 | FK16: 105123.7083 | FL16: 45495.41494 | FM16: 705.4694459 | FN16: 26888.93833 | FO16: 30286.20799 | FP16: 2987.09262 | FQ16: 174638.0162 | FR16: 116769.0074 | FS16: 2173.143717 | FT16: 104253.8502 | FU16: 37642.62095 | FV16: 25370.75989 | FW16: 107909.6248 | FX16: 0.01162119718 | FY16: 23647.12618 | FZ16: 22281.73933 | GA16: 37348.93435 | GB16: 59668.21411 | GC16: 28508.39934 | GD16: 9680.043235 | GE16: 20581.29516 | GF16: 151494.1039 | GG16: 153104.6522 | GH16: 40764.07723 | GI16: 377400.9047 | GJ16: 36126.17962 | GK16: 84837.82305 | GL16: 53230.21412 | GM16: 67254.96974 | GN16: 45501.18988 | GO16: 37588.27517 | GP16: 175704.6937 | GQ16: 43213.25914 | GR16: 30787.45875 | GS16: 46052.90826 | GT16: 174715.9053 | GU16: 188823.7663 | GV16: 96536.13437 | GW16: 9936833.181 | GX16: 1036859.314 | GY16: 1167983.214 | GZ16: 6980323.817 | HA16: 1667840.409 | HB16: 365312.3743 | HC16: 7642.323633 | HD16: 288883.2304 | HE16: 272603.2033 | HF16: 325.3960032 | HG16: 174748.0095 | HH16: 143421.0904 | HI16: 372114.2368 | HJ16: 19366.72951 | HK16: 6635.196253 | HL16: 875222.9496 | HM16: 263983.8636 | HN16: 31306.24151 | HO16: 32472.6894 | HP16: 24006.6268 | HQ16: 32568.27514 | HR16: 30559.21564 | HS16: 95269.36814 | HT16: 21169.48556 | HU16: 22173.0405 | HV16: 177610.5182 | HW16: 7071.463577 | HX16: 76733.81442 | HY16: 54950.38784 | HZ16: 63049.59356 | IA16: 35037.26791 | IB16: 66702.21401 | IC16: 114094.5083 | ID16: 703285.6136 | IE16: 35517.67379 | IF16: 103115.2479 | IG16: 44521.52938 | IH16: 34707.20776 | II16: 2.261252935 | IJ16: 12366.29408 | IK16: 76672.8118 | IL16: 54448.87647 | IM16: 405116.6738 | IN16: 130653486.6
A17: =+MATCH(B17,RUT[EMPRESA],0) -> 19 | B17: ARAUCO BIO | C17: 1916374618 | D17: 1916374618 | F17: =IFERROR(INDEX($B$9:$B$511,MATCH(0,INDEX(COUNTIF($F$8:F16,$B$9:$B$511),0,0),0)),"") -> ARAUCO BIO | H17: 1916374618 | J17: MONTE REDONDO | K17: 36733662.17 | L17: 22758655.62 | M17: 353027.3123 | N17: 74616905.33 | O17: 12138481.76 | P17: 2818638.809 | Q17: 890247.9882 | R17: 37203.85877 | S17: 53012.36117 | T17: 241146.8736 | U17: 120209.4179 | V17: 571704.9143 | W17: 105755.6569 | X17: 771833.7829 | Y17: 165615.2245 | Z17: 93154.10925 | AA17: 503067.648 | AB17: 499032.6465 | AC17: 3067506.061 | AD17: 158195.7486 | AE17: 326.5416913 | AF17: 86792.45207 | AG17: 14363.52832 | AH17: 108310.0724 | AI17: 552605.3311 | AJ17: 66604.88788 | AK17: 417534.4468 | AL17: 112926.7977 | AM17: 692959.7731 | AN17: 2152919.954 | AO17: 1852291.397 | AP17: 46218.75571 | AQ17: 124497.9782 | AR17: 7713745.435 | AS17: 677719.9121 | AT17: 71831.51957 | AU17: 9370262.003 | AV17: 108920.0712 | AW17: 909902.9642 | AX17: 754445.5506 | AY17: 278852.7117 | AZ17: 225485.1607 | BA17: 469013.1051 | BB17: 3488.523248 | BC17: 13178.75018 | BD17: 511440.7434 | BE17: 2377.005154 | BF17: 1535500.065 | BG17: 3164.547413 | BH17: 29682.18614 | BI17: 1644534.01 | BJ17: 400793.772 | BK17: 26908.49193 | BL17: 19599.92995 | BM17: 10288544.5 | BN17: 98257.93852 | BO17: 2483493.517 | BP17: 1122458.55 | BQ17: 678502.0118 | BR17: 1944.127376 | BS17: 331807.6349 | BT17: 66836.89633 | BU17: 69180.99591 | BV17: 1346881.824 | BW17: 80825.28562 | BX17: 74777.77989 | BY17: 71344.06097 | BZ17: 1432591.808 | CA17: 3936251.436 | CB17: 423155.5893 | CC17: 62395.8815 | CD17: 525882.4097 | CE17: 1888144.131 | CF17: 1869576.575 | CG17: 593953.0389 | CH17: 25794.3403 | CI17: 455212.0561 | CJ17: 48073.4622 | CK17: 186965.7055 | CL17: 51293.13142 | CM17: 536986.7417 | CN17: 721394.3329 | CO17: 42259.60952 | CP17: 208607.3802 | CQ17: 108178.7386 | CR17: 40112.23265 | CS17: 91982.45529 | CT17: 146984.2475 | CU17: 24809.17736 | CV17: 737323.6953 | CW17: 547885.1786 | CX17: 73359.32647 | CY17: 58929.55628 | CZ17: 194047.7925 | DA17: 43176.5765 | DB17: 22961.86016 | DC17: 531561.2669 | DD17: 26065.10628 | DE17: 500942.5551 | DF17: 10727.14216 | DG17: 989677.0714 | DH17: 5308.451864 | DI17: 125665.2949 | DJ17: 6599.821745 | DK17: 119944.9778 | DL17: 334041.0169 | DM17: 1019488.69 | DN17: 16379.39555 | DO17: 231229.2936 | DP17: 84488.45373 | DQ17: 87135.91575 | DR17: 37598.15609 | DS17: 84173.11991 | DT17: 246549.309 | DU17: 498720.4067 | DV17: 343040.2499 | DW17: 194116.6056 | DX17: 108596.1584 | DY17: 1877305.598 | DZ17: 55323.85244 | EA17: 143437.5847 | EB17: 260832.9578 | EC17: 239008.4887 | ED17: 1972532.606 | EE17: 4713.687515 | EF17: 2492.838267 | EG17: 92474.57393 | EH17: 102603.8985 | EI17: 176858.3628 | EJ17: 671669.3587 | EK17: 566135.2156 | EL17: 70342.09122 | EM17: 3897.407174 | EN17: 46532.31592 | EO17: 88761.89853 | EP17: 90273.85927 | EQ17: 84768.00446 | ER17: 218339.2383 | ES17: 91060.49928 | ET17: 226779.7834 | EU17: 72827.30127 | EV17: 65267.27948 | EW17: 57316.37263 | EX17: 271216.6731 | EY17: 103495.2699 | EZ17: 56785.44659 | FA17: 69347.93837 | FB17: 79692.00169 | FC17: 71913.34011 | FD17: 93607.18221 | FE17: 670231.081 | FF17: 56184.36183 | FG17: 63257.65935 | FH17: 61154.07042 | FI17: 62913.69678 | FJ17: 82442.44602 | FK17: 241462.3415 | FL17: 104500.0181 | FM17: 1620.417573 | FN17: 61762.14781 | FO17: 69565.45593 | FP17: 6861.158057 | FQ17: 401132.1992 | FR17: 268210.8384 | FS17: 4991.570206 | FT17: 239464.3338 | FU17: 86462.65949 | FV17: 58274.99038 | FW17: 247861.411 | FX17: 0.02669313639 | FY17: 54315.9155 | FZ17: 51179.71044 | GA17: 85788.08041 | GB17: 137054.0188 | GC17: 65481.94473 | GD17: 22234.43163 | GE17: 47273.90044 | GF17: 347972.1334 | GG17: 351671.4584 | GH17: 93632.44216 | GI17: 866865.4066 | GJ17: 82979.49208 | GK17: 194866.9785 | GL17: 122266.3503 | GM17: 154480.3045 | GN17: 104513.2828 | GO17: 86337.83076 | GP17: 403582.2883 | GQ17: 99258.0542 | GR17: 70716.79642 | GS17: 105780.5441 | GT17: 401311.1054 | GU17: 433715.9474 | GV17: 221737.241 | GW17: 22824261.49 | GX17: 2381598.612 | GY17: 2682781.708 | GZ17: 16033351.19 | HA17: 3830921.273 | HB17: 839098.836 | HC17: 17553.92184 | HD17: 663546.0483 | HE17: 626151.8818 | HF17: 747.4135198 | HG17: 401384.8469 | HH17: 329428.9448 | HI17: 854722.2732 | HJ17: 44484.12189 | HK17: 15240.61555 | HL17: 2010330.364 | HM17: 606353.8175 | HN17: 71908.40677 | HO17: 74587.66194 | HP17: 55141.66512 | HQ17: 74807.2162 | HR17: 70192.53679 | HS17: 218827.5611 | HT17: 48624.93566 | HU17: 50930.03627 | HV17: 407959.8436 | HW17: 16242.69331 | HX17: 176252.5961 | HY17: 126217.4778 | HZ17: 144820.8281 | IA17: 80478.3325 | IB17: 153210.6605 | IC17: 262067.6875 | ID17: 1615401.452 | IE17: 81581.79364 | IF17: 236849.0382 | IG17: 102263.0661 | IH17: 79720.20574 | II17: 5.193951367 | IJ17: 28404.57564 | IK17: 176112.4771 | IL17: 125065.5387 | IM17: 930526.731 | IN17: 300102586.7
A18: =+MATCH(B18,RUT[EMPRESA],0) -> 289 | B18: SGA | C18: 444995344.4 | D18: 444995344.4 | F18: =IFERROR(INDEX($B$9:$B$511,MATCH(0,INDEX(COUNTIF($F$8:F17,$B$9:$B$511),0,0),0)),"") -> SGA | H18: 444995344.4 | J18: EMELDA | K18: 2505928.338 | L18: 1552569.406 | M18: 24083.11869 | N18: 5090279.773 | O18: 828073.3154 | P18: 192284.3095 | Q18: 60731.69756 | R18: 2538.004611 | S18: 3616.442529 | T18: 16450.76337 | U18: 8200.548733 | V18: 39001.0541 | W18: 7214.529725 | X18: 52653.61618 | Y18: 11298.08083 | Z18: 6354.866582 | AA18: 34318.69845 | AB18: 34043.43527 | AC18: 209261.7483 | AD18: 10791.93268 | AE18: 22.27629998 | AF18: 5920.881619 | AG18: 979.8634417 | AH18: 7388.78902 | AI18: 37698.10242 | AJ18: 4543.709125 | AK18: 28483.72148 | AL18: 7703.736731 | AM18: 47272.92161 | AN18: 146869.7321 | AO18: 126361.1965 | AP18: 3152.990549 | AQ18: 8493.109402 | AR18: 526222.8739 | AS18: 46233.27576 | AT18: 4900.263949 | AU18: 639228.5359 | AV18: 7430.40244 | AW18: 62072.5375 | AX18: 51467.41089 | AY18: 19023.01244 | AZ18: 15382.33926 | BA18: 31995.53656 | BB18: 237.9830583 | BC18: 899.0392351 | BD18: 34889.90142 | BE18: 162.1565676 | BF18: 104750.0548 | BG18: 215.8817981 | BH18: 2024.884724 | BI18: 112188.2256 | BJ18: 27341.69183 | BK18: 1835.666483 | BL18: 1337.084761 | BM18: 701872.7153 | BN18: 6703.043966 | BO18: 169421.0817 | BP18: 76572.83596 | BQ18: 46286.62971 | BR18: 132.6261417 | BS18: 22635.53661 | BT18: 4559.536475 | BU18: 4719.448262 | BV18: 91882.73453 | BW18: 5513.808362 | BX18: 5101.254452 | BY18: 4867.010082 | BZ18: 97729.77145 | CA18: 268526.5622 | CB18: 28867.18938 | CC18: 4256.575533 | CD18: 35875.09535 | CE18: 128807.0288 | CF18: 127540.3715 | CG18: 40518.79567 | CH18: 1759.660336 | CI18: 31054.04481 | CJ18: 3279.516501 | CK18: 12754.58618 | CL18: 3499.158645 | CM18: 36632.62015 | CN18: 49212.6947 | CO18: 2882.902134 | CP18: 14230.95642 | CQ18: 7379.82958 | CR18: 2736.410544 | CS18: 6274.937691 | CT18: 10027.09693 | CU18: 1692.453649 | CV18: 50299.37755 | CW18: 37376.09903 | CX18: 5004.489185 | CY18: 4020.106798 | CZ18: 13237.71803 | DA18: 2945.45657 | DB18: 1566.431786 | DC18: 36262.50048 | DD18: 1778.131681 | DE18: 34173.72705 | DF18: 731.7933455 | DG18: 67514.63568 | DH18: 362.1365029 | DI18: 8572.742411 | DJ18: 450.2322763 | DK18: 8182.508931 | DL18: 22787.89537 | DM18: 69548.35013 | DN18: 1117.383594 | DO18: 15774.19743 | DP18: 5763.705493 | DQ18: 5944.312318 | DR18: 2564.903123 | DS18: 5742.193781 | DT18: 16819.31133 | DU18: 34022.13463 | DV18: 23401.81274 | DW18: 13242.41238 | DX18: 7408.305478 | DY18: 128067.6366 | DZ18: 3774.129814 | EA18: 9785.147653 | EB18: 17793.72547 | EC18: 16304.88521 | ED18: 134563.9139 | EE18: 321.5623606 | EF18: 170.0585699 | EG18: 6308.509461 | EH18: 6999.520373 | EI18: 12065.07484 | EJ18: 45820.51395 | EK18: 38621.09564 | EL18: 4798.656854 | EM18: 265.8766511 | EN18: 3174.381268 | EO18: 6055.235 | EP18: 6158.379229 | EQ18: 5782.776124 | ER18: 14894.85263 | ES18: 6212.042909 | ET18: 15470.65694 | EU18: 4968.195035 | EV18: 4452.459012 | EW18: 3910.057258 | EX18: 18502.09064 | EY18: 7060.328708 | EZ18: 3873.838092 | FA18: 4730.836886 | FB18: 5436.497031 | FC18: 4905.845652 | FD18: 6385.7747 | FE18: 45722.39628 | FF18: 3832.832779 | FG18: 4315.36503 | FH18: 4171.860604 | FI18: 4291.900297 | FJ18: 5624.129192 | FK18: 16472.28423 | FL18: 7128.87148 | FM18: 110.5430299 | FN18: 4213.342946 | FO18: 4745.675684 | FP18: 468.06034 | FQ18: 27364.77894 | FR18: 18297.03604 | FS18: 340.5191993 | FT18: 16335.98243 | FU18: 5898.383548 | FV18: 3975.453063 | FW18: 16908.82142 | FX18: 0.001820975175 | FY18: 3705.369512 | FZ18: 3491.421196 | GA18: 5852.364536 | GB18: 9349.668102 | GC18: 4467.10323 | GD18: 1516.807446 | GE18: 3224.971314 | GF18: 23738.26018 | GG18: 23990.62389 | GH18: 6387.497905 | GI18: 59136.56464 | GJ18: 5660.765858 | GK18: 13293.60196 | GL18: 8340.870302 | GM18: 10538.46935 | GN18: 7129.776381 | GO18: 5889.867875 | GP18: 27531.92122 | GQ18: 6771.270712 | GR18: 4824.218813 | GS18: 7216.227497 | GT18: 27376.98372 | GU18: 29587.60491 | GV18: 15126.66048 | GW18: 1557044.963 | GX18: 162469.9281 | GY18: 183016.2938 | GZ18: 1093776.844 | HA18: 261341.0591 | HB18: 57242.36102 | HC18: 1197.508432 | HD18: 45266.35101 | HE18: 42715.36383 | HF18: 50.98769381 | HG18: 27382.01428 | HH18: 22473.2651 | HI18: 58308.174 | HJ18: 3034.655818 | HK18: 1039.697328 | HL18: 137142.4336 | HM18: 41364.76257 | HN18: 4905.509105 | HO18: 5088.284823 | HP18: 3761.701204 | HQ18: 5103.262563 | HR18: 4788.454422 | HS18: 14928.16545 | HT18: 3317.137388 | HU18: 3474.38871 | HV18: 27830.55302 | HW18: 1108.057924 | HX18: 12023.75013 | HY18: 8610.411692 | HZ18: 9879.510936 | IA18: 5490.139618 | IB18: 10451.85568 | IC18: 17877.95732 | ID18: 110200.8358 | IE18: 5565.416472 | IF18: 16157.56997 | IG18: 6976.26918 | IH18: 5438.421079 | II18: 0.3543254102 | IJ18: 1937.7276 | IK18: 12014.19137 | IL18: 8531.827727 | IM18: 63479.46724 | IN18: 20472654.56
A19: =+MATCH(B19,RUT[EMPRESA],0) -> 306 | B19: TECNORED | C19: -238945997.2 | D19: -238945997.2 | F19: =IFERROR(INDEX($B$9:$B$511,MATCH(0,INDEX(COUNTIF($F$8:F18,$B$9:$B$511),0,0),0)),"") -> TECNORED | G19: -238945997.2 | J19: CHACAYES | K19: =$IN19*K$70/$IN$70 -> 112085854.5 | L19: 69443753.01 | M19: 1077196.382 | N19: 227679439 | O19: 37038291.86 | P19: 8600545.681 | Q19: 2716424.135 | R19: 113520.5709 | S19: 161757.2399 | T19: 735814.2857 | U19: =$IN19*U$70/$IN$70 -> 366796.4077 | V19: 1744449.915 | W19: 322693.4773 | X19: 2355105.481 | Y19: 505343.6783 | Z19: 284242.2269 | AA19: 1535016.219 | AB19: 1522704.172 | AC19: 9359917.248 | AD19: 482704.5443 | AE19: =$IN19*AE$70/$IN$70 -> 996.3804953 | AF19: 264830.8277 | AG19: 43827.60254 | AH19: 330487.7952 | AI19: 1686171.133 | AJ19: 203232.2761 | AK19: 1274027.758 | AL19: 344574.8633 | AM19: 2114436.289 | AN19: 6569229.923 | AO19: =$IN19*AO$70/$IN$70 -> 5651918.48 | AP19: 141027.8318 | AQ19: 379882.1421 | AR19: 23537041.98 | AS19: 2067934.722 | AT19: 219180.3587 | AU19: 28591590.43 | AV19: 332349.0917 | AW19: 2776397.594 | AX19: 2302048.563 | AY19: =$IN19*AY$70/$IN$70 -> 850866.5522 | AZ19: 688025.5173 | BA19: 1431105.192 | BB19: 10644.57193 | BC19: 40212.47511 | BD19: 1560565.143 | BE19: 7252.983724 | BF19: 4685289.372 | BG19: 9656.020664 | BH19: 90569.60296 | BI19: =$IN19*BI$70/$IN$70 -> 5017985.927 | BJ19: 1222946.741 | BK19: 82106.19725 | BL19: 59805.49631 | BM19: 31393556.58 | BN19: 299815.6011 | BO19: 7577912.917 | BP19: 3424970.947 | BQ19: 2070321.152 | BR19: 5932.138682 | BS19: =$IN19*BS$70/$IN$70 -> 1012448.531 | BT19: 203940.2062 | BU19: 211092.7848 | BV19: 4109756.317 | BW19: 246623.1427 | BX19: 228170.3175 | BY19: 217692.9706 | BZ19: 4371284.198 | CA19: 12010730.21 | CB19: 1291179.616 | CC19: =$IN19*CC$70/$IN$70 -> 190389.2856 | CD19: 1604631.169 | CE19: 5761316.347 | CF19: 5704660.945 | CG19: 1812335.879 | CH19: 78706.57331 | CI19: 1388993.89 | CJ19: 146687.1194 | CK19: 570490.6517 | CL19: 156511.3339 | CM19: =$IN19*CM$70/$IN$70 -> 1638513.947 | CN19: 2201198.995 | CO19: 128947.2425 | CP19: 636526.1477 | CQ19: 330087.0548 | CR19: 122394.9263 | CS19: 280667.1454 | CT19: 448494.7596 | CU19: 75700.53407 | CV19: 2249804.445 | CW19: =$IN19*CW$70/$IN$70 -> 1671768.476 | CX19: 223842.1739 | CY19: 179812.4467 | CZ19: 592100.3068 | DA19: 131745.1947 | DB19: 70063.7934 | DC19: 1621959.133 | DD19: 79532.76473 | DE19: 1528531.898 | DF19: 32731.85479 | DG19: =$IN19*DG$70/$IN$70 -> 3019813.264 | DH19: 16197.74148 | DI19: 383443.9893 | DJ19: 20138.11355 | DK19: 365989.5185 | DL19: 1019263.276 | DM19: 3110777.805 | DN19: 49978.64189 | DO19: 705552.6575 | DP19: 257800.6105 | DQ19: =$IN19*DQ$70/$IN$70 -> 265878.8424 | DR19: 114723.695 | DS19: 256838.4287 | DT19: 752298.8004 | DU19: 1521751.43 | DV19: 1046722.741 | DW19: 592310.2769 | DX19: 331360.7327 | DY19: 5728244.606 | DZ19: 168810.3203 | EA19: =$IN19*EA$70/$IN$70 -> 437672.7857 | EB19: 795882.6654 | EC19: 729289.4069 | ED19: 6018811.892 | EE19: 14382.93004 | EF19: 7606.426662 | EG19: 282168.7528 | EH19: 313076.4797 | EI19: 539649.9982 | EJ19: 2049472.598 | EK19: =$IN19*EK$70/$IN$70 -> 1727455.028 | EL19: 214635.6486 | EM19: 11892.20425 | EN19: 141984.6017 | EO19: 270840.2228 | EP19: 275453.6863 | EQ19: 258653.6069 | ER19: 666221.0804 | ES19: 277853.9702 | ET19: 691975.8149 | EU19: =$IN19*EU$70/$IN$70 -> 222218.7991 | EV19: 199150.8159 | EW19: 174890.1205 | EX19: 827566.618 | EY19: 315796.3316 | EZ19: 173270.0997 | FA19: 211602.1783 | FB19: 243165.1401 | FC19: 219430.0187 | FD19: 285624.6937 | FE19: =$IN19*FE$70/$IN$70 -> 2045083.964 | FF19: 171436.0027 | FG19: 193018.8384 | FH19: 186600.1328 | FI19: 191969.3014 | FJ19: 251557.6032 | FK19: 736776.8767 | FL19: 318862.1317 | FM19: 4944.399159 | FN19: 188455.5665 | FO19: =$IN19*FO$70/$IN$70 -> 212265.8922 | FP19: 20935.53211 | FQ19: 1223979.387 | FR19: 818394.8792 | FS19: 15230.83676 | FT19: 730680.3323 | FU19: 263824.5277 | FV19: 177815.1621 | FW19: 756302.4325 | FX19: 0.08144908036 | FY19: =$IN19*FY$70/$IN$70 -> 165734.7905 | FZ19: 156165.2512 | GA19: 261766.1767 | GB19: 418194.5361 | GC19: 199805.8265 | GD19: 67844.18221 | GE19: 144247.4073 | GF19: 1061771.455 | GG19: 1073059.249 | GH19: 285701.7697 | GI19: =$IN19*GI$70/$IN$70 -> 2645076.59 | GJ19: 253196.2981 | GK19: 594599.8986 | GL19: 373072.7496 | GM19: 471367.5663 | GN19: 318902.6063 | GO19: 263443.6364 | GP19: 1231455.373 | GQ19: 302867.2658 | GR19: 215778.9909 | GS19: =$IN19*GS$70/$IN$70 -> 322769.4157 | GT19: 1224525.286 | GU19: 1323402.561 | GV19: 676589.446 | GW19: 69643936.97 | GX19: 7266999.799 | GY19: 8186003.314 | GZ19: 48922752.66 | HA19: 11689335.04 | HB19: 2560352.127 | HC19: =$IN19*HC$70/$IN$70 -> 53562.48774 | HD19: 2024685.845 | HE19: 1910584.586 | HF19: 2280.591645 | HG19: 1224750.294 | HH19: 1005190.406 | HI19: 2608024.104 | HJ19: 135734.9232 | HK19: 46503.86911 | HL19: 6134144.634 | HM19: =$IN19*HM$70/$IN$70 -> 1850174.52 | HN19: 219414.9656 | HO19: 227590.2083 | HP19: 168254.41 | HQ19: 228260.1368 | HR19: 214179.3114 | HS19: 667711.1057 | HT19: 148369.8369 | HU19: 155403.4174 | HV19: 1244812.659 | HW19: =$IN19*HW$70/$IN$70 -> 49561.52073 | HX19: 537801.6152 | HY19: 385128.8713 | HZ19: 441893.4927 | IA19: 245564.4805 | IB19: 467493.4865 | IC19: 799650.2108 | ID19: 4929093.41 | IE19: 248931.4845 | IF19: 722700.2502 | IG19: =$IN19*IG$70/$IN$70 -> 312036.4939 | IH19: 243251.1994 | II19: 15.84836477 | IJ19: 86671.21505 | IK19: 537374.0683 | IL19: 381613.946 | IM19: 2839327.136 | IN19: 915706545.2
A20: =+MATCH(B20,RUT[EMPRESA],0) -> 231 | B20: NUEVA ENERGIA | C20: 140548767.3 | D20: 140548767.3 | F20: =IFERROR(INDEX($B$9:$B$511,MATCH(0,INDEX(COUNTIF($F$8:F19,$B$9:$B$511),0,0),0)),"") -> NUEVA ENERGIA | H20: 140548767.3 | J20: LA ARENA SPA | K20: 15955642.56 | L20: 9885455.268 | M20: 153341.0305 | N20: 32410617.4 | O20: 5272473.931 | P20: 1224304.648 | Q20: 386688.3357 | R20: 16159.87727 | S20: 23026.46227 | T20: 104744.6155 | U20: 52214.1924 | V20: 248325.8876 | W20: 45936.05324 | X20: 335253.9123 | Y20: 71936.66975 | Z20: 40462.44187 | AA20: 218512.5877 | AB20: 216759.9434 | AC20: 1332402.689 | AD20: 68713.94436 | AE20: 141.8367296 | AF20: 37699.19089 | AG20: 6238.945702 | AH20: 47045.58976 | AI20: 240029.7879 | AJ20: 28930.51553 | AK20: 181360.3653 | AL20: 49050.91171 | AM20: 300994.1779 | AN20: 935142.842 | AO20: 804561.7481 | AP20: 20075.59013 | AQ20: 54076.97251 | AR20: 3350544.369 | AS20: 294374.5882 | AT20: 31200.75656 | AU20: 4070069.315 | AV20: 47310.549 | AW20: 395225.676 | AX20: 327701.1554 | AY20: 121122.5326 | AZ20: 97941.79 | BA20: 203720.648 | BB20: 1515.275818 | BC20: 5724.32518 | BD20: 222149.5274 | BE20: 1032.476545 | BF20: 666960.1871 | BG20: 1374.553595 | BH20: 12892.76169 | BI20: 714320.1983 | BJ20: 174088.8816 | BK20: 11687.97919 | BL20: 8513.430408 | BM20: 4468934.725 | BN20: 42679.34241 | BO20: 1078730.857 | BP20: 487551.3725 | BQ20: 294714.3012 | BR20: 844.4516467 | BS20: 144124.0461 | BT20: 29031.29078 | BU20: 30049.47445 | BV20: 585031.9211 | BW20: 35107.291 | BX20: 32480.49492 | BY20: 30989.02392 | BZ20: 622260.9311 | CA20: 1709751.144 | CB20: 183801.9661 | CC20: 27102.29048 | CD20: 228422.4132 | CE20: 820134.7502 | CF20: 812069.7421 | CG20: 257989.5885 | CH20: 11204.03602 | CI20: 197726.021 | CJ20: 20881.2009 | CK20: 81210.46997 | CL20: 22279.69721 | CM20: 233245.6935 | CN20: 313345.0204 | CO20: 18355.89442 | CP20: 90610.75312 | CQ20: 46988.54359 | CR20: 17423.15927 | CS20: 39953.52197 | CT20: 63844.114 | CU20: 10776.1204 | CV20: 320264.1021 | CW20: 237979.5413 | CX20: 31864.37514 | CY20: 25596.6566 | CZ20: 84286.64701 | DA20: 18754.18842 | DB20: 9973.719241 | DC20: 230889.083 | DD20: 11321.64599 | DE20: 217589.5318 | DF20: 4659.444116 | DG20: 429876.3768 | DH20: 2305.780461 | DI20: 54584.00849 | DJ20: 2866.700201 | DK20: 52099.33013 | DL20: 145094.1385 | DM20: 442825.3588 | DN20: 7114.558292 | DO20: 100436.813 | DP20: 36698.4256 | DQ20: 37848.37786 | DR20: 16331.14435 | DS20: 36561.45713 | DT20: 107091.2187 | DU20: 216624.3188 | DV20: 149003.0476 | DW20: 84316.53667 | DX20: 47169.85414 | DY20: 815426.9227 | DZ20: 24030.48219 | EA20: 62303.58466 | EB20: 113295.4679 | EC20: 103815.7861 | ED20: 856789.7492 | EE20: 2047.438472 | EF20: 1082.789844 | EG20: 40167.27874 | EH20: 44567.05464 | EI20: 76820.24208 | EJ20: 291746.4683 | EK20: 245906.6319 | EL20: 30553.80809 | EM20: 1692.878741 | EN20: 20211.78822 | EO20: 38554.64014 | EP20: 39211.37578 | EQ20: 36819.85133 | ER20: 94837.88539 | ES20: 39553.06093 | ET20: 98504.12266 | EU20: 31633.28454 | EV20: 28349.51161 | EW20: 24895.95375 | EX20: 117805.741 | EY20: 44954.23094 | EZ20: 24665.34059 | FA20: 30121.98762 | FB20: 34615.03751 | FC20: 31236.29615 | FD20: 40659.23875 | FE20: 291121.7376 | FF20: 24404.25326 | FG20: 27476.61252 | FH20: 26562.89711 | FI20: 27327.20885 | FJ20: 35809.72119 | FK20: 104881.6422 | FL20: 45390.65363 | FM20: 703.8449766 | FN20: 26827.02175 | FO20: 30216.4686 | FP20: 2980.214306 | FQ20: 174235.881 | FR20: 116500.1259 | FS20: 2168.139666 | FT20: 104013.7871 | FU20: 37555.9421 | FV20: 25312.33919 | FW20: 107661.1436 | FX20: 0.0115944373 | FY20: 23592.67446 | FZ20: 22230.43165 | GA20: 37262.93177 | GB20: 59530.8174 | GC20: 28442.75366 | GD20: 9657.753208 | GE20: 20533.90305 | GF20: 151145.2617 | GG20: 152752.1014 | GH20: 40670.21067 | GI20: 376531.8718 | GJ20: 36042.99264 | GK20: 84642.46883 | GL20: 53107.64205 | GM20: 67100.10318 | GN20: 45396.41527 | GO20: 37501.72146 | GP20: 175300.1023 | GQ20: 43113.75291 | GR20: 30716.56514 | GS20: 45946.86322 | GT20: 174313.5907 | GU20: 188388.9659 | GV20: 96313.84269 | GW20: 9913951.849 | GX20: 1034471.761 | GY20: 1165293.724 | GZ20: 6964250.376 | HA20: 1663999.909 | HB20: 364471.1774 | HC20: 7624.72582 | HD20: 288218.0252 | HE20: 271975.4858 | HF20: 324.6467208 | HG20: 174345.6211 | HH20: 143090.8377 | HI20: 371257.3774 | HJ20: 19322.13416 | HK20: 6619.91753 | HL20: 873207.5926 | HM20: 263375.9937 | HN20: 31234.1533 | HO20: 32397.91523 | HP20: 23951.34726 | HQ20: 32493.28088 | HR20: 30488.84759 | HS20: 95049.99343 | HT20: 21120.73905 | HU20: 22121.98312 | HV20: 177201.5383 | HW20: 7055.180271 | HX20: 76557.12112 | HY20: 54823.85477 | HZ20: 62904.41063 | IA20: 34956.58835 | IB20: 66548.62026 | IC20: 113831.7854 | ID20: 701666.173 | IE20: 35435.88801 | IF20: 102877.8067 | IG20: 44419.01061 | IH20: 34627.28823 | II20: 2.256045997 | IJ20: 12337.81848 | IK20: 76496.25897 | IL20: 54323.49822 | IM20: 404183.8204 | IN20: 130352633.6
A21: =+MATCH(B21,RUT[EMPRESA],0) -> 102 | B21: ELEKTRAGEN | C21: 5873595.4 | D21: 5873595.4 | F21: =IFERROR(INDEX($B$9:$B$511,MATCH(0,INDEX(COUNTIF($F$8:F20,$B$9:$B$511),0,0),0)),"") -> ELEKTRAGEN | H21: 5873595.4 | J21: CARDONES SA | K21: 390381.4557 | L21: 241864.1809 | M21: 3751.74453 | N21: 792979.9102 | O21: 128999.8846 | P21: 29954.65893 | Q21: 9460.976257 | R21: 395.3783992 | S21: 563.3808748 | T21: 2562.752037 | U21: 1277.507463 | V21: 6075.707771 | W21: 1123.902298 | X21: 8202.547146 | Y21: 1760.050826 | Z21: 989.9812496 | AA21: 5346.275573 | AB21: 5303.394204 | AC21: 32599.45813 | AD21: 1681.201464 | AE21: 3.470272586 | AF21: 922.3736972 | AG21: 152.6462314 | AH21: 1151.048963 | AI21: 5872.729831 | AJ21: 707.8334028 | AK21: 4437.284375 | AL21: 1200.112515 | AM21: 7364.325499 | AN21: 22879.83218 | AO21: 19684.94752 | AP21: 491.1828571 | AQ21: 1323.083491 | AR21: 81976.66648 | AS21: 7202.366174 | AT21: 763.378643 | AU21: 99581.04653 | AV21: 1157.531633 | AW21: 9669.856551 | AX21: 8017.756328 | AY21: 2963.465147 | AZ21: 2396.309545 | BA21: 4984.366053 | BB21: 37.0737548 | BC21: 140.0551804 | BD21: 5435.259382 | BE21: 25.26126385 | BF21: 16318.29541 | BG21: 33.63075046 | BH21: 315.4429576 | BI21: 17477.03722 | BJ21: 4259.375377 | BK21: 285.9659405 | BL21: 208.2953002 | BM21: 109339.9553 | BN21: 1044.221426 | BO21: 26392.95287 | BP21: 11928.75898 | BQ21: 7210.677822 | BR21: 20.66092054 | BS21: 3526.235607 | BT21: 710.2990377 | BU21: 735.2106024 | BV21: 14313.78349 | BW21: 858.9585356 | BX21: 794.6895803 | BY21: 758.1982502 | BZ21: 15224.65342 | CA21: 41831.9186 | CB21: 4497.022219 | CC21: 663.1028222 | CD21: 5588.736013 | CE21: 20065.96704 | CF21: 19868.64314 | CG21: 6312.146361 | CH21: 274.1254621 | CI21: 4837.697486 | CJ21: 510.8934707 | CK21: 1986.949844 | CL21: 545.1100199 | CM21: 5706.745627 | CN21: 7666.509497 | CO21: 449.107628 | CP21: 2216.943478 | CQ21: 1149.653233 | CR21: 426.2867041 | CS21: 977.5296738 | CT21: 1562.052927 | CU21: 263.6557915 | CV21: 7835.796393 | CW21: 5822.567122 | CX21: 779.6151804 | CY21: 626.2649736 | CZ21: 2062.213655 | DA21: 458.8525563 | DB21: 244.0237065 | DC21: 5649.087211 | DD21: 277.0029868 | DE21: 5323.691469 | DF21: 114.0010858 | DG21: 10517.64385 | DH21: 56.41477175 | DI21: 1335.488973 | DJ21: 70.13861043 | DK21: 1274.697165 | DL21: 3549.970538 | DM21: 10834.46233 | DN21: 174.0695564 | DO21: 2457.354451 | DP21: 897.8883023 | DQ21: 926.0238057 | DR21: 399.5687346 | DS21: 894.5371397 | DT21: 2620.165605 | DU21: 5300.075921 | DV21: 3645.60853 | DW21: 2062.944956 | DX21: 1154.089298 | DY21: 19950.78217 | DZ21: 587.9458997 | EA21: 1524.361303 | EB21: 2771.962928 | EC21: 2540.026675 | ED21: 20962.79284 | EE21: 50.09400331 | EF21: 26.49226279 | EG21: 982.7595905 | EH21: 1090.40746 | EI21: 1879.535583 | EJ21: 7138.064831 | EK21: 6016.516639 | EL21: 747.5499678 | EM21: 41.41910706 | EN21: 494.515171 | EO21: 943.3036925 | EP21: 959.3718273 | EQ21: 900.8591856 | ER21: 2320.367332 | ES21: 967.7317254 | ET21: 2410.067953 | EU21: 773.9611628 | EV21: 693.6181712 | EW21: 609.1211076 | EX21: 2882.314298 | EY21: 1099.880375 | EZ21: 603.4787712 | FA21: 736.9847583 | FB21: 846.9147314 | FC21: 764.2481784 | FD21: 994.7962142 | FE21: 7122.779751 | FF21: 597.0908335 | FG21: 672.2612363 | FH21: 649.9056622 | FI21: 668.6058259 | FJ21: 876.1446639 | FK21: 2566.104625 | FL21: 1110.558185 | FM21: 17.22074342 | FN21: 656.3679129 | FO21: 739.2963934 | FP21: 72.91592268 | FQ21: 4262.971961 | FR21: 2850.370242 | FS21: 53.0471597 | FT21: 2544.871099 | FU21: 918.8688764 | FV21: 619.3086732 | FW21: 2634.109771 | FX21: 0.000283677282 | FY21: 577.2342019 | FZ21: 543.9046555 | GA21: 911.6998889 | GB21: 1456.520919 | GC21: 695.8994938 | GD21: 236.2930695 | GE21: 502.3962486 | GF21: 3698.021378 | GG21: 3737.335397 | GH21: 995.0646606 | GI21: 9212.481397 | GJ21: 881.8520398 | GK21: 2070.91943 | GL21: 1299.367201 | GM21: 1641.716143 | GN21: 1110.699153 | GO21: 917.5422778 | GP21: 4289.009914 | GQ21: 1054.850004 | GR21: 751.5320909 | GS21: 1124.166782 | GT21: 4264.873261 | GU21: 4609.250832 | GV21: 2356.479094 | GW21: 242561.3974 | GX21: 25310.08014 | GY21: 28510.85808 | GZ21: 170392.0221 | HA21: 40712.53817 | HB21: 8917.396355 | HC21: 186.5516575 | HD21: 7051.735574 | HE21: 6654.334709 | HF21: 7.943024482 | HG21: 4265.656936 | HH21: 3500.956438 | HI21: 9083.432077 | HJ21: 472.7482978 | HK21: 161.9673437 | HL21: 21364.48281 | HM21: 6443.933765 | HN21: 764.1957501 | HO21: 792.6691304 | HP21: 586.0097314 | HQ21: 795.0024103 | HR21: 745.9606006 | HS21: 2325.55691 | HT21: 516.7541718 | HU21: 541.2512809 | HV21: 4335.531723 | HW21: 172.6167739 | HX21: 1873.097889 | HY21: 1341.357213 | HZ21: 1539.061514 | IA21: 855.2713436 | IB21: 1628.223192 | IC21: 2785.084833 | ID21: 17167.43535 | IE21: 866.9982104 | IF21: 2517.07744 | IG21: 1086.785315 | IH21: 847.2144657 | II21: 0.05519793497 | IJ21: 301.8653446 | IK21: 1871.608795 | IL21: 1329.115154 | IM21: 9889.032523 | IN21: 3189294.989
A22: =+MATCH(B22,RUT[EMPRESA],0) -> 138 | B22: GESAN | C22: 8369378.098 | D22: 8369378.098 | F22: =IFERROR(INDEX($B$9:$B$511,MATCH(0,INDEX(COUNTIF($F$8:F21,$B$9:$B$511),0,0),0)),"") -> GESAN | H22: 8369378.098 | J22: CAPULLO | K22: 2384082.06 | L22: 1477078.499 | M22: 22912.12017 | N22: 4842774.035 | O22: 787809.7334 | P22: 182934.8293 | Q22: 57778.72753 | R22: 2414.598682 | S22: 3440.599487 | T22: 15650.87446 | U22: 7801.811736 | V22: 37104.69769 | W22: 6863.736137 | X22: 50093.42838 | Y22: 10748.73188 | Z22: 6045.872574 | AA22: 32650.0132 | AB22: 32388.1342 | AC22: 199086.7705 | AD22: 10267.19428 | AE22: 21.19315478 | AF22: 5632.989354 | AG22: 932.2193366 | AH22: 7029.522386 | AI22: 35865.0997 | AJ22: 4322.779405 | AK22: 27098.75154 | AL22: 7329.156328 | AM22: 44974.36045 | AN22: 139728.4544 | AO22: 120217.1096 | AP22: 2999.68203 | AQ22: 8080.147166 | AR22: 500636.229 | AS22: 43985.26552 | AT22: 4661.997389 | AU22: 608147.1931 | AV22: 7069.112427 | AW22: 59054.37153 | AX22: 48964.9002 | AY22: 18098.05253 | AZ22: 14634.40056 | BA22: 30439.81089 | BB22: 226.4115582 | BC22: 855.3250623 | BD22: 33193.44245 | BE22: 154.2719949 | BF22: 99656.771 | BG22: 205.3849322 | BH22: 1926.42833 | BI22: 106733.274 | BJ22: 26012.25103 | BK22: 1746.410488 | BL22: 1272.071408 | BM22: 667745.4114 | BN22: 6377.120456 | BO22: 161183.285 | BP22: 72849.61894 | BQ22: 44036.02523 | BR22: 126.1774331 | BS22: 21534.92418 | BT22: 4337.837179 | BU22: 4489.973542 | BV22: 87415.10111 | BW22: 5245.709305 | BX22: 4853.215089 | BY22: 4630.360432 | BZ22: 92977.83632 | CA22: 255469.9389 | CB22: 27463.57399 | CC22: 4049.60717 | CD22: 34130.73308 | CE22: 122544.0177 | CF22: 121338.9493 | CG22: 38548.64179 | CH22: 1674.100003 | CI22: 29544.09749 | CJ22: 3120.055884 | CK22: 12134.41726 | CL22: 3329.018323 | CM22: 34851.4246 | CN22: 46819.81555 | CO22: 2742.72618 | CP22: 13539.00165 | CQ22: 7020.998582 | CR22: 2603.357482 | CS22: 5969.830083 | CT22: 9539.547294 | CU22: 1610.161121 | CV22: 47853.66039 | CW22: 35558.75314 | CX22: 4761.15486 | CY22: 3824.636304 | CZ22: 12594.0577 | DA22: 2802.239019 | DB22: 1490.266846 | DC22: 34499.30133 | DD22: 1691.673212 | DE22: 32512.09077 | DF22: 696.2112045 | DG22: 64231.85742 | DH22: 344.528264 | DI22: 8155.908163 | DJ22: 428.3405381 | DK22: 7784.649088 | DL22: 21679.87477 | DM22: 66166.68615 | DN22: 1063.052818 | DO22: 15007.20533 | DP22: 5483.455635 | DQ22: 5655.280776 | DR22: 2440.189302 | DS22: 5462.989892 | DT22: 16001.50243 | DU22: 32367.86926 | DV22: 22263.9415 | DW22: 12598.52379 | DX22: 7048.089891 | DY22: 121840.5771 | DZ22: 3590.619511 | EA22: 9309.362371 | EB22: 16928.53744 | EC22: 15512.08936 | ED22: 128020.9846 | EE22: 305.9269666 | EF22: 161.7897764 | EG22: 6001.769485 | EH22: 6659.18123 | EI22: 11478.43218 | EJ22: 43592.57351 | EK22: 36743.21403 | EL22: 4565.330758 | EM22: 252.9488751 | EN22: 3020.032663 | EO22: 5760.810042 | EP22: 5858.939067 | EQ22: 5501.59899 | ER22: 14170.61709 | ES22: 5909.993447 | ET22: 14718.42395 | EU22: 4726.625448 | EV22: 4235.966166 | EW22: 3719.937726 | EX22: 17602.45961 | EY22: 6717.032868 | EZ22: 3685.479652 | FA22: 4500.808414 | FB22: 5172.157098 | FC22: 4667.307693 | FD22: 6075.27784 | FE22: 43499.22664 | FF22: 3646.468149 | FG22: 4105.538133 | FH22: 3969.011353 | FI22: 4083.214331 | FJ22: 5350.665981 | FK22: 15671.34891 | FL22: 6782.242871 | FM22: 105.168073 | FN22: 4008.476691 | FO22: 4514.925703 | FP22: 445.3017442 | FQ22: 26034.21557 | FR22: 17407.37542 | FS22: 323.962063 | FT22: 15541.67454 | FU22: 5611.58521 | FV22: 3782.153777 | FW22: 16086.66026 | FX22: 0.001732433518 | FY22: 3525.202555 | FZ22: 3321.657093 | GA22: 5567.80379 | GB22: 8895.057234 | GC22: 4249.898335 | GD22: 1443.0554 | GE22: 3068.162859 | GF22: 22584.02978 | GG22: 22824.12277 | GH22: 6076.917258 | GI22: 56261.15509 | GJ22: 5385.521255 | GK22: 12647.22437 | GL22: 7935.31042 | GM22: 10026.05515 | GN22: 6783.103773 | GO22: 5603.483597 | GP22: 26193.23085 | GQ22: 6442.029799 | GR22: 4589.649813 | GS22: 6865.351358 | GT22: 26045.82692 | GU22: 28148.9606 | GV22: 14391.1537 | GW22: 1481336.44 | GX22: 154570.1188 | GY22: 174117.4542 | GZ22: 1040593.904 | HA22: 248633.8181 | HB22: 54459.05372 | HC22: 1139.281729 | HD22: 43065.35576 | HE22: 40638.40576 | HF22: 48.50850851 | HG22: 26050.61287 | HH22: 21380.54283 | HI22: 55473.04345 | HJ22: 2887.101114 | HK22: 989.143907 | HL22: 130474.1284 | HM22: 39353.47506 | HN22: 4666.98751 | HO22: 4840.876085 | HP22: 3578.79522 | HQ22: 4855.12556 | HR22: 4555.6244 | HS22: 14202.31014 | HT22: 3155.847523 | HU22: 3305.452781 | HV22: 26477.34222 | HW22: 1054.180592 | HX22: 11439.11681 | HY22: 8191.745843 | HZ22: 9399.137409 | IA22: 5223.191411 | IB22: 9943.652917 | IC22: 17008.67366 | ID22: 104842.5176 | IE22: 5294.808063 | IF22: 15371.93706 | IG22: 6637.060584 | IH22: 5173.987593 | II22: 0.3370969716 | IJ22: 1843.509065 | IK22: 11430.02283 | IL22: 8116.982883 | IM22: 60392.89183 | IN22: 19477208.4
A23: =+MATCH(B23,RUT[EMPRESA],0) -> 237 | B23: PACIFIC HYDRO | C23: -21120063.87 | D23: -21120063.87 | F23: =IFERROR(INDEX($B$9:$B$511,MATCH(0,INDEX(COUNTIF($F$8:F22,$B$9:$B$511),0,0),0)),"") -> PACIFIC HYDRO | G23: -21120063.87 | J23: ALLIPEN | K23: 8454215.89 | L23: 5237882.003 | M23: 81248.88557 | N23: 17173006.71 | O23: 2793659.53 | P23: 648706.9245 | Q23: 204889.6909 | R23: 8562.431172 | S23: 12200.74231 | T23: 55499.71362 | U23: 27666.07822 | V23: 131577.3186 | W23: 24339.55949 | X23: 177636.7791 | Y23: 38116.17955 | Z23: 21439.32579 | AA23: 115780.5199 | AB23: 114851.8683 | AC23: 705983.4756 | AD23: 36408.59452 | AE23: 75.15324617 | AF23: 19975.1967 | AG23: 3305.751787 | AH23: 24927.45567 | AI23: 127181.5685 | AJ23: 15329.04884 | AK23: 96095.13855 | AL23: 25989.99042 | AM23: 159484.004 | AN23: 495492.3906 | AO23: 426303.0267 | AP23: 10637.20076 | AQ23: 28653.08612 | AR23: 1775310.856 | AS23: 155976.5651 | AT23: 16531.95294 | AU23: 2156556.5 | AV23: 25067.84629 | AW23: 209413.2642 | AX23: 173634.8947 | AY23: 64177.67485 | AZ23: 51895.18594 | BA23: 107942.9007 | BB23: 802.8801633 | BC23: 3033.076275 | BD23: 117707.5795 | BE23: 547.065377 | BF23: 353393.8161 | BG23: 728.3174464 | BH23: 6831.325682 | BI23: 378487.8703 | BJ23: 92242.28884 | BK23: 6192.962711 | BL23: 4510.904426 | BM23: 2367898.305 | BN23: 22613.96703 | BO23: 571573.5681 | BP23: 258332.7212 | BQ23: 156156.5646 | BR23: 447.4389862 | BS23: 76365.19785 | BT23: 15382.44536 | BU23: 15921.93755 | BV23: 309983.515 | BW23: 18601.85927 | BX23: 17210.03183 | BY23: 16419.76483 | BZ23: 329709.5828 | CA23: 905924.3613 | CB23: 97388.83891 | CC23: 14360.3502 | CD23: 121031.3147 | CE23: 434554.4977 | CF23: 430281.1931 | CG23: 136697.7024 | CH23: 5936.54182 | CI23: 104766.6029 | CJ23: 11064.05961 | CK23: 43029.97157 | CL23: 11805.06329 | CM23: 123586.9656 | CN23: 166028.1898 | CO23: 9726.00719 | CP23: 48010.78152 | CQ23: 24897.22933 | CR23: 9231.790535 | CS23: 21169.67079 | CT23: 33828.27868 | CU23: 5709.807547 | CV23: 169694.3167 | CW23: 126095.2301 | CX23: 16883.57618 | CY23: 13562.57889 | CZ23: 44659.90685 | DA23: 9937.046231 | DB23: 5284.649326 | DC23: 122338.298 | DD23: 5998.858342 | DE23: 115291.4319 | DF23: 2468.841122 | DG23: 227773.1958 | DH23: 1221.734928 | DI23: 28921.7429 | DJ23: 1518.942424 | DK23: 27605.21759 | DL23: 76879.20851 | DM23: 234634.3102 | DN23: 3769.70163 | DO23: 53217.19243 | DP23: 19444.93377 | DQ23: 20054.24453 | DR23: 8653.17831 | DS23: 19372.36001 | DT23: 56743.07878 | DU23: 114780.0066 | DV23: 78950.37306 | DW23: 44675.74412 | DX23: 24993.29808 | DY23: 432060.0203 | DZ23: 12732.72973 | EA23: 33012.01776 | EB23: 60030.44636 | EC23: 55007.56647 | ED23: 453976.4216 | EE23: 1084.850503 | EF23: 573.724253 | EG23: 21282.93141 | EH23: 23614.1854 | EI23: 40703.77667 | EJ23: 154584.0363 | EK23: 130295.458 | EL23: 16189.16248 | EM23: 896.9843929 | EN23: 10709.36633 | EO23: 20428.46285 | EP23: 20776.43912 | EQ23: 19509.2721 | ER23: 50250.55899 | ES23: 20957.48353 | ET23: 52193.14208 | EU23: 16761.13111 | EV23: 15021.1996 | EW23: 13191.30628 | EX23: 62420.24815 | EY23: 23819.33364 | EZ23: 13069.11417 | FA23: 15960.35919 | FB23: 18341.0351 | FC23: 16550.78385 | FD23: 21543.60008 | FE23: 154253.0181 | FF23: 12930.77511 | FG23: 14558.68752 | FH23: 14074.54861 | FI23: 14479.52487 | FJ23: 18974.04713 | FK23: 55572.31825 | FL23: 24050.57545 | FM23: 372.9374962 | FN23: 14214.49702 | FO23: 16010.42064 | FP23: 1579.088717 | FQ23: 92320.17752 | FR23: 61728.45826 | FS23: 1148.804929 | FT23: 55112.47876 | FU23: 19899.29527 | FV23: 13411.9312 | FW23: 57045.05774 | FX23: 0.006143398847 | FY23: 12500.75405 | FZ23: 11778.95956 | GA23: 19744.04156 | GB23: 31542.8464 | GC23: 15070.60459 | GD23: 5117.232373 | GE23: 10880.04127 | GF23: 80085.44114 | GG23: 80936.83713 | GH23: 21549.41364 | GI23: 199508.213 | GJ23: 19097.64775 | GK23: 44848.44169 | GL23: 28139.47916 | GM23: 35553.48877 | GN23: 24053.6283 | GO23: 19870.56606 | GP23: 92884.0631 | GQ23: 22844.14266 | GR23: 16275.40051 | GS23: 24345.28724 | GT23: 92361.35262 | GU23: 99819.29484 | GV23: 51032.60595 | GW23: 5252981.129 | GX23: 548122.557 | GY23: 617439.5475 | GZ23: 3690059.863 | HA23: 881682.7288 | HB23: 193117.7643 | HC23: 4040.01769 | HD23: 152714.4645 | HE23: 144108.2342 | HF23: 172.0164798 | HG23: 92378.32414 | HH23: 75817.7447 | HI23: 196713.4829 | HJ23: 10237.9765 | HK23: 3507.612543 | HL23: 462675.538 | HM23: 139551.7293 | HN23: 16549.64845 | HO23: 17166.27637 | HP23: 12690.7995 | HQ23: 17216.80656 | HR23: 16154.74268 | HS23: 50362.94601 | HT23: 11190.98068 | HU23: 11721.4973 | HV23: 93891.55311 | HW23: 3738.239744 | HX23: 40564.36007 | HY23: 29048.82724 | HZ23: 33330.36986 | IA23: 18522.00835 | IB23: 35261.28145 | IC23: 60314.61819 | ID23: 371783.0409 | IE23: 18775.96884 | IF23: 54510.57108 | IG23: 23535.74317 | IH23: 18347.52623 | II23: 1.195382752 | IJ23: 6537.284893 | IK23: 40532.11181 | IL23: 28783.7096 | IM23: 214159.8036 | IN23: 69068312.49
A24: =+MATCH(B24,RUT[EMPRESA],0) -> 100 | B24: ELECTRICA CENIZAS | C24: -349086694 | D24: -349086694 | F24: =IFERROR(INDEX($B$9:$B$511,MATCH(0,INDEX(COUNTIF($F$8:F23,$B$9:$B$511),0,0),0)),"") -> ELECTRICA CENIZAS | G24: -349086694 | J24: ORAZUL_CHILE | K24: 1244100.145 | L24: 770792.9209 | M24: 11956.37202 | N24: 2527134.439 | O24: 411107.5789 | P24: 95462.00255 | Q24: 30151.02731 | R24: 1260.024821 | S24: 1795.429106 | T24: 8167.19169 | U24: 4071.267209 | V24: 19362.57168 | W24: 3581.745472 | X24: 26140.56058 | Y24: 5609.076598 | Z24: 3154.95472 | AA24: 17037.95639 | AB24: 16901.29846 | AC24: 103890.669 | AD24: 5357.792883 | AE24: 11.05935378 | AF24: 2939.49734 | AG24: 486.4657268 | AH24: 3668.258726 | AI24: 18715.70467 | AJ24: 2255.782456 | AK24: 14141.10751 | AL24: 3824.618542 | AM24: 23469.24601 | AN24: 72915.35525 | AO24: 62733.63068 | AP24: 1565.342449 | AQ24: 4216.512691 | AR24: 261250.07 | AS24: 22953.10054 | AT24: 2432.798655 | AU24: 317353.175 | AV24: 3688.91824 | AW24: 30816.70443 | AX24: 25551.65381 | AY24: 9444.21761 | AZ24: 7636.758889 | BA24: 15884.59298 | BB24: 118.1497303 | BC24: 446.3395166 | BD24: 17321.5374 | BE24: 80.5047001 | BF24: 52004.50326 | BG24: 107.1772773 | BH24: 1005.279896 | BI24: 55697.27819 | BJ24: 13574.13229 | BK24: 911.3400826 | BL24: 663.8128152 | BM24: 348453.6783 | BN24: 3327.811831 | BO24: 84111.26096 | BP24: 38015.5629 | BQ24: 22979.58879 | BR24: 65.84394281 | BS24: 11237.7014 | BT24: 2263.640147 | BU24: 2343.030397 | BV24: 45616.35768 | BW24: 2737.400619 | BX24: 2532.582959 | BY24: 2416.289348 | BZ24: 48519.19387 | CA24: 133313.4431 | CB24: 14331.48505 | CC24: 2113.231316 | CD24: 17810.64951 | CE24: 63947.89542 | CF24: 63319.04718 | CG24: 20116.07388 | CH24: 873.6058595 | CI24: 15417.17737 | CJ24: 1628.157874 | CK24: 6332.177291 | CL24: 1737.202023 | CM24: 18186.73238 | CN24: 24432.27115 | CO24: 1431.253603 | CP24: 7065.140165 | CQ24: 3663.810698 | CR24: 1358.525982 | CS24: 3115.273001 | CT24: 4978.080399 | CU24: 840.240241 | CV24: 24971.76873 | CW24: 18555.84197 | CX24: 2484.542605 | CY24: 1995.833391 | CZ24: 6572.034275 | DA24: 1462.309553 | DB24: 777.6750769 | DC24: 18002.98174 | DD24: 882.7761948 | DE24: 16965.98348 | DF24: 363.3081575 | DG24: 33518.50361 | DH24: 179.7872944 | DI24: 4256.047516 | DJ24: 223.5235668 | DK24: 4062.311119 | DL24: 11313.34185 | DM24: 34528.16714 | DN24: 554.7393639 | DO24: 7831.301883 | DP24: 2861.465243 | DQ24: 2951.129809 | DR24: 1273.378931 | DS24: 2850.785479 | DT24: 8350.162032 | DU24: 16890.72349 | DV24: 11618.12897 | DW24: 6574.364844 | DX24: 3677.947921 | DY24: 63580.81469 | DZ24: 1873.714974 | EA24: 4857.961591 | EB24: 8833.922387 | EC24: 8094.768612 | ED24: 66805.97459 | EE24: 159.643743 | EF24: 84.42775009 | EG24: 3131.940135 | EH24: 3475.001332 | EI24: 5989.860575 | EJ24: 22748.17966 | EK24: 19173.93645 | EL24: 2382.354514 | EM24: 131.9978609 | EN24: 1575.962144 | EO24: 3006.198792 | EP24: 3057.406063 | EQ24: 2870.933101 | ER24: 7394.739919 | ES24: 3084.048082 | ET24: 7680.605331 | EU24: 2466.523911 | EV24: 2210.480172 | EW24: 1941.19789 | EX24: 9185.599325 | EY24: 3505.190407 | EZ24: 1923.216423 | FA24: 2348.684425 | FB24: 2699.018421 | FC24: 2435.569763 | FD24: 3170.29945 | FE24: 22699.4679 | FF24: 1902.858811 | FG24: 2142.418113 | FH24: 2071.173507 | FI24: 2130.768746 | FJ24: 2792.170805 | FK24: 8177.875996 | FL24: 3539.219342 | FM24: 54.88049975 | FN24: 2091.767946 | FO24: 2356.051336 | FP24: 232.3745369 | FQ24: 13585.59419 | FR24: 9083.797347 | FS24: 169.0551078 | FT24: 8110.207228 | FU24: 2928.327884 | FV24: 1973.664473 | FW24: 8394.600461 | FX24: 0.0009040463948 | FY24: 1839.578043 | FZ24: 1733.360668 | GA24: 2905.481158 | GB24: 4641.762204 | GC24: 2217.750481 | GD24: 753.0384391 | GE24: 1601.078219 | GF24: 11785.1626 | GG24: 11910.45179 | GH24: 3171.154957 | GI24: 29359.10319 | GJ24: 2810.359546 | GK24: 6599.778565 | GL24: 4140.931644 | GM24: 5231.957772 | GN24: 3539.668592 | GO24: 2924.10017 | GP24: 13668.5741 | GQ24: 3361.683871 | GR24: 2395.045076 | GS24: 3582.588353 | GT24: 13591.65341 | GU24: 14689.14454 | GV24: 7509.82389 | GW24: 773014.8685 | GX24: 80660.27192 | GY24: 90860.7777 | GZ24: 543019.4911 | HA24: 129746.1083 | HB24: 28418.70159 | HC24: 594.5183632 | HD24: 22473.05839 | HE24: 21206.58821 | HF24: 25.31349214 | HG24: 13594.15089 | HH24: 11157.13963 | HI24: 28947.83807 | HJ24: 1506.593659 | HK24: 516.1710241 | HL24: 68086.11365 | HM24: 20536.06495 | HN24: 2435.40268 | HO24: 2526.14402 | HP24: 1867.544631 | HQ24: 2533.579911 | HR24: 2377.289387 | HS24: 7411.278497 | HT24: 1646.835244 | HU24: 1724.904673 | HV24: 13816.83368 | HW24: 550.1095155 | HX24: 5969.344396 | HY24: 4274.748912 | HZ24: 4904.809449 | IA24: 2725.649969 | IB24: 5188.957312 | IC24: 8875.740365 | ID24: 54710.61315 | IE24: 2763.022125 | IF24: 8021.632078 | IG24: 3463.45798 | IH24: 2699.973639 | II24: 0.1759093776 | IJ24: 962.009628 | IK24: 5964.598827 | IL24: 4235.734899 | IM24: 31515.19268 | IN24: 10163910.97
A25: =+MATCH(B25,RUT[EMPRESA],0) -> 261 | B25: PUNTILLA | C25: -130653486.6 | D25: -130653486.6 | F25: =IFERROR(INDEX($B$9:$B$511,MATCH(0,INDEX(COUNTIF($F$8:F24,$B$9:$B$511),0,0),0)),"") -> PUNTILLA | G25: -130653486.6 | J25: RUCATAYO | K25: 14901533.06 | L25: 9232372.682 | M25: 143210.5555 | N25: 30269410.02 | O25: 4924147.949 | P25: 1143420.964 | Q25: 361141.7715 | R25: 15092.27501 | S25: 21505.21908 | T25: 97824.66263 | U25: 48764.66187 | V25: 231920.2382 | W25: 42901.28795 | X25: 313105.3631 | Y25: 67184.17378 | Z25: 37789.29071 | AA25: 204076.5539 | AB25: 202439.6981 | AC25: 1244377.508 | AD25: 64174.35774 | AE25: 132.4662863 | AF25: 35208.5939 | AG25: 5826.769765 | AH25: 43937.52295 | AI25: 224172.2204 | AJ25: 27019.22107 | AK25: 169378.7931 | AL25: 45810.36331 | AM25: 281108.9981 | AN25: 873362.6317 | AO25: 751408.3775 | AP25: 18749.2963 | AQ25: 50504.37741 | AR25: 3129190.661 | AS25: 274926.7315 | AT25: 29139.47862 | AU25: 3801180.192 | AV25: 44184.97765 | AW25: 369115.0923 | AX25: 306051.5791 | AY25: 113120.5727 | AZ25: 91471.2658 | BA25: 190261.8437 | BB25: 1415.169124 | BC25: 5346.147646 | BD25: 207473.2193 | BE25: 964.2659835 | BF25: 622897.4634 | BG25: 1283.743714 | BH25: 12041.00141 | BI25: 667128.6356 | BJ25: 162587.7 | BK25: 10915.81286 | BL25: 7950.990642 | BM25: 4173694.56 | BN25: 39859.73172 | BO25: 1007464.504 | BP25: 455341.2919 | BQ25: 275244.0014 | BR25: 788.66295 | BS25: 134602.4912 | BT25: 27113.3386 | BU25: 28064.25597 | BV25: 546381.7882 | BW25: 32787.92788 | BX25: 30334.67107 | BY25: 28941.7341 | BZ25: 581151.2637 | CA25: 1596796.438 | CB25: 171659.0895 | CC25: 25311.7777 | CD25: 213331.6868 | CE25: 765952.5493 | CF25: 758420.3559 | CG25: 240945.5067 | CH25: 10463.84139 | CI25: 184663.2517 | CJ25: 19501.68439 | CK25: 75845.3004 | CL25: 20807.78905 | CM25: 217836.3172 | CN25: 292643.8821 | CO25: 17143.21228 | CP25: 84624.55387 | CQ25: 43884.24553 | CR25: 16272.09828 | CS25: 37313.9926 | CT25: 59626.25271 | CU25: 10064.19602 | CV25: 299105.8547 | CW25: 222257.4233 | CX25: 29759.25525 | CY25: 23905.61352 | CZ25: 78718.24981 | DA25: 17515.19299 | DB25: 9314.805495 | DC25: 215635.3961 | DD25: 10573.68147 | DE25: 203214.4797 | DF25: 4351.617948 | DG25: 401476.5947 | DH25: 2153.449079 | DI25: 50977.91606 | DJ25: 2677.311657 | DK25: 48657.38797 | DL25: 135508.4945 | DM25: 413570.1022 | DN25: 6644.53501 | DO25: 93801.45511 | DP25: 34273.94417 | DQ25: 35347.92483 | DR25: 15252.22733 | DS25: 34146.02452 | DT25: 100016.2375 | DU25: 202313.0336 | DV25: 139159.1615 | DW25: 78746.16482 | DX25: 44053.57781 | DY25: 761555.7444 | DZ25: 22442.90842 | EA25: 58187.49844 | EB25: 105810.603 | EC25: 96957.19637 | ED25: 800185.9359 | EE25: 1912.174452 | EF25: 1011.255335 | EG25: 37513.62753 | EH25: 41622.73225 | EI25: 71745.11291 | EJ25: 272472.2384 | EK25: 229660.8107 | EL25: 28535.27081 | EM25: 1581.03871 | EN25: 18876.49646 | EO25: 36007.5279 | EP25: 36620.8763 | EQ25: 34387.34791 | ER25: 88572.42064 | ES25: 36939.98802 | ET25: 91996.44796 | EU25: 29543.43165 | EV25: 26476.60117 | EW25: 23251.20261 | EX25: 110022.9049 | EY25: 41984.32975 | EZ25: 23035.8249 | FA25: 28131.97855 | FB25: 32328.19511 | FC25: 29172.67029 | FD25: 37973.08621 | FE25: 271888.7805 | FF25: 22791.98631 | FG25: 25661.37016 | FH25: 24808.01936 | FI25: 25521.83684 | FJ25: 33443.95202 | FK25: 97952.63668 | FL25: 42391.92017 | FM25: 657.3454594 | FN25: 25054.69461 | FO25: 28220.21765 | FP25: 2783.326453 | FQ25: 162724.9878 | FR25: 108803.5453 | FS25: 2024.901522 | FT25: 97142.11641 | FU25: 35074.80885 | FV25: 23640.07955 | FW25: 100548.5103 | FX25: 0.01082845082 | FY25: 22034.02446 | FZ25: 20761.77822 | GA25: 34801.15624 | GB25: 55597.91405 | GC25: 26563.68319 | GD25: 9019.713758 | GE25: 19177.33078 | GF25: 141159.8502 | GG25: 142660.5341 | GH25: 37983.33327 | GI25: 351656.2943 | GJ25: 33661.81239 | GK25: 79050.56426 | GL25: 49599.08577 | GM25: 62667.13497 | GN25: 42397.30117 | GO25: 35024.1703 | GP25: 163718.9013 | GQ25: 40265.44289 | GR25: 28687.27531 | GS25: 42911.38378 | GT25: 162797.5636 | GU25: 175943.0492 | GV25: 89950.86883 | GW25: 9258986.637 | GX25: 966129.3855 | GY25: 1088308.596 | GZ25: 6504157.186 | HA25: 1554067.758 | HB25: 340392.3896 | HC25: 7120.998321 | HD25: 269176.9018 | HE25: 254007.4258 | HF25: 303.1989357 | HG25: 162827.4779 | HH25: 133637.5418 | HI25: 346730.2593 | HJ25: 18045.6174 | HK25: 6182.572689 | HL25: 815519.1344 | HM25: 245976.0591 | HN25: 29170.66901 | HO25: 30257.54702 | HP25: 22369.00154 | HQ25: 30346.61233 | HR25: 28474.60193 | HS25: 88770.51576 | HT25: 19725.39746 | HU25: 20660.49434 | HV25: 165494.7189 | HW25: 6589.079798 | HX25: 71499.37504 | HY25: 51201.91689 | HZ25: 58748.63084 | IA25: 32647.1814 | IB25: 62152.08577 | IC25: 106311.4887 | ID25: 655310.5984 | IE25: 33094.81612 | IF25: 96081.18452 | IG25: 41484.46875 | IH25: 32339.63649 | II25: 2.107000322 | IJ25: 11522.72052 | IK25: 71442.53375 | IL25: 50734.6164 | IM25: 377481.417 | IN25: 121740887.1
A26: =+MATCH(B26,RUT[EMPRESA],0) -> 91 | B26: EL MANZANO | C26: 38071297.29 | D26: 38071297.29 | F26: =IFERROR(INDEX($B$9:$B$511,MATCH(0,INDEX(COUNTIF($F$8:F25,$B$9:$B$511),0,0),0)),"") -> EL MANZANO | H26: 38071297.29 | J26: KALTEMP | K26: 483385.0054 | L26: 299485.3282 | M26: 4645.551226 | N26: 981897.5583 | O26: 159732.5103 | P26: 37090.98565 | Q26: 11714.93674 | R26: 489.5724089 | S26: 697.5993947 | T26: 3173.295988 | U26: 1581.857803 | V26: 7523.169943 | W26: 1391.658108 | X26: 10156.70247 | Y26: 2179.361149 | Z26: 1225.832028 | AA26: 6619.959553 | AB26: 6566.862227 | AC26: 40365.87551 | AD26: 2081.726903 | AE26: 4.297022075 | AF26: 1142.117814 | AG26: 189.0123065 | AH26: 1425.27213 | AI26: 7271.835021 | AJ26: 876.4659495 | AK26: 5494.412453 | AL26: 1486.024467 | AM26: 9118.784894 | AN26: 28330.66899 | AO26: 24374.64261 | AP26: 608.201093 | AQ26: 1638.291755 | AR26: 101506.5926 | AS26: 8918.240765 | AT26: 945.2441556 | AU26: 123304.9983 | AV26: 1433.299217 | AW26: 11973.58018 | AX26: 9927.88753 | AY26: 3669.474036 | AZ26: 2967.200632 | BA26: 6171.829569 | BB26: 45.90611798 | BC26: 173.4215935 | BD26: 6730.142652 | BE26: 31.27944728 | BF26: 20205.92731 | BG26: 41.64286048 | BH26: 390.5933377 | BI26: 21640.72501 | BJ26: 5274.118838 | BK26: 354.0937862 | BL26: 257.9190772 | BM26: 135388.8462 | BN26: 1292.994255 | BO26: 32680.7472 | BP26: 14770.63816 | BQ26: 8928.532559 | BR26: 25.58312912 | BS26: 4366.317593 | BT26: 879.5189913 | BU26: 910.3654281 | BV26: 17723.86523 | BW26: 1063.594775 | BX26: 984.0145362 | BY26: 938.8295984 | BZ26: 18851.73865 | CA26: 51797.85541 | CB26: 5568.382099 | CC26: 821.0788617 | CD26: 6920.183192 | CE26: 24846.43531 | CF26: 24602.10143 | CG26: 7815.9371 | CH26: 339.4324603 | CI26: 5990.219032 | CJ26: 632.6075162 | CK26: 2460.31605 | CL26: 674.9757347 | CM26: 7066.307134 | CN26: 9492.960489 | CO26: 556.1019614 | CP26: 2745.10282 | CQ26: 1423.543885 | CR26: 527.8442348 | CS26: 1210.414019 | CT26: 1934.192702 | CU26: 326.4685203 | CV26: 9702.577893 | CW26: 7209.721667 | CX26: 965.3488471 | CY26: 775.4648516 | CZ26: 2553.510532 | DA26: 568.1684982 | DB26: 302.159334 | DC26: 6994.912315 | DD26: 342.9955196 | DE26: 6591.995065 | DF26: 141.1604334 | DG26: 13023.34231 | DH26: 69.85489282 | DI26: 1653.65269 | DJ26: 86.84826619 | DK26: 1578.377987 | DL26: 4395.707078 | DM26: 13415.63887 | DN26: 215.5394736 | DO26: 3042.788733 | DP26: 1111.799076 | DQ26: 1146.637515 | DR26: 494.7610398 | DS26: 1107.649541 | DT26: 3244.387629 | DU26: 6562.753406 | DV26: 4514.129637 | DW26: 2554.416056 | DX26: 1429.036789 | DY26: 24703.80908 | DZ26: 728.0167327 | EA26: 1887.521515 | EB26: 3432.348785 | EC26: 3145.15659 | ED26: 25956.91876 | EE26: 62.02827953 | EF26: 32.80371648 | EG26: 1216.889898 | EH26: 1350.18354 | EI26: 2327.31167 | EJ26: 8838.620423 | EK26: 7449.877255 | EL26: 925.6444945 | EM26: 51.28669663 | EN26: 612.3272894 | EO26: 1168.034121 | EP26: 1187.93029 | EQ26: 1115.477736 | ER26: 2873.166128 | ES26: 1198.28183 | ET26: 2984.236811 | EU26: 958.3478298 | EV26: 858.8641149 | EW26: 754.2366718 | EX26: 3568.990002 | EY26: 1361.91326 | EZ26: 747.2501186 | FA26: 912.5622546 | FB26: 1048.681683 | FC26: 946.3208471 | FD26: 1231.794099 | FE26: 8819.693861 | FF26: 739.3403338 | FG26: 832.4191547 | FH26: 804.7376417 | FI26: 827.892888 | FJ26: 1084.875285 | FK26: 3177.447289 | FL26: 1375.134926 | FM26: 21.32337238 | FN26: 812.7394437 | FO26: 915.4246081 | FP26: 90.28723871 | FQ26: 5278.572264 | FR26: 3529.435671 | FS26: 65.68498888 | FT26: 3151.155139 | FU26: 1137.778012 | FV26: 766.8512988 | FW26: 3261.653819 | FX26: 0.0003512598831 | FY26: 714.7531055 | FZ26: 673.4832072 | GA26: 1128.901102 | GB26: 1803.518999 | GC26: 861.6889344 | GD26: 292.5869685 | GE26: 622.0859362 | GF26: 4579.029197 | GG26: 4627.709295 | GH26: 1232.126499 | GI26: 11407.24106 | GJ26: 1091.942373 | GK26: 2564.290351 | GL26: 1608.925353 | GM26: 2032.834693 | GN26: 1375.309478 | GO26: 1136.135368 | GP26: 5310.813437 | GQ26: 1306.154961 | GR26: 930.5753091 | GS26: 1391.985603 | GT26: 5280.926524 | GU26: 5707.34779 | GV26: 2917.88107 | GW26: 300348.6479 | GX26: 31339.89345 | GY26: 35303.21711 | GZ26: 210985.8123 | HA26: 50411.79646 | HB26: 11041.85566 | HC26: 230.9952807 | HD26: 8731.724289 | HE26: 8239.647586 | HF26: 9.835351746 | HG26: 5281.896901 | HH26: 4335.015974 | HI26: 11247.44734 | HJ26: 585.3747281 | HK26: 200.5540585 | HL26: 26454.30639 | HM26: 7979.121222 | HN26: 946.2559284 | HO26: 981.5127391 | HP26: 725.6192963 | HQ26: 984.401894 | HR26: 923.6764802 | HS26: 2879.592058 | HT26: 639.8644568 | HU26: 670.197699 | HV26: 5368.418491 | HW26: 213.7405837 | HX26: 2319.340276 | HY26: 1660.918966 | HZ26: 1905.723869 | IA26: 1059.029155 | IB26: 2016.127213 | IC26: 3448.596821 | ID26: 21257.36432 | IE26: 1073.549802 | IF26: 3116.739984 | IG26: 1345.698464 | IH26: 1049.052825 | II26: 0.06834815974 | IJ26: 373.7810265 | IK26: 2317.496423 | IL26: 1645.760388 | IM26: 12244.97212 | IN26: 3949105.043
A27: =+MATCH(B27,RUT[EMPRESA],0) -> 125 | B27: ESPINOS | C27: 18978178.8 | D27: 18978178.8 | F27: =IFERROR(INDEX($B$9:$B$511,MATCH(0,INDEX(COUNTIF($F$8:F26,$B$9:$B$511),0,0),0)),"") -> ESPINOS | H27: 18978178.8 | J27: ESTANCILLA SPA | K27: 231751.4648 | L27: 143583.6087 | M27: 2227.237686 | N27: 470755.5982 | O27: 76581.28164 | P27: 17782.69941 | Q27: 5616.545237 | R27: 234.7179197 | S27: 334.4532407 | T27: 1521.387683 | U27: 758.3972583 | V27: 3606.867475 | W27: 667.2089566 | X27: 4869.473916 | Y27: 1044.860997 | Z27: 587.7062072 | AA27: 3173.837223 | AB27: 3148.380531 | AC27: 19352.79471 | AD27: 998.0517674 | AE27: 2.060140776 | AF27: 547.5707216 | AG27: 90.61902708 | AH27: 683.3246795 | AI27: 3486.368834 | AJ27: 420.208044 | AK27: 2634.211073 | AL27: 712.4514476 | AM27: 4371.860385 | AN27: 13582.70108 | AO27: 11686.04542 | AP27: 291.5926075 | AQ27: 785.453644 | AR27: 48665.76589 | AS27: 4275.712604 | AT27: 453.1826911 | AU27: 59116.67437 | AV27: 687.1731419 | AW27: 5740.547833 | AX27: 4759.77213 | AY27: 1759.272574 | AZ27: 1422.578452 | BA27: 2958.988233 | BB27: 22.00897828 | BC27: 83.14430085 | BD27: 3226.662805 | BE27: 14.99644723 | BF27: 9687.41934 | BG27: 19.9650254 | BH27: 187.2639348 | BI27: 10375.31091 | BJ27: 2528.594707 | BK27: 169.7647893 | BL27: 123.6553125 | BM27: 64910.08837 | BN27: 619.9060979 | BO27: 15668.2788 | BP27: 7081.554021 | BQ27: 4280.646846 | BR27: 12.26543559 | BS27: 2093.36344 | BT27: 421.6717777 | BU27: 436.4606247 | BV27: 8497.433065 | BW27: 509.924065 | BX27: 471.7705505 | BY27: 450.1073309 | BZ27: 9038.174534 | CA27: 24833.68067 | CB27: 2669.674676 | CC27: 393.6535614 | CD27: 3317.774803 | CE27: 11912.23913 | CF27: 11795.09703 | CG27: 3747.23016 | CH27: 162.7356434 | CI27: 2871.917869 | CJ27: 303.2938897 | CK27: 1179.560478 | CL27: 323.6066768 | CM27: 3387.831667 | CN27: 4551.253087 | CO27: 266.6144846 | CP27: 1316.097091 | CQ27: 682.496099 | CR27: 253.0667547 | CS27: 580.3142809 | CT27: 927.3187765 | CU27: 156.5202829 | CV27: 4651.750909 | CW27: 3456.589547 | CX27: 462.8215746 | CY27: 371.7846297 | CZ27: 1224.241132 | DA27: 272.3995991 | DB27: 144.8656195 | DC27: 3353.602525 | DD27: 164.4438971 | DE27: 3160.430081 | DF27: 67.6771866 | DG27: 6243.840048 | DH27: 33.49084798 | DI27: 792.8182067 | DJ27: 41.63805802 | DK27: 756.7289143 | DL27: 2107.453774 | DM27: 6431.920567 | DN27: 103.3370671 | DO27: 1458.817998 | DP27: 533.0348719 | DQ27: 549.7376226 | DR27: 237.2055285 | DS27: 531.0454412 | DT27: 1555.47147 | DU27: 3146.41062 | DV27: 2164.229638 | DW27: 1224.675271 | DX27: 685.1295866 | DY27: 11843.85919 | DZ27: 349.0363629 | EA27: 904.9429976 | EB27: 1645.58654 | EC27: 1507.896684 | ED27: 12444.64324 | EE27: 29.73849929 | EF27: 15.72723452 | EG27: 583.4190412 | EH27: 647.3246161 | EI27: 1115.793586 | EJ27: 4237.539863 | EK27: 3571.728429 | EL27: 443.7859368 | EM27: 24.5886135 | EN27: 293.5708486 | EO27: 559.9958944 | EP27: 569.5348049 | EQ27: 534.7985483 | ER27: 1377.495063 | ES27: 574.4976908 | ET27: 1430.746185 | EU27: 459.4650451 | EV27: 411.7691166 | EW27: 361.6071072 | EX27: 1711.097058 | EY27: 652.9482489 | EZ27: 358.2575123 | FA27: 437.5138592 | FB27: 502.7742139 | FC27: 453.6988942 | FD27: 590.5646295 | FE27: 4228.465815 | FF27: 354.4652883 | FG27: 399.0904894 | FH27: 385.8190161 | FI27: 396.9204409 | FJ27: 520.1266767 | FK27: 1523.37796 | FL27: 659.2871723 | FM27: 10.2231611 | FN27: 389.6553564 | FO27: 438.8861703 | FP27: 43.28682021 | FQ27: 2530.729833 | FR27: 1692.133346 | FS27: 31.49165203 | FT27: 1510.772595 | FU27: 545.4900711 | FV27: 367.654995 | FW27: 1563.749478 | FX27: 0.0001684061183 | FY27: 342.677322 | FZ27: 322.8911075 | GA27: 541.2341738 | GB27: 864.6692905 | GC27: 413.1234326 | GD27: 140.2762969 | GE27: 298.2494809 | GF27: 2195.344729 | GG27: 2218.683649 | GH27: 590.7239938 | GI27: 5469.0253 | GJ27: 523.5148825 | GK27: 1229.409349 | GL27: 771.3743768 | GM27: 974.6111534 | GN27: 659.3708587 | GO27: 544.7025307 | GP27: 2546.187365 | GQ27: 626.2157949 | GR27: 446.1499396 | GS27: 667.3659687 | GT27: 2531.858547 | GU27: 2736.299627 | GV27: 1398.932951 | GW27: 143997.514 | GX27: 15025.42721 | GY27: 16925.58144 | GZ27: 101153.8846 | HA27: 24169.15614 | HB27: 5293.84692 | HC27: 110.7471147 | HD27: 4186.290164 | HE27: 3950.3716 | HF27: 4.71540728 | HG27: 2532.323779 | HH27: 2078.356363 | HI27: 5392.414671 | HJ27: 280.6488599 | HK27: 96.15254156 | HL27: 12683.10805 | HM27: 3825.466264 | HN27: 453.66777 | HO27: 470.5711026 | HP27: 347.8869491 | HQ27: 471.9562632 | HR27: 442.8424028 | HS27: 1380.575876 | HT27: 306.7731176 | HU27: 321.3159214 | HV27: 2573.805217 | HW27: 102.4746171 | HX27: 1111.971824 | HY27: 796.3019101 | HZ27: 913.6698349 | IA27: 507.7351492 | IB27: 966.6010107 | IC27: 1653.376409 | ID27: 10191.51456 | IE27: 514.6968491 | IF27: 1494.272781 | IG27: 645.1743159 | IH27: 502.9521524 | II27: 0.03276846811 | IJ27: 179.2035322 | IK27: 1111.087817 | IL27: 789.0343643 | IM27: 5870.662499 | IN27: 1893337.336
A28: =+MATCH(B28,RUT[EMPRESA],0) -> 119 | B28: ENLASA | C28: 90258469.57 | D28: 90258469.57 | F28: =IFERROR(INDEX($B$9:$B$511,MATCH(0,INDEX(COUNTIF($F$8:F27,$B$9:$B$511),0,0),0)),"") -> ENLASA | H28: 90258469.57 | J28: TALINAY | K28: 23451134.48 | L28: 14529351.61 | M28: 225376.1397 | N28: 47636172.87 | O28: 7749327.219 | P28: 1799446.988 | Q28: 568343.1506 | R28: 23751.31265 | S28: 33843.61747 | T28: 153950.5573 | U28: 76742.88535 | V28: 364982.0909 | W28: 67515.46093 | X28: 492746.3468 | Y28: 105730.4029 | Z28: 59470.50781 | AA28: 321163.379 | AB28: 318587.394 | AC28: 1958326.312 | AD28: 100993.7358 | AE28: 208.4674564 | AF28: 55409.16274 | AG28: 9169.819023 | AH28: 69146.2251 | AI28: 352788.7275 | AJ28: 42521.22142 | AK28: 266558.1345 | AL28: 72093.58837 | AM28: 442392.3961 | AN28: 1374445.464 | AO28: 1182521.21 | AP28: 29506.51232 | AQ28: 79480.7448 | AR28: 4924531.637 | AS28: 432663.1176 | AT28: 45857.95496 | AU28: 5982068.255 | AV28: 69535.6544 | AW28: 580891.0823 | AX28: 481645.5267 | AY28: 178022.3385 | AZ28: 143951.9643 | BA28: 299422.6208 | BB28: 2227.107862 | BC28: 8413.444904 | BD28: 326508.8462 | BE28: 1517.50368 | BF28: 980278.4802 | BG28: 2020.278474 | BH28: 18949.4022 | BI28: 1049886.833 | BJ28: 255870.7215 | BK28: 17178.64829 | BL28: 12512.78979 | BM28: 6568308.911 | BN28: 62728.84307 | BO28: 1585486.908 | BP28: 716588.6775 | BQ28: 433162.4179 | BR28: 1241.150211 | BS28: 211829.287 | BT28: 42669.33791 | BU28: 44165.83435 | BV28: 859862.7228 | BW28: 51599.66446 | BX28: 47738.87679 | BY28: 45546.75655 | BZ28: 914580.8274 | CA28: 2512941.98 | CB28: 270146.7276 | CC28: 39834.14997 | CD28: 335728.5493 | CE28: 1205409.951 | CF28: 1193556.239 | CG28: 379185.5145 | CH28: 16467.36283 | CI28: 290611.8942 | CJ28: 30690.57535 | CK28: 119360.7619 | CL28: 32746.04414 | CM28: 342817.665 | CN28: 460545.3013 | CO28: 26978.95411 | CP28: 133177.0218 | CQ28: 69062.38031 | CR28: 25608.0474 | CS28: 58722.5123 | CT28: 93836.20229 | CU28: 15838.42504 | CV28: 470714.7643 | CW28: 349775.3353 | CX28: 46833.32204 | CY28: 37621.21355 | CZ28: 123882.0365 | DA28: 27564.35493 | DB28: 14659.0794 | DC28: 339353.988 | DD28: 16640.22252 | DE28: 319806.6986 | DF28: 6848.314014 | DG28: 631819.664 | DH28: 3388.968352 | DI28: 80225.97138 | DJ28: 4213.391699 | DK28: 76574.06416 | DL28: 213255.1002 | DM28: 650851.6972 | DN28: 10456.76867 | DO28: 147619.0758 | DP28: 53938.26733 | DQ28: 55628.43336 | DR28: 24003.03598 | DS28: 53736.9551 | DT28: 157399.5257 | DU28: 318388.057 | DV28: 219000.2999 | DW28: 123925.9674 | DX28: 69328.86524 | DY28: 1198490.525 | DZ28: 35319.29644 | EA28: 91571.97755 | EB28: 166518.3488 | EC28: 152585.3912 | ED28: 1259284.391 | EE28: 3009.264889 | EF28: 1591.452689 | EG28: 59036.68572 | EH28: 65503.34703 | EI28: 112908.134 | EJ28: 428800.3843 | EK28: 361426.34 | EL28: 44907.08912 | EM28: 2488.143418 | EN28: 29706.69227 | EO28: 56666.47691 | EP28: 57631.72764 | EQ28: 54116.7353 | ER28: 139389.9365 | ES28: 58133.92643 | ET28: 144778.4643 | EU28: 46493.67187 | EV28: 41667.27894 | EW28: 36591.3411 | EX28: 173147.4157 | EY28: 66072.40738 | EZ28: 36252.39265 | FA28: 44272.41207 | FB28: 50876.16475 | FC28: 45910.19 | FD28: 59759.75409 | FE28: 427882.1735 | FF28: 35868.65417 | FG28: 40384.3175 | FH28: 39041.36545 | FI28: 40164.72838 | FJ28: 52632.07571 | FK28: 154151.9551 | FL28: 66713.84861 | FM28: 1034.49066 | FN28: 39429.56809 | FO28: 44411.27744 | FP28: 4380.231395 | FQ28: 256086.7768 | FR28: 171228.461 | FS28: 3186.667956 | FT28: 152876.4072 | FU28: 55198.61989 | FV28: 37203.33218 | FW28: 158237.1846 | FX28: 0.01704116317 | FY28: 34675.8195 | FZ28: 32673.63506 | GA28: 54767.9619 | GB28: 87496.64573 | GC28: 41804.32337 | GD28: 14194.68181 | GE28: 30180.12719 | GF28: 222148.8633 | GG28: 224510.5491 | GH28: 59775.8803 | GI28: 553415.4784 | GJ28: 52974.93124 | GK28: 124405.0129 | GL28: 78056.05139 | GM28: 98621.75949 | GN28: 66722.31691 | GO28: 55118.92798 | GP28: 257650.938 | GQ28: 63367.32685 | GR28: 45146.30464 | GS28: 67531.34912 | GT28: 256200.9924 | GU28: 276888.565 | GV28: 141559.2552 | GW28: 14571235.04 | GX28: 1520436.189 | GY28: 1712714.467 | GZ28: 10235850.51 | HA28: 2445698.159 | HB28: 535689.0242 | HC28: 11206.59791 | HD28: 423614.3823 | HE28: 399741.5754 | HF28: 477.1562085 | HG28: 256248.0696 | HH28: 210310.7077 | HI28: 545663.1815 | HJ28: 28399.10488 | HK28: 9729.760217 | HL28: 1283414.855 | HM28: 387102.2946 | HN28: 45907.04051 | HO28: 47617.5036 | HP28: 35202.98624 | HQ28: 47757.66922 | HR28: 44811.61208 | HS28: 139701.6867 | HT28: 31042.64149 | HU28: 32514.24059 | HV28: 260445.6128 | HW28: 10369.4966 | HX28: 112521.4065 | HY28: 80578.49039 | HZ28: 92455.0539 | IA28: 51378.16614 | IB28: 97811.20611 | IC28: 167306.6125 | ID28: 1031288.318 | IE28: 52082.62668 | IF28: 151206.7765 | IG28: 65285.75627 | IH28: 50894.17049 | II28: 3.315870098 | IJ28: 18133.76298 | IK28: 112431.9531 | IL28: 79843.08105 | IM28: 594057.4997 | IN28: 191588469.6
A29: =+MATCH(B29,RUT[EMPRESA],0) -> 241 | B29: PARQUE_EOLICO_LEBU | C29: 16696277.23 | D29: 16696277.23 | F29: =IFERROR(INDEX($B$9:$B$511,MATCH(0,INDEX(COUNTIF($F$8:F28,$B$9:$B$511),0,0),0)),"") -> PARQUE_EOLICO_LEBU | H29: 16696277.23 | J29: AELA_GENERACION | K29: =$IN29*K$70/$IN$70 -> 107181022.9 | L29: 66404922.49 | M29: 1030058.704 | N29: 217716278.9 | O29: 35417511.21 | P29: 8224189.284 | Q29: 2597554.515 | R29: 108552.9567 | S29: 154678.8085 | T29: 703615.3504 | U29: =$IN29*U$70/$IN$70 -> 350745.5454 | V29: 1668113.493 | W29: 308572.5414 | X29: 2252047.018 | Y29: 483230.0435 | Z29: 271803.9021 | AA29: 1467844.531 | AB29: 1456071.253 | AC29: 8950331.058 | AD29: 461581.5889 | AE29: =$IN29*AE$70/$IN$70 -> 952.7792882 | AF29: 253241.9379 | AG29: 41909.72439 | AH29: 316025.783 | AI29: 1612384.967 | AJ29: 194338.914 | AK29: 1218276.819 | AL29: 329496.4068 | AM29: 2021909.413 | AN29: 6281763.081 | AO29: =$IN29*AO$70/$IN$70 -> 5404592.816 | AP29: 134856.5109 | AQ29: 363258.6533 | AR29: 22507070.55 | AS29: 1977442.736 | AT29: 209589.115 | AU29: 27340434.01 | AV29: 317805.63 | AW29: 2654903.56 | AX29: 2201311.85 | AY29: =$IN29*AY$70/$IN$70 -> 813632.9763 | AZ29: 657917.7992 | BA29: 1368480.608 | BB29: 10178.76977 | BC29: 38452.79348 | BD29: 1492275.444 | BE29: 6935.596092 | BF29: 4480263.005 | BG29: 9233.477108 | BH29: 86606.3138 | BI29: =$IN29*BI$70/$IN$70 -> 4798400.895 | BJ29: 1169431.086 | BK29: 78513.26329 | BL29: 57188.432 | BM29: 30019787.25 | BN29: 286695.7917 | BO29: 7246306.515 | BP29: 3275095.605 | BQ29: 1979724.737 | BR29: 5672.550695 | BS29: =$IN29*BS$70/$IN$70 -> 968144.1928 | BT29: 195015.8654 | BU29: 201855.45 | BV29: 3929915.044 | BW29: 235831.0138 | BX29: 218185.6767 | BY29: 208166.8143 | BZ29: 4179998.571 | CA29: 11485145.51 | CB29: 1234678.119 | CC29: =$IN29*CC$70/$IN$70 -> 182057.9275 | CD29: 1534413.159 | CE29: 5509203.476 | CF29: 5455027.292 | CG29: 1733028.795 | CH29: 75262.40552 | CI29: 1328212.079 | CJ29: 140268.1505 | CK29: 545526.2118 | CL29: 149662.4613 | CM29: =$IN29*CM$70/$IN$70 -> 1566813.24 | CN29: 2104875.418 | CO29: 123304.5634 | CP29: 608672.0211 | CQ29: 315642.579 | CR29: 117038.9739 | CS29: 268385.2648 | CT29: 428868.8104 | CU29: 72387.90934 | CV29: 2151353.914 | CW29: =$IN29*CW$70/$IN$70 -> 1598612.564 | CX29: 214046.931 | CY29: 171943.9269 | CZ29: 566190.237 | DA29: 125980.0783 | DB29: 66997.83016 | DC29: 1550982.857 | DD29: 76052.44314 | DE29: 1461643.961 | DF29: 31299.52207 | DG29: =$IN29*DG$70/$IN$70 -> 2887667.458 | DH29: 15488.93487 | DI29: 366664.6355 | DJ29: 19256.87786 | DK29: 349973.9653 | DL29: 974660.7272 | DM29: 2974651.428 | DN29: 47791.59676 | DO29: 674677.9588 | DP29: 246519.3602 | DQ29: =$IN29*DQ$70/$IN$70 -> 254244.0919 | DR29: 109703.4325 | DS29: 245599.2831 | DT29: 719378.5094 | DU29: 1455160.204 | DV29: 1000918.577 | DW29: 566391.019 | DX29: 316860.5212 | DY29: 5477578.941 | DZ29: 161423.249 | EA29: =$IN29*EA$70/$IN$70 -> 418520.4017 | EB29: 761055.1622 | EC29: 697375.9977 | ED29: 5755431.12 | EE29: 13753.53884 | EF29: 7273.57251 | EG29: 269821.1624 | EH29: 299376.3796 | EI29: 516035.1327 | EJ29: 1959788.507 | EK29: =$IN29*EK$70/$IN$70 -> 1651862.295 | EL29: 205243.2795 | EM29: 11371.80621 | EN29: 135771.413 | EO29: 258988.3643 | EP29: 263399.9445 | EQ29: 247335.0298 | ER29: 637067.5156 | ES29: 265695.193 | ET29: 661695.2334 | EU29: =$IN29*EU$70/$IN$70 -> 212494.5944 | EV29: 190436.0568 | EW29: 167236.9997 | EX29: 791352.6378 | EY29: 301977.212 | EZ29: 165687.8703 | FA29: 202342.5526 | FB29: 232524.332 | FC29: 209827.8499 | FD29: 273125.8728 | FE29: =$IN29*FE$70/$IN$70 -> 1955591.917 | FF29: 163934.0326 | FG29: 184572.4122 | FH29: 178434.5866 | FI29: 183568.8025 | FJ29: 240549.5443 | FK29: 704535.8188 | FL29: 304908.8539 | FM29: 4728.034253 | FN29: 180208.8272 | FO29: =$IN29*FO$70/$IN$70 -> 202977.2227 | FP29: 20019.4017 | FQ29: 1170418.545 | FR29: 782582.2506 | FS29: 14564.3415 | FT29: 698706.0568 | FU29: 252279.6732 | FV29: 170034.0426 | FW29: 723206.9442 | FX29: 0.07788490157 | FY29: =$IN29*FY$70/$IN$70 -> 158482.3031 | FZ29: 149331.523 | GA29: 250311.3947 | GB29: 399894.5125 | GC29: 191062.4044 | GD29: 64875.34826 | GE29: 137935.1991 | GF29: 1015308.766 | GG29: 1026102.61 | GH29: 273199.576 | GI29: =$IN29*GI$70/$IN$70 -> 2529329.109 | GJ29: 242116.5306 | GK29: 568580.4477 | GL29: 356747.2371 | GM29: 450740.7125 | GN29: 304947.5574 | GO29: 251915.4495 | GP29: 1177567.384 | GQ29: 289613.9168 | GR29: 206336.5896 | GS29: =$IN29*GS$70/$IN$70 -> 308645.1568 | GT29: 1170940.555 | GU29: 1265491 | GV29: 646982.1658 | GW29: 66596346.48 | GX29: 6948998.83 | GY29: 7827787.123 | GZ29: 46781912.81 | HA29: 11177814.47 | HB29: 2448312.154 | HC29: =$IN29*HC$70/$IN$70 -> 51218.61496 | HD29: 1936086.412 | HE29: 1826978.178 | HF29: 2180.793878 | HG29: 1171155.717 | HH29: 961203.6807 | HI29: 2493898.025 | HJ29: 129795.218 | HK29: 44468.87862 | HL29: 5865716.948 | HM29: =$IN29*HM$70/$IN$70 -> 1769211.632 | HN29: 209813.4555 | HO29: 217630.9529 | HP29: 160891.6651 | HQ29: 218271.5656 | HR29: 204806.9114 | HS29: 638492.338 | HT29: 141877.2329 | HU29: 148603.0268 | HV29: 1190340.161 | HW29: =$IN29*HW$70/$IN$70 -> 47392.72864 | HX29: 514267.6343 | HY29: 368275.7878 | HZ29: 422556.4123 | IA29: 234818.6783 | IB29: 447036.1608 | IC29: 764657.8413 | ID29: 4713398.278 | IE29: 238038.3435 | IF29: 691075.1798 | IG29: =$IN29*IG$70/$IN$70 -> 298381.9032 | IH29: 232606.6254 | II29: 15.15484674 | IJ29: 82878.51776 | IK29: 513858.7966 | IL29: 364914.6742 | IM29: 2715079.33 | IN29: 875635597.5
A30: =+MATCH(B30,RUT[EMPRESA],0) -> 234 | B30: ORAFTI | C30: 121854009.4 | D30: 121854009.4 | F30: =IFERROR(INDEX($B$9:$B$511,MATCH(0,INDEX(COUNTIF($F$8:F29,$B$9:$B$511),0,0),0)),"") -> ORAFTI | H30: 121854009.4 | J30: AGUAS DEL MELADO | K30: 26047594.09 | L30: 16138010.44 | M30: 250329.3054 | N30: 52910348.38 | O30: 8607316.209 | P30: 1998677.923 | Q30: 631268.8927 | R30: 26381.00736 | S30: 37590.71065 | T30: 170995.6348 | U30: 85239.69402 | V30: 405392.13 | W30: 74990.62884 | X30: 547302.1719 | Y30: 117436.6477 | Z30: 66054.95566 | AA30: 356721.9037 | AB30: 353860.7111 | AC30: 2175148.026 | AD30: 112175.547 | AE30: 231.5485287 | AF30: 61543.94712 | AG30: 10185.08184 | AH30: 76801.94774 | AI30: 391848.7434 | AJ30: 47229.08041 | AK30: 296070.8829 | AL30: 80075.63679 | AM30: 491373.1392 | AN30: 1526621.136 | AO30: 1313447.438 | AP30: 32773.41047 | AQ30: 88280.68344 | AR30: 5469765.283 | AS30: 480566.6557 | AT30: 50935.24997 | AU30: 6644390.1 | AV30: 77234.49382 | AW30: 645206.1047 | AX30: 534972.2926 | AY30: 197732.5924 | AZ30: 159890.0189 | BA30: 332574.0551 | BB30: 2473.688497 | BC30: 9344.963589 | BD30: 362659.2096 | BE30: 1685.518452 | BF30: 1088812.824 | BG30: 2243.9594 | BH30: 21047.43962 | BI30: 1166128.065 | BJ30: 284200.1824 | BK30: 19080.63161 | BL30: 13898.17921 | BM30: 7295538.072 | BN30: 69674.04685 | BO30: 1761028.638 | BP30: 795927.8483 | BQ30: 481121.2374 | BR30: 1378.567716 | BS30: 235282.5741 | BT30: 47393.59605 | BU30: 49055.78138 | BV30: 955064.8905 | BW30: 57312.66931 | BX30: 53024.42346 | BY30: 50589.59634 | BZ30: 1015841.267 | CA30: 2791169.56 | CB30: 300056.7975 | CC30: 44244.50214 | CD30: 372899.6986 | CE30: 1338870.371 | CF30: 1325704.242 | CG30: 421168.1263 | CH30: 18290.59414 | CI30: 322787.8236 | CJ30: 34088.57043 | CK30: 132576.131 | CL30: 36371.61634 | CM30: 380773.7061 | CN30: 511535.8953 | CO30: 29966.0064 | CP30: 147922.0977 | CQ30: 76708.81984 | CR30: 28443.31582 | CS30: 65224.14368 | CT30: 104225.5466 | CU30: 17592.02169 | CV30: 522831.2996 | CW30: 388501.7148 | CX30: 52018.60762 | CY30: 41786.55412 | CZ30: 137597.9915 | DA30: 30616.22155 | DB30: 16282.10142 | DC30: 376926.5382 | DD30: 18482.59249 | DE30: 355215.0145 | DF30: 7606.544743 | DG30: 701773.3904 | DH30: 3764.187703 | DI30: 89108.41991 | DJ30: 4679.889447 | DK30: 85052.18131 | DL30: 236866.2503 | DM30: 722912.6096 | DN30: 11614.51981 | DO30: 163963.1452 | DP30: 59910.19731 | DQ30: 61787.49492 | DR30: 26660.60095 | DS30: 59686.59621 | DT30: 174826.4656 | DU30: 353639.3039 | DV30: 243247.5463 | DW30: 137646.7864 | DX30: 77004.80941 | DY30: 1331184.841 | DZ30: 39229.77365 | EA30: 101710.6317 | EB30: 184954.9054 | EC30: 169479.3204 | ED30: 1398709.675 | EE30: 3342.444282 | EF30: 1767.654938 | EG30: 65573.10171 | EH30: 72755.73798 | EI30: 125409.0819 | EJ30: 476276.2488 | EK30: 401442.694 | EL30: 49879.1063 | EM30: 2763.625353 | EN30: 32995.75392 | EO30: 62940.46843 | EP30: 64012.58967 | EQ30: 60108.42487 | ER30: 154822.8932 | ES30: 64570.39084 | ET30: 160808.0273 | EU30: 51641.35211 | EV30: 46280.59124 | EW30: 40642.65639 | EX30: 192317.9285 | EY30: 73387.80347 | EZ30: 40266.18028 | FA30: 49174.15916 | FB30: 56509.06525 | FC30: 50993.26837 | FD30: 66376.22667 | FE30: 475256.3756 | FF30: 39839.9551 | FG30: 44855.58305 | FH30: 43363.94221 | FI30: 44611.68149 | FJ30: 58459.38693 | FK30: 171219.331 | FL30: 74100.26371 | FM30: 1149.02726 | FN30: 43795.12582 | FO30: 49328.39941 | FP30: 4865.201277 | FQ30: 284440.1588 | FR30: 190186.5112 | FS30: 3539.489039 | FT30: 169802.5571 | FU30: 61310.09341 | FV30: 41322.40582 | FW30: 175756.8683 | FX30: 0.01892792443 | FY30: 38515.05231 | FZ30: 36291.19028 | GA30: 60831.75389 | GB30: 97184.08782 | GC30: 46432.80894 | GD30: 15766.28672 | GE30: 33521.60654 | GF30: 246744.7118 | GG30: 249367.8785 | GH30: 66394.13834 | GI30: 614688.4605 | GJ30: 58840.2027 | GK30: 138178.8708 | GL30: 86698.251 | GM30: 109540.9505 | GN30: 74109.66961 | GO30: 61221.57819 | GP30: 286177.5007 | GQ30: 70383.2222 | GR30: 50144.80725 | GS30: 75008.27614 | GT30: 284567.0201 | GU30: 307545.0767 | GV30: 157232.3942 | GW30: 16184531.13 | GX30: 1688775.643 | GY30: 1902342.561 | GZ30: 11369142.06 | HA30: 2716480.646 | HB30: 594999.371 | HC30: 12447.36854 | HD30: 470516.0637 | HE30: 444000.1104 | HF30: 529.9859267 | HG30: 284619.3096 | HH30: 233595.8609 | HI30: 606077.8458 | HJ30: 31543.39324 | HK30: 10807.01853 | HL30: 1425511.812 | HM30: 429961.4354 | HN30: 50989.77017 | HO30: 52889.61209 | HP30: 39100.58584 | HQ30: 53045.29655 | HR30: 49773.05825 | HS30: 155169.1596 | HT30: 34479.61658 | HU30: 36114.148 | HV30: 289281.5958 | HW30: 11517.58516 | HX30: 124979.5368 | HY30: 89499.96908 | HZ30: 102691.4804 | IA30: 57066.64718 | IB30: 108640.6543 | IC30: 185830.444 | ID30: 1145470.362 | IE30: 57849.10409 | IF30: 167948.0685 | IG30: 72514.05603 | IH30: 56529.06456 | II30: 3.682996167 | IJ30: 20141.49456 | IK30: 124880.1793 | IL30: 88683.13678 | IM30: 659830.2797 | IN30: 212800736.6
A31: =+MATCH(B31,RUT[EMPRESA],0) -> 130 | B31: GAS SUR | C31: 26146664.7 | D31: 26146664.7 | F31: =IFERROR(INDEX($B$9:$B$511,MATCH(0,INDEX(COUNTIF($F$8:F30,$B$9:$B$511),0,0),0)),"") -> GAS SUR | H31: 26146664.7 | J31: ENORCHILE | K31: 76613598.94 | L31: 47466612.67 | M31: 736291.7642 | N31: 155624822.6 | O31: 25316636.52 | P31: 5878696.829 | Q31: 1856746.6 | R31: 77594.26495 | S31: 110565.2837 | T31: 502948.2161 | U31: 250714.8917 | V31: 1192376.922 | W31: 220569.3908 | X31: 1609775.895 | Y31: 345415.5572 | Z31: 194286.9604 | AA31: 1049223.539 | AB31: 1040807.934 | AC31: 6397747.06 | AD31: 329941.1199 | AE31: 681.0520024 | AF31: 181018.7638 | AG31: 29957.30708 | AH31: 225897.0099 | AI31: 1152541.857 | AJ31: 138914.5505 | AK31: 870831.1332 | AL31: 235525.8877 | AM31: 1445272.238 | AN31: 4490239.637 | AO31: 3863233.39 | AP31: 96396.19369 | AQ31: 259659.3317 | AR31: 16088180.82 | AS31: 1413487.207 | AT31: 149815.48 | AU31: 19543096.24 | AV31: 227169.2546 | AW31: 1897740.02 | AX31: 1573510.111 | AY31: 581589.4349 | AZ31: 470283.349 | BA31: 978197.6479 | BB31: 7275.841973 | BC31: 27486.27339 | BD31: 1066686.894 | BE31: 4957.603157 | BF31: 3202517.234 | BG31: 6600.141451 | BH31: 61906.68097 | BI31: 3429923.99 | BJ31: 835915.9281 | BK31: 56121.72288 | BL31: 40878.61335 | BM31: 21458313.04 | BN31: 204931.7669 | BO31: 5179700.717 | BP31: 2341056.788 | BQ31: 1415118.394 | BR31: 4054.771191 | BS31: 692034.9228 | BT31: 139398.4391 | BU31: 144287.4127 | BV31: 2809125.412 | BW31: 168573.3371 | BX31: 155960.3508 | BY31: 148798.8115 | BZ31: 2987886.526 | CA31: 8209646.712 | CB31: 882554.8746 | CC31: 130136.0322 | CD31: 1096807.17 | CE31: 3938009.679 | CF31: 3899284.238 | CG31: 1238778.745 | CH31: 53797.99144 | CI31: 949413.4764 | CJ31: 100264.4641 | CK31: 389945.2092 | CL31: 106979.5704 | CM31: 1119966.93 | CN31: 1504576.806 | CO31: 88138.79653 | CP31: 435082.1895 | CQ31: 225623.0935 | CR31: 83660.11783 | CS31: 191843.2991 | CT31: 306557.8416 | CU31: 51743.28537 | CV31: 1537799.896 | CW31: 1142697.266 | CX31: 153001.952 | CY31: 122906.4875 | CZ31: 404715.9709 | DA31: 90051.26962 | DB31: 47890.42641 | DC31: 1108651.284 | DD31: 54362.71478 | DE31: 1044791.337 | DF31: 22373.07469 | DG31: 2064120.966 | DH31: 11071.5779 | DI31: 262093.947 | DJ31: 13764.92477 | DK31: 250163.3619 | DL31: 696692.9783 | DM31: 2126297.597 | DN31: 34161.70258 | DO31: 482263.6056 | DP31: 176213.4273 | DQ31: 181735.1091 | DR31: 78416.63156 | DS31: 175555.751 | DT31: 514215.811 | DU31: 1040156.711 | DV31: 715462.2375 | DW31: 404859.491 | DX31: 226493.6855 | DY31: 3915404.284 | DZ31: 115386.2477 | EA31: 299160.7408 | EB31: 544006.5171 | EC31: 498488.2916 | ED31: 4114014.586 | EE31: 9831.107042 | EF31: 5199.190604 | EG31: 192869.6868 | EH31: 213995.9226 | EI31: 368864.8198 | EJ31: 1400867.864 | EK31: 1180760.474 | EL31: 146709.0523 | EM31: 8128.631138 | EN31: 97050.17086 | EO31: 185126.3417 | EP31: 188279.7641 | EQ31: 176796.4726 | ER31: 455379.4489 | ES31: 189920.4207 | ET31: 472983.4803 | EU31: 151892.3331 | EV31: 136124.7662 | EW31: 119541.9494 | EX31: 565663.3234 | EY31: 215855.0122 | EZ31: 118434.623 | FA31: 144635.5965 | FB31: 166209.7024 | FC31: 149986.1291 | FD31: 195231.9124 | FE31: 1397868.119 | FF31: 117180.97 | FG31: 131933.4 | FH31: 127546.0476 | FI31: 131216.0141 | FJ31: 171946.1693 | FK31: 503606.1721 | FL31: 217950.5664 | FM31: 3379.625518 | FN31: 128814.2848 | FO31: 145089.2622 | FP31: 14309.98111 | FQ31: 836621.7691 | FR31: 559394.2012 | FS31: 10410.67335 | FT31: 499439.0253 | FU31: 180330.9315 | FV31: 121541.2915 | FW31: 516952.3977 | FX31: 0.05567256638 | FY31: 113284.0431 | FZ31: 106743.0138 | GA31: 178923.995 | GB31: 285846.8502 | GC31: 136572.483 | GD31: 46373.26439 | GE31: 98596.85734 | GF31: 725748.4252 | GG31: 733463.9261 | GH31: 195284.5959 | GI31: 1807978.695 | GJ31: 173066.26 | GK31: 406424.5069 | GL31: 255004.9347 | GM31: 322192.0004 | GN31: 217978.2319 | GO31: 180070.5824 | GP31: 841731.7999 | GQ31: 207017.6592 | GR31: 147490.5566 | GS31: 220621.2967 | GT31: 836994.9051 | GU31: 904580.0959 | GV31: 462466.4967 | GW31: 47603443.61 | GX31: 4967183.509 | GY31: 5595346.331 | GZ31: 33439974.81 | HA31: 7989964.753 | HB31: 1750067.32 | HC31: 36611.3545 | HD31: 1383925.474 | HE31: 1305934.293 | HF31: 1558.843749 | HG31: 837148.704 | HH31: 687073.8056 | HI31: 1782652.357 | HJ31: 92778.35296 | HK31: 31786.60494 | HL31: 4192847.517 | HM31: 1264642.441 | HN31: 149975.8399 | HO31: 155563.8311 | HP31: 115006.2686 | HQ31: 156021.7447 | HR31: 146397.134 | HS31: 456397.92 | HT31: 101414.6453 | HU31: 106222.2807 | HV31: 850861.8524 | HW31: 33876.58941 | HX31: 367601.402 | HY31: 263245.6077 | HZ31: 302045.7039 | IA31: 167849.714 | IB31: 319543.966 | IC31: 546581.7325 | ID31: 3369163.64 | IE31: 170151.1488 | IF31: 493984.4315 | IG31: 213285.0653 | IH31: 166268.5262 | II31: 10.83276982 | IJ31: 59242.03137 | IK31: 367309.1625 | IL31: 260843.0648 | IM31: 1940754 | IN31: 625909257.7
A32: =+MATCH(B32,RUT[EMPRESA],0) -> 246 | B32: PETROPOWER | C32: 0 | D32: 0 | F32: =IFERROR(INDEX($B$9:$B$511,MATCH(0,INDEX(COUNTIF($F$8:F31,$B$9:$B$511),0,0),0)),"") -> PETROPOWER | J32: ARRAYAN_EOLICO | K32: 86957359.48 | L32: 53875178.28 | M32: 835700.0391 | N32: 176636052 | O32: 28734688.01 | P32: 6672391.854 | Q32: 2107429.801 | R32: 88070.42725 | S32: 125492.9314 | T32: 570852.2956 | U32: 284564.428 | V32: 1353362.197 | W32: 250348.9208 | X32: 1827115.07 | Y32: 392050.8265 | Z32: 220518.045 | AA32: 1190881.381 | AB32: 1181329.567 | AC32: 7261520.131 | AD32: 374487.1533 | AE32: 773.0022427 | AF32: 205458.4817 | AG32: 34001.90511 | AH32: 256395.8328 | AI32: 1308148.918 | AJ32: 157669.6914 | AK32: 988403.8467 | AL32: 267324.7252 | AM32: 1640401.434 | AN32: 5096476.183 | AO32: 4384816.525 | AP32: 109410.8433 | AQ32: 294716.4755 | AR32: 18260279.4 | AS32: 1604325.04 | AT32: 170042.3781 | AU32: 22181650.11 | AV32: 257839.8458 | AW32: 2153957.827 | AX32: 1785952.967 | AY32: 660111.0281 | AZ32: 533777.2772 | BA32: 1110266.137 | BB32: 8258.168455 | BC32: 31197.25205 | BD32: 1210702.499 | BE32: 5626.939419 | BF32: 3634895.714 | BG32: 7491.240208 | BH32: 70264.83009 | BI32: 3893005.126 | BJ32: 948774.6675 | BK32: 63698.83284 | BL32: 46397.71954 | BM32: 24355444.29 | BN32: 232600.0289 | BO32: 5879022.83 | BP32: 2657127.709 | BQ32: 1606176.457 | BR32: 4602.214241 | BS32: 785467.9899 | BT32: 158218.9109 | BU32: 163767.9549 | BV32: 3188391.247 | BW32: 191332.7723 | BX32: 177016.8805 | BY32: 168888.447 | BZ32: 3391287.269 | CA32: 9318048.104 | CB32: 1001710.435 | CC32: 147705.9672 | CD32: 1244889.375 | CE32: 4469688.516 | CF32: 4425734.672 | CG32: 1406028.827 | CH32: 61061.3696 | CI32: 1077595.755 | CJ32: 113801.3769 | CK32: 442592.5189 | CL32: 121423.1036 | CM32: 1271175.984 | CN32: 1707712.834 | CO32: 100038.5979 | CP32: 493823.5363 | CQ32: 256084.9343 | CR32: 94955.24347 | CS32: 217744.46 | CT32: 347946.8502 | CU32: 58729.25341 | CV32: 1745421.443 | CW32: 1296975.189 | CX32: 173659.0622 | CY32: 139500.3467 | CZ32: 459357.5117 | DA32: 102209.2779 | DB32: 54356.21199 | DC32: 1258332.588 | DD32: 61702.3374 | DE32: 1185850.778 | DF32: 25393.70981 | DG32: 2342802.209 | DH32: 12566.37454 | DI32: 297479.7932 | DJ32: 15623.35575 | DK32: 283938.4351 | DL32: 790754.9391 | DM32: 2413373.437 | DN32: 38773.94475 | DO32: 547375.013 | DP32: 200004.3668 | DQ32: 206271.5423 | DR32: 89003.82327 | DS32: 199257.8963 | DT32: 583641.1518 | DU32: 1180590.421 | DV32: 812058.2749 | DW32: 459520.4087 | DX32: 257073.0667 | DY32: 4444031.119 | DZ32: 130964.7838 | EA32: 339551.0515 | EB32: 617453.9628 | EC32: 565790.2275 | ED32: 4669456.21 | EE32: 11158.42515 | EF32: 5901.144087 | EG32: 218909.4224 | EH32: 242887.955 | EI32: 418666.0225 | EJ32: 1590001.934 | EK32: 1340177.389 | EL32: 166516.5451 | EM32: 9226.09445 | EN32: 110153.1153 | EO32: 210120.6322 | EP32: 213699.8047 | EQ32: 200666.1303 | ER32: 516861.1707 | ES32: 215561.9697 | ET32: 536841.9588 | EU32: 172399.6314 | EV32: 154503.2526 | EW32: 135681.5554 | EX32: 642034.6993 | EY32: 244998.0442 | EZ32: 134424.7266 | FA32: 164163.1477 | FB32: 188650.0183 | FC32: 170236.0668 | FD32: 221590.577 | FE32: 1586597.187 | FF32: 133001.8153 | FG32: 149746.0013 | FH32: 144766.3035 | FI32: 148931.7597 | FJ32: 195160.9775 | FK32: 571599.0836 | FL32: 247376.5234 | FM32: 3835.915754 | FN32: 146205.768 | FO32: 164678.0637 | FP32: 16242.00127 | FQ32: 949575.8056 | FR32: 634919.1699 | FS32: 11816.23991 | FT32: 566869.3217 | FU32: 204677.7838 | FV32: 137950.8328 | FW32: 586747.2107 | FX32: 0.06318903479 | FY32: 128578.7562 | FZ32: 121154.6091 | GA32: 203080.8939 | GB32: 324439.625 | GC32: 155011.4166 | GD32: 52634.21479 | GE32: 111908.6231 | GF32: 823733.222 | GG32: 832490.4087 | GH32: 221650.3733 | GI32: 2052077.641 | GJ32: 196432.2939 | GK32: 461296.7207 | GL32: 289433.6787 | GM32: 365691.8091 | GN32: 247407.924 | GO32: 204382.2844 | GP32: 955375.7522 | GQ32: 234967.5418 | GR32: 167403.5619 | GS32: 250407.8346 | GT32: 949999.3195 | GU32: 1026709.327 | GV32: 524905.0555 | GW32: 54030483.05 | GX32: 5637813.234 | GY32: 6350785.619 | GZ32: 37954775.01 | HA32: 9068706.43 | HB32: 1986347.53 | HC32: 41554.32924 | HD32: 1570772.116 | HE32: 1482251.185 | HF32: 1769.30647 | HG32: 950173.883 | HH32: 779837.062 | HI32: 2023331.941 | HJ32: 105304.5504 | HK32: 36078.18026 | HL32: 4758932.538 | HM32: 1435384.434 | HN32: 170224.3884 | HO32: 176566.8259 | HP32: 130533.5029 | HQ32: 177086.5633 | HR32: 166162.514 | HS32: 518017.1477 | HT32: 115106.8464 | HU32: 120563.5706 | HV32: 965738.472 | HW32: 38450.33785 | HX32: 417232.028 | HY32: 298786.942 | HZ32: 342825.5194 | IA32: 190511.4513 | IB32: 362686.2581 | IC32: 620376.8633 | ID32: 3824041.396 | IE32: 193123.6076 | IF32: 560678.2919 | IG32: 242081.1233 | IH32: 188716.784 | II32: 12.29532449 | IJ32: 67240.42063 | IK32: 416900.3327 | IL32: 296060.0268 | IM32: 2202779.214 | IN32: 710414562
A33: =+MATCH(B33,RUT[EMPRESA],0) -> 336 | B33: ALTO_MANGA_ENERGY | C33: 14706795.63 | D33: 14706795.63 | F33: =IFERROR(INDEX($B$9:$B$511,MATCH(0,INDEX(COUNTIF($F$8:F32,$B$9:$B$511),0,0),0)),"") -> ALTO_MANGA_ENERGY | H33: 14706795.63 | J33: ALBA | K33: 312418.8032 | L33: 193561.7505 | M33: 3002.487743 | N33: 634614.7616 | O33: 103237.4591 | P33: 23972.44684 | Q33: 7571.535061 | R33: 316.4178126 | S33: 450.8686979 | T33: 2050.947637 | U33: 1022.377848 | V33: 4862.334833 | W33: 899.4490019 | X33: 6564.425447 | Y33: 1408.553005 | Z33: 792.2731795 | AA33: 4278.57674 | AB33: 4244.259161 | AC33: 26089.05608 | AD33: 1345.450563 | AE33: 2.777228253 | AF33: 738.1674573 | AG33: 122.1614198 | AH33: 921.1742363 | AI33: 4699.893395 | AJ33: 566.4727699 | AK33: 3551.119177 | AL33: 960.4393603 | AM33: 5893.604127 | AN33: 18310.52597 | AO33: 15753.68823 | AP33: 393.0892672 | AQ33: 1058.851937 | AR33: 65605.19628 | AS33: 5763.989521 | AT33: 610.9251311 | AU33: 79693.8249 | AV33: 926.3622596 | AW33: 7738.7001 | AX33: 6416.539002 | AY33: 2371.634771 | AZ33: 1917.745193 | BA33: 3988.943773 | BB33: 29.66979587 | BC33: 112.0849139 | BD33: 4349.789689 | BE33: 20.21636454 | BF33: 13059.38652 | BG33: 26.91439015 | BH33: 252.4461903 | BI33: 13986.71728 | BJ33: 3408.74019 | BK33: 228.855996 | BL33: 166.6968741 | BM33: 87503.79267 | BN33: 835.6811094 | BO33: 21122.04519 | BP33: 9546.479605 | BQ33: 5770.641259 | BR33: 16.53475075 | BS33: 2822.01496 | BT33: 568.4459955 | BU33: 588.382499 | BV33: 11455.19348 | BW33: 687.4168681 | BX33: 635.9829954 | BY33: 606.7793089 | BZ33: 12184.15458 | CA33: 33477.712 | CB33: 3598.926842 | CC33: 530.6752845 | CD33: 4472.615671 | CE33: 16058.61476 | CF33: 15900.6982 | CG33: 5051.554531 | CH33: 219.3801666 | CI33: 3871.566225 | CJ33: 408.8634957 | CK33: 1590.138269 | CL33: 436.2466954 | CM33: 4567.057714 | CN33: 6135.43929 | CO33: 359.416836 | CP33: 1774.200126 | CQ33: 920.057246 | CR33: 341.1534538 | CS33: 782.3082943 | CT33: 1250.097049 | CU33: 211.0013824 | CV33: 6270.918086 | CW33: 4659.748625 | CX33: 623.9190874 | CY33: 501.1942822 | CZ33: 1650.371227 | DA33: 367.2156153 | DB33: 195.2899996 | DC33: 4520.914197 | DD33: 221.6830239 | DE33: 4260.502882 | DF33: 91.23405396 | DG33: 8417.176724 | DH33: 45.14823953 | DI33: 1068.779934 | DJ33: 56.13130543 | DK33: 1020.128792 | DL33: 2841.009814 | DM33: 8670.723733 | DN33: 139.3063162 | DO33: 1966.598888 | DP33: 718.5720138 | DQ33: 741.0886066 | DR33: 319.7713006 | DS33: 715.8901082 | DT33: 2096.895205 | DU33: 4241.60357 | DV33: 2917.548047 | DW33: 1650.95648 | DX33: 923.6073899 | DY33: 15966.43334 | DZ33: 470.5278686 | EA33: 1219.932778 | EB33: 2218.377251 | EC33: 2032.760732 | ED33: 16776.33646 | EE33: 40.08978482 | EF33: 21.20152203 | EG33: 786.49375 | EH33: 872.6433813 | EI33: 1504.175592 | EJ33: 5712.529729 | EK33: 4814.964696 | EL33: 598.2575833 | EM33: 33.1473426 | EN33: 395.7560883 | EO33: 754.9175462 | EP33: 767.7767314 | EQ33: 720.9495852 | ER33: 1856.969316 | ES33: 774.4670834 | ET33: 1928.755924 | EU33: 619.3942275 | EV33: 555.0964466 | EW33: 487.474199 | EX33: 2306.690469 | EY33: 880.2244709 | EZ33: 482.9586874 | FA33: 589.8023402 | FB33: 677.7783189 | FC33: 611.6210125 | FD33: 796.1265528 | FE33: 5700.297215 | FF33: 477.8464777 | FG33: 538.0046818 | FH33: 520.1137148 | FI33: 535.0792894 | FJ33: 701.1707736 | FK33: 2053.630683 | FL33: 888.7698273 | FM33: 13.78160763 | FN33: 525.2853966 | FO33: 591.6523211 | FP33: 58.3539637 | FQ33: 3411.618504 | FR33: 2281.125926 | FS33: 42.45316959 | FT33: 2036.637682 | FU33: 735.3625804 | FV33: 495.627217 | FW33: 2108.054596 | FX33: 0.000227024403 | FY33: 461.9553923 | FZ33: 435.282053 | GA33: 729.6253035 | GB33: 1165.640723 | GC33: 556.9221688 | GD33: 189.1032397 | GE33: 402.0632446 | GF33: 2959.493583 | GG33: 2990.956242 | GH33: 796.3413881 | GI33: 7372.666837 | GJ33: 705.7383357 | GK33: 1657.338381 | GL33: 1039.872002 | GM33: 1313.850812 | GN33: 888.882643 | GO33: 734.3009154 | GP33: 3432.456446 | GQ33: 844.1870663 | GR33: 601.4444409 | GS33: 899.6606664 | GT33: 3413.140097 | GU33: 3688.742402 | GV33: 1885.869237 | GW33: 194119.7266 | GX33: 20255.43178 | GY33: 22816.98587 | GZ33: 136363.2182 | HA33: 32581.88181 | HB33: 7136.512905 | HC33: 149.2956305 | HD33: 5643.441193 | HE33: 5325.404819 | HF33: 6.35673177 | HG33: 3413.767266 | HH33: 2801.784266 | HI33: 7269.389815 | HJ33: 378.3362535 | HK33: 129.621023 | HL33: 17097.80537 | HM33: 5157.022817 | HN33: 611.5790546 | HO33: 634.3660474 | HP33: 468.9783704 | HQ33: 636.2333505 | HR33: 596.9856268 | HS33: 1861.122489 | HT33: 413.5537626 | HU33: 433.1585809 | HV33: 3469.687435 | HW33: 138.1436672 | HX33: 1499.023563 | HY33: 1073.476234 | HZ33: 1231.697226 | IA33: 684.4660412 | IB33: 1303.052523 | IC33: 2228.878594 | ID33: 13738.94565 | IE33: 693.8509483 | IF33: 2014.394664 | IG33: 869.7446112 | IH33: 678.0181936 | II33: 0.04417441589 | IJ33: 241.5801476 | IK33: 1497.831854 | IL33: 1063.679024 | IM33: 7914.104679 | IN33: 2552364.383
A34: =+MATCH(B34,RUT[EMPRESA],0) -> 136 | B34: GENPAC | C34: 79422294.38 | D34: 79422294.38 | F34: =IFERROR(INDEX($B$9:$B$511,MATCH(0,INDEX(COUNTIF($F$8:F33,$B$9:$B$511),0,0),0)),"") -> GENPAC | H34: 79422294.38 | J34: ALMEYDA | K34: 20523129.8 | L34: 12715281.18 | M34: 197236.6741 | N34: 41688531.53 | O34: 6781780.581 | P34: 1574776.016 | Q34: 497382.3447 | R34: 20785.82906 | S34: 29618.05345 | T34: 134728.9733 | U34: 67161.10894 | V34: 319412.0453 | W34: 59085.77982 | X34: 431224.2226 | Y34: 92529.37357 | Z34: 52045.28388 | AA34: 281064.3434 | AB34: 278809.9845 | AC34: 1713818.371 | AD34: 88384.10575 | AE34: 182.4391341 | AF34: 48491.02035 | AG34: 8024.916076 | AH34: 60512.93401 | AI34: 308741.0911 | AJ34: 37212.21024 | AK34: 233276.8677 | AL34: 63092.30256 | AM34: 387157.243 | AN34: 1202838.297 | AO34: 1034876.855 | AP34: 25822.46002 | AQ34: 69557.1314 | AR34: 4309676.451 | AS34: 378642.7191 | AT34: 40132.33402 | AU34: 5235173.735 | AV34: 60853.74089 | AW34: 508363.5973 | AX34: 421509.4017 | AY34: 155795.2586 | AZ34: 125978.7603 | BA34: 262038.0399 | BB34: 1949.041049 | BC34: 7362.979476 | BD34: 285742.3993 | BE34: 1328.034898 | BF34: 857885.2554 | BG34: 1768.035461 | BH34: 16583.46386 | BI34: 918802.6176 | BJ34: 223923.8377 | BK34: 15033.79843 | BL34: 10950.49834 | BM34: 5748218.983 | BN34: 54896.79785 | BO34: 1387530.042 | BP34: 627118.5924 | BQ34: 379079.6789 | BR34: 1086.185698 | BS34: 185381.2214 | BT34: 37341.83357 | BU34: 38651.48409 | BV34: 752504.0756 | BW34: 45157.15913 | BX34: 41778.41229 | BY34: 39859.99047 | BZ34: 800390.3203 | CA34: 2199187.186 | CB34: 236417.405 | CC34: 34860.63462 | CD34: 293810.9711 | CE34: 1054907.809 | CF34: 1044534.099 | CG34: 331842.0924 | CH34: 14411.32092 | CI34: 254327.3816 | CJ34: 26858.68619 | CK34: 104457.9064 | CL34: 28657.51825 | CM34: 300014.9713 | CN34: 403043.6569 | CO34: 23610.48152 | CP34: 116549.1293 | CQ34: 60439.55771 | CR34: 22410.74014 | CS34: 51390.67977 | CT34: 82120.23011 | CU34: 13860.90951 | CV34: 411943.4059 | CW34: 306103.9377 | CX34: 40985.9211 | CY34: 32923.99563 | CZ34: 108414.6747 | DA34: 24122.79178 | DB34: 12828.81174 | DC34: 296983.7537 | DD34: 14562.59812 | DE34: 279877.0521 | DF34: 5993.26389 | DG34: 552933.4621 | DH34: 2965.836789 | DI34: 70209.31229 | DJ34: 3687.326293 | DK34: 67013.36602 | DL34: 186629.0139 | DM34: 569589.2399 | DN34: 9151.182897 | DO34: 129188.0125 | DP34: 47203.77442 | DQ34: 48682.91381 | DR34: 21006.12333 | DS34: 47027.59714 | DT34: 137747.3188 | DU34: 278635.5358 | DV34: 191656.8934 | DW34: 108453.1206 | DX34: 60672.77051 | DY34: 1048852.311 | DZ34: 30909.48568 | EA34: 80138.70644 | EB34: 145727.606 | EC34: 133534.2557 | ED34: 1102055.725 | EE34: 2633.541417 | EF34: 1392.750962 | EG34: 51665.62689 | EH34: 57324.88955 | EI34: 98810.92496 | EJ34: 375262.2695 | EK34: 316300.2497 | EL34: 39300.18908 | EM34: 2177.484862 | EN34: 25997.64639 | EO34: 49591.35184 | EP34: 50436.08565 | EQ34: 47359.95967 | ER34: 121986.3271 | ES34: 50875.58213 | ET34: 126702.0672 | EU34: 40688.67814 | EV34: 36464.88723 | EW34: 32022.70849 | EX34: 151528.9971 | EY34: 57822.89954 | EZ34: 31726.07963 | FA34: 38744.75499 | FB34: 44523.99239 | FC34: 40178.04723 | FD34: 52298.41615 | FE34: 374458.7024 | FF34: 31390.25304 | FG34: 35342.11067 | FH34: 34166.83366 | FI34: 35149.93848 | FJ34: 46060.66809 | FK34: 134905.2255 | FL34: 58384.25326 | FM34: 905.3287426 | FN34: 34506.56704 | FO34: 38866.28225 | FP34: 3833.335123 | FQ34: 224112.9173 | FR34: 149849.6345 | FS34: 2788.794724 | FT34: 133788.9368 | FU34: 48306.76494 | FV34: 32558.28908 | FW34: 138480.3913 | FX34: 0.0149134791 | FY34: 30346.35042 | FZ34: 28594.14985 | GA34: 47929.87701 | GB34: 76572.20248 | GC34: 36584.8209 | GD34: 12422.39678 | GE34: 26411.97032 | GF34: 194412.3411 | GG34: 196479.1573 | GH34: 52312.52891 | GI34: 484318.4755 | GJ34: 46360.7162 | GK34: 108872.3546 | GL34: 68310.31889 | GM34: 86308.28386 | GN34: 58391.66425 | GO34: 48237.02302 | GP34: 225481.7843 | GQ34: 55455.56337 | GR34: 39509.53721 | GS34: 59099.68429 | GT34: 224212.8724 | GU34: 242317.4865 | GV34: 123884.7942 | GW34: 12751935.24 | GX34: 1330601.268 | GY34: 1498872.532 | GZ34: 8957847.602 | HA34: 2140339.13 | HB34: 468805.2677 | HC34: 9807.391781 | HD34: 370723.7687 | HE34: 349831.6146 | HF34: 417.5805998 | HG34: 224254.0718 | HH34: 184052.2452 | HI34: 477534.096 | HJ34: 24853.31856 | HK34: 8514.945496 | HL34: 1123173.366 | HM34: 338770.4184 | HN34: 40175.29097 | HO34: 41672.19322 | HP34: 30807.69746 | HQ34: 41794.85838 | HR34: 39216.63288 | HS34: 122259.1535 | HT34: 27166.7949 | HU34: 28454.65667 | HV34: 227927.5283 | HW34: 9074.807231 | HX34: 98472.48259 | HY34: 70517.81734 | HZ34: 80911.52579 | IA34: 44963.31612 | IB34: 85598.93258 | IC34: 146417.4507 | ID34: 902526.2312 | IE34: 45579.82084 | IF34: 132327.7688 | IG34: 57134.4662 | IH34: 44539.75002 | II34: 2.901865259 | IJ34: 15869.66173 | IK34: 98394.19794 | IL34: 69874.22795 | IM34: 519886.1142 | IN34: 167667582.8
A35: =+MATCH(B35,RUT[EMPRESA],0) -> 229 | B35: NORVIND | C35: 78785264.59 | D35: 78785264.59 | F35: =IFERROR(INDEX($B$9:$B$511,MATCH(0,INDEX(COUNTIF($F$8:F34,$B$9:$B$511),0,0),0)),"") -> NORVIND | H35: 78785264.59 | J35: PUNTA_PALMERAS | K35: 450531.5037 | L35: 279130.6593 | M35: 4329.814031 | N35: 915162.4035 | O35: 148876.211 | P35: 34570.0784 | Q35: 10918.72525 | R35: 456.2983772 | S35: 650.1867057 | T35: 2957.621352 | U35: 1474.346052 | V35: 7011.853964 | W35: 1297.073375 | X35: 9466.397149 | Y35: 2031.239787 | Z35: 1142.517746 | AA35: 6170.030717 | AB35: 6120.542177 | AC35: 37622.38875 | AD35: 1940.241301 | AE35: 4.004972837 | AF35: 1064.49321 | AG35: 176.1659913 | AH35: 1328.402803 | AI35: 6777.601145 | AJ35: 816.8965063 | AK35: 5120.981984 | AL35: 1385.026076 | AM35: 8499.022154 | AN35: 26405.16101 | AO35: 22718.00793 | AP35: 566.8644039 | AQ35: 1526.944443 | AR35: 94607.64663 | AS35: 8312.108106 | AT35: 881.0001675 | AU35: 114924.5129 | AV35: 1335.884324 | AW35: 11159.78986 | AX35: 9253.133727 | AY35: 3420.076412 | AZ35: 2765.533369 | BA35: 5752.35811 | BB35: 42.78608589 | BC35: 161.6349089 | BD35: 6272.725167 | BE35: 29.15352412 | BF35: 18832.62143 | BG35: 38.8125828 | BH35: 364.0464676 | BI35: 20169.90239 | BJ35: 4915.660734 | BK35: 330.0276263 | BL35: 240.3894791 | BM35: 126187.0761 | BN35: 1205.115259 | BO35: 30459.584 | BP35: 13766.74441 | BQ35: 8321.700413 | BR35: 23.84435906 | BS35: 4069.558651 | BT35: 819.7420466 | BU35: 848.49199 | BV35: 16519.25393 | BW35: 991.3070279 | BX35: 917.1354999 | BY35: 875.0215789 | BZ35: 17570.47088 | CA35: 48277.38846 | CB35: 5189.924246 | CC35: 765.2738295 | CD35: 6449.849507 | CE35: 23157.73501 | CF35: 22930.0074 | CG35: 7284.723056 | CH35: 316.3627647 | CI35: 5583.090822 | CJ35: 589.6120324 | CK35: 2293.099448 | CL35: 629.100674 | CM35: 6586.042063 | CN35: 8847.766718 | CO35: 518.3062156 | CP35: 2558.530545 | CQ35: 1326.792019 | CR35: 491.9690395 | CS35: 1128.147629 | CT35: 1802.734335 | CU35: 304.2799253 | CV35: 9043.137371 | CW35: 6719.709356 | CX35: 899.7384337 | CY35: 722.7599982 | CZ35: 2379.959922 | DA35: 529.5526443 | DB35: 281.6229249 | DC35: 6519.499628 | DD35: 319.6836589 | DE35: 6143.966849 | DF35: 131.5663945 | DG35: 12138.20438 | DH35: 65.10717036 | DI35: 1541.261364 | DJ35: 80.94558068 | DK35: 1471.102744 | DL35: 4096.950665 | DM35: 12503.83831 | DN35: 200.8902263 | DO35: 2835.984086 | DP35: 1036.2351 | DQ35: 1068.705727 | DR35: 461.1343602 | DS35: 1032.36759 | DT35: 3023.881213 | DU35: 6116.712614 | DV35: 4207.324576 | DW35: 2380.803901 | DX35: 1331.911594 | DY35: 23024.80243 | DZ35: 678.5367142 | EA35: 1759.235178 | EB35: 3199.067496 | EC35: 2931.394461 | ED35: 24192.74389 | EE35: 57.81249673 | EF35: 30.57419561 | EG35: 1134.183373 | EH35: 1258.417646 | EI35: 2169.134778 | EJ35: 8237.8992 | EK35: 6943.542651 | EL35: 862.7326071 | EM35: 47.80097085 | EN35: 570.7101613 | EO35: 1088.648102 | EP35: 1107.192018 | EQ35: 1039.663738 | ER35: 2677.889966 | ES35: 1116.840011 | ET35: 2781.411675 | EU35: 893.213244 | EV35: 800.4909892 | EW35: 702.9746021 | EX35: 3326.421826 | EY35: 1269.350149 | EZ35: 696.4628934 | FA35: 850.5395081 | FB35: 977.4075121 | FC35: 882.0036811 | FD35: 1148.074601 | FE35: 8220.258991 | FF35: 689.0907012 | FG35: 775.8433737 | FH35: 750.0432485 | FI35: 771.624737 | FJ35: 1011.141198 | FK35: 2961.490507 | FL35: 1281.673198 | FM35: 19.8741188 | FN35: 757.5012041 | FO35: 853.2073203 | FP35: 84.15082173 | FQ35: 4919.811481 | FR35: 3289.555824 | FS35: 61.22067602 | FT35: 2936.985316 | FU35: 1060.448365 | FV35: 714.7318697 | FW35: 3039.973899 | FX35: 0.0003273863308 | FY35: 666.174556 | FZ35: 627.7095868 | GA35: 1052.174779 | GB35: 1680.941935 | GC35: 803.1238184 | GD35: 272.70115 | GE35: 579.8055568 | GF35: 4267.813206 | GG35: 4313.184736 | GH35: 1148.38441 | GI35: 10631.94226 | GJ35: 1017.727968 | GK35: 2390.007085 | GL35: 1499.573943 | GM35: 1894.672074 | GN35: 1281.835887 | GO35: 1058.917364 | GP35: 4949.861366 | GQ35: 1217.381491 | GR35: 867.3282964 | GS35: 1297.378611 | GT35: 4922.005733 | GU35: 5319.445065 | GV35: 2719.565835 | GW35: 279935.303 | GX35: 29209.86204 | GY35: 32903.81644 | GZ35: 196646.0569 | HA35: 46985.53369 | HB35: 10291.39046 | HC35: 215.2955718 | HD35: 8138.268314 | HE35: 7679.635849 | HF35: 9.166887184 | HG35: 4922.910157 | HH35: 4040.384462 | HI35: 10483.009 | HJ35: 545.5894442 | HK35: 186.9233024 | HL35: 24656.32633 | HM35: 7436.816288 | HN35: 881.9431747 | HO35: 914.8037387 | HP35: 676.3022208 | HQ35: 917.4965308 | HR35: 860.8983499 | HS35: 2683.879155 | HT35: 596.3757515 | HU35: 624.6473798 | HV35: 5003.551264 | HW35: 199.2135988 | HX35: 2161.705163 | HY35: 1548.033784 | HZ35: 1776.200401 | IA35: 987.0517127 | IB35: 1879.100127 | IC35: 3214.211226 | ID35: 19812.59701 | IE35: 1000.585457 | IF35: 2904.909204 | IG35: 1254.2374 | IH35: 977.7534295 | II35: 0.06370284315 | IJ35: 348.3768135 | IK35: 2159.986629 | IL35: 1533.905466 | IM35: 11412.73651 | IN35: 3680702.159
A36: =+MATCH(B36,RUT[EMPRESA],0) -> 226 | B36: MONTE REDONDO | C36: -300102586.7 | D36: -300102586.7 | F36: =IFERROR(INDEX($B$9:$B$511,MATCH(0,INDEX(COUNTIF($F$8:F35,$B$9:$B$511),0,0),0)),"") -> MONTE REDONDO | G36: -300102586.7 | J36: ACCIONA_ENERGIA | K36: 283143733.9 | L36: 175424130.1 | M36: 2721140.923 | N36: 575148458.9 | O36: 93563637.44 | P36: 21726119.04 | Q36: 6862047.631 | R36: 286768.0178 | S36: 408620.2409 | T36: 1858764.473 | U36: 926576.3721 | V36: 4406711.843 | W36: 815166.5208 | X36: 5949308.79 | Y36: 1276565.152 | Z36: 718033.5627 | AA36: 3877654.55 | AB36: 3846552.686 | AC36: 23644392.33 | AD36: 1219375.697 | AE36: 2516.989276 | AF36: 668997.7939 | AG36: 110714.3366 | AH36: 834856.0014 | AI36: 4259491.91 | AJ36: 513391.6831 | AK36: 3218363.085 | AL36: 870441.8039 | AM36: 5341346.492 | AN36: 16594746.03 | AO36: 14277495.67 | AP36: 356255.0068 | AQ36: 959632.6727 | AR36: 59457689.64 | AS36: 5223877.367 | AT36: 553678.6549 | AU36: 72226149.38 | AV36: 839557.8833 | AW36: 7013548.542 | AX36: 5815279.98 | AY36: 2149401.757 | AZ36: 1738043.706 | BA36: 3615161.516 | BB36: 26889.60043 | BC36: 101582.0453 | BD36: 3942194.521 | BE36: 18321.99881 | BF36: 11835662.34 | BG36: 24392.38882 | BH36: 228790.8288 | BI36: 12676097.96 | BJ36: 3089325.66 | BK36: 207411.1436 | BL36: 151076.6154 | BM36: 79304287.49 | BN36: 757373.9712 | BO36: 19142813.05 | BP36: 8651930.848 | BQ36: 5229905.807 | BR36: 14985.36906 | BS36: 2557579.264 | BT36: 515180.0085 | BU36: 533248.3705 | BV36: 10381789.51 | BW36: 623002.7667 | BX36: 576388.4829 | BY36: 549921.3152 | BZ36: 11042443.62 | CA36: 30340697.42 | CB36: 3261690.953 | CC36: 480948.5857 | CD36: 4053511.147 | CE36: 14553849.19 | CF36: 14410730.13 | CG36: 4578200.791 | CH36: 198823.2426 | CI36: 3508782.78 | CJ36: 370551.118 | CK36: 1441135.047 | CL36: 395368.3868 | CM36: 4139103.539 | CN36: 5560520.595 | CO36: 325737.8363 | CP36: 1607949.468 | CQ36: 833843.6783 | CR36: 309185.8164 | CS36: 709002.4327 | CT36: 1132957.244 | CU36: 191229.5888 | CV36: 5683304.409 | CW36: 4223108.888 | CX36: 565455.0182 | CY36: 454230.088 | CZ36: 1495723.902 | DA36: 332805.8344 | DB36: 176990.4343 | DC36: 4097283.881 | DD36: 200910.3117 | DE36: 3861274.295 | DF36: 82685.00625 | DG36: 7628448.806 | DH36: 40917.6432 | DI36: 968630.3711 | DJ36: 50871.54565 | DK36: 924538.063 | DL36: 2574794.213 | DM36: 7858237.302 | DN36: 126252.6778 | DO36: 1782319.587 | DP36: 651238.5329 | DQ36: 671645.2181 | DR36: 289807.2687 | DS36: 648807.9341 | DT36: 1900406.543 | DU36: 3844145.935 | DV36: 2644160.465 | DW36: 1496254.315 | DX36: 837061.1574 | DY36: 14470305.58 | DZ36: 426437.2575 | EA36: 1105619.503 | EB36: 2010505.167 | EC36: 1842281.764 | ED36: 15204317.08 | EE36: 36333.18881 | EF36: 19214.84255 | EG36: 712795.6921 | EH36: 790872.7093 | EI36: 1363227.466 | EJ36: 5177239.593 | EK36: 4363780.505 | EL36: 542198.1143 | EM36: 30041.28514 | EN36: 358671.9346 | EO36: 684178.3229 | EP36: 695832.5437 | EQ36: 653393.315 | ER36: 1682962.806 | ES36: 701895.9791 | ET36: 1748022.682 | EU36: 561354.1583 | EV36: 503081.3733 | EW36: 441795.6392 | EX36: 2090543.033 | EY36: 797743.4161 | EZ36: 437703.2517 | FA36: 534535.1661 | FB36: 614267.3936 | FC36: 554309.3291 | FD36: 721525.8573 | FE36: 5166153.321 | FF36: 433070.0795 | FG36: 487591.185 | FH36: 471376.6833 | FI36: 484939.9152 | FJ36: 635467.8684 | FK36: 1861196.105 | FL36: 805488.0336 | FM36: 12490.20803 | FN36: 476063.7549 | FO36: 536211.7953 | FP36: 52885.93068 | FQ36: 3091934.263 | FR36: 2067374.004 | FS36: 38475.11363 | FT36: 1845795.426 | FU36: 666455.7467 | FV36: 449184.6822 | FW36: 1910520.249 | FX36: 0.2057511791 | FY36: 418668.0613 | FZ36: 394494.1358 | GA36: 661256.0789 | GB36: 1056414.861 | GC36: 504736.017 | GD36: 171383.4021 | GE36: 364388.0815 | GF36: 2682175.512 | GG36: 2710689.976 | GH36: 721720.5615 | GI36: 6681814.268 | GJ36: 639607.4291 | GK36: 1502038.202 | GL36: 942431.2441 | GM36: 1190736.988 | GN36: 805590.278 | GO36: 665493.5646 | GP36: 3110819.594 | GQ36: 765082.8811 | GR36: 545086.3487 | GS36: 815358.3514 | GT36: 3093313.275 | GU36: 3343090.384 | GV36: 1709154.673 | GW36: 175929821.3 | GX36: 18357405.28 | GY36: 20678930.04 | GZ36: 123585361.6 | HA36: 29528810.61 | HB36: 6467789.039 | HC36: 135305.9477 | HD36: 5114624.968 | HE36: 4826390.056 | HF36: 5761.076959 | HG36: 3093881.676 | HH36: 2539244.278 | HI36: 6588214.775 | HJ36: 342884.4179 | HK36: 117474.9409 | HL36: 15495662.89 | HM36: 4673786.216 | HN36: 554271.3029 | HO36: 574923.0503 | HP36: 425032.9543 | HQ36: 576615.3785 | HR36: 541045.346 | HS36: 1686726.808 | HT36: 374801.8855 | HU36: 392569.6428 | HV36: 3144561.869 | HW36: 125198.9744 | HX36: 1358558.206 | HY36: 972886.6065 | HZ36: 1116281.568 | IA36: 620328.4458 | IB36: 1180950.548 | IC36: 2020022.486 | ID36: 12451543.67 | IE36: 628833.9442 | IF36: 1825636.68 | IG36: 788245.5672 | IH36: 614484.7909 | II36: 40.03507129 | IJ36: 218942.984 | IK36: 1357478.166 | IL36: 964007.4391 | IM36: 7172516.911 | IN36: 2313196179
A37: =+MATCH(B37,RUT[EMPRESA],0) -> 240 | B37: PANGUIPULLI | C37: 484285503.9 | D37: 484285503.9 | F37: =IFERROR(INDEX($B$9:$B$511,MATCH(0,INDEX(COUNTIF($F$8:F36,$B$9:$B$511),0,0),0)),"") -> PANGUIPULLI | H37: 484285503.9 | J37: JAVIERA | K37: 59106311.35 | L37: 36619822.41 | M37: 568038.7146 | N37: 120062356.4 | O37: 19531428.12 | P37: 4535331.716 | Q37: 1432453.822 | R37: 59862.88136 | S37: 85299.55742 | T37: 388017.4573 | U37: 193423.0039 | V37: 919901.9829 | W37: 170166.1751 | X37: 1241919.406 | Y37: 266483.2322 | Z37: 149889.6505 | AA37: 809461.1667 | AB37: 802968.6462 | AC37: 4935771.65 | AD37: 254544.9219 | AE37: 525.4220173 | AF37: 139653.4239 | AG37: 23111.64003 | AH37: 174276.3581 | AI37: 889169.7922 | AJ37: 107170.617 | AK37: 671833.9409 | AL37: 181704.9015 | AM37: 1115007.154 | AN37: 3464156.569 | AO37: 2980430.09 | AP37: 74368.30428 | AQ37: 200323.5133 | AR37: 12411804.66 | AS37: 1090485.45 | AT37: 115580.5305 | AU37: 15077223.2 | AV37: 175257.8769 | AW37: 1464079.668 | AX37: 1213940.865 | AY37: 448688.0488 | AZ37: 362816.9729 | BA37: 754665.6931 | BB37: 5613.209495 | BC37: 21205.27237 | BD37: 822933.8986 | BE37: 3824.720935 | BF37: 2470696.892 | BG37: 5091.91607 | BH37: 47760.13151 | BI37: 2646137.997 | BJ37: 644897.3524 | BK37: 43297.11791 | BL37: 31537.27382 | BM37: 16554785.95 | BN37: 158101.9687 | BO37: 3996066.071 | BP37: 1806092.304 | BQ37: 1091743.888 | BR37: 3128.198803 | BS37: 533895.1855 | BT37: 107543.9303 | BU37: 111315.7045 | BV37: 2167200.647 | BW37: 130051.9528 | BX37: 120321.2117 | BY37: 114796.1851 | BZ37: 2305112.326 | CA37: 6333626.685 | CB37: 680878.642 | CC37: 100398.1139 | CD37: 846171.2667 | CE37: 3038118.943 | CF37: 3008242.811 | CG37: 955700.3353 | CH37: 41504.39186 | CI37: 732459.1106 | CJ37: 77352.62037 | CK37: 300837.2308 | CL37: 82533.23021 | CM37: 864038.6957 | CN37: 1160759.792 | CO37: 67997.83879 | CP37: 335659.7747 | CQ37: 174065.0354 | CR37: 64542.60132 | CS37: 148004.4003 | CT37: 236505.0524 | CU37: 39919.2151 | CV37: 1186390.938 | CW37: 881574.8292 | CX37: 118038.8487 | CY37: 94820.62217 | CZ37: 312232.6652 | DA37: 69473.28481 | DB37: 36946.78874 | DC37: 855308.8336 | DD37: 41940.06795 | DE37: 806041.7853 | DF37: 17260.51167 | DG37: 1592440.222 | DH37: 8541.566242 | DI37: 202201.7847 | DJ37: 10619.44538 | DK37: 192997.5065 | DL37: 537488.8096 | DM37: 1640408.616 | DN37: 26355.27187 | DO37: 372059.5719 | DP37: 135946.1746 | DQ37: 140206.0743 | DR37: 60497.3256 | DS37: 135438.7867 | DT37: 396710.2479 | DU37: 802466.2366 | DV37: 551969.0284 | DW37: 312343.3889 | DX37: 174736.6849 | DY37: 3020679.199 | DZ37: 89018.86321 | EA37: 230798.2934 | EB37: 419693.3576 | EC37: 384576.6885 | ED37: 3173904.247 | EE37: 7584.560467 | EF37: 4011.102244 | EG37: 148796.244 | EH37: 165094.837 | EI37: 284574.0076 | EJ37: 1080749.806 | EK37: 910940.0574 | EL37: 113183.9653 | EM37: 6271.124312 | EN37: 74872.83844 | EO37: 142822.3624 | EP37: 145255.1833 | EQ37: 136395.9858 | ER37: 351318.8241 | ES37: 146520.9267 | ET37: 364900.0861 | EU37: 117182.7934 | EV37: 105018.3378 | EW37: 92224.92849 | EX37: 436401.2783 | EY37: 166529.0985 | EZ37: 91370.64177 | FA37: 111584.3234 | FB37: 128228.4419 | FC37: 115712.1839 | FD37: 150618.6677 | FE37: 1078435.544 | FF37: 90403.46613 | FG37: 101784.7579 | FH37: 98399.97739 | FI37: 101231.3048 | FJ37: 132654.0453 | FK37: 388525.0611 | FL37: 168145.7889 | FM37: 2607.333436 | FN37: 99378.40452 | FO37: 111934.3201 | FP37: 11039.94866 | FQ37: 645441.8988 | FR37: 431564.7389 | FS37: 8031.687703 | FT37: 385310.1661 | FU37: 139122.7711 | FV37: 93767.39269 | FW37: 398821.486 | FX37: 0.0429506 | FY37: 87397.04195 | FZ37: 82350.73014 | GA37: 138037.3394 | GB37: 220526.8146 | GC37: 105363.745 | GD37: 35776.31963 | GE37: 76066.08525 | GF37: 559904.6772 | GG37: 565857.0774 | GH37: 150659.3123 | GI37: 1394830.071 | GJ37: 133518.1794 | GK37: 313550.7767 | GL37: 196732.7116 | GM37: 248566.5855 | GN37: 168167.1325 | GO37: 138921.9154 | GP37: 649384.2155 | GQ37: 159711.2052 | GR37: 113786.8849 | GS37: 170206.2197 | GT37: 645729.7679 | GU37: 697870.7897 | GV37: 356786.3816 | GW37: 36725385.56 | GX37: 3832112.041 | GY37: 4316730.802 | GZ37: 25798469.07 | HA37: 6164145.151 | HB37: 1350152.262 | HC37: 28245.14379 | HD37: 1067678.99 | HE37: 1007509.894 | HF37: 1202.625973 | HG37: 645848.4216 | HH37: 530067.7535 | HI37: 1375291.159 | HJ37: 71577.19116 | HK37: 24522.91753 | HL37: 3234722.742 | HM37: 975653.8121 | HN37: 115704.2459 | HO37: 120015.3023 | HP37: 88725.71464 | HQ37: 120368.5762 | HR37: 112943.3247 | HS37: 352104.5602 | HT37: 78239.96893 | HU37: 81948.99184 | HV37: 656427.9223 | HW37: 26135.31108 | HX37: 283599.2985 | HY37: 203090.2746 | HZ37: 233024.0018 | IA37: 129493.6877 | IB37: 246523.6643 | IC37: 421680.1 | ID37: 2599262.244 | IE37: 131269.2122 | IF37: 381102.0239 | IG37: 164546.4206 | IH37: 128273.8236 | II37: 8.357329178 | IJ37: 45704.39191 | IK37: 283373.8399 | IL37: 201236.7467 | IM37: 1497264.347 | IN37: 482880167.2
A38: =+MATCH(B38,RUT[EMPRESA],0) -> 171 | B38: HIDROPALOMA | C38: 24975307.72 | D38: 24975307.72 | F38: =IFERROR(INDEX($B$9:$B$511,MATCH(0,INDEX(COUNTIF($F$8:F37,$B$9:$B$511),0,0),0)),"") -> HIDROPALOMA | H38: 24975307.72 | J38: LOS_GUINDOS | K38: 61719.0753 | L38: 38238.58273 | M38: 593.1485724 | N38: 125369.6508 | O38: 20394.80481 | P38: 4735.81371 | Q38: 1495.774703 | R38: 62.50908909 | S38: 89.07018027 | T38: 405.1695685 | U38: 201.9731678 | V38: 960.5657746 | W38: 177.6882829 | X38: 1296.817811 | Y38: 278.2629857 | Z38: 156.5154451 | AA38: 845.2429793 | AB38: 838.4634602 | AC38: 5153.954885 | AD38: 265.7969487 | AE38: 0.548648026 | AF38: 145.8267314 | AG38: 24.13327813 | AH38: 181.9801544 | AI38: 928.4750833 | AJ38: 111.9080388 | AK38: 701.532013 | AL38: 189.7370728 | AM38: 1164.295469 | AN38: 3617.28782 | AO38: 3112.178462 | AP38: 77.65571673 | AQ38: 209.1787107 | AR38: 12960.46207 | AS38: 1138.689796 | AT38: 120.6897081 | AU38: 15743.70406 | AV38: 183.0050608 | AW38: 1528.798553 | AX38: 1267.602493 | AY38: 468.5220721 | AZ38: 378.8551097 | BA38: 788.0253 | BB38: 5.86133852 | BC38: 22.14264048 | BD38: 859.3112663 | BE38: 3.993790747 | BF38: 2579.912771 | BG38: 5.317001588 | BH38: 49.87134344 | BI38: 2763.10916 | BJ38: 673.4047065 | BK38: 45.21104463 | BL38: 32.93136271 | BM38: 17286.58171 | BN38: 165.0907845 | BO38: 4172.710106 | BP38: 1885.92968 | BQ38: 1140.003863 | BR38: 3.266479214 | BS38: 557.4957462 | BT38: 112.2978542 | BU38: 116.2363577 | BV38: 2263.000632 | BW38: 135.8008321 | BX38: 125.6399486 | BY38: 119.8706911 | BZ38: 2407.008625 | CA38: 6613.601379 | CB38: 710.9765305 | CC38: 104.8361607 | CD38: 883.5758302 | CE38: 3172.41742 | CF38: 3141.220629 | CG38: 997.9465746 | CH38: 43.33907205 | CI38: 764.837087 | CJ38: 80.77195297 | CK38: 314.1355851 | CL38: 86.18156899 | CM38: 902.2330796 | CN38: 1212.070579 | CO38: 71.00364811 | CP38: 350.4974415 | CQ38: 181.7594904 | CR38: 67.39567365 | CS38: 154.5468584 | CT38: 246.959636 | CU38: 41.68382337 | CV38: 1238.834736 | CW38: 920.5443889 | CX38: 123.256695 | CY38: 99.01211877 | CZ38: 326.0347488 | DA38: 72.54431546 | DB38: 38.58000244 | DC38: 893.1173186 | DD38: 43.79400698 | DE38: 841.6724458 | DF38: 18.02350367 | DG38: 1662.833219 | DH38: 8.919141763 | DI38: 211.14001 | DJ38: 11.08887247 | DK38: 201.5288615 | DL38: 561.2482246 | DM38: 1712.922031 | DN38: 27.52029304 | DO38: 388.506273 | DP38: 141.955605 | DQ38: 146.4038113 | DR38: 63.17157861 | DS38: 141.4257882 | DT38: 414.2466194 | DU38: 837.9388418 | DV38: 576.3685341 | DW38: 326.150367 | DX38: 182.4608297 | DY38: 3154.206762 | DZ38: 92.95389604 | EA38: 241.0006127 | EB38: 438.2456856 | EC38: 401.5767022 | ED38: 3314.205044 | EE38: 7.919832043 | EF38: 4.188410945 | EG38: 155.3737051 | EH38: 172.392769 | EI38: 297.1534545 | EJ38: 1128.523792 | EK38: 951.2076919 | EL38: 118.187204 | EM38: 6.548336121 | EN38: 78.18255356 | EO38: 149.1357511 | EP38: 151.6761137 | EQ38: 142.4252999 | ER38: 366.8486912 | ES38: 152.9978086 | ET38: 381.0303058 | EU38: 122.3627982 | EV38: 109.6606191 | EW38: 96.30168378 | EX38: 455.6921713 | EY38: 173.8904312 | EZ38: 95.40963376 | FA38: 116.5168507 | FB38: 133.8967139 | FC38: 120.8271812 | FD38: 157.2766881 | FE38: 1126.10723 | FF38: 94.39970463 | FG38: 106.2841005 | FH38: 102.7496975 | FI38: 105.7061823 | FJ38: 138.5179488 | FK38: 405.6996106 | FL38: 175.5785866 | FM38: 2.722589263 | FN38: 103.7713755 | FO38: 116.8823188 | FP38: 11.52796388 | FQ38: 673.9733243 | FR38: 450.6418351 | FS38: 8.386724307 | FT38: 402.3426029 | FU38: 145.2726213 | FV38: 97.91233182 | FW38: 416.4511836 | FX38: 4.484920907e-05 | FY38: 91.26038302 | FZ38: 85.9910016 | GA38: 144.1392086 | GB38: 230.2750885 | GC38: 110.0212949 | GD38: 37.35779335 | GE38: 79.42854724 | GF38: 584.6549741 | GG38: 590.870497 | GH38: 157.3191293 | GI38: 1456.487814 | GJ38: 139.4202815 | GK38: 327.4111267 | GL38: 205.4291795 | GM38: 259.5543429 | GN38: 175.6008736 | GO38: 145.0628868 | GP38: 678.0899091 | GQ38: 166.7711565 | GR38: 118.8167753 | GS38: 177.7300977 | GT38: 674.2739186 | GU38: 728.7198073 | GV38: 372.5579392 | GW38: 38348.81224 | GX38: 4001.508573 | GY38: 4507.549656 | GZ38: 26938.87706 | HA38: 6436.628001 | HB38: 1409.835045 | HC38: 29.49370577 | HD38: 1114.875188 | HE38: 1052.046348 | HF38: 1.255787433 | HG38: 674.3978173 | HH38: 553.4991246 | HI38: 1436.085193 | HJ38: 74.7412239 | HK38: 25.60694043 | HL38: 3377.711989 | HM38: 1018.782085 | HN38: 120.8188923 | HO38: 125.3205167 | HP38: 92.647789 | HQ38: 125.6894069 | HR38: 117.935926 | HS38: 367.6691603 | HT38: 81.69852632 | HU38: 85.57150467 | HV38: 685.4449793 | HW38: 27.290609 | HX38: 296.135659 | HY38: 212.0677753 | HZ38: 243.3247073 | IA38: 135.2178893 | IB38: 257.4211154 | IC38: 440.3202508 | ID38: 2714.161289 | IE38: 137.0718999 | IF38: 397.9484419 | IG38: 171.8201101 | IH38: 133.9441017 | II38: 0.008726760595 | IJ38: 47.72473093 | IK38: 295.9002341 | IL38: 210.1323131 | IM38: 1563.450143 | IN38: 504225.6354
A39: =+MATCH(B39,RUT[EMPRESA],0) -> 106 | B39: EMELDA | C39: -20472654.56 | D39: -20472654.56 | F39: =IFERROR(INDEX($B$9:$B$511,MATCH(0,INDEX(COUNTIF($F$8:F38,$B$9:$B$511),0,0),0)),"") -> EMELDA | G39: -20472654.56 | J39: ERNC1 | K39: =$IN39*K$70/$IN$70 -> 15901094.8 | L39: 9851659.733 | M39: 152816.8015 | N39: 32299814.8 | O39: 5254448.856 | P39: 1220119.102 | Q39: 385366.3593 | R39: 16104.63129 | S39: 22947.74141 | T39: 104386.5237 | U39: =$IN39*U$70/$IN$70 -> 52035.68706 | V39: 247476.9326 | W39: 45779.01105 | X39: 334107.7754 | Y39: 71690.73893 | Z39: 40324.11239 | AA39: 217765.5558 | AB39: 216018.9034 | AC39: 1327847.587 | AD39: 68479.0311 | AE39: =$IN39*AE$70/$IN$70 -> 141.3518305 | AF39: 37570.30817 | AG39: 6217.616537 | AH39: 46884.75439 | AI39: 239209.195 | AJ39: 28831.6104 | AK39: 180740.3463 | AL39: 48883.22072 | AM39: 299965.1652 | AN39: 931945.857 | AO39: =$IN39*AO$70/$IN$70 -> 801811.1824 | AP39: 20006.95745 | AQ39: 53892.09886 | AR39: 3339089.82 | AS39: 293368.2059 | AT39: 31094.09012 | AU39: 4056154.916 | AV39: 47148.80781 | AW39: 393874.5128 | AX39: 326580.8392 | AY39: =$IN39*AY$70/$IN$70 -> 120708.4495 | AZ39: 97606.95513 | BA39: 203024.1856 | BB39: 1510.095525 | BC39: 5704.755355 | BD39: 221390.062 | BE39: 1028.946804 | BF39: 664680.0416 | BG39: 1369.854391 | BH39: 12848.68504 | BI39: =$IN39*BI$70/$IN$70 -> 711878.1425 | BJ39: 173493.7217 | BK39: 11648.02134 | BL39: 8484.325433 | BM39: 4453656.72 | BN39: 42533.43398 | BO39: 1075042.985 | BP39: 485884.5743 | BQ39: 293706.7576 | BR39: 841.5647089 | BS39: =$IN39*BS$70/$IN$70 -> 143631.3274 | BT39: 28932.04112 | BU39: 29946.74392 | BV39: 583031.8649 | BW39: 34987.26924 | BX39: 32369.45343 | BY39: 30883.08134 | BZ39: 620133.5995 | CA39: 1703905.996 | CB39: 183173.6 | CC39: =$IN39*CC$70/$IN$70 -> 27009.63553 | CD39: 227641.5025 | CE39: 817330.9449 | CF39: 809293.5087 | CG39: 257107.5961 | CH39: 11165.73263 | CI39: 197050.0524 | CJ39: 20809.81406 | CK39: 80932.83468 | CL39: 22203.52932 | CM39: =$IN39*CM$70/$IN$70 -> 232448.2935 | CN39: 312273.7837 | CO39: 18293.14088 | CP39: 90300.98096 | CQ39: 46827.90324 | CR39: 17363.59449 | CS39: 39816.93234 | CT39: 63625.84929 | CU39: 10739.27993 | CV39: 319169.2111 | CW39: =$IN39*CW$70/$IN$70 -> 237165.9575 | CX39: 31755.43998 | CY39: 25509.14898 | CZ39: 83998.49515 | DA39: 18690.07323 | DB39: 9939.621957 | DC39: 230099.7395 | DD39: 11282.94054 | DE39: 216845.6556 | DF39: 4643.514814 | DG39: =$IN39*DG$70/$IN$70 -> 428406.7529 | DH39: 2297.897659 | DI39: 54397.40143 | DJ39: 2856.899776 | DK39: 51921.21747 | DL39: 144598.1033 | DM39: 441311.466 | DN39: 7090.235659 | DO39: 100093.4484 | DP39: 36572.96422 | DQ39: =$IN39*DQ$70/$IN$70 -> 37718.98511 | DR39: 16275.31286 | DS39: 36436.464 | DT39: 106725.1045 | DU39: 215883.7425 | DV39: 148493.6489 | DW39: 84028.28263 | DX39: 47008.59395 | DY39: 812639.2121 | DZ39: 23948.32887 | EA39: =$IN39*EA$70/$IN$70 -> 62090.58658 | EB39: 112908.1432 | EC39: 103460.8697 | ED39: 853860.631 | EE39: 2040.438867 | EF39: 1079.088097 | EG39: 40029.95834 | EH39: 44414.69267 | EI39: 76557.61572 | EJ39: 290749.0709 | EK39: =$IN39*EK$70/$IN$70 -> 245065.9477 | EL39: 30449.35339 | EM39: 1687.091275 | EN39: 20142.68992 | EO39: 38422.83289 | EP39: 39077.32334 | EQ39: 36693.97482 | ER39: 94513.66187 | ES39: 39417.84036 | ET39: 98167.36534 | EU39: =$IN39*EU$70/$IN$70 -> 31525.13942 | EV39: 28252.59277 | EW39: 24810.84163 | EX39: 117402.997 | EY39: 44800.54533 | EZ39: 24581.01687 | FA39: 30019.00918 | FB39: 34496.69863 | FC39: 31129.50821 | FD39: 40520.23648 | FE39: =$IN39*FE$70/$IN$70 -> 290126.476 | FF39: 24320.82212 | FG39: 27382.67786 | FH39: 26472.08619 | FI39: 27233.78496 | FJ39: 35687.29803 | FK39: 104523.082 | FL39: 45235.47601 | FM39: 701.4387326 | FN39: 26735.30787 | FO39: =$IN39*FO$70/$IN$70 -> 30113.16716 | FP39: 2970.025808 | FQ39: 173640.2185 | FR39: 116101.8454 | FS39: 2160.727418 | FT39: 103658.1938 | FU39: 37427.54912 | FV39: 25225.80357 | FW39: 107293.0811 | FX39: 0.01155479925 | FY39: =$IN39*FY$70/$IN$70 -> 23512.01787 | FZ39: 22154.43218 | GA39: 37135.5405 | GB39: 59327.29862 | GC39: 28345.51605 | GD39: 9624.736122 | GE39: 20463.70353 | GF39: 150628.5394 | GG39: 152229.8858 | GH39: 40531.17089 | GI39: =$IN39*GI$70/$IN$70 -> 375244.6174 | GJ39: 35919.772 | GK39: 84353.10052 | GL39: 52926.08226 | GM39: 66870.70718 | GN39: 45241.21796 | GO39: 37373.51384 | GP39: 174700.8015 | GQ39: 42966.35936 | GR39: 30611.55402 | GS39: =$IN39*GS$70/$IN$70 -> 45789.78408 | GT39: 173717.6626 | GU39: 187744.9181 | GV39: 95984.57331 | GW39: 9880058.893 | GX39: 1030935.199 | GY39: 1161309.92 | GZ39: 6940441.603 | HA39: 1658311.171 | HB39: 363225.155 | HC39: =$IN39*HC$70/$IN$70 -> 7598.65907 | HD39: 287232.6905 | HE39: 271045.6797 | HF39: 323.5368468 | HG39: 173749.5834 | HH39: 142601.6512 | HI39: 369988.155 | HJ39: 19256.07733 | HK39: 6597.285932 | HL39: 870222.3464 | HM39: =$IN39*HM$70/$IN$70 -> 262475.5868 | HN39: 31127.37269 | HO39: 32287.15606 | HP39: 23869.46448 | HQ39: 32382.19568 | HR39: 30384.61497 | HS39: 94725.04478 | HT39: 21048.5333 | HU39: 22046.3544 | HV39: 176595.7371 | HW39: =$IN39*HW$70/$IN$70 -> 7031.060634 | HX39: 76295.3943 | HY39: 54636.42774 | HZ39: 62689.3585 | IA39: 34837.08181 | IB39: 66321.10963 | IC39: 113442.6272 | ID39: 699267.3777 | IE39: 35314.74287 | IF39: 102526.097 | IG39: =$IN39*IG$70/$IN$70 -> 44267.15476 | IH39: 34508.90747 | II39: 2.248333223 | IJ39: 12295.63902 | IK39: 76234.74022 | IL39: 54137.78177 | IM39: 402802.0319 | IN39: 129906995.3
A40: =+MATCH(B40,RUT[EMPRESA],0) -> 300 | B40: SWO | C40: 51553.08722 | D40: 51553.08722 | F40: =IFERROR(INDEX($B$9:$B$511,MATCH(0,INDEX(COUNTIF($F$8:F39,$B$9:$B$511),0,0),0)),"") -> SWO | H40: 51553.08722 | J40: ANDES_GENERACION | K40: 355198.1847 | L40: 220066.0834 | M40: 3413.617186 | N40: 721512.3065 | O40: 117373.7229 | P40: 27254.98437 | Q40: 8608.302321 | R40: 359.7447768 | S40: 512.605968 | T40: 2331.783075 | U40: 1162.371637 | V40: 5528.132392 | W40: 1022.610193 | X40: 7463.289592 | Y40: 1601.425603 | Z40: 900.7588284 | AA40: 4864.440538 | AB40: 4825.423867 | AC40: 29661.42007 | AD40: 1529.682569 | AE40: 3.157513004 | AF40: 839.2444314 | AG40: 138.8889341 | AH40: 1047.310255 | AI40: 5343.447913 | AJ40: 644.0396592 | AK40: 4037.372502 | AL40: 1091.951937 | AM40: 6700.612978 | AN40: 20817.77896 | AO40: 17910.83445 | AP40: 446.914823 | AQ40: 1203.840108 | AR40: 74588.48951 | AS40: 6553.250296 | AT40: 694.5788644 | AU40: 90606.26839 | AV40: 1053.208673 | AW40: 8798.357203 | AX40: 7295.153115 | AY40: 2696.38177 | AZ40: 2180.341273 | BA40: 4535.148245 | BB40: 33.73246912 | BC40: 127.4326562 | BD40: 4945.404648 | BE40: 22.98458323 | BF40: 14847.60309 | BG40: 30.59976681 | BH40: 287.013546 | BI40: 15901.91287 | BJ40: 3875.497618 | BK40: 260.1931558 | BL40: 189.5226103 | BM40: 99485.65192 | BN40: 950.1105888 | BO40: 24014.27837 | BP40: 10853.67523 | BQ40: 6560.812853 | BR40: 18.79884754 | BS40: 3208.432337 | BT40: 646.2830778 | BU40: 668.9494788 | BV40: 13023.74853 | BW40: 781.5445843 | BX40: 723.0678921 | BY40: 689.8653564 | BZ40: 13852.52598 | CA40: 38061.80168 | CB40: 4091.726451 | CC40: 603.3404385 | CD40: 5085.049142 | CE40: 18257.51444 | CF40: 18077.97443 | CG40: 5743.261868 | CH40: 249.4198049 | CI40: 4401.698236 | CJ40: 464.8490103 | CK40: 1807.875264 | CL40: 495.9817805 | CM40: 5192.423096 | CN40: 6975.562532 | CO40: 408.6316393 | CP40: 2017.140639 | CQ40: 1046.040316 | CR40: 387.8674595 | CS40: 889.4294555 | CT40: 1421.272337 | CU40: 239.8937171 | CV40: 7129.592385 | CW40: 5297.806136 | CX40: 709.352078 | CY40: 569.8226144 | CZ40: 1876.355897 | DA40: 417.4983023 | DB40: 222.0309809 | DC40: 5139.961166 | DD40: 252.0379915 | DE40: 4843.891834 | DF40: 103.7266964 | DG40: 9569.737359 | DH40: 51.33036987 | DI40: 1215.127542 | DJ40: 63.81734258 | DK40: 1159.814618 | DL40: 3230.028149 | DM40: 9858.002458 | DN40: 158.3814742 | DO40: 2235.884485 | DP40: 816.9657916 | DQ40: 842.5655725 | DR40: 363.5574567 | DS40: 813.9166537 | DT40: 2384.022225 | DU40: 4822.404646 | DV40: 3317.046732 | DW40: 1877.021289 | DX40: 1050.07658 | DY40: 18152.71065 | DZ40: 534.957061 | EA40: 1386.977684 | EB40: 2522.138759 | EC40: 2311.105844 | ED40: 19073.51349 | EE40: 45.57926299 | EF40: 24.10463795 | EG40: 894.1880239 | EH40: 992.1340897 | EI40: 1710.141753 | EJ40: 6494.744135 | EK40: 5474.275882 | EL40: 680.1767543 | EM40: 37.68619493 | EN40: 449.9468108 | EO40: 858.2881032 | EP40: 872.9080914 | EQ40: 819.6689229 | ER40: 2111.24338 | ES40: 880.5145507 | ET40: 2192.8597 | EU40: 704.2076307 | EV40: 631.1055806 | EW40: 554.2238456 | EX40: 2622.544671 | EY40: 1000.753255 | EZ40: 549.0900268 | FA40: 670.5637382 | FB40: 770.5862324 | FC40: 695.3700326 | FD40: 905.1398426 | FE40: 6480.836628 | FF40: 543.2778044 | FG40: 611.6734472 | FH40: 591.3326773 | FI40: 608.347482 | FJ40: 797.1818065 | FK40: 2334.83351 | FL40: 1010.468723 | FM40: 15.66871764 | FN40: 597.2125154 | FO40: 672.6670363 | FP40: 66.34434856 | FQ40: 3878.770058 | FR40: 2593.479585 | FS40: 48.26626508 | FT40: 2315.513663 | FU40: 836.0554838 | FV40: 563.4932531 | FW40: 2396.709667 | FX40: 0.0002581107635 | FY40: 525.2107589 | FZ40: 494.88505 | GA40: 829.5326039 | GB40: 1325.25144 | GC40: 633.1812982 | GD40: 214.9970705 | GE40: 457.1176035 | GF40: 3364.735852 | GG40: 3400.506681 | GH40: 905.3840951 | GI40: 8382.203151 | GJ40: 802.3748031 | GK40: 1884.277061 | GL40: 1182.261258 | GM40: 1493.755877 | GN40: 1010.596987 | GO40: 834.8484454 | GP40: 3902.461331 | GQ40: 959.7812629 | GR40: 683.7999871 | GS40: 1022.850841 | GT40: 3880.500002 | GU40: 4193.84042 | GV40: 2144.100556 | GW40: 220700.463 | GX40: 23028.99994 | GY40: 25941.30659 | GZ40: 155035.379 | HA40: 37043.30582 | HB40: 8113.712756 | HC40: 169.7386213 | HD40: 6416.195334 | HE40: 6054.610366 | HF40: 7.227156504 | HG40: 3881.213049 | HH40: 3185.431462 | HI40: 8264.784448 | HJ40: 430.1416851 | HK40: 147.3699778 | HL40: 19439.001 | HM40: 5863.171884 | HN40: 695.3223294 | HO40: 721.2295359 | HP40: 533.1953907 | HQ40: 723.3525281 | HR40: 678.7306294 | HS40: 2115.965245 | HT40: 470.1815136 | HU40: 492.4708118 | HV40: 3944.790345 | HW40: 157.0596242 | HX40: 1704.284258 | HY40: 1220.466905 | HZ40: 1400.353034 | IA40: 778.1897018 | IB40: 1481.478983 | IC40: 2534.078047 | ID40: 15620.21398 | IE40: 788.8596805 | IF40: 2290.224918 | IG40: 988.8383922 | IH40: 770.858953 | II40: 0.05022320095 | IJ40: 274.6596203 | IK40: 1702.929369 | IL40: 1209.328166 | IM40: 8997.77986 | IN40: 2901858.615
A41: =+MATCH(B41,RUT[EMPRESA],0) -> 131 | B41: GEN. INDUSTRIAL | C41: 0 | D41: 0 | F41: =IFERROR(INDEX($B$9:$B$511,MATCH(0,INDEX(COUNTIF($F$8:F40,$B$9:$B$511),0,0),0)),"") -> GEN. INDUSTRIAL | J41: CAREN | K41: 2450401.2 | L41: 1518167.091 | M41: 23549.47748 | N41: 4977487.775 | O41: 809724.61 | P41: 188023.6141 | Q41: 59385.98577 | R41: 2481.766718 | S41: 3536.308274 | T41: 16086.24225 | U41: 8018.83843 | V41: 38136.85664 | W41: 7054.667937 | X41: 51486.90101 | Y41: 11047.73445 | Z41: 6214.053476 | AA41: 33558.25408 | AB41: 33289.09027 | AC41: 204624.8615 | AD41: 10552.80169 | AE41: 21.78269481 | AF41: 5789.684888 | AG41: 958.1513236 | AH41: 7225.06594 | AI41: 36862.77618 | AJ41: 4443.028208 | AK41: 27852.57035 | AL41: 7533.034942 | AM41: 46225.43355 | AN41: 143615.347 | AO41: 123561.2459 | AP41: 3083.125607 | AQ41: 8304.916449 | AR41: 514562.6642 | AS41: 45208.82449 | AT41: 4791.68238 | AU41: 625064.3117 | AV41: 7265.757277 | AW41: 60697.11496 | AX41: 50326.98003 | AY41: 18601.49463 | AZ41: 15041.49262 | BA41: 31286.56953 | BB41: 232.7097558 | BC41: 879.1180448 | BD41: 34116.80016 | BE41: 158.5634521 | BF41: 102428.9706 | BG41: 211.0982222 | BH41: 1980.0167 | BI41: 109702.3241 | BJ41: 26735.84614 | BK41: 1794.991216 | BL41: 1307.457222 | BM41: 686320.4019 | BN41: 6554.515838 | BO41: 165666.9968 | BP41: 74876.11131 | BQ41: 45260.99621 | BR41: 129.6873705 | BS41: 22133.97137 | BT41: 4458.504851 | BU41: 4614.873263 | BV41: 89846.7684 | BW41: 5391.631686 | BX41: 4988.219273 | BY41: 4759.165362 | BZ41: 95564.24485 | CA41: 262576.4673 | CB41: 28227.54124 | CC41: 4162.257012 | CD41: 35080.16386 | CE41: 125952.8827 | CF41: 124714.2923 | CG41: 39620.96762 | CH41: 1720.669236 | CI41: 30365.93965 | CJ41: 3206.847957 | CK41: 12471.9661 | CL41: 3421.623203 | CM41: 35820.90319 | CN41: 48122.22454 | CO41: 2819.021894 | CP41: 13915.62247 | CQ41: 7216.305027 | CR41: 2675.776311 | CS41: 6135.895675 | CT41: 9804.913401 | CU41: 1654.951736 | CV41: 49184.82833 | CW41: 36547.90783 | CX41: 4893.598161 | CY41: 3931.028025 | CZ41: 12944.39257 | DA41: 2880.19023 | DB41: 1531.722305 | DC41: 35458.98474 | DD41: 1738.731288 | DE41: 33416.495 | DF41: 715.5780415 | DG41: 66018.62543 | DH41: 354.1121699 | DI41: 8382.784925 | DJ41: 440.2558898 | DK41: 8001.19836 | DL41: 22282.95412 | DM41: 68007.27621 | DN41: 1092.624262 | DO41: 15424.66787 | DP41: 5635.991518 | DQ41: 5812.596401 | DR41: 2508.069204 | DS41: 5614.95647 | DT41: 16446.62381 | DU41: 33268.26161 | DV41: 22883.26811 | DW41: 12948.9829 | DX41: 7244.149947 | DY41: 125229.8742 | DZ41: 3690.501475 | EA41: 9568.325315 | EB41: 17399.44658 | EC41: 15943.5965 | ED41: 131582.205 | EE41: 314.437082 | EF41: 166.2903593 | EG41: 6168.723551 | EH41: 6844.422829 | EI41: 11797.73316 | EJ41: 44805.20878 | EK41: 37765.31742 | EL41: 4692.326727 | EM41: 259.9852738 | EN41: 3104.042343 | EO41: 5921.061224 | EP41: 6021.919951 | EQ41: 5654.639576 | ER41: 14564.80786 | ES41: 6074.394535 | ET41: 15127.85333 | EU41: 4858.108228 | EV41: 4353.800044 | EW41: 3823.416997 | EX41: 18092.11557 | EY41: 6903.883754 | EZ41: 3788.000386 | FA41: 4626.009534 | FB41: 5316.033443 | FC41: 4797.140402 | FD41: 6244.276723 | FE41: 44709.26524 | FF41: 3747.903681 | FG41: 4219.743833 | FH41: 4079.419222 | FI41: 4196.799039 | FJ41: 5499.507992 | FK41: 16107.28625 | FL41: 6970.907734 | FM41: 108.0935831 | FN41: 4119.982386 | FO41: 4640.51953 | FP41: 457.6889138 | FQ41: 26758.42168 | FR41: 17891.60463 | FS41: 332.9738692 | FT41: 15974.00467 | FU41: 5767.685335 | FV41: 3887.36374 | FW41: 16534.15051 | FX41: 0.001780625442 | FY41: 3623.264785 | FZ41: 3414.057202 | GA41: 5722.686027 | GB41: 9142.495256 | GC41: 4368.119771 | GD41: 1483.197556 | GE41: 3153.511399 | GF41: 23212.26044 | GG41: 23459.0322 | GH41: 6245.961745 | GI41: 57826.1983 | GJ41: 5535.332852 | GK41: 12999.0382 | GL41: 8156.05071 | GM41: 10304.95467 | GN41: 6971.792584 | GO41: 5759.358355 | GP41: 26921.86036 | GQ41: 6621.230795 | GR41: 4717.322276 | GS41: 7056.32809 | GT41: 26770.35603 | GU41: 28931.99358 | GV41: 14791.47924 | GW41: 1522543.478 | GX41: 158869.869 | GY41: 178960.9619 | GZ41: 1069540.598 | HA41: 255550.1829 | HB41: 55973.96702 | HC41: 1170.973668 | HD41: 44263.32516 | HE41: 41768.86355 | HF41: 49.85789268 | HG41: 26775.27511 | HH41: 21975.29552 | HI41: 57016.16339 | HJ41: 2967.412973 | HK41: 1016.659392 | HL41: 134103.5891 | HM41: 40448.18933 | HN41: 4796.811313 | HO41: 4975.537029 | HP41: 3678.348262 | HQ41: 4990.182888 | HR41: 4682.350363 | HS41: 14597.38253 | HT41: 3243.635229 | HU41: 3397.402127 | HV41: 27213.87499 | HW41: 1083.505233 | HX41: 11757.32414 | HY41: 8419.619518 | HZ41: 9660.597668 | IA41: 5368.487401 | IB41: 10220.26022 | IC41: 17481.812 | ID41: 107758.9715 | IE41: 5442.096247 | IF41: 15799.54552 | IG41: 6821.686843 | IH41: 5317.914858 | II41: 0.3464741578 | IJ41: 1894.79083 | IK41: 11747.97719 | IL41: 8342.776842 | IM41: 62072.86951 | IN41: 20019015.13
A42: =+MATCH(B42,RUT[EMPRESA],0) -> 230 | B42: NUEVA DEGAN | C42: 13702442.81 | D42: 13702442.81 | F42: =IFERROR(INDEX($B$9:$B$511,MATCH(0,INDEX(COUNTIF($F$8:F41,$B$9:$B$511),0,0),0)),"") -> NUEVA DEGAN | H42: 13702442.81 | J42: CHUNGUNGO | K42: 15071247.94 | L42: 9337520.995 | M42: 144841.5933 | N42: 30614151.02 | O42: 4980229.508 | P42: 1156443.487 | Q42: 365254.8472 | R42: 15264.16227 | S42: 21750.14393 | T42: 98938.79642 | U42: 49320.04694 | V42: 234561.5984 | W42: 43389.89454 | X42: 316671.348 | Y42: 67949.34032 | Z42: 38219.6763 | AA42: 206400.7999 | AB42: 204745.3018 | AC42: 1258549.834 | AD42: 64905.2452 | AE42: 133.9749566 | AF42: 35609.58771 | AG42: 5893.131364 | AH42: 44437.93131 | AI42: 226725.3377 | AJ42: 27326.94538 | AK42: 171307.8632 | AL42: 46332.10161 | AM42: 284310.5734 | AN42: 883309.4364 | AO42: 759966.2344 | AP42: 18962.8337 | AQ42: 51079.57626 | AR42: 3164829.292 | AS42: 278057.8965 | AT42: 29471.35074 | AU42: 3844472.172 | AV42: 44688.20429 | AW42: 373318.9769 | AX42: 309537.2278 | AY42: 114408.913 | AZ42: 92513.04019 | BA42: 192428.7528 | BB42: 1431.286611 | BC42: 5407.035397 | BD42: 209836.1502 | BE42: 975.2480946 | BF42: 629991.698 | BG42: 1298.364385 | BH42: 12178.13745 | BI42: 674726.6229 | BJ42: 164439.4257 | BK42: 11040.13403 | BL42: 8041.545182 | BM42: 4221229.139 | BN42: 40313.69775 | BO42: 1018938.607 | BP42: 460527.2143 | BQ42: 278378.7798 | BR42: 797.6451025 | BS42: 136135.491 | BT42: 27422.13482 | BU42: 28383.88227 | BV42: 552604.579 | BW42: 33161.3525 | BX42: 30680.15534 | BY42: 29271.35409 | BZ42: 587770.0471 | CA42: 1614982.495 | CB42: 173614.1302 | CC42: 25600.05579 | CD42: 215761.3404 | CE42: 774676.051 | CF42: 767058.0728 | CG42: 243689.6565 | CH42: 10583.01501 | CI42: 186766.3979 | CJ42: 19723.79081 | CK42: 76709.10928 | CL42: 21044.77081 | CM42: 220317.2744 | CN42: 295976.8293 | CO42: 17338.45785 | CP42: 85588.35044 | CQ42: 44384.04711 | CR42: 16457.42265 | CS42: 37738.96498 | CT42: 60305.3414 | CU42: 10178.81804 | CV42: 302512.3979 | CW42: 224788.7329 | CX42: 30098.18605 | CY42: 24177.87668 | CZ42: 79614.77896 | DA42: 17714.67508 | DB42: 9420.892643 | DC42: 218091.2868 | DD42: 10694.10607 | DE42: 205528.9075 | DF42: 4401.178912 | DG42: 406049.0473 | DH42: 2177.974902 | DI42: 51558.50808 | DJ42: 2707.803797 | DK42: 49211.55129 | DL42: 137051.8128 | DM42: 418280.2889 | DN42: 6720.21021 | DO42: 94869.76823 | DP42: 34664.29317 | DQ42: 35750.50549 | DR42: 15425.9363 | DS42: 34534.91663 | DT42: 101155.3313 | DU42: 204617.1947 | DV42: 140744.0575 | DW42: 79643.01189 | DX42: 44555.30792 | DY42: 770229.1705 | DZ42: 22698.5127 | EA42: 58850.20104 | EB42: 107015.6893 | EC42: 98061.45051 | ED42: 809299.3246 | EE42: 1933.952377 | EF42: 1022.772612 | EG42: 37940.87357 | EH42: 42096.77725 | EI42: 72562.22438 | EJ42: 275575.4489 | EK42: 232276.4381 | EL42: 28860.26155 | EM42: 1599.0453 | EN42: 19091.48256 | EO42: 36417.62084 | EP42: 37037.95472 | EQ42: 34778.98847 | ER42: 89581.17982 | ES42: 37360.70083 | ET42: 93044.20369 | EU42: 29879.90442 | EV42: 26778.14554 | EW42: 23516.01262 | EX42: 111275.9656 | EY42: 42462.49301 | EZ42: 23298.18196 | FA42: 28452.37616 | FB42: 32696.3838 | FC42: 29504.92043 | FD42: 38405.56506 | FE42: 274985.346 | FF42: 23051.56627 | FG42: 25953.62978 | FH42: 25090.56009 | FI42: 25812.50731 | FJ42: 33824.84816 | FK42: 99068.22797 | FL42: 42874.72552 | FM42: 664.8320253 | FN42: 25340.04475 | FO42: 28541.62022 | FP42: 2815.026005 | FQ42: 164578.2771 | FR42: 110042.7185 | FS42: 2047.963306 | FT42: 98248.47662 | FU42: 35474.27897 | FV42: 23909.31851 | FW42: 101693.6663 | FX42: 0.01095177701 | FY42: 22284.97192 | FZ42: 20998.23596 | GA42: 35197.5097 | GB42: 56231.12363 | GC42: 26866.21934 | GD42: 9122.440081 | GE42: 19395.74311 | GF42: 142767.5323 | GG42: 144285.3076 | GH42: 38415.92883 | GI42: 355661.3391 | GJ42: 34045.18977 | GK42: 79950.87817 | GL42: 50163.97417 | GM42: 63380.85654 | GN42: 42880.16781 | GO42: 35423.06369 | GP42: 165583.5104 | GQ42: 40724.0296 | GR42: 29013.99724 | GS42: 43400.10534 | GT42: 164651.6796 | GU42: 177946.8802 | GV42: 90975.32728 | GW42: 9364438.059 | GX42: 977132.719 | GY42: 1100703.44 | GZ42: 6578233.611 | HA42: 1571767.174 | HB42: 344269.1488 | HC42: 7202.100004 | HD42: 272242.5815 | HE42: 256900.339 | HF42: 306.6520954 | HG42: 164681.9345 | HH42: 135159.5516 | HI42: 350679.2011 | HJ42: 18251.14054 | HK42: 6252.986559 | HL42: 824807.1544 | HM42: 248777.5023 | HN42: 29502.89636 | HO42: 30602.15291 | HP42: 22623.76409 | HQ42: 30692.2326 | HR42: 28798.9017 | HS42: 89781.53106 | HT42: 19950.05176 | HU42: 20895.79854 | HV42: 167379.553 | HW42: 6664.123413 | HX42: 72313.68778 | HY42: 51785.06008 | HZ42: 59417.72422 | IA42: 33019.00305 | IB42: 62859.94141 | IC42: 107522.2797 | ID42: 662773.9891 | IE42: 33471.73593 | IF42: 97175.46168 | IG42: 41956.93905 | IH42: 32707.95548 | II42: 2.130997136 | IJ42: 11653.95381 | IK42: 72256.19912 | IL42: 51312.43746 | IM42: 381780.5864 | IN42: 123127404.9
A43: =+MATCH(B43,RUT[EMPRESA],0) -> 23 | B43: BARRICK | C43: 2267656.008 | D43: 2267656.008 | F43: =IFERROR(INDEX($B$9:$B$511,MATCH(0,INDEX(COUNTIF($F$8:F42,$B$9:$B$511),0,0),0)),"") -> BARRICK | H43: 2267656.008 | J43: SPVP4 | K43: 1396238.856 | L43: 865051.765 | M43: 13418.49469 | N43: 2836173.047 | O43: 461381.1662 | P43: 107135.8747 | Q43: 33838.14081 | R43: 1414.110931 | S43: 2014.988819 | T43: 9165.942492 | U43: 4569.134963 | V43: 21730.38484 | W43: 4019.750517 | X43: 29337.2415 | Y43: 6295.000225 | Z43: 3540.768311 | AA43: 19121.49663 | AB43: 18968.12707 | AC43: 116595.2672 | AD43: 6012.987488 | AE43: 12.41178175 | AF43: 3298.963045 | AG43: 545.9547229 | AH43: 4116.843317 | AI43: 21004.41366 | AJ43: 2531.637931 | AK43: 15870.39745 | AL43: 4292.324086 | AM43: 26339.2568 | AN43: 81832.0395 | AO43: 70405.21062 | AP43: 1756.765288 | AQ43: 4732.142248 | AR43: 293197.8591 | AS43: 25759.99285 | AT43: 2730.301114 | AU43: 356161.7092 | AV43: 4140.029245 | AW43: 34585.22236 | AX43: 28676.31841 | AY43: 10599.13356 | AZ43: 8570.644043 | BA43: 17827.09054 | BB43: 132.5980428 | BC43: 500.9215525 | BD43: 19439.75625 | BE43: 90.34947133 | BF43: 58364.03801 | BG43: 120.2837888 | BH43: 1128.21372 | BI43: 62508.39557 | BJ43: 15234.08788 | BK43: 1022.78618 | BL43: 744.9892595 | BM43: 391065.4357 | BN43: 3734.7638 | BO43: 94397.07186 | BP43: 42664.41594 | BQ43: 25789.7203 | BR43: 73.89587708 | BS43: 12611.93917 | BT43: 2540.456524 | BU43: 2629.555261 | BV43: 51194.69789 | BW43: 3072.15229 | BX43: 2842.287856 | BY43: 2711.772914 | BZ43: 54452.51656 | CA43: 149616.0981 | CB43: 16084.05591 | CC43: 2371.654474 | CD43: 19988.68098 | CE43: 71767.96556 | CF43: 71062.21662 | CG43: 22576.03143 | CH43: 980.4375081 | CI43: 17302.51554 | CJ43: 1827.262296 | CK43: 7106.527568 | CL43: 1949.641253 | CM43: 20410.75433 | CN43: 27420.0485 | CO43: 1606.278966 | CP43: 7929.123119 | CQ43: 4111.851347 | CR43: 1524.657617 | CS43: 3496.233988 | CT43: 5586.840666 | CU43: 942.9916697 | CV43: 28025.52025 | CW43: 20825.00165 | CX43: 2788.372736 | CY43: 2239.900173 | CZ43: 7375.716219 | DA43: 1641.13269 | DB43: 872.7755271 | DC43: 20204.53316 | DD43: 990.7292668 | DE43: 19040.72229 | DF43: 407.7364417 | DG43: 37617.41957 | DH43: 201.7731509 | DI43: 4776.511714 | DJ43: 250.8578514 | DK43: 4559.08365 | DL43: 12696.82955 | DM43: 38750.55299 | DN43: 622.5774171 | DO43: 8788.977341 | DP43: 3211.388548 | DQ43: 3312.018028 | DR43: 1429.098091 | DS43: 3199.402775 | DT43: 9371.28794 | DU43: 18956.25889 | DV43: 13038.88853 | DW43: 7378.33179 | DX43: 4127.717386 | DY43: 71355.9952 | DZ43: 2102.848121 | EA43: 5452.03275 | EB43: 9914.206456 | EC43: 9084.662929 | ED43: 74975.55395 | EE43: 179.1662817 | EF43: 94.75226386 | EG43: 3514.939315 | EH43: 3899.952833 | EI43: 6722.349572 | EJ43: 25530.01258 | EK43: 21518.68176 | EL43: 2673.688252 | EM43: 148.1396358 | EN43: 1768.683647 | EO43: 3373.821295 | EP43: 3431.290609 | EQ43: 3222.014213 | ER43: 8299.029019 | ES43: 3461.190632 | ET43: 8619.852385 | EU43: 2768.150569 | EV43: 2480.795714 | EW43: 2178.583399 | EX43: 10308.88932 | EY43: 3933.833674 | EZ43: 2158.40301 | FA43: 2635.900709 | FB43: 3029.076403 | FC43: 2733.411095 | FD43: 3557.98952 | FE43: 25475.34394 | FF43: 2135.555904 | FG43: 2404.410471 | FH43: 2324.453493 | FI43: 2391.336525 | FJ43: 3133.62022 | FK43: 9177.933362 | FL43: 3972.023945 | FM43: 61.5917348 | FN43: 2347.566388 | FO43: 2644.168506 | FP43: 260.7911902 | FQ43: 15246.95143 | FR43: 10194.63816 | FS43: 189.728545 | FT43: 9101.989505 | FU43: 3286.427698 | FV43: 2215.02026 | FW43: 9421.160662 | FX43: 0.00101460056 | FY43: 2064.536647 | FZ43: 1945.330145 | GA43: 3260.787087 | GB43: 5209.394738 | GC43: 2488.955095 | GD43: 845.1261203 | GE43: 1796.87112 | GF43: 13226.34839 | GG43: 13366.95897 | GH43: 3558.949646 | GI43: 32949.37375 | GJ43: 3154.033229 | GK43: 7406.853308 | GL43: 4647.318535 | GM43: 5871.764234 | GN43: 3972.528133 | GO43: 3281.682984 | GP43: 15340.07881 | GQ43: 3772.777989 | GR43: 2687.930719 | GS43: 4020.696472 | GT43: 15253.75162 | GU43: 16485.45292 | GV43: 8428.186396 | GW43: 867545.4304 | GX43: 90524.06775 | GY43: 101971.9745 | GZ43: 609424.3427 | HA43: 145612.5205 | HB43: 31893.97217 | HC43: 667.2209169 | HD43: 25221.24724 | HE43: 23799.90275 | HF43: 28.40903238 | HG43: 15256.55452 | HH43: 12521.52565 | HI43: 32487.81577 | HJ43: 1690.832218 | HK43: 579.2926262 | HL43: 76412.23886 | HM43: 23047.38244 | HN43: 2733.22358 | HO43: 2835.061512 | HP43: 2095.923218 | HQ43: 2843.406724 | HR43: 2668.003719 | HS43: 8317.59007 | HT43: 1848.223688 | HU43: 1935.840082 | HV43: 15506.46877 | HW43: 617.3813931 | HX43: 6699.324508 | HY43: 4797.500069 | HZ43: 5504.609546 | IA43: 3058.964674 | IB43: 5823.505327 | IC43: 9961.138277 | ID43: 61401.07308 | IE43: 3100.907002 | IF43: 9002.582664 | IG43: 3886.997866 | IH43: 3030.148434 | II43: 0.1974210108 | IJ43: 1079.65201 | IK43: 6693.998612 | IL43: 4753.715104 | IM43: 35369.12744 | IN43: 11406836.88
A44: =+MATCH(B44,RUT[EMPRESA],0) -> 36 | B44: CARRAN | C44: 17099558.06 | D44: 17099558.06 | F44: =IFERROR(INDEX($B$9:$B$511,MATCH(0,INDEX(COUNTIF($F$8:F43,$B$9:$B$511),0,0),0)),"") -> CARRAN | H44: 17099558.06 | J44: EOLICA_ESPERANZA | K44: 5554093.241 | L44: 3441086.129 | M44: 53377.37905 | N44: 11282001.99 | O44: 1835326.388 | P44: 426175.3889 | Q44: 134604.6118 | R44: 5625.186501 | S44: 8015.416365 | T44: 36461.16781 | U44: 18175.54461 | V44: 86441.2153 | W44: 15990.15031 | X44: 116700.5015 | Y44: 25040.85748 | Z44: 14084.80881 | AA44: 76063.32881 | AB44: 75453.24059 | AC44: 463803.8703 | AD44: 23919.04008 | AE44: 49.37277945 | AF44: 13122.93256 | AG44: 2171.751218 | AH44: 16376.37539 | AI44: 83553.3773 | AJ44: 10070.59291 | AK44: 63130.79373 | AL44: 17074.41967 | AM44: 104774.8295 | AN44: 325519.359 | AO44: 280064.6198 | AP44: 6988.229965 | AQ44: 18823.97067 | AR44: 1166310.65 | AS44: 102470.5777 | AT44: 10860.85443 | AU44: 1416774.31 | AV44: 16468.6066 | AW44: 137576.4246 | AX44: 114071.418 | AY44: 42162.2531 | AZ44: 34093.13237 | BA44: 70914.31573 | BB44: 527.4612508 | BC44: 1992.61394 | BD44: 77329.33251 | BE44: 359.4008187 | BF44: 232166.085 | BG44: 478.4764263 | BH44: 4487.917069 | BI44: 248651.9092 | BJ44: 60599.62031 | BK44: 4068.537258 | BL44: 2963.489945 | BM44: 1555617.711 | BN44: 14856.50273 | BO44: 375501.7535 | BP44: 169714.618 | BQ44: 102588.8304 | BR44: 293.9501287 | BS44: 50168.98489 | BT44: 10105.67235 | BU44: 10460.09788 | BV44: 203647.1942 | BW44: 12220.70292 | BX44: 11306.32606 | BY44: 10787.15117 | BZ44: 216606.4587 | CA44: 595157.3082 | CB44: 63980.70489 | CC44: 9434.195321 | CD44: 79512.89812 | CE44: 285485.5175 | CF44: 282678.1215 | CG44: 89805.10966 | CH44: 3900.078638 | CI44: 68827.61083 | CJ44: 7268.659744 | CK44: 28269.02901 | CL44: 7755.470534 | CM44: 81191.86208 | CN44: 109074.1068 | CO44: 6389.610994 | CP44: 31541.22873 | CQ44: 16356.51785 | CR44: 6064.929744 | CS44: 13907.6559 | CT44: 22223.87226 | CU44: 3751.12298 | CV44: 111482.6105 | CW44: 82839.69492 | CX44: 11091.85731 | CY44: 8910.090389 | CZ44: 29339.83353 | DA44: 6528.255491 | DB44: 3471.810453 | DC44: 80371.53568 | DD44: 3941.018186 | DE44: 75742.01687 | DF44: 1621.933242 | DG44: 149638.1904 | DH44: 802.6326503 | DI44: 19000.4678 | DJ44: 997.8864939 | DK44: 18135.56153 | DL44: 50506.67003 | DM44: 154145.6775 | DN44: 2476.548342 | DO44: 34961.63957 | DP44: 12774.5703 | DQ44: 13174.86393 | DR44: 5684.803864 | DS44: 12726.89214 | DT44: 37278.01069 | DU44: 75406.03023 | DV44: 51867.34513 | DW44: 29350.23799 | DX44: 16419.63131 | DY44: 283846.7422 | DZ44: 8364.911549 | EA44: 21687.62036 | EB44: 39437.68419 | EC44: 36137.84615 | ED44: 298244.9712 | EE44: 712.7048713 | EF44: 376.9146704 | EG44: 13982.06375 | EH44: 15513.60756 | EI44: 26740.80882 | EJ44: 101555.74 | EK44: 85599.0824 | EL44: 10635.65434 | EM44: 589.2840943 | EN44: 7035.639958 | EO44: 13420.71091 | EP44: 13649.31787 | EQ44: 12816.8381 | ER44: 33012.676 | ES44: 13768.25706 | ET44: 34288.87805 | EU44: 11011.41563 | EV44: 9868.347843 | EW44: 8666.178623 | EX44: 41007.69165 | EY44: 15648.38203 | EZ44: 8585.903133 | FA44: 10485.33942 | FB44: 12049.35152 | FC44: 10873.22561 | FD44: 14153.31299 | FE44: 101338.2739 | FF44: 8495.019715 | FG44: 9564.495275 | FH44: 9246.434718 | FI44: 9512.488476 | FJ44: 12465.21597 | FK44: 36508.86625 | FL44: 15800.29896 | FM44: 245.0055279 | FN44: 9338.375415 | FO44: 10518.22785 | FP44: 1037.400285 | FQ44: 60650.79017 | FR44: 40553.21242 | FS44: 754.7204582 | FT44: 36206.76947 | FU44: 13073.06825 | FV44: 8811.120675 | FW44: 37476.3992 | FX44: 0.004035975714 | FY44: 8212.512486 | FZ44: 7738.321394 | GA44: 12971.07257 | GB44: 20722.43154 | GC44: 9900.805016 | GD44: 3361.823983 | GE44: 7147.7668 | GF44: 52613.04101 | GG44: 53172.37528 | GH44: 14157.13227 | GI44: 131069.1886 | GJ44: 12546.4168 | GK44: 29463.69363 | GL44: 18486.55074 | GM44: 23357.26864 | GN44: 15802.30457 | GO44: 13054.19427 | GP44: 61021.24121 | GQ44: 15007.71923 | GR44: 10692.30939 | GS44: 15993.91322 | GT44: 60677.84062 | GU44: 65577.42054 | GV44: 33526.45064 | GW44: 3451005.671 | GX44: 360095.3451 | GY44: 405633.9301 | GZ44: 2424226.778 | HA44: 579231.4921 | HB44: 126870.9107 | HC44: 2654.13555 | HD44: 100327.5036 | HE44: 94673.54273 | HF44: 113.008182 | HG44: 60688.99025 | HH44: 49809.32932 | HI44: 129233.1589 | HJ44: 6725.955055 | HK44: 2304.365937 | HL44: 303959.9546 | HM44: 91680.09506 | HN44: 10872.47969 | HO44: 11277.58042 | HP44: 8337.365007 | HQ44: 11310.7768 | HR44: 10613.04186 | HS44: 33086.50994 | HT44: 7352.041985 | HU44: 7700.570908 | HV44: 61683.12322 | HW44: 2455.879098 | HX44: 26649.21751 | HY44: 19083.9573 | HZ44: 21896.7654 | IA44: 12168.24395 | IB44: 23165.29971 | IC44: 39624.37411 | ID44: 244247.0953 | IE44: 12335.08618 | IF44: 35811.33937 | IG44: 15462.07404 | IH44: 12053.61594 | II44: 0.7853202888 | IJ44: 4294.74363 | IK44: 26628.03164 | IL44: 18909.78525 | IM44: 140694.7177 | IN44: 45375213.1
A45: =+MATCH(B45,RUT[EMPRESA],0) -> 77 | B45: DONGO | C45: 87243104.3 | D45: 87243104.3 | F45: =IFERROR(INDEX($B$9:$B$511,MATCH(0,INDEX(COUNTIF($F$8:F44,$B$9:$B$511),0,0),0)),"") -> DONGO | H45: 87243104.3 | J45: KDM_ENERGIA | K45: 62104508.2 | L45: 38477380.99 | M45: 596852.759 | N45: 126152578.7 | O45: 20522169.46 | P45: 4765388.657 | Q45: 1505115.75 | R45: 62899.45559 | S45: 89626.41961 | T45: 407699.8345 | U45: 203234.4814 | V45: 966564.4654 | W45: 178797.9384 | X45: 1304916.381 | Y45: 280000.7258 | Z45: 157492.8771 | AA45: 850521.4843 | AB45: 843699.6275 | AC45: 5186141.106 | AD45: 267456.8389 | AE45: 552.0743087 | AF45: 146737.4129 | AG45: 24283.98938 | AH45: 183116.6125 | AI45: 934273.3692 | AJ45: 112606.8995 | AK45: 705913.0494 | AL45: 190921.9724 | AM45: 1171566.443 | AN45: 3639877.622 | AO45: 3131613.879 | AP45: 78140.67325 | AQ45: 210485.0225 | AR45: 13041399.59 | AS45: 1145800.864 | AT45: 121443.41 | AU45: 15842022.8 | AV45: 184147.9193 | AW45: 1538345.832 | AX45: 1275518.615 | AY45: 471447.9717 | AZ45: 381221.0431 | BA45: 792946.4832 | BB45: 5897.94232 | BC45: 22280.92029 | BD45: 864677.6272 | BE45: 4018.731794 | BF45: 2596024.212 | BG45: 5350.206028 | BH45: 50182.78777 | BI45: 2780364.655 | BJ45: 677610.0892 | BK45: 45493.3856 | BL45: 33137.01762 | BM45: 17394535.65 | BN45: 166121.7692 | BO45: 4198768.497 | BP45: 1897707.228 | BQ45: 1147123.136 | BR45: 3286.878233 | BS45: 560977.2825 | BT45: 112999.1493 | BU45: 116962.2486 | BV45: 2277132.971 | BW45: 136648.9023 | BX45: 126424.5646 | BY45: 120619.2783 | BZ45: 2422040.288 | CA45: 6654903.027 | CB45: 715416.5475 | CC45: 105490.8579 | CD45: 889093.7222 | CE45: 3192229.027 | CF45: 3160837.413 | CG45: 1004178.707 | CH45: 43609.72264 | CI45: 769613.4608 | CJ45: 81276.37025 | CK45: 316097.348 | CL45: 86719.76909 | CM45: 907867.4854 | CN45: 1219639.906 | CO45: 71447.06276 | CP45: 352686.2826 | CQ45: 182894.5704 | CR45: 67816.55666 | CS45: 155511.9967 | CT45: 248501.8881 | CU45: 41944.13701 | CV45: 1246571.204 | CW45: 926293.148 | CX45: 124026.4276 | CY45: 99630.44508 | CZ45: 328070.8214 | DA45: 72997.35151 | DB45: 38820.93285 | DC45: 898694.7968 | DD45: 44067.49862 | DE45: 846928.653 | DF45: 18136.05966 | DG45: 1673217.539 | DH45: 8974.841409 | DI45: 212458.5701 | DJ45: 11158.12199 | DK45: 202787.4003 | DL45: 564753.195 | DM45: 1723619.154 | DN45: 27692.15606 | DO45: 390932.4775 | DP45: 142842.1115 | DQ45: 147318.0967 | DR45: 63566.08232 | DS45: 142308.986 | DT45: 416833.5712 | DU45: 843171.7329 | DV45: 579967.9301 | DW45: 328187.1616 | DX45: 183600.2895 | DY45: 3173904.643 | DZ45: 93534.38902 | EA45: 242505.6509 | EB45: 440982.5105 | EC45: 404084.531 | ED45: 3334902.108 | EE45: 7969.291044 | EF45: 4214.567387 | EG45: 156344.007 | EH45: 173469.3542 | EI45: 299009.1647 | EJ45: 1135571.373 | EK45: 957147.9419 | EL45: 118925.2779 | EM45: 6589.230191 | EN45: 78670.80016 | EO45: 150067.0973 | EP45: 152623.3243 | EQ45: 143314.7396 | ER45: 369139.645 | ES45: 153953.2731 | ET45: 383409.8233 | EU45: 123126.9485 | EV45: 110345.4449 | EW45: 96903.08355 | EX45: 458537.9488 | EY45: 174976.3693 | EZ45: 96005.46271 | FA45: 117244.4933 | FB45: 134732.8929 | FC45: 121581.7416 | FD45: 158258.8741 | FE45: 1133139.72 | FF45: 94989.22662 | FG45: 106947.84 | FH45: 103391.3649 | FI45: 106366.3127 | FJ45: 139382.9872 | FK45: 408233.1867 | FL45: 176675.0671 | FM45: 2739.591712 | FN45: 104419.4232 | FO45: 117612.2437 | FP45: 11599.95551 | FQ45: 678182.258 | FR45: 453456.0735 | FS45: 8439.09903 | FT45: 404855.2146 | FU45: 146179.8424 | FV45: 98523.79001 | FW45: 419051.9029 | FX45: 0.0451292904 | FY45: 91830.30008 | FZ45: 86528.01161 | GA45: 145039.3516 | GB45: 231713.1462 | GC45: 110708.373 | GD45: 37591.09112 | GE45: 79924.57501 | GF45: 588306.1186 | GG45: 594560.4572 | GH45: 158301.5803 | GI45: 1465583.516 | GJ45: 140290.955 | GK45: 329455.7947 | GL45: 206712.0756 | GM45: 261175.2483 | GN45: 176697.4933 | GO45: 145968.7982 | GP45: 682324.5506 | GQ45: 167812.635 | GR45: 119558.7808 | GS45: 178840.0143 | GT45: 678484.7294 | GU45: 733270.6303 | GV45: 374884.547 | GW45: 38588298.88 | GX45: 4026497.818 | GY45: 4535699.104 | GZ45: 27107109.16 | HA45: 6476824.459 | HB45: 1418639.402 | HC45: 29677.89266 | HD45: 1121837.534 | HE45: 1058616.331 | HF45: 1263.62977 | HG45: 678609.4019 | HH45: 556955.7022 | HI45: 1445053.482 | HJ45: 75207.97954 | HK45: 25766.85464 | HL45: 3398805.651 | HM45: 1025144.334 | HN45: 121573.4009 | HO45: 126103.1378 | HP45: 93226.37035 | HQ45: 126474.3317 | HR45: 118672.4307 | HS45: 369965.2379 | HT45: 82208.73001 | HU45: 86105.89493 | HV45: 689725.5529 | HW45: 27461.03764 | HX45: 297985.0131 | HY45: 213392.1292 | HZ45: 244844.2594 | IA45: 136062.319 | IB45: 259028.6989 | IC45: 443070.0314 | ID45: 2731111.106 | IE45: 137927.9079 | IF45: 400433.6123 | IG45: 172893.1191 | IH45: 134780.5767 | II45: 8.781258829 | IJ45: 48022.76977 | IK45: 297748.118 | IL45: 211444.5801 | IM45: 1573213.82 | IN45: 507374502.3
A46: =+MATCH(B46,RUT[EMPRESA],0) -> 178 | B46: INACAL | C46: 10515311.48 | D46: 10515311.48 | F46: =IFERROR(INDEX($B$9:$B$511,MATCH(0,INDEX(COUNTIF($F$8:F45,$B$9:$B$511),0,0),0)),"") -> INACAL | H46: 10515311.48 | J46: CONEJO_SOLAR | K46: 55221106.89 | L46: 34212710.65 | M46: 530700.1209 | N46: 112170359.9 | O46: 18247578.9 | P46: 4237213.112 | Q46: 1338295.079 | R46: 55927.94567 | S46: 79692.60592 | T46: 362512.1074 | U46: 180708.8301 | V46: 859434.5437 | W46: 158980.7303 | X46: 1160284.963 | Y46: 248966.6283 | Z46: 140037.032 | AA46: 756253.2764 | AB46: 750187.5253 | AC46: 4611331.137 | AD46: 237813.0528 | AE46: 490.8847247 | AF46: 130473.658 | AG46: 21592.4546 | AH46: 162820.7408 | AI46: 830722.4562 | AJ46: 100126.0265 | AK46: 627672.6294 | AL46: 169760.9876 | AM46: 1041714.968 | AN46: 3236448.965 | AO46: 2784519.027 | AP46: 69479.89116 | AQ46: 187155.7519 | AR46: 11595945.95 | AS46: 1018805.137 | AT46: 107983.1355 | AU46: 14086159.92 | AV46: 163737.7419 | AW46: 1367842.08 | AX46: 1134145.52 | AY46: 419194.6703 | AZ46: 338968.1133 | BA46: 705059.6451 | BB46: 5244.239311 | BC46: 19811.39722 | BD46: 768840.4121 | BE46: 3573.31254 | BF46: 2308291.857 | BG46: 4757.211796 | BH46: 44620.73959 | BI46: 2472200.783 | BJ46: 602506.6497 | BK46: 40451.09095 | BL46: 29464.25059 | BM46: 15466598.81 | BN46: 147709.5341 | BO46: 3733394.736 | BP46: 1687373.376 | BQ46: 1019980.854 | BR46: 2922.574536 | BS46: 498800.9306 | BT46: 100474.801 | BU46: 103998.6471 | BV46: 2024745.173 | BW46: 121503.3153 | BX46: 112412.2 | BY46: 107250.3471 | BZ46: 2153591.575 | CA46: 5917301.692 | CB46: 636122.7999 | CC46: 93798.69686 | CD46: 790550.3304 | CE46: 2838415.848 | CF46: 2810503.549 | CG46: 892879.7816 | CH46: 38776.20523 | CI46: 684312.7564 | CJ46: 72268.04076 | CK46: 281062.4534 | CL46: 77108.11626 | CM46: 807243.2889 | CN46: 1084460.171 | CO46: 63528.17218 | CP46: 313596.0251 | CQ46: 162623.3089 | CR46: 60300.05604 | CS46: 138275.704 | CT46: 220958.9887 | CU46: 37295.22607 | CV46: 1108406.518 | CW46: 823626.7289 | CX46: 110279.8624 | CY46: 88587.82747 | CZ46: 291708.8376 | DA46: 64906.63347 | DB46: 34518.18467 | DC46: 799087.2624 | DD46: 39183.24325 | DE46: 753058.6593 | DF46: 16125.93543 | DG46: 1487765.176 | DH46: 7980.107905 | DI46: 188910.5598 | DJ46: 9921.402892 | DK46: 180311.3016 | DL46: 502158.3369 | DM46: 1532580.489 | DN46: 24622.87448 | DO46: 347603.1734 | DP46: 127010.0954 | DQ46: 130989.9812 | DR46: 56520.68632 | DS46: 126536.0592 | DT46: 370633.4992 | DU46: 749718.1403 | DV46: 515686.735 | DW46: 291812.2832 | DX46: 163250.8091 | DY46: 2822122.462 | DZ46: 83167.43251 | EA46: 215627.3491 | EB46: 392105.8722 | EC46: 359297.5088 | ED46: 2965275.648 | EE46: 7086.008494 | EF46: 3747.442544 | EG46: 139015.4978 | EH46: 154242.7439 | EI46: 265868.2522 | EJ46: 1009709.44 | EK46: 851061.7078 | EL46: 105744.1025 | EM46: 5858.907755 | EN46: 69951.26104 | EO46: 133434.2943 | EP46: 135707.1998 | EQ46: 127430.3394 | ER46: 328225.7664 | ES46: 136889.7428 | ET46: 340914.2983 | EU46: 109480.0777 | EV46: 98115.22196 | EW46: 86162.75517 | EX46: 407715.5398 | EY46: 155582.7277 | EZ46: 85364.62283 | FA46: 104249.609 | FB46: 119799.6683 | FC46: 108106.135 | FD46: 140718.1291 | FE46: 1007547.301 | FF46: 84461.02206 | FG46: 95094.19325 | FH46: 91931.90279 | FI46: 94577.12 | FJ46: 123934.3658 | FK46: 362986.3451 | FL46: 157093.1491 | FM46: 2435.946942 | FN46: 92846.01548 | FO46: 104576.5995 | FP46: 10314.26545 | FQ46: 603015.4017 | FR46: 403196.9181 | FS46: 7503.744948 | FT46: 359982.7731 | FU46: 129977.8862 | FV46: 87603.82938 | FW46: 372605.9604 | FX46: 0.04012735052 | FY46: 81652.21759 | FZ46: 76937.61237 | GA46: 128963.8027 | GB46: 206031.0401 | GC46: 98437.92468 | GD46: 33424.6534 | GE46: 71066.07279 | GF46: 523100.7539 | GG46: 528661.8881 | GH46: 140756.102 | GI46: 1303144.431 | GJ46: 124741.6983 | GK46: 292940.3063 | GL46: 183800.9825 | GM46: 232227.6873 | GN46: 157113.0897 | GO46: 129790.2333 | GP46: 606698.5802 | GQ46: 149212.9915 | GR46: 106307.3907 | GS46: 159018.1427 | GT46: 603284.3486 | GU46: 651998.0116 | GV46: 333333.9277 | GW46: 34311334.86 | GX46: 3580217.811 | GY46: 4032981.378 | GZ46: 24102671.71 | HA46: 5758960.6 | HB46: 1261403.405 | HC46: 26388.52042 | HD46: 997497.8017 | HE46: 941283.7697 | HF46: 1123.574385 | HG46: 603395.2028 | HH46: 495225.0852 | HI46: 1284889.859 | HJ46: 66872.24484 | HK46: 22910.96533 | HL46: 3022096.392 | HM46: 911521.6669 | HN46: 108098.7188 | HO46: 112126.3988 | HP46: 82893.55333 | HQ46: 112456.4511 | HR46: 105519.2798 | HS46: 328959.854 | HT46: 73097.0617 | HU46: 76562.28133 | HV46: 613279.2867 | HW46: 24417.37225 | HX46: 264957.6132 | HY46: 189740.6471 | HZ46: 217706.7561 | IA46: 120981.7464 | IB46: 230319.0523 | IC46: 393962.021 | ID46: 2428406.29 | IE46: 122640.5613 | IF46: 356051.2425 | IG46: 153730.3762 | IH46: 119842.067 | II46: 7.807981201 | IJ46: 42700.12886 | IK46: 264746.9745 | IL46: 188008.9561 | IM46: 1398845.447 | IN46: 451139256
A47: =+MATCH(B47,RUT[EMPRESA],0) -> 166 | B47: HIDROLIRCAY | C47: 65918657.03 | D47: 65918657.03 | F47: =IFERROR(INDEX($B$9:$B$511,MATCH(0,INDEX(COUNTIF($F$8:F46,$B$9:$B$511),0,0),0)),"") -> HIDROLIRCAY | H47: 65918657.03 | J47: SAN_JUAN_LAP | K47: 8734303.723 | L47: 5411412.824 | M47: 83940.65788 | N47: 17741947.73 | O47: 2886213.358 | P47: 670198.5589 | Q47: 211677.6782 | R47: 8846.104173 | S47: 12604.95241 | T47: 57338.4169 | U47: 28582.65428 | V47: 135936.4699 | W47: 25145.92811 | X47: 183521.8785 | Y47: 39378.96704 | Z47: 22149.60979 | AA47: 119616.3239 | AB47: 118656.9061 | AC47: 729372.6797 | AD47: 37614.8098 | AE47: 77.6430702 | AF47: 20636.97417 | AG47: 3415.27121 | AH47: 25753.30127 | AI47: 131395.0888 | AJ47: 15836.89961 | AK47: 99278.76662 | AL47: 26851.03776 | AM47: 164767.7027 | AN47: 511908.0336 | AO47: 440426.4288 | AP47: 10989.61079 | AQ47: 29602.36171 | AR47: 1834126.833 | AS47: 161144.0625 | AT47: 17079.65587 | AU47: 2228003.13 | AV47: 25898.34303 | AW47: 216351.1172 | AX47: 179387.4118 | AY47: 66303.87864 | AZ47: 53614.47136 | BA47: 111519.0446 | BB47: 829.4795508 | BC47: 3133.56197 | BD47: 121607.2269 | BE47: 565.1896309 | BF47: 365101.739 | BG47: 752.4465741 | BH47: 7057.647227 | BI47: 391027.1582 | BJ47: 95298.27216 | BK47: 6398.135317 | BL47: 4660.350508 | BM47: 2446346.68 | BN47: 23363.16685 | BO47: 590509.7774 | BP47: 266891.2739 | BQ47: 161330.0253 | BR47: 462.2626218 | BS47: 78895.17379 | BT47: 15892.06515 | BU47: 16449.4307 | BV47: 320253.2564 | BW47: 19218.13812 | BX47: 17780.19949 | BY47: 16963.75097 | BZ47: 340632.848 | CA47: 935937.599 | CB47: 100615.3272 | CC47: 14836.10803 | CD47: 125041.0773 | CE47: 448951.2707 | CF47: 444536.3918 | CG47: 141226.4918 | CH47: 6133.219212 | CI47: 108237.5163 | CJ47: 11430.61146 | CK47: 44455.5528 | CL47: 12196.16456 | CM47: 127681.3968 | CN47: 171528.697 | CO47: 10048.22942 | CP47: 49601.37678 | CQ47: 25722.07354 | CR47: 9537.639384 | CS47: 21871.02114 | CT47: 34949.0082 | CU47: 5898.973241 | CV47: 175316.2826 | CW47: 130272.76 | CX47: 17442.92838 | CY47: 14011.90658 | CZ47: 46139.48777 | DA47: 10266.26017 | DB47: 5459.729545 | DC47: 126391.3609 | DD47: 6197.600278 | DE47: 119111.0324 | DF47: 2550.63373 | DG47: 235319.3126 | DH47: 1262.210957 | DI47: 29879.91908 | DJ47: 1569.264926 | DK47: 28519.77734 | DL47: 79426.2136 | DM47: 242407.7354 | DN47: 3894.591694 | DO47: 54980.27588 | DP47: 20089.14365 | DQ47: 20718.64084 | DR47: 8939.857759 | DS47: 20014.16552 | DT47: 58622.9747 | DU47: 118582.6636 | DV47: 81565.99574 | DW47: 46155.84972 | DX47: 25821.32504 | DY47: 446374.1514 | DZ47: 13154.56455 | EA47: 34105.70458 | EB47: 62019.25263 | EC47: 56829.96494 | ED47: 469016.6422 | EE47: 1120.791557 | EF47: 592.7317144 | EG47: 21988.03407 | EH47: 24396.52241 | EI47: 42052.29115 | EJ47: 159705.3992 | EK47: 134612.1413 | EL47: 16725.50878 | EM47: 926.7014498 | EN47: 11064.1672 | EO47: 21105.25701 | EP47: 21464.76171 | EQ47: 20155.6135 | ER47: 51915.35799 | ES47: 21651.80412 | ET47: 53922.29878 | EU47: 17316.42671 | EV47: 15518.85133 | EW47: 13628.33372 | EX47: 64488.22846 | EY47: 24608.46721 | EZ47: 13502.0934 | FA47: 16489.12525 | FB47: 18948.67285 | FC47: 17099.11066 | FD47: 22257.33869 | FE47: 159363.4144 | FF47: 13359.17117 | FG47: 15041.01625 | FH47: 14540.83784 | FI47: 14959.23095 | FJ47: 19602.65655 | FK47: 57413.42692 | FL47: 24847.37004 | FM47: 385.2929004 | FN47: 14685.42274 | FO47: 16540.84523 | FP47: 1631.403863 | FQ47: 95378.74129 | FR47: 63773.5196 | FS47: 1186.86479 | FT47: 56938.35297 | FU47: 20558.55812 | FV47: 13856.26794 | FW47: 58934.95821 | FX47: 0.006346929404 | FY47: 12914.90353 | FZ47: 12169.19602 | GA47: 20398.16087 | GB47: 32587.85963 | GC47: 15569.89312 | GD47: 5286.766076 | GE47: 11240.4966 | GF47: 82738.66859 | GG47: 83618.27129 | GH47: 22263.34484 | GI47: 206117.9121 | GJ47: 19730.35205 | GK47: 46334.26876 | GL47: 29071.73898 | GM47: 36731.37442 | GN47: 24850.52404 | GO47: 20528.87712 | GP47: 95961.30838 | GQ47: 23600.96819 | GR47: 16814.60388 | GS47: 25151.84563 | GT47: 95421.28052 | GU47: 103126.3041 | GV47: 52723.31413 | GW47: 5427012.183 | GX47: 566281.8352 | GY47: 637895.2949 | GZ47: 3812311.398 | HA47: 910892.8422 | HB47: 199515.7481 | HC47: 4173.863313 | HD47: 157773.8885 | HE47: 148882.5342 | HF47: 177.7153789 | HG47: 95438.8143 | HH47: 78329.58354 | HI47: 203230.5927 | HJ47: 10577.16025 | HK47: 3623.819606 | HL47: 478003.96 | HM47: 144175.0725 | HN47: 17097.93764 | HO47: 17734.99441 | HP47: 13111.24518 | HQ47: 17787.19867 | HR47: 16689.94865 | HS47: 52031.46839 | HT47: 11561.73742 | HU47: 12109.83003 | HV47: 97002.17649 | HW47: 3862.087476 | HX47: 41908.25569 | HY47: 30011.21371 | HZ47: 34434.60368 | IA47: 19135.64174 | IB47: 36429.48628 | IC47: 62312.83906 | ID47: 384100.1981 | IE47: 19398.01593 | IF47: 56316.5041 | IG47: 24315.48139 | IH47: 18955.37904 | II47: 1.234985735 | IJ47: 6753.864879 | IK47: 41874.93904 | IL47: 29737.31274 | IM47: 221254.9093 | IN47: 71356542.91
A48: =+MATCH(B48,RUT[EMPRESA],0) -> 200 | B48: LOS MORROS | C48: 17828428.06 | D48: 17828428.06 | F48: =IFERROR(INDEX($B$9:$B$511,MATCH(0,INDEX(COUNTIF($F$8:F47,$B$9:$B$511),0,0),0)),"") -> LOS MORROS | H48: 17828428.06 | J48: RAGSA | K48: 300447.7356 | L48: 186144.9728 | M48: 2887.440302 | N48: 610297.9915 | O48: 99281.6709 | P48: 23053.88567 | Q48: 7281.413733 | R48: 304.2935134 | S48: 433.5925942 | T48: 1972.360713 | U48: 983.2030151 | V48: 4676.022939 | W48: 864.9844796 | X48: 6312.893914 | Y48: 1354.580955 | Z48: 761.9153532 | AA48: 4114.632922 | AB48: 4081.630303 | AC48: 25089.39201 | AD48: 1293.896433 | AE48: 2.670812164 | AF48: 709.8828201 | AG48: 117.4805152 | AH48: 885.8772601 | AI48: 4519.80583 | AJ48: 544.7670219 | AK48: 3415.049621 | AL48: 923.6378477 | AM48: 5667.776703 | AN48: 17608.91473 | AO48: 15150.0483 | AP48: 378.0271194 | AQ48: 1018.279513 | AR48: 63091.37755 | AS48: 5543.128589 | AT48: 587.5160854 | AU48: 76640.16694 | AV48: 890.8664921 | AW48: 7442.173447 | AX48: 6170.674088 | AY48: 2280.759959 | AZ48: 1844.262236 | BA48: 3836.097929 | BB48: 28.53292725 | BC48: 107.7901145 | BD48: 4183.117178 | BE48: 19.44172657 | BF48: 12558.98515 | BG48: 25.88310145 | BH48: 242.7731157 | BI48: 13450.78302 | BJ48: 3278.126223 | BK48: 220.0868356 | BL48: 160.3094879 | BM48: 84150.87727 | BN48: 803.6600052 | BO48: 20312.70392 | BP48: 9180.683592 | BQ48: 5549.525449 | BR48: 15.90118255 | BS48: 2713.882762 | BT48: 546.6646387 | BU48: 565.8372278 | BV48: 11016.26057 | BW48: 661.07686 | BX48: 611.6137982 | BY48: 583.5291202 | BZ48: 11717.28979 | CA48: 32194.93404 | CB48: 3461.025422 | CC48: 510.3412021 | CD48: 4301.236791 | CE48: 15443.29084 | CF48: 15291.42523 | CG48: 4857.992235 | CH48: 210.9740951 | CI48: 3723.21798 | CJ48: 393.1969209 | CK48: 1529.208349 | CL48: 419.5308683 | CM48: 4392.060063 | CN48: 5900.345378 | CO48: 345.6449273 | CP48: 1706.21744 | CQ48: 884.80307 | CR48: 328.0813499 | CS48: 752.3322962 | CT48: 1202.196615 | CU48: 202.9163639 | CV48: 6030.632983 | CW48: 4481.199302 | CX48: 600.0121475 | CY48: 481.9898343 | CZ48: 1587.133338 | DA48: 353.1448779 | DB48: 187.8069999 | DC48: 4347.684645 | DD48: 213.188713 | DE48: 4097.251607 | DF48: 87.73820474 | DG48: 8094.65263 | DH48: 43.41827762 | DI48: 1027.827096 | DJ48: 53.9805013 | DK48: 981.0401371 | DL48: 2732.149783 | DM48: 8338.484384 | DN48: 133.9684642 | DO48: 1891.243986 | DP48: 691.0382224 | DQ48: 712.6920386 | DR48: 307.5185047 | DS48: 688.4590804 | DT48: 2016.547691 | DU48: 4079.076466 | DV48: 2805.755272 | DW48: 1587.696166 | DX48: 888.2171817 | DY48: 15354.64157 | DZ48: 452.4984771 | EA48: 1173.18816 | EB48: 2133.374864 | EC48: 1954.870682 | ED48: 16133.51133 | EE48: 38.55364961 | EF48: 20.38913542 | EG48: 756.3573762 | EH48: 839.2059799 | EI48: 1446.539536 | EJ48: 5493.640601 | EK48: 4630.467902 | EL48: 575.3339247 | EM48: 31.87722353 | EN48: 380.5917549 | EO48: 725.9910895 | EP48: 738.3575445 | EQ48: 693.3246915 | ER48: 1785.815131 | ES48: 744.7915398 | ET48: 1854.851065 | EU48: 595.6606683 | EV48: 533.8266094 | EW48: 468.7954686 | EX48: 2218.304152 | EY48: 846.4965821 | EZ48: 464.4529795 | FA48: 567.2026643 | FB48: 651.8076347 | FC48: 588.1853025 | FD48: 765.6210753 | FE48: 5481.876805 | FF48: 459.5366563 | FG48: 517.3897561 | FH48: 500.184324 | FI48: 514.5764571 | FJ48: 674.303752 | FK48: 1974.940952 | FL48: 854.7145029 | FM48: 13.25353264 | FN48: 505.1578405 | FO48: 568.9817589 | FP48: 56.11799315 | FQ48: 3280.894248 | FR48: 2193.719175 | FS48: 40.82647569 | FT48: 1958.599078 | FU48: 707.1854186 | FV48: 476.6360844 | FW48: 2027.279484 | FX48: 0.0002183254244 | FY48: 444.2544755 | FZ48: 418.6031885 | GA48: 701.6679791 | GB48: 1120.976433 | GC48: 535.5823747 | GD48: 181.8573004 | GE48: 386.6572375 | GF48: 2846.093565 | GG48: 2876.350658 | GH48: 765.8276786 | GI48: 7090.165617 | GJ48: 678.6962972 | GK48: 1593.833529 | GL48: 1000.026839 | GM48: 1263.507501 | GN48: 854.8229958 | GO48: 706.1644338 | GP48: 3300.933734 | GQ48: 811.8400362 | GR48: 578.3986703 | GS48: 865.1880337 | GT48: 3282.357537 | GU48: 3547.399486 | GV48: 1813.607684 | GW48: 186681.5688 | GX48: 19479.29686 | GY48: 21942.69892 | GZ48: 131138.138 | HA48: 31333.42971 | HB48: 6863.060483 | HC48: 143.5750142 | HD48: 5427.199356 | HE48: 5121.3493 | HF48: 6.113158512 | HG48: 3282.960675 | HH48: 2694.427255 | HI48: 6990.845899 | HJ48: 363.8394024 | HK48: 124.654286 | HL48: 16442.6624 | HM48: 4959.419254 | HN48: 588.1449523 | HO48: 610.0588073 | HP48: 451.0083516 | HQ48: 611.8545603 | HR48: 574.1107063 | HS48: 1789.809165 | HT48: 397.7074691 | HU48: 416.5610823 | HV48: 3336.73813 | HW48: 132.8503649 | HX48: 1441.584919 | HY48: 1032.343446 | HZ48: 1184.501825 | IA48: 658.239101 | IB48: 1253.122975 | IC48: 2143.473823 | ID48: 13212.50536 | IE48: 667.2644032 | IF48: 1937.208353 | IG48: 836.4182831 | IH48: 652.038318 | II48: 0.04248176835 | IJ48: 232.3234311 | IK48: 1440.438873 | IL48: 1022.921638 | IM48: 7610.856984 | IN48: 2454564.487
A49: =+MATCH(B49,RUT[EMPRESA],0) -> 75 | B49: DIUTO | C49: 109401698.4 | D49: 109401698.4 | F49: =IFERROR(INDEX($B$9:$B$511,MATCH(0,INDEX(COUNTIF($F$8:F48,$B$9:$B$511),0,0),0)),"") -> DIUTO | H49: 109401698.4 | J49: ENERKEY | K49: =$IN49*K$70/$IN$70 -> 49845.35039 | L49: 30882.11458 | M49: 479.0366395 | N49: 101250.6124 | O49: 16471.18313 | P49: 3824.721816 | Q49: 1208.012496 | R49: 50.48337865 | S49: 71.93455708 | T49: 327.2216736 | U49: =$IN49*U$70/$IN$70 -> 163.1168852 | V49: 775.768875 | W49: 143.5040087 | X49: 1047.331605 | Y49: 224.7298093 | Z49: 126.4044732 | AA49: 682.6322699 | AB49: 677.1570178 | AC49: 4162.419575 | AD49: 214.6620307 | AE49: =$IN49*AE$70/$IN$70 -> 0.4430972591 | AF49: 117.7720905 | AG49: 19.49043628 | AH49: 146.9701955 | AI49: 749.8518997 | AJ49: 90.37879097 | AK49: 566.5689065 | AL49: 153.2348116 | AM49: 940.3043601 | AN49: 2921.381728 | AO49: =$IN49*AO$70/$IN$70 -> 2513.44702 | AP49: 62.71604673 | AQ49: 168.9362013 | AR49: 10467.08445 | AS49: 919.6247935 | AT49: 97.47101299 | AU49: 12714.87691 | AV49: 147.7979269 | AW49: 1234.683105 | AX49: 1023.736829 | AY49: =$IN49*AY$70/$IN$70 -> 378.3862078 | AZ49: 305.9696796 | BA49: 636.4223217 | BB49: 4.733714348 | BC49: 17.88276425 | BD49: 693.9940522 | BE49: 3.225451746 | BF49: 2083.580407 | BG49: 4.2940988 | BH49: 40.27692535 | BI49: =$IN49*BI$70/$IN$70 -> 2231.532854 | BJ49: 543.8528266 | BK49: 36.51319062 | BL49: 26.59591553 | BM49: 13960.93053 | BN49: 133.3300598 | BO49: 3369.949993 | BP49: 1523.108136 | BQ49: 920.6860555 | BR49: 2.638062871 | BS49: =$IN49*BS$70/$IN$70 -> 450.2428249 | BT49: 90.69361235 | BU49: 93.87441323 | BV49: 1827.6369 | BW49: 109.6750077 | BX49: 101.4689095 | BY49: 96.80956125 | BZ49: 1943.940147 | CA49: 5341.254329 | CB49: 574.1964557 | CC49: =$IN49*CC$70/$IN$70 -> 84.66742473 | CD49: 713.5905171 | CE49: 2562.097004 | CF49: 2536.901957 | CG49: 805.95823 | CH49: 35.00135447 | CI49: 617.6951358 | CJ49: 65.23277088 | CK49: 253.7011165 | CL49: 69.60166664 | CM49: =$IN49*CM$70/$IN$70 -> 728.6584216 | CN49: 978.8883323 | CO49: 57.34372562 | CP49: 283.0675557 | CQ49: 146.7919835 | CR49: 54.42986552 | CS49: 124.8146099 | CT49: 199.4487042 | CU49: 33.66454814 | CV49: 1000.50351 | CW49: =$IN49*CW$70/$IN$70 -> 743.4469392 | CX49: 99.54415424 | CY49: 79.96383175 | CZ49: 263.3110787 | DA49: 58.58799416 | DB49: 31.1578508 | DC49: 721.2963816 | DD49: 35.36876748 | DE49: 679.7486478 | DF49: 14.55608094 | DG49: =$IN49*DG$70/$IN$70 -> 1342.931728 | DH49: 7.203247039 | DI49: 170.5201792 | DJ49: 8.955557601 | DK49: 162.758056 | DL49: 453.2733888 | DM49: 1383.384285 | DN49: 22.22584579 | DO49: 313.7641194 | DP49: 114.6457046 | DQ49: =$IN49*DQ$70/$IN$70 -> 118.2381499 | DR49: 51.01841619 | DS49: 114.2178157 | DT49: 334.5524506 | DU49: 676.7333272 | DV49: 465.4848019 | DW49: 263.4044539 | DX49: 147.3583968 | DY49: 2547.389774 | DZ49: 75.07111045 | EA49: =$IN49*EA$70/$IN$70 -> 194.636098 | EB49: 353.9344951 | EC49: 324.3200151 | ED49: 2676.607044 | EE49: 6.39618791 | EF49: 3.382630251 | EG49: 125.482385 | EH49: 139.2272637 | EI49: 239.9860657 | EJ49: 911.4145599 | EK49: =$IN49*EK$70/$IN$70 -> 768.2111319 | EL49: 95.44994911 | EM49: 5.288545022 | EN49: 63.14152891 | EO49: 120.4445098 | EP49: 122.4961488 | EQ49: 115.0250379 | ER49: 296.2730965 | ES49: 123.5635716 | ET49: 307.7264041 | EU49: =$IN49*EU$70/$IN$70 -> 98.82222833 | EV49: 88.56373754 | EW49: 77.77483944 | EX49: 368.0245668 | EY49: 140.4368006 | EZ49: 77.05440502 | FA49: 94.10094402 | FB49: 108.1372102 | FC49: 97.5820385 | FD49: 127.0192657 | FE49: =$IN49*FE$70/$IN$70 -> 909.4629042 | FF49: 76.23876948 | FG49: 85.83680497 | FH49: 82.98236245 | FI49: 85.37006863 | FJ49: 111.8693963 | FK49: 327.6497444 | FL49: 141.800183 | FM49: 2.198808312 | FN49: 83.80748657 | FO49: =$IN49*FO$70/$IN$70 -> 94.39610215 | FP49: 9.310175117 | FQ49: 544.3120517 | FR49: 363.9458314 | FS49: 6.773257858 | FT49: 324.9385692 | FU49: 117.324582 | FV49: 79.07562555 | FW49: 336.3328933 | FX49: 3.622096622e-05 | FY49: =$IN49*FY$70/$IN$70 -> 73.7034012 | FZ49: 69.44776125 | GA49: 116.4092191 | GB49: 185.9739864 | GC49: 88.85502526 | GD49: 30.17077444 | GE49: 64.14781409 | GF49: 472.1770685 | GG49: 477.196828 | GH49: 127.053542 | GI49: =$IN49*GI$70/$IN$70 -> 1176.283751 | GJ49: 112.5981352 | GK49: 264.4226644 | GL49: 165.9080176 | GM49: 209.6203987 | GN49: 141.8181824 | GO49: 117.155197 | GP49: 547.636674 | GQ49: 134.6871561 | GR49: 95.95840133 | GS49: =$IN49*GS$70/$IN$70 -> 143.5377791 | GT49: 544.5548167 | GU49: 588.5262207 | GV49: 300.88398 | GW49: 30971.13776 | GX49: 3231.684791 | GY49: 3640.371974 | GZ49: 21756.28458 | HA49: 5198.327689 | HB49: 1138.6062 | HC49: =$IN49*HC$70/$IN$70 -> 23.81960668 | HD49: 900.3917205 | HE49: 849.6501059 | HF49: 1.01419479 | HG49: 544.6548793 | HH49: 447.0150869 | HI49: 1159.806256 | HJ49: 60.36225391 | HK49: 20.68059043 | HL49: 2727.896308 | HM49: =$IN49*HM$70/$IN$70 -> 822.785334 | HN49: 97.57534426 | HO49: 101.2109309 | HP49: 74.82389332 | HQ49: 101.5088527 | HR49: 95.24701282 | HS49: 296.935721 | HT49: 65.98108691 | HU49: 69.10896855 | HV49: 553.5767509 | HW49: =$IN49*HW$70/$IN$70 -> 22.04034914 | HX49: 239.1640771 | HY49: 171.2694579 | HZ49: 196.5130754 | IA49: 109.2042134 | IB49: 207.8975687 | IC49: 355.6099485 | ID49: 2192.00174 | IE49: 110.7015432 | IF49: 321.3897718 | IG49: =$IN49*IG$70/$IN$70 -> 138.7647749 | IH49: 108.1754814 | II49: 0.007047876812 | IJ49: 38.54328543 | IK49: 238.9739441 | IL49: 169.7063464 | IM49: 1262.668305 | IN49: 407220.9986
A50: =+MATCH(B50,RUT[EMPRESA],0) -> 195 | B50: LICAN | C50: 339894332.3 | D50: 339894332.3 | F50: =IFERROR(INDEX($B$9:$B$511,MATCH(0,INDEX(COUNTIF($F$8:F49,$B$9:$B$511),0,0),0)),"") -> LICAN | H50: 339894332.3 | J50: EL_PELICANO | K50: 77706597.47 | L50: 48143789.29 | M50: 746795.9805 | N50: 157845025.1 | O50: 25677813.22 | P50: 5962564.537 | Q50: 1883235.648 | R50: 78701.25403 | S50: 112142.6498 | T50: 510123.4652 | U50: 254291.685 | V50: 1209387.821 | W50: 223716.117 | X50: 1632741.566 | Y50: 350343.386 | Z50: 197058.7315 | AA50: 1064192.158 | AB50: 1055656.493 | AC50: 6489019.735 | AD50: 334648.1845 | AE50: 690.7681474 | AF50: 183601.2458 | AG50: 30384.68934 | AH50: 229119.742 | AI50: 1168984.454 | AJ50: 140896.3579 | AK50: 883254.739 | AL50: 238885.9889 | AM50: 1465891.038 | AN50: 4554299.091 | AO50: 3918347.736 | AP50: 97771.41818 | AQ50: 263363.7298 | AR50: 16317700.88 | AS50: 1433652.549 | AT50: 151952.8042 | AU50: 19821905.43 | AV50: 230410.1369 | AW50: 1924813.896 | AX50: 1595958.4 | AY50: 589886.6093 | AZ50: 476992.5888 | BA50: 992152.9848 | BB50: 7379.641882 | BC50: 27878.40295 | BD50: 1081904.652 | BE50: 5028.330195 | BF50: 3248205.554 | BG50: 6694.301561 | BH50: 62789.86506 | BI50: 3478856.58 | BJ50: 847841.4203 | BK50: 56922.37657 | BL50: 41461.80308 | BM50: 21764445.43 | BN50: 207855.4009 | BO50: 5253596.283 | BP50: 2374455.188 | BQ50: 1435307.007 | BR50: 4112.618088 | BS50: 701907.7543 | BT50: 141387.1499 | BU50: 146345.8714 | BV50: 2849201.455 | BW50: 170978.268 | BX50: 158185.3401 | BY50: 150921.6316 | BZ50: 3030512.843 | CA50: 8326768.631 | CB50: 895145.7356 | CC50: 131992.6019 | CD50: 1112454.635 | CE50: 3994190.812 | CF50: 3954912.899 | CG50: 1256451.63 | CH50: 54565.49389 | CI50: 962958.1675 | CJ50: 101694.8748 | CK50: 395508.3148 | CL50: 108505.7814 | CM50: 1135944.801 | CN50: 1526041.667 | CO50: 89396.21787 | CP50: 441289.2363 | CQ50: 228841.9178 | CR50: 84853.64465 | CS50: 194580.2081 | CT50: 310931.3115 | CU50: 52481.47462 | CV50: 1559738.73 | CW50: 1158999.417 | CX50: 155184.7356 | CY50: 124659.9179 | CZ50: 410489.8018 | DA50: 91335.97503 | DB50: 48573.64932 | DC50: 1124467.721 | DD50: 55138.27379 | DE50: 1059696.725 | DF50: 22692.25742 | DG50: 2093568.495 | DH50: 11229.52921 | DI50: 265833.0782 | DJ50: 13961.30038 | DK50: 253732.2869 | DL50: 706632.2633 | DM50: 2156632.162 | DN50: 34649.06633 | DO50: 489143.7603 | DP50: 178727.3546 | DQ50: 184327.8108 | DR50: 79535.35283 | DS50: 178060.2957 | DT50: 521551.8079 | DU50: 1054995.979 | DV50: 725669.2919 | DW50: 410635.3693 | DX50: 229724.9299 | DY50: 3971262.919 | DZ50: 117032.3915 | EA50: 303428.6809 | EB50: 551767.5195 | EC50: 505599.9138 | ED50: 4172706.672 | EE50: 9971.361327 | EF50: 5273.36422 | EG50: 195621.2386 | EH50: 217048.8692 | EI50: 374127.1846 | EJ50: 1420853.174 | EK50: 1197605.649 | EL50: 148802.0591 | EM50: 8244.597259 | EN50: 98434.72523 | EO50: 187767.424 | EP50: 190965.8343 | EQ50: 179318.7178 | ER50: 461876.064 | ES50: 192629.8971 | ET50: 479731.2412 | EU50: 154059.2865 | EV50: 138066.7735 | EW50: 121247.38 | EX50: 573733.2899 | EY50: 218934.4813 | EZ50: 120124.2561 | FA50: 146699.0225 | FB50: 168580.9127 | FC50: 152125.8879 | FD50: 198017.1646 | FE50: 1417810.633 | FF50: 118852.7179 | FG50: 133815.6117 | FH50: 129365.6677 | FI50: 133087.9913 | FJ50: 174399.2183 | FK50: 510790.8079 | FL50: 221059.9314 | FM50: 3427.840532 | FN50: 130651.9981 | FO50: 147159.1604 | FP50: 14514.1327 | FQ50: 848557.3311 | FR50: 567374.73 | FS50: 10559.19595 | FT50: 506564.211 | FU50: 182903.6007 | FV50: 123275.2454 | FW50: 524327.4358 | FX50: 0.05646681224 | FY50: 114900.196 | FZ50: 108265.85 | GA50: 181476.5923 | GB50: 289924.8493 | GC50: 138520.8776 | GD50: 47034.84289 | GE50: 100003.4773 | GF50: 736102.2262 | GG50: 743927.7994 | GH50: 198070.5997 | GI50: 1833772.002 | GJ50: 175535.2886 | GK50: 412222.7124 | GL50: 258642.9314 | GM50: 326788.5131 | GN50: 221087.9916 | GO50: 182639.5373 | GP50: 853740.2636 | GQ50: 209971.0513 | GR50: 149594.7126 | GS50: 223768.7634 | GT50: 848935.7904 | GU50: 917485.1771 | GV50: 469064.2183 | GW50: 48282572.31 | GX50: 5038047.224 | GY50: 5675171.654 | GZ50: 33917042.11 | HA50: 8103952.607 | HB50: 1775034.441 | HC50: 37133.6659 | HD50: 1403669.077 | HE50: 1324565.245 | HF50: 1581.082803 | HG50: 849091.7835 | HH50: 696875.8599 | HI50: 1808084.348 | HJ50: 94101.96397 | HK50: 32240.08465 | HL50: 4252664.263 | HM50: 1282684.307 | HN50: 152115.4519 | HO50: 157783.1635 | HP50: 116646.9914 | HQ50: 158247.6098 | HR50: 148485.6908 | HS50: 462909.065 | HT50: 102861.4649 | HU50: 107737.6878 | HV50: 863000.5689 | HW50: 34359.88562 | HX50: 372845.7423 | HY50: 267001.1689 | HZ50: 306354.8019 | IA50: 170244.3214 | IB50: 324102.7008 | IC50: 554379.4738 | ID50: 3417229.401 | IE50: 172578.5894 | IF50: 501031.7999 | IG50: 216327.8705 | IH50: 168640.5757 | II50: 10.9873142 | IJ50: 60087.20055 | IK50: 372549.3337 | IL50: 264564.3504 | IM50: 1968441.529 | IN50: 634838715.5
A51: =+MATCH(B51,RUT[EMPRESA],0) -> 111 | B51: ENERGIA PACIFICO | C51: 292432306.5 | D51: 292432306.5 | F51: =IFERROR(INDEX($B$9:$B$511,MATCH(0,INDEX(COUNTIF($F$8:F50,$B$9:$B$511),0,0),0)),"") -> ENERGIA PACIFICO | H51: 292432306.5 | J51: EMBALSE_ANCOA | K51: 3626380.65 | L51: 2246755.251 | M51: 34851.17843 | N51: 7366248.985 | O51: 1198321.996 | P51: 278258.5954 | Q51: 87886.09378 | R51: 3672.798888 | S51: 5233.428671 | T51: 23806.23942 | U51: 11867.18343 | V51: 56439.23084 | W51: 10440.29496 | X51: 76196.13538 | Y51: 16349.68609 | Z51: 9196.258671 | AA51: 49663.29728 | AB51: 49264.95825 | AC51: 302826.9976 | AD51: 15617.22866 | AE51: 32.23649375 | AF51: 8568.23007 | AG51: 1417.980623 | AH51: 10692.46918 | AI51: 54553.70256 | AJ51: 6575.295311 | AK51: 41219.38161 | AL51: 11148.23652 | AM51: 68409.62115 | AN51: 212538.2224 | AO51: 182859.897 | AP51: 4562.75774 | AQ51: 12290.55402 | AR51: 761507.9884 | AS51: 66905.12816 | AT51: 7091.273161 | AU51: 925040.8157 | AV51: 10752.68882 | AW51: 89826.45095 | AX51: 74479.55321 | AY51: 27528.59417 | AZ51: 22260.10082 | BA51: 46301.40173 | BB51: 344.3901985 | BC51: 1301.018244 | BD51: 50489.8969 | BE51: 234.6601179 | BF51: 151585.9676 | BG51: 312.4070084 | BH51: 2930.252502 | BI51: 162349.8982 | BJ51: 39566.72691 | BK51: 2656.430878 | BL51: 1934.922971 | BM51: 1015694.501 | BN51: 9700.113354 | BO51: 245172.7463 | BP51: 110810.1323 | BQ51: 66982.33777 | BR51: 191.9260287 | BS51: 32756.3525 | BT51: 6598.199397 | BU51: 6829.611046 | BV51: 132965.4027 | BW51: 7979.145953 | BX51: 7382.130669 | BY51: 7043.150803 | BZ51: 141426.7706 | CA51: 388590.3337 | CB51: 41774.30592 | CC51: 6159.778361 | CD51: 51915.59138 | CE51: 186399.3116 | CF51: 184566.3055 | CG51: 58635.58601 | CH51: 2546.440813 | CI51: 44938.94958 | CJ51: 4745.856057 | CK51: 18457.42506 | CL51: 5063.704741 | CM51: 53011.82116 | CN51: 71216.70685 | CO51: 4171.907216 | CP51: 20593.91094 | CQ51: 10679.50379 | CR51: 3959.916211 | CS51: 9080.591923 | CT51: 14510.41904 | CU51: 2449.184628 | CV51: 72789.26803 | CW51: 54087.72479 | CX51: 7242.099652 | CY51: 5817.579571 | CZ51: 19156.57515 | DA51: 4262.431033 | DB51: 2266.815788 | DC51: 52476.21333 | DD51: 2573.171078 | DE51: 49453.50617 | DF51: 1058.993263 | DG51: 97701.82361 | DH51: 524.0552122 | DI51: 12405.79259 | DJ51: 651.5404253 | DK51: 11841.07766 | DL51: 32976.83401 | DM51: 100644.8538 | DN51: 1616.988876 | DO51: 22827.16687 | DP51: 8340.777251 | DQ51: 8602.137118 | DR51: 3711.724279 | DS51: 8309.647209 | DT51: 24339.57277 | DU51: 49234.13365 | DV51: 33865.24651 | DW51: 19163.36844 | DX51: 10720.71185 | DY51: 185329.3218 | DZ51: 5461.621198 | EA51: 14160.28925 | EB51: 25749.66761 | EC51: 23595.13611 | ED51: 194730.2189 | EE51: 465.3395329 | EF51: 246.0952685 | EG51: 9129.174324 | EH51: 10129.15049 | EI51: 17459.61896 | EJ51: 66307.81202 | EK51: 55889.38511 | EL51: 6944.235435 | EM51: 384.7555927 | EN51: 4593.71269 | EO51: 8762.655622 | EP51: 8911.917765 | EQ51: 8368.374755 | ER51: 21554.64885 | ES51: 8989.575585 | ET51: 22387.90716 | EU51: 7189.577639 | EV51: 6443.245389 | EW51: 5658.324609 | EX51: 26774.75747 | EY51: 10217.14748 | EZ51: 5605.911106 | FA51: 6846.091759 | FB51: 7867.267128 | FC51: 7099.350559 | FD51: 9240.986447 | FE51: 66165.82392 | FF51: 5546.57147 | FG51: 6244.853856 | FH51: 6037.185637 | FI51: 6210.897557 | FJ51: 8138.793503 | FK51: 23837.3827 | FL51: 10316.33714 | FM51: 159.9691015 | FN51: 6097.215592 | FO51: 6867.565291 | FP51: 677.3397845 | FQ51: 39600.13675 | FR51: 26478.01872 | FS51: 492.7723657 | FT51: 23640.13755 | FU51: 8535.672646 | FV51: 5752.960228 | FW51: 24469.10467 | FX51: 0.002635170783 | FY51: 5362.116744 | FZ51: 5052.507718 | GA51: 8469.077583 | GB51: 13530.0978 | GC51: 6464.437339 | GD51: 2195.003381 | GE51: 4666.92259 | GF51: 34352.12654 | GG51: 34717.32729 | GH51: 9243.480133 | GI51: 85577.74399 | GJ51: 8191.81118 | GK51: 19237.44594 | GL51: 12070.24567 | GM51: 15250.43663 | GN51: 10317.64665 | GO51: 8523.349439 | GP51: 39842.01178 | GQ51: 9798.845688 | GR51: 6981.226675 | GS51: 10442.75184 | GT51: 39617.79854 | GU51: 42816.83411 | GV51: 21890.10278 | GW51: 2253231.922 | GX51: 235113.5883 | GY51: 264846.6584 | GZ51: 1582827.06 | HA51: 378192.0439 | HB51: 82836.6028 | HC51: 1732.939183 | HD51: 65505.8714 | HE51: 61814.28516 | HF51: 73.78534472 | HG51: 39625.07836 | HH51: 32521.52605 | HI51: 84378.96277 | HJ51: 4391.513107 | HK51: 1504.567475 | HL51: 198461.648 | HM51: 59859.80218 | HN51: 7098.863535 | HO51: 7363.36205 | HP51: 5443.635499 | HQ51: 7385.036648 | HR51: 6929.471285 | HS51: 21602.85652 | HT51: 4800.298021 | HU51: 5027.859656 | HV51: 40274.16804 | HW51: 1603.493505 | HX51: 17399.81713 | HY51: 12460.30458 | HZ51: 14296.84431 | IA51: 7944.894424 | IB51: 15125.09621 | IC51: 25871.56126 | ID51: 159473.9054 | IE51: 8053.829114 | IF51: 23381.95319 | IG51: 10095.5032 | IH51: 7870.051458 | II51: 0.5127516186 | IJ51: 2804.125628 | IK51: 17385.98445 | IL51: 12346.5841 | IM51: 91862.44803 | IN51: 29626401.22
A52: =+MATCH(B52,RUT[EMPRESA],0) -> 78 | B52: DONGUIL | C52: 7296831.025 | D52: 7296831.025 | F52: =IFERROR(INDEX($B$9:$B$511,MATCH(0,INDEX(COUNTIF($F$8:F51,$B$9:$B$511),0,0),0)),"") -> DONGUIL | H52: 7296831.025 | J52: CH_EL_MANZANO | K52: 1680.724978 | L52: 1041.307583 | M52: 16.15253658 | N52: 3414.048292 | O52: 555.38839 | P52: 128.9649975 | Q52: 40.73272149 | R52: 1.70223852 | S52: 2.425546333 | T52: 11.03351939 | U52: 5.500104245 | V52: 26.15798896 | W52: 4.838781753 | X52: 35.31475604 | Y52: 7.577617589 | Z52: 4.26220608 | AA52: 23.01753519 | AB52: 22.83291631 | AC52: 140.3517578 | AD52: 7.238144261 | AE52: 0.0149407041 | AF52: 3.971132566 | AG52: 0.6571939575 | AH52: 4.955657381 | AI52: 25.28409987 | AJ52: 3.04746361 | AK52: 19.10401884 | AL52: 5.166892665 | AM52: 31.70592668 | AN52: 98.50546143 | AO52: 84.75039607 | AP52: 2.114709304 | AQ52: 5.696324551 | AR52: 352.9374383 | AS52: 31.00863669 | AT52: 3.286604766 | AU52: 428.7302836 | AV52: 4.983567483 | AW52: 41.63202222 | AX52: 34.5191687 | AY52: 12.75872565 | AZ52: 10.31692784 | BA52: 21.45939158 | BB52: 0.1596151272 | BC52: 0.6029851995 | BD52: 23.40064076 | BE52: 0.108758335 | BF52: 70.25581337 | BG52: 0.1447918222 | BH52: 1.358089249 | BI52: 75.24459107 | BJ52: 18.33806007 | BK52: 1.231180662 | BL52: 0.896782131 | BM52: 470.7457058 | BN52: 4.49572849 | BO52: 113.6306412 | BP52: 51.35736569 | BQ52: 31.04442116 | BR52: 0.08895229196 | BS52: 15.18164394 | BT52: 3.058079007 | BU52: 3.165331768 | BV52: 61.62570759 | BW52: 3.698108721 | BX52: 3.421409003 | BY52: 3.264301413 | BZ52: 65.54731254 | CA52: 180.1006411 | CB52: 19.36121058 | CC52: 2.854883243 | CD52: 24.06140987 | CE52: 86.39081472 | CF52: 85.5412682 | CG52: 27.17593753 | CH52: 1.180203374 | CI52: 20.8279335 | CJ52: 2.199570201 | CK52: 8.554495054 | CL52: 2.346884086 | CM52: 24.56948141 | CN52: 33.00693159 | CO52: 1.933561129 | CP52: 9.544695896 | CQ52: 4.949648289 | CR52: 1.835309288 | CS52: 4.20859781 | CT52: 6.725169274 | CU52: 1.13512788 | CV52: 33.73576928 | CW52: 25.06813234 | CX52: 3.356508583 | CY52: 2.696283772 | CZ52: 8.878531367 | DA52: 1.975516361 | DB52: 1.050605075 | DC52: 24.32124231 | DD52: 1.192592097 | DE52: 22.92030294 | DF52: 0.4908134586 | DG52: 45.28203495 | DH52: 0.2428847851 | DI52: 5.749734373 | DJ52: 0.3019705796 | DK52: 5.488004959 | DL52: 15.2838309 | DM52: 46.64604629 | DN52: 0.7494286604 | DO52: 10.57974693 | DP52: 3.865714611 | DQ52: 3.986847525 | DR52: 1.720279339 | DS52: 3.851286715 | DT52: 11.28070433 | DU52: 22.81862997 | DV52: 15.69558499 | DW52: 8.881679865 | DX52: 4.968747061 | DY52: 85.89490468 | DZ52: 2.531307122 | EA52: 6.562894009 | EB52: 11.93424345 | EC52: 10.93567897 | ED52: 90.25195489 | EE52: 0.2156717266 | EF52: 0.1140582042 | EG52: 4.23111438 | EH52: 4.69457508 | EI52: 8.092040117 | EJ52: 30.73179753 | EK52: 25.903151 | EL52: 3.218456934 | EM52: 0.178323347 | EN52: 2.129056049 | EO52: 4.061243316 | EP52: 4.130422103 | EQ52: 3.878505274 | ER52: 9.989970773 | ES52: 4.166414308 | ET52: 10.37616246 | EU52: 3.332166114 | EV52: 2.986262202 | EW52: 2.622473596 | EX52: 12.40934364 | EY52: 4.735359202 | EZ52: 2.598181418 | FA52: 3.172970113 | FB52: 3.646256046 | FC52: 3.290348412 | FD52: 4.28293614 | FE52: 30.66599006 | FF52: 2.570679174 | FG52: 2.894313331 | FH52: 2.798064979 | FI52: 2.878575546 | FJ52: 3.77210085 | FK52: 11.04795342 | FL52: 4.781330807 | FM52: 0.07414115906 | FN52: 2.825887167 | FO52: 3.182922488 | FP52: 0.3139278538 | FQ52: 18.35354459 | FR52: 12.27181361 | FS52: 0.2283860696 | FT52: 10.95653587 | FU52: 3.95604312 | FV52: 2.666334532 | FW52: 11.34073871 | FX52: 1.221327208e-06 | FY52: 2.485189619 | FZ52: 2.341694583 | GA52: 3.925178189 | GB52: 6.270818075 | GC52: 2.996084072 | GD52: 1.017322053 | GE52: 2.16298677 | GF52: 15.92124013 | GG52: 16.09050036 | GH52: 4.284091893 | GI52: 39.66286658 | GJ52: 3.796673045 | GK52: 8.916012692 | GL52: 5.594217857 | GM52: 7.06814652 | GN52: 4.781937724 | GO52: 3.950331662 | GP52: 18.46564684 | GQ52: 4.541488137 | GR52: 3.235601329 | GS52: 4.839920448 | GT52: 18.36173033 | GU52: 19.84439294 | GV52: 10.14544419 | GW52: 1044.309337 | GX52: 108.9685057 | GY52: 122.7489436 | GZ52: 733.5956241 | HA52: 175.2813276 | HB52: 38.39242508 | HC52: 0.8031683518 | HD52: 30.36012071 | HE52: 28.64917478 | HF52: 0.03419742268 | HG52: 18.36510432 | HH52: 15.07280852 | HI52: 39.10726535 | HJ52: 2.035342255 | HK52: 0.6973245172 | HL52: 91.98136687 | HM52: 27.74332714 | HN52: 3.29012269 | HO52: 3.412710279 | HP52: 2.522971259 | HQ52: 3.422755843 | HR52: 3.211614168 | HS52: 10.01231367 | HT52: 2.224802514 | HU52: 2.330270902 | HV52: 18.66593905 | HW52: 0.7431739375 | HX52: 8.064323655 | HY52: 5.774999143 | HZ52: 6.626183419 | IA52: 3.682234105 | IB52: 7.010054776 | IC52: 11.99073771 | ID52: 73.91164968 | IE52: 3.732722256 | IF52: 10.83687471 | IG52: 4.678980515 | IH52: 3.647546504 | II52: 0.0002376458889 | IJ52: 1.299633006 | IK52: 8.057912598 | IL52: 5.722292914 | IM52: 42.57564934 | IN52: 13730.99995
A53: =+MATCH(B53,RUT[EMPRESA],0) -> 245 | B53: PEHUI | C53: 19655239.43 | D53: 19655239.43 | F53: =IFERROR(INDEX($B$9:$B$511,MATCH(0,INDEX(COUNTIF($F$8:F52,$B$9:$B$511),0,0),0)),"") -> PEHUI | H53: 19655239.43 | J53: LIPIGAS | K53: 30746617.66 | L53: 19049330.82 | M53: 295489.0734 | N53: 62455451.59 | O53: 10160088.48 | P53: 2359242.305 | Q53: 745150.712 | R53: 31140.17916 | S53: 44372.12911 | T53: 201843.4941 | U53: 100617.0578 | V53: 478525.4553 | W53: 88519.04651 | X53: 646036.2736 | Y53: 138622.3885 | Z53: 77971.365 | AA53: 421075.05 | AB53: 417697.6941 | AC53: 2567547.87 | AD53: 132412.1775 | AE53: 273.3202175 | AF53: 72646.564 | AG53: 12022.4853 | AH53: 90657.12996 | AI53: 462538.8222 | AJ53: 55749.27468 | AK53: 349482.4975 | AL53: 94521.39723 | AM53: 580017.5627 | AN53: 1802025.792 | AO53: 1550395.251 | AP53: 38685.78102 | AQ53: 104206.6461 | AR53: 6456518.834 | AS53: 567261.574 | AT53: 60124.04258 | AU53: 7843047.663 | AV53: 91167.70797 | AW53: 761602.2172 | AX53: 631482.0663 | AY53: 233403.8374 | AZ53: 188734.4091 | BA53: 392570.8946 | BB53: 2919.945472 | BC53: 11030.80851 | BD53: 428083.4544 | BE53: 1989.588414 | BF53: 1285236.229 | BG53: 2648.772914 | BH53: 24844.4281 | BI53: 1376499.251 | BJ53: 335470.3055 | BK53: 22522.80509 | BL53: 16405.43079 | BM53: 8611663.67 | BN53: 82243.34546 | BO53: 2078720.746 | BP53: 939514.3809 | BQ53: 567916.203 | BR53: 1627.263322 | BS53: 277727.89 | BT53: 55943.46918 | BU53: 57905.51514 | BV53: 1127359.975 | BW53: 67651.95757 | BX53: 62590.10598 | BY53: 59716.03253 | BZ53: 1199100.498 | CA53: 3294700.576 | CB53: 354187.4768 | CC53: 52226.27419 | CD53: 440171.3424 | CE53: 1580404.519 | CF53: 1564863.2 | CG53: 497147.4642 | CH53: 21590.24372 | CI53: 381019.2128 | CJ53: 40238.19774 | CK53: 156493.0564 | CL53: 42933.10842 | CM53: 449465.8322 | CN53: 603817.7091 | CO53: 35371.9172 | CP53: 174607.4576 | CQ53: 90547.20165 | CR53: 33574.53105 | CS53: 76990.67334 | CT53: 123027.9856 | CU53: 20765.6478 | CV53: 617150.8206 | CW53: 458587.9848 | CX53: 61402.83951 | CY53: 49324.90879 | CZ53: 162420.8677 | DA53: 36139.4321 | DB53: 19219.41602 | DC53: 444924.6297 | DD53: 21816.87885 | DE53: 419296.3158 | DF53: 8978.776393 | DG53: 828374.3228 | DH53: 4443.252598 | DI53: 105183.7075 | DJ53: 5524.148257 | DK53: 100395.7176 | DL53: 279597.2638 | DM53: 853327.0878 | DN53: 13709.79594 | DO53: 193542.3332 | DP53: 70718.08337 | DQ53: 72934.04818 | DR53: 31470.21184 | DS53: 70454.14431 | DT53: 206365.4123 | DU53: 417436.3447 | DV53: 287129.7547 | DW53: 162478.4653 | DX53: 90896.58816 | DY53: 1571332.507 | DZ53: 46306.88143 | EA53: 120059.3765 | EB53: 218321.0372 | EC53: 200053.6344 | ED53: 1651038.919 | EE53: 3945.426055 | EF53: 2086.54244 | EG53: 77402.5839 | EH53: 85880.97812 | EI53: 148033.0612 | EJ53: 562197.1715 | EK53: 473863.5353 | EL53: 58877.36906 | EM53: 3262.187355 | EN53: 38948.23554 | EO53: 74295.01977 | EP53: 75560.55324 | EQ53: 70952.07146 | ER53: 182753.1665 | ES53: 76218.98254 | ET53: 189818.0275 | EU53: 60957.52657 | EV53: 54629.67669 | EW53: 47974.65025 | EX53: 227012.3603 | EY53: 86627.06914 | EZ53: 47530.25732 | FA53: 58045.24844 | FB53: 66703.38218 | FC53: 60192.52758 | FD53: 78350.59376 | FE53: 560993.3117 | FF53: 47027.1405 | FG53: 52947.59497 | FH53: 51186.85997 | FI53: 52659.69322 | FJ53: 69005.54471 | FK53: 202107.5454 | FL53: 87468.05823 | FM53: 1356.313436 | FN53: 51695.82973 | FO53: 58227.31385 | FP53: 5742.890609 | FQ53: 335753.574 | FR53: 224496.4323 | FS53: 4178.01797 | FT53: 200435.1834 | FU53: 72370.52275 | FV53: 48777.02746 | FW53: 207463.661 | FX53: 0.02234254932 | FY53: 45463.22333 | FZ53: 42838.17338 | GA53: 71805.89009 | GB53: 114716.2375 | GC53: 54809.35468 | GD53: 18610.5476 | GE53: 39568.95274 | GF53: 291257.814 | GG53: 294354.2037 | GH53: 78371.73672 | GI53: 725579.1459 | GJ53: 69455.06019 | GK53: 163106.5385 | GL53: 102338.7406 | GM53: 129302.296 | GN53: 87479.16096 | GO53: 72266.03926 | GP53: 337804.3348 | GQ53: 83080.45706 | GR53: 59191.00285 | GS53: 88539.87741 | GT53: 335903.3212 | GU53: 363026.6524 | GV53: 185597.345 | GW53: 19104243.9 | GX53: 1993433.206 | GY53: 2245527.905 | GZ53: 13420151.7 | HA53: 3206537.675 | HB53: 702338.1163 | HC53: 14692.89179 | HD53: 555397.8407 | HE53: 524098.3712 | HF53: 625.5961528 | HG53: 335965.0439 | HH53: 275736.8913 | HI53: 715415.1639 | HJ53: 37233.8669 | HK53: 12756.62027 | HL53: 1682676.2 | HM53: 507527.0989 | HN53: 60188.3983 | HO53: 62430.97444 | HP53: 46154.38796 | HQ53: 62614.7446 | HR53: 58752.18979 | HS53: 183161.9 | HT53: 40699.78917 | HU53: 42629.19242 | HV53: 341468.4132 | HW53: 13595.37415 | HX53: 147526.0256 | HY53: 105645.8927 | HZ53: 121217.1716 | IA53: 67361.55269 | IB53: 128239.5852 | IC53: 219354.5243 | ID53: 1352114.869 | IE53: 68285.16595 | IF53: 198246.1424 | IG53: 85595.69639 | IH53: 66726.98939 | II53: 4.347413991 | IJ53: 23775.04925 | IK53: 147408.7439 | IL53: 104681.7026 | IM53: 778864.6145 | IN53: 251190296.6
A54: =+MATCH(B54,RUT[EMPRESA],0) -> 61 | B54: COMASA | C54: 1217815065 | D54: 1217815065 | F54: =IFERROR(INDEX($B$9:$B$511,MATCH(0,INDEX(COUNTIF($F$8:F53,$B$9:$B$511),0,0),0)),"") -> COMASA | H54: 1217815065 | J54: AASA_ENERGIA | K54: 225661.1711 | L54: 139810.3151 | M54: 2168.707176 | N54: 458384.415 | O54: 74568.77012 | P54: 17315.38042 | Q54: 5468.945697 | R54: 228.5496693 | S54: 325.6640041 | T54: 1481.4065 | U54: 738.4670197 | V54: 3512.081097 | W54: 649.6750935 | X54: 4741.506975 | Y54: 1017.402658 | Z54: 572.2616301 | AA54: 3090.430627 | AB54: 3065.642923 | AC54: 18844.21453 | AD54: 971.8235478 | AE54: 2.006001475 | AF54: 533.1808817 | AG54: 88.23761179 | AH54: 665.3673046 | AI54: 3394.74909 | AJ54: 409.1652211 | AK54: 2564.985539 | AL54: 693.7286381 | AM54: 4256.970439 | AN54: 13225.7556 | AO54: 11378.94295 | AP54: 283.9297235 | AQ54: 764.8123793 | AR54: 47386.85789 | AS54: 4163.349365 | AT54: 441.2733138 | AU54: 57563.12257 | AV54: 669.1146317 | AW54: 5589.689577 | AX54: 4634.688089 | AY54: 1713.039915 | AZ54: 1385.193918 | BA54: 2881.227744 | BB54: 21.43059514 | BC54: 80.95931702 | BD54: 3141.867985 | BE54: 14.60234932 | BF54: 9432.839597 | BG54: 19.44035615 | BH54: 182.3427476 | BI54: 10102.65377 | BJ54: 2462.14471 | BK54: 165.3034695 | BL54: 120.4057229 | BM54: 63204.28903 | BN54: 603.6153264 | BO54: 15256.52555 | BP54: 6895.454903 | BQ54: 4168.153938 | BR54: 11.94310708 | BS54: 2038.351067 | BT54: 410.5904887 | BU54: 424.9906935 | BV54: 8274.12547 | BW54: 496.5235573 | BX54: 459.372695 | BY54: 438.2787722 | BZ54: 8800.656567 | CA54: 24181.06599 | CB54: 2599.517179 | CC54: 383.3085749 | CD54: 3230.585612 | CE54: 11599.19242 | CF54: 11485.12875 | CG54: 3648.755133 | CH54: 158.4590454 | CI54: 2796.445539 | CJ54: 295.3235028 | CK54: 1148.562316 | CL54: 315.1024816 | CM54: 3298.801423 | CN54: 4431.648805 | CO54: 259.6080112 | CP54: 1281.510826 | CQ54: 664.5604987 | CR54: 246.4163077 | CS54: 565.0639593 | CT54: 902.9493787 | CU54: 152.4070209 | CV54: 4529.505603 | CW54: 3365.752385 | CX54: 450.6588929 | CY54: 362.014346 | CZ54: 1192.068787 | DA54: 265.2410962 | DB54: 141.0586353 | DC54: 3265.471803 | DD54: 160.1224072 | DE54: 3077.375818 | DF54: 65.89866953 | DG54: 6079.755565 | DH54: 32.61072798 | DI54: 771.9834056 | DJ54: 40.54383409 | DK54: 736.8425189 | DL54: 2052.071115 | DM54: 6262.893438 | DN54: 100.6214291 | DO54: 1420.48111 | DP54: 519.0270257 | DQ54: 535.2908378 | DR54: 230.9719052 | DS54: 517.0898761 | DT54: 1514.594585 | DU54: 3063.72478 | DV54: 2107.354943 | DW54: 1192.491518 | DX54: 667.1247798 | DY54: 11532.60946 | DZ54: 339.8638904 | EA54: 881.1616222 | EB54: 1602.341483 | EC54: 1468.270036 | ED54: 12117.60526 | EE54: 28.95698883 | EF54: 15.31393195 | EG54: 568.0871283 | EH54: 630.3133019 | EI54: 1086.47118 | EJ54: 4126.179781 | EK54: 3477.865485 | EL54: 432.1235006 | EM54: 23.94243904 | EN54: 285.8559775 | EO54: 545.2795282 | EP54: 554.5677617 | EQ54: 520.7443537 | ER54: 1341.295295 | ES54: 559.4002259 | ET54: 1393.147007 | EU54: 447.3905711 | EV54: 400.9480639 | EW54: 352.1042829 | EX54: 1666.130423 | EY54: 635.7891489 | EZ54: 348.8427134 | FA54: 426.0162496 | FB54: 489.5616002 | FC54: 441.7759513 | FD54: 575.0449348 | FE54: 4117.344195 | FF54: 345.1501469 | FG54: 388.6026236 | FH54: 375.6799169 | FI54: 386.4896027 | FJ54: 506.4580503 | FK54: 1483.344474 | FL54: 641.9614891 | FM54: 9.954502374 | FN54: 379.4154404 | FO54: 427.3524972 | FP54: 42.14926776 | FQ54: 2464.223726 | FR54: 1647.665066 | FS54: 30.66406974 | FT54: 1471.07037 | FU54: 531.1549095 | FV54: 357.9932357 | FW54: 1522.655052 | FX54: 0.0001639805035 | FY54: 333.6719614 | FZ54: 314.4057171 | GA54: 527.0108547 | GB54: 841.9462848 | GC54: 402.2667893 | GD54: 136.5899174 | GE54: 290.4116581 | GF54: 2137.652347 | GG54: 2160.377934 | GH54: 575.200111 | GI54: 5325.302498 | GJ54: 509.7572161 | GK54: 1197.101187 | GL54: 751.1031071 | GM54: 948.9989395 | GN54: 642.0429763 | GO54: 530.3880652 | GP54: 2479.275042 | GQ54: 609.7592082 | GR54: 434.4253788 | GS54: 649.8279795 | GT54: 2465.322778 | GU54: 2664.391266 | GV54: 1362.169807 | GW54: 140213.3431 | GX54: 14630.56772 | GY54: 16480.78701 | GZ54: 98495.61936 | HA54: 23534.00478 | HB54: 5154.727704 | HC54: 107.836745 | HD54: 4076.276895 | HE54: 3846.558133 | HF54: 4.591489121 | HG54: 2465.775784 | HH54: 2023.738367 | HI54: 5250.705151 | HJ54: 273.2735712 | HK54: 93.62570872 | HL54: 12349.80336 | HM54: 3724.935237 | HN54: 441.745645 | HO54: 458.2047679 | HP54: 338.7446826 | HQ54: 459.5535273 | HR54: 431.2047621 | HS54: 1344.295145 | HT54: 298.7112986 | HU54: 312.871926 | HV54: 2506.167114 | HW54: 99.78164381 | HX54: 1082.749852 | HY54: 775.3755593 | HZ54: 889.6591234 | IA54: 494.3921649 | IB54: 941.1992987 | IC54: 1609.926639 | ID54: 9923.687484 | IE54: 501.1709155 | IF54: 1455.004162 | IG54: 628.2195104 | IH54: 489.7348625 | II54: 0.03190733184 | IJ54: 174.4941677 | IK54: 1081.889076 | IL54: 768.2990004 | IM54: 5716.384905 | IN54: 1843581.532
A55: =+MATCH(B55,RUT[EMPRESA],0) -> 44 | B55: CHACAYES | C55: -915706545.2 | D55: -915706545.2 | F55: =IFERROR(INDEX($B$9:$B$511,MATCH(0,INDEX(COUNTIF($F$8:F54,$B$9:$B$511),0,0),0)),"") -> CHACAYES | G55: -915706545.2 | J55: ERSA | K55: 120358176.6 | L55: 74568941.12 | M55: 1156697.184 | N55: 244482965.7 | O55: 39771845.35 | P55: 9235295.57 | Q55: 2916905.591 | R55: 121898.78 | S55: 173695.4812 | T55: 790119.9139 | U55: 393867.2457 | V55: 1873196.326 | W55: 346509.3672 | X55: 2528920.375 | Y55: 542639.782 | Z55: 305220.2821 | AA55: 1648305.702 | AB55: 1635084.983 | AC55: 10050711.37 | AD55: 518329.8019 | AE55: 1069.916807 | AF55: 284376.2548 | AG55: 47062.23053 | AH55: 354878.9325 | AI55: 1810616.369 | AJ55: 218231.518 | AK55: 1368055.394 | AL55: 370005.6748 | AM55: 2270488.968 | AN55: 7054061.714 | AO55: 6069049.527 | AP55: 151436.1714 | AQ55: 407918.7523 | AR55: 25274156.73 | AS55: 2220555.426 | AT55: 235356.624 | AU55: 30701748.26 | AV55: 356877.5991 | AW55: 2981305.298 | AX55: 2471947.675 | AY55: 913663.4339 | AZ55: 738804.1698 | BA55: 1536725.684 | BB55: 11430.178 | BC55: 43180.29425 | BD55: 1675740.225 | BE55: 7788.2789 | BF55: 5031079.862 | BG55: 10368.66824 | BH55: 97253.95155 | BI55: 5388330.569 | BJ55: 1313204.421 | BK55: 88165.91735 | BL55: 64219.34788 | BM55: 33710509.16 | BN55: 321943.0249 | BO55: 8137188.986 | BP55: 3677745.597 | BQ55: 2223117.983 | BR55: 6369.950945 | BS55: 1087170.719 | BT55: 218991.6958 | BU55: 226672.1592 | BV55: 4413070.486 | BW55: 264824.7799 | BX55: 245010.0726 | BY55: 233759.4615 | BZ55: 4693900.025 | CA55: 12897163.46 | CB55: 1386473.118 | CC55: 204440.6705 | CD55: 1723058.475 | CE55: 6186521.333 | CF55: 6125684.568 | CG55: 1946092.508 | CH55: 84515.38946 | CI55: 1491506.422 | CJ55: 157513.134 | CK55: 612594.8264 | CL55: 168062.4093 | CM55: 1759441.919 | CN55: 2363655.061 | CO55: 138463.9931 | CP55: 683503.9694 | CQ55: 354448.6162 | CR55: 131428.0933 | CS55: 301381.3473 | CT55: 481595.2173 | CU55: 81287.49416 | CV55: 2415847.761 | CW55: 1795150.746 | CX55: 240362.4971 | CY55: 193083.2245 | CZ55: 635799.3484 | DA55: 141468.4437 | DB55: 75234.74262 | DC55: 1741665.302 | DD55: 85402.55665 | DE55: 1641342.816 | DF55: 35147.57839 | DG55: 3242685.882 | DH55: 17393.19058 | DI55: 411743.4761 | DJ55: 21624.37568 | DK55: 393000.8053 | DL55: 1094488.415 | DM55: 3340363.92 | DN55: 53667.23777 | DO55: 757624.8733 | DP55: 276827.1833 | DQ55: 285501.6166 | DR55: 123190.6987 | DS55: 275793.9892 | DT55: 807821.0425 | DU55: 1634061.926 | DV55: 1123974.484 | DW55: 636024.8151 | DX55: 355816.2959 | DY55: 6151008.784 | DZ55: 181269.1032 | EA55: 469974.5444 | EB55: 854621.5469 | EC55: 783113.4766 | ED55: 6463020.937 | EE55: 15444.43981 | EF55: 8167.807143 | EG55: 302993.7784 | EH55: 336182.602 | EI55: 579478.0264 | EJ55: 2200730.733 | EK55: 1854947.158 | EL55: 230476.4985 | EM55: 12769.88988 | EN55: 152463.5543 | EO55: 290829.1639 | EP55: 295783.1169 | EQ55: 277743.1339 | ER55: 715390.4904 | ES55: 298360.5501 | ET55: 743046.0129 | EU55: 238619.3117 | EV55: 213848.8319 | EW55: 187797.6137 | EX55: 888643.8843 | EY55: 339103.1884 | EZ55: 186058.0297 | FA55: 227219.1477 | FB55: 261111.5648 | FC55: 235624.7097 | FD55: 306704.7797 | FE55: 2196018.203 | FF55: 184088.5701 | FG55: 207264.2934 | FH55: 200371.8652 | FI55: 206137.2969 | FJ55: 270123.4206 | FK55: 791153.5473 | FL55: 342395.255 | FM55: 5309.312844 | FN55: 202364.2363 | FO55: 227931.846 | FP55: 22480.64647 | FQ55: 1314313.281 | FR55: 878795.2395 | FS55: 16354.92496 | FT55: 784607.057 | FU55: 283295.6864 | FV55: 190938.5334 | FW55: 812120.1564 | FX55: 0.08746030297 | FY55: 177966.5888 | FZ55: 167690.7845 | GA55: 281085.4219 | GB55: 449058.733 | GC55: 214552.1846 | GD55: 72851.31649 | GE55: 154893.3626 | GF55: 1140133.844 | GG55: 1152254.716 | GH55: 306787.5442 | GI55: 2840292.351 | GJ55: 271883.0568 | GK55: 638483.4187 | GL55: 400606.8032 | GM55: 506156.116 | GN55: 342438.7169 | GO55: 282886.6839 | GP55: 1322341.02 | GQ55: 325219.913 | GR55: 231704.2235 | GS55: 346590.9101 | GT55: 1314899.469 | GU55: 1421074.227 | GV55: 726524.0771 | GW55: 74783899.34 | GX55: 7803329.409 | GY55: 8790158.548 | GZ55: 52533420.28 | HA55: 12552048.22 | HB55: 2749314.931 | HC55: 57515.58378 | HD55: 2174114.633 | HE55: 2051592.308 | HF55: 2448.907162 | HG55: 1315141.084 | HH55: 1079376.919 | HI55: 2800505.264 | HJ55: 145752.628 | HK55: 49936.01479 | HL55: 6586865.632 | HM55: 1986723.771 | HN55: 235608.5456 | HO55: 244387.1494 | HP55: 180672.1648 | HQ55: 245106.521 | HR55: 229986.4821 | HS55: 716990.4846 | HT55: 159320.0418 | HU55: 166872.7248 | HV55: 1336684.12 | HW55: 53219.33163 | HX55: 577493.2264 | HY55: 413552.7082 | HZ55: 474506.7541 | IA55: 263687.9848 | IB55: 501996.1157 | IC55: 858667.1501 | ID55: 5292877.477 | IE55: 267303.4852 | IF55: 776038.0174 | IG55: 335065.8616 | IH55: 261203.9756 | II55: 17.01802866 | IJ55: 93067.84918 | IK55: 577034.1251 | IL55: 409778.3694 | IM55: 3048879.256 | IN55: 983288841.6
A56: =+MATCH(B56,RUT[EMPRESA],0) -> 109 | B56: ENERBOSCH | C56: 106995690.5 | D56: 106995690.5 | F56: =IFERROR(INDEX($B$9:$B$511,MATCH(0,INDEX(COUNTIF($F$8:F55,$B$9:$B$511),0,0),0)),"") -> ENERBOSCH | H56: 106995690.5 | J56: ENGIE | K56: 1987498670 | L56: 1231371856 | M56: 19100772.22 | N56: 4037196167 | O56: 656760446.1 | P56: 152504285 | Q56: 48167446.1 | R56: 2012938.963 | S56: 2868268.261 | T56: 13047408.35 | U56: 6504008.696 | V56: 30932466.02 | W56: 5721978.564 | X56: 41760568.55 | Y56: 8960719.377 | Z56: 5040163.635 | AA56: 27218802.11 | AB56: 27000485.73 | AC56: 165969409.4 | AD56: 8559283.809 | AE56: 17667.75047 | AF56: 4695962.038 | AG56: 777148.0364 | AH56: 5860186.873 | AI56: 29899070.66 | AJ56: 3603700.755 | AK56: 22590972.66 | AL56: 6109977.798 | AM56: 37493038.97 | AN56: 116485133.6 | AO56: 100219430.1 | AP56: 2500695.822 | AQ56: 6736044.038 | AR56: 417357211 | AS56: 36668476.39 | AT56: 3886491.059 | AU56: 506984116.7 | AV56: 5893191.255 | AW56: 49230891.35 | AX56: 40819766.93 | AY56: 15087507.23 | AZ56: 12200021.19 | BA56: 25376258.93 | BB56: 188748.818 | BC56: 713044.8453 | BD56: 27671833.88 | BE56: 128609.409 | BF56: 83079229.17 | BG56: 171219.8949 | BH56: 1605973.976 | BI56: 88978581.64 | BJ56: 21685207.56 | BK56: 1455901.447 | BL56: 1060466.951 | BM56: 556668388 | BN56: 5316309.635 | BO56: 134371031.1 | BP56: 60731349.47 | BQ56: 36710792.4 | BR56: 105188.2755 | BS56: 17952667.77 | BT56: 3616253.723 | BU56: 3743082.754 | BV56: 72873916.6 | BW56: 4373104.618 | BX56: 4045900.39 | BY56: 3860116.795 | BZ56: 77511311.01 | CA56: 212973442.6 | CB56: 22895108.23 | CC56: 3375969.728 | CD56: 28453209.62 | CE56: 102159265.6 | CF56: 101154655.9 | CG56: 32136215.26 | CH56: 1395619.549 | CI56: 24629544.2 | CJ56: 2601045.922 | CK56: 10115901.03 | CL56: 2775248.218 | CM56: 29054016.72 | CN56: 39031509.32 | CO56: 2286483.644 | CP56: 11286837.91 | CQ56: 5853080.973 | CR56: 2170298.422 | CS56: 4976770.536 | CT56: 7952678.256 | CU56: 1342316.668 | CV56: 39893377.82 | CW56: 29643683.73 | CX56: 3969154.045 | CY56: 3188421.949 | CZ56: 10499081.95 | DA56: 2336096.738 | DB56: 1242366.37 | DC56: 28760467.88 | DD56: 1410269.519 | DE56: 27103822.58 | DF56: 580398.9998 | DG56: 53547121.28 | DH56: 287217.2388 | DI56: 6799202.468 | DJ56: 357087.6457 | DK56: 6489700.992 | DL56: 18073506.36 | DM56: 55160098.28 | DN56: 886217.8436 | DO56: 12510811.24 | DP56: 4571302.71 | DQ56: 4714545.363 | DR56: 2034272.676 | DS56: 4554241.369 | DT56: 13339710.63 | DU56: 26983591.79 | DV56: 18560415.71 | DW56: 10502805.13 | DX56: 5875665.742 | DY56: 101572839.7 | DZ56: 2993332.999 | EA56: 7760783.759 | EB56: 14112536.73 | EC56: 12931709.65 | ED56: 106725158.9 | EE56: 255037.1271 | EF56: 134876.6349 | EG56: 5003396.934 | EH56: 5551450.623 | EI56: 9569036.683 | EJ56: 36341107.27 | EK56: 30631113.85 | EL56: 3805904.571 | EM56: 210871.7486 | EN56: 2517661.201 | EO56: 4802520.219 | EP56: 4884325.837 | EQ56: 4586427.984 | ER56: 11813386.42 | ES56: 4926887.506 | ET56: 12270067.6 | EU56: 3940368.476 | EV56: 3531328.582 | EW56: 3101139.599 | EX56: 14674354.4 | EY56: 5599678.852 | EZ56: 3072413.501 | FA56: 3752115.284 | FB56: 4311787.554 | FC56: 3890918.013 | FD56: 5064677.442 | FE56: 36263288.31 | FF56: 3039891.419 | FG56: 3422596.779 | FH56: 3308780.733 | FI56: 3403986.46 | FJ56: 4460602.133 | FK56: 13064476.95 | FL56: 5654041.407 | FM56: 87673.74612 | FN56: 3341681.155 | FO56: 3763884.213 | FP56: 371227.4167 | FQ56: 21703518.39 | FR56: 14511721.76 | FS56: 270072.1507 | FT56: 12956373.44 | FU56: 4678118.396 | FV56: 3153006.235 | FW56: 13410702.76 | FX56: 1.444249496 | FY56: 2938797.916 | FZ56: 2769111.502 | GA56: 4641619.856 | GB56: 7415396.776 | GC56: 3542943.186 | GD56: 1203008.377 | GE56: 2557785.113 | GF56: 18827258.47 | GG56: 19027412.86 | GH56: 5066044.148 | GI56: 46902316.32 | GJ56: 4489659.359 | GK56: 10543404.54 | GL56: 6615300.358 | GM56: 8358257.295 | GN56: 5654759.101 | GO56: 4671364.456 | GP56: 21836082.05 | GQ56: 5370421.544 | GR56: 3826178.239 | GS56: 5723325.099 | GT56: 21713198.23 | GU56: 23466483.27 | GV56: 11997237.56 | GW56: 1234921504 | GX56: 128857941.1 | GY56: 145153648.2 | GZ56: 867494888.3 | HA56: 207274485.7 | HB56: 45399987.97 | HC56: 949766.3519 | HD56: 35901590.27 | HE56: 33878354.59 | HF56: 40439.29434 | HG56: 21717188.05 | HH56: 17823967.2 | HI56: 46245304.19 | HJ56: 2406842.331 | HK56: 824603.4114 | HL56: 108770231.1 | HM56: 32807167.45 | HN56: 3890651.092 | HO56: 4035613.934 | HP56: 2983475.636 | HQ56: 4047493.06 | HR56: 3797812.831 | HS56: 11839807.44 | HT56: 2630883.752 | HU56: 2755602.719 | HV56: 22072932.53 | HW56: 878821.4797 | HX56: 9536261.284 | HY56: 6829078.68 | HZ56: 7835625.045 | IA56: 4354332.494 | IB56: 8289562.377 | IC56: 14179342.59 | ID56: 87402345.62 | IE56: 4414035.976 | IF56: 12814871.17 | IG56: 5533009.666 | IH56: 4313313.553 | II56: 281.022115 | IJ56: 1536848.029 | IK56: 9528680.052 | IL56: 6766752.267 | IM56: 50346753.66 | IN56: 1.623724553e+10
A57: =+MATCH(B57,RUT[EMPRESA],0) -> 168 | B57: HIDROMUCHI | C57: 11340471.04 | D57: 11340471.04 | F57: =IFERROR(INDEX($B$9:$B$511,MATCH(0,INDEX(COUNTIF($F$8:F56,$B$9:$B$511),0,0),0)),"") -> HIDROMUCHI | H57: 11340471.04 | J57: GEOTERMICA_DEL_NORTE | K57: 18207069.79 | L57: 11280346.33 | M57: 174978.277 | N57: 36983930.34 | O57: 6016448.443 | P57: 1397060.638 | Q57: 441252.1457 | R57: 18440.12312 | S57: 26275.62031 | T57: 119524.6457 | U57: 59581.89659 | V57: 283366.0098 | W57: 52417.87813 | X57: 382560.0477 | Y57: 82087.32189 | Z57: 46171.91067 | AA57: 249345.8925 | AB57: 247345.9407 | AC57: 1520411.896 | AD57: 78409.85255 | AE57: 161.8506572 | AF57: 43018.75007 | AG57: 7119.294594 | AH57: 53683.97624 | AI57: 273899.2857 | AJ57: 33012.76732 | AK57: 206951.2911 | AL57: 55972.25994 | AM57: 343466.08 | AN57: 1067096.541 | AO57: 918089.7506 | AP57: 22908.36418 | AQ57: 61707.52503 | AR57: 3823324.253 | AS57: 335912.4304 | AT57: 35603.3516 | AU57: 4644378.049 | AV57: 53986.32265 | AW57: 450994.1507 | AX57: 373941.5561 | AY57: 138213.5753 | AZ57: 111761.9049 | BA57: 232466.7303 | BB57: 1729.08941 | BC57: 6532.05834 | BD57: 253496.024 | BE57: 1178.164554 | BF57: 761071.8671 | BG57: 1568.510521 | BH57: 14711.99991 | BI57: 815114.6314 | BJ57: 198653.7619 | BK57: 13337.2161 | BL57: 9714.721361 | BM57: 5099525.521 | BN57: 48701.62784 | BO57: 1230945.599 | BP57: 556347.501 | BQ57: 336300.0788 | BR57: 963.6083291 | BS57: 164460.7264 | BT57: 33127.7625 | BU57: 34289.61738 | BV57: 667583.0809 | BW57: 40061.11913 | BX57: 37063.66795 | BY57: 35361.74235 | BZ57: 710065.3049 | CA57: 1951006.253 | CB57: 209737.415 | CC57: 30926.56986 | CD57: 260654.0478 | CE57: 935860.1873 | CF57: 926657.163 | CG57: 294393.311 | CH57: 12784.98593 | CI57: 225626.2291 | CJ57: 23827.65098 | CK57: 92669.70534 | CL57: 25423.48267 | CM57: 266157.919 | CN57: 357559.6929 | CO57: 20946.01013 | CP57: 103396.4191 | CQ57: 53618.88055 | CR57: 19881.66102 | CS57: 45591.17943 | CT57: 72852.86286 | CU57: 12296.68911 | CV57: 365455.0945 | CW57: 271559.7382 | CX57: 36360.61035 | CY57: 29208.48291 | CZ57: 96179.94755 | DA57: 21400.50557 | DB57: 11381.06482 | DC57: 263468.778 | DD57: 12919.19131 | DE57: 248292.5884 | DF57: 5316.916814 | DG57: 490534.2524 | DH57: 2631.138522 | DI57: 62286.10651 | DJ57: 3271.207062 | DK57: 59450.82664 | DL57: 165567.7041 | DM57: 505310.4055 | DN57: 8118.460843 | DO57: 114608.9891 | DP57: 41876.77141 | DQ57: 43188.98813 | DR57: 18635.55691 | DS57: 41720.47594 | DT57: 122202.3673 | DU57: 247191.1787 | DV57: 170028.1813 | DW57: 96214.05481 | DX57: 53825.775 | DY57: 930488.06 | DZ57: 27421.31285 | EA57: 71094.95652 | EB57: 129282.0695 | EC57: 118464.7535 | ED57: 977687.4044 | EE57: 2336.343084 | EF57: 1235.577332 | EG57: 45835.09843 | EH57: 50855.70645 | EI57: 87659.99261 | EJ57: 332913.4687 | EK57: 280605.3841 | EL57: 34865.11522 | EM57: 1931.753063 | EN57: 23063.78056 | EO57: 43994.90783 | EP57: 44744.31241 | EQ57: 42015.33096 | ER57: 108220.0226 | ES57: 45134.21117 | ET57: 112403.5857 | EU57: 36096.91162 | EV57: 32349.78062 | EW57: 28408.90712 | EX57: 134428.7665 | EY57: 51297.51541 | EZ57: 28145.75319 | FA57: 34372.36255 | FB57: 39499.40601 | FC57: 35643.90602 | FD57: 46396.47666 | FE57: 332200.5851 | FF57: 27847.82504 | FG57: 31353.71075 | FH57: 30311.06517 | FI57: 31183.22542 | FJ57: 40862.66601 | FK57: 119681.0077 | FL57: 51795.51969 | FM57: 803.1612994 | FN57: 30612.45923 | FO57: 34480.1753 | FP57: 3400.73862 | FQ57: 198821.5036 | FR57: 132938.9221 | FS57: 2474.075868 | FT57: 118690.6935 | FU57: 42855.28811 | FV57: 28884.04679 | FW57: 122852.7117 | FX57: 0.01323047495 | FY57: 26921.72808 | FZ57: 25367.26547 | GA57: 42520.93244 | GB57: 67930.93685 | GC57: 32456.17963 | GD57: 11020.51428 | GE57: 23431.34753 | GF57: 172472.6734 | GG57: 174306.2469 | GH57: 46408.99677 | GI57: 429662.55 | GJ57: 41128.85332 | GK57: 96585.97775 | GL57: 60601.41681 | GM57: 76568.28967 | GN57: 51802.09434 | GO57: 42793.41665 | GP57: 200035.8923 | GQ57: 49197.336 | GR57: 35050.83816 | GS57: 52430.21346 | GT57: 198910.1786 | GU57: 214971.6651 | GV57: 109904.2454 | GW57: 11312863.93 | GX57: 1180441.306 | GY57: 1329722.955 | GZ57: 7946943.67 | HA57: 1898799.272 | HB57: 415900.0265 | HC57: 8700.615761 | HD57: 328887.1432 | HE57: 310352.6939 | HF57: 370.4561243 | HG57: 198946.7286 | HH57: 163281.7268 | HI57: 423643.7959 | HJ57: 22048.59151 | HK57: 7554.023601 | HL57: 996421.894 | HM57: 300539.7671 | HN57: 35641.46081 | HO57: 36969.43583 | HP57: 27331.01155 | HQ57: 37078.25808 | HR57: 34790.98844 | HS57: 108462.0602 | HT57: 24100.98925 | HU57: 25243.51426 | HV57: 202205.6312 | HW57: 8050.704263 | HX57: 87359.74387 | HY57: 62559.7964 | HZ57: 71780.56227 | IA57: 39889.15153 | IB57: 75938.98955 | IC57: 129894.0643 | ID57: 800675.0548 | IE57: 40436.08295 | IF57: 117394.4201 | IG57: 50686.77261 | IH57: 39513.38538 | II57: 2.574386256 | IJ57: 14078.75122 | IK57: 87290.29374 | IL57: 61988.83684 | IM57: 461216.3376 | IN57: 148746093.3
A58: =+MATCH(B58,RUT[EMPRESA],0) -> 184 | B58: LA ARENA SPA | C58: -130352633.6 | D58: -130352633.6 | F58: =IFERROR(INDEX($B$9:$B$511,MATCH(0,INDEX(COUNTIF($F$8:F57,$B$9:$B$511),0,0),0)),"") -> LA ARENA SPA | G58: -130352633.6 | J58: ATACAMA_GX_CHILE | K58: 66500515.73 | L58: 41200965.19 | M58: 639100.4042 | N58: 135082167 | O58: 21974811.38 | P58: 5102702.084 | Q58: 1611653.912 | R58: 67351.73271 | S58: 95970.53902 | T58: 436558.4729 | U58: 217620.2375 | V58: 1034981.796 | W58: 191453.9775 | X58: 1397283.625 | Y58: 299820.3063 | Z58: 168640.8581 | AA58: 910724.8248 | AB58: 903420.0895 | AC58: 5553237.087 | AD58: 286388.5125 | AE58: 591.1523545 | AF58: 157124.0787 | AG58: 26002.90808 | AH58: 196078.3447 | AI58: 1000405.006 | AJ58: 120577.67 | AK58: 755880.4218 | AL58: 204436.1996 | AM58: 1254494.64 | AN58: 3897522.839 | AO58: 3353282.138 | AP58: 83671.78522 | AQ58: 225384.0012 | AR58: 13964522.44 | AS58: 1226905.269 | AT58: 130039.6643 | AU58: 16963385.05 | AV58: 197182.6516 | AW58: 1647236.154 | AX58: 1365804.966 | AY58: 504818.9603 | AZ58: 408205.4059 | BA58: 849074.4329 | BB58: 6315.422462 | BC58: 23858.05368 | BD58: 925882.9966 | BE58: 4303.193836 | BF58: 2779781.275 | BG58: 5728.915186 | BH58: 53734.92786 | BI58: 2977170.077 | BJ58: 725574.0638 | BK58: 48713.5909 | BL58: 35482.58935 | BM58: 18625791.03 | BN58: 177880.5379 | BO58: 4495974.263 | BP58: 2032034.598 | BQ58: 1228321.138 | BR58: 3519.536729 | BS58: 600685.5168 | BT58: 120997.6848 | BU58: 125241.3083 | BV58: 2438317.625 | BW58: 146321.4627 | BX58: 135373.4051 | BY58: 129157.1972 | BZ58: 2593482.067 | CA58: 7125963.901 | CB58: 766056.6158 | CC58: 112957.9262 | CD58: 952027.3613 | CE58: 3418187.871 | CF58: 3384574.232 | CG58: 1075258.525 | CH58: 46696.59467 | CI58: 824089.8052 | CJ58: 87029.4395 | CK58: 338471.993 | CL58: 92858.14405 | CM58: 972130.0071 | CN58: 1305970.937 | CO58: 76504.37398 | CP58: 377650.8399 | CQ58: 195840.5856 | CR58: 72616.88602 | CS58: 166519.7629 | CT58: 266091.8538 | CU58: 44913.11217 | CV58: 1334808.541 | CW58: 991859.9124 | CX58: 132805.5183 | CY58: 106682.6898 | CZ58: 351292.9971 | DA58: 78164.39842 | DB58: 41568.83503 | DC58: 962308.0386 | DD58: 47186.77388 | DE58: 906877.6785 | DF58: 19419.80309 | DG58: 1791654.623 | DH58: 9610.116877 | DI58: 227497.2444 | DJ58: 11947.93886 | DK58: 217141.5103 | DL58: 604728.7036 | DM58: 1845623.868 | DN58: 29652.31854 | DO58: 418604.2548 | DP58: 152953.0522 | DQ58: 157745.8656 | DR58: 68065.54597 | DS58: 152382.1899 | DT58: 446338.7323 | DU58: 902854.8284 | DV58: 621020.399 | DW58: 351417.5724 | DX58: 196596.2584 | DY58: 3398566.413 | DZ58: 100155.1303 | EA58: 259671.1788 | EB58: 472197.031 | EC58: 432687.2636 | ED58: 3570959.928 | EE58: 8533.389602 | EF58: 4512.891462 | EG58: 167410.6663 | EH58: 185748.2146 | EI58: 320174.2392 | EJ58: 1215951.695 | EK58: 1024898.733 | EL58: 127343.2886 | EM58: 7055.642476 | EN58: 84239.43665 | EO58: 160689.4516 | EP58: 163426.6187 | EQ58: 153459.1348 | ER58: 395268.8377 | ES58: 164850.7066 | ET58: 410549.1167 | EU58: 131842.3704 | EV58: 118156.1404 | EW58: 103762.2746 | EX58: 490995.1139 | EY58: 187361.9023 | EZ58: 102801.1165 | FA58: 125543.5313 | FB58: 144269.8304 | FC58: 130187.7875 | FD58: 169461.0754 | FE58: 1213347.919 | FF58: 101712.9471 | FG58: 114518.0394 | FH58: 110709.8226 | FI58: 113895.3493 | FJ58: 149249.0772 | FK58: 437129.578 | FL58: 189180.8409 | FM58: 2933.511062 | FN58: 111810.651 | FO58: 125937.3126 | FP58: 12421.04714 | FQ58: 726186.733 | FR58: 485553.523 | FS58: 9036.452491 | FT58: 433512.4994 | FU58: 156527.0411 | FV58: 105497.7012 | FW58: 448714.0864 | FX58: 0.04832372357 | FY58: 98330.41904 | FZ58: 92652.81321 | GA58: 155305.8218 | GB58: 248114.7371 | GC58: 118544.7581 | GD58: 40251.94014 | GE58: 85581.95873 | GF58: 629948.7981 | GG58: 636645.844 | GH58: 169506.8045 | GI58: 1569323.427 | GJ58: 150221.3145 | GK58: 352776.0044 | GL58: 221343.9899 | GM58: 279662.2857 | GN58: 189204.8545 | GO58: 156301.0583 | GP58: 730622.2339 | GQ58: 179691.09 | GR58: 128021.6335 | GS58: 191499.0317 | GT58: 726510.6147 | GU58: 785174.4825 | GV58: 401420.387 | GW58: 41319734.29 | GX58: 4311509.571 | GY58: 4856754.178 | GZ58: 29025859.66 | HA58: 6935280.213 | HB58: 1519056.42 | HC58: 31778.61358 | HD58: 1201245.719 | HE58: 1133549.464 | HF58: 1353.074581 | HG58: 726644.1119 | HH58: 596379.2728 | HI58: 1547340.195 | HJ58: 80531.50362 | HK58: 27590.73652 | HL58: 3639386.821 | HM58: 1097708.184 | HN58: 130178.8565 | HO58: 135029.2264 | HP58: 99825.30879 | HQ58: 135426.6949 | HR58: 127072.5439 | HS58: 396152.8694 | HT58: 88027.79544 | HU58: 92200.81741 | HV58: 738547.109 | HW58: 29404.84063 | HX58: 319077.594 | HY58: 228496.8846 | HZ58: 262175.3234 | IA58: 145693.3587 | IB58: 277363.7948 | IC58: 474432.3149 | ID58: 2924430.164 | IE58: 147691.0014 | IF58: 428777.9182 | IG58: 185131.1913 | IH58: 144320.8894 | II58: 9.402831741 | IJ58: 51422.01507 | IK58: 318823.9305 | IL58: 226411.4801 | IM58: 1684572.239 | IN58: 543288515.6
A59: =+MATCH(B59,RUT[EMPRESA],0) -> 34 | B59: CARDONES SA | C59: -3189294.989 | D59: -3189294.989 | F59: =IFERROR(INDEX($B$9:$B$511,MATCH(0,INDEX(COUNTIF($F$8:F58,$B$9:$B$511),0,0),0)),"") -> CARDONES SA | G59: -3189294.989 | J59: ANDINA | K59: =$IN59*K$70/$IN$70 -> 19158333.84 | L59: 11869710.13 | M59: 184120.36 | N59: 38916228.27 | O59: 6330789.584 | P59: 1470052.809 | Q59: 464306.2289 | R59: 19403.5635 | S59: 27648.44159 | T59: 125769.4451 | U59: =$IN59*U$70/$IN$70 -> 62694.86956 | V59: 298171.0224 | W59: 55156.55291 | X59: 402547.6472 | Y59: 86376.13491 | Z59: 48584.25264 | AA59: 262373.4573 | AB59: 260269.0141 | AC59: 1599848.795 | AD59: 82506.52898 | AE59: =$IN59*AE$70/$IN$70 -> 170.306862 | AF59: 45266.34899 | AG59: 7491.256094 | AH59: 56488.8008 | AI59: 288209.6907 | AJ59: 34737.58405 | AK59: 217763.8669 | AL59: 58896.64036 | AM59: 361411.1386 | AN59: 1122849.092 | AO59: =$IN59*AO$70/$IN$70 -> 966057.149 | AP59: 24105.25657 | AQ59: 64931.55562 | AR59: 4023081.322 | AS59: 353462.8337 | AT59: 37463.51849 | AU59: 4887032.683 | AV59: 56806.94389 | AW59: 474557.224 | AX59: 393478.8656 | AY59: =$IN59*AY$70/$IN$70 -> 145434.8145 | AZ59: 117601.1246 | BA59: 244612.4103 | BB59: 1819.429075 | BC59: 6873.338531 | BD59: 266740.4207 | BE59: 1239.720071 | BF59: 800835.5585 | BG59: 1650.460428 | BH59: 15480.65718 | BI59: =$IN59*BI$70/$IN$70 -> 857701.8929 | BJ59: 209032.817 | BK59: 14034.0451 | BL59: 10222.28602 | BM59: 5365960.226 | BN59: 51246.13984 | BO59: 1295258.765 | BP59: 585414.9666 | BQ59: 353870.7356 | BR59: 1013.953935 | BS59: =$IN59*BS$70/$IN$70 -> 173053.2994 | BT59: 34858.58738 | BU59: 36081.14564 | BV59: 702462.2674 | BW59: 42154.19082 | BX59: 39000.13193 | BY59: 37209.28589 | BZ59: 747164.0585 | CA59: 2052940.399 | CB59: 220695.5573 | CC59: =$IN59*CC$70/$IN$70 -> 32542.38911 | CD59: 274272.4294 | CE59: 984756.0371 | CF59: 975072.1827 | CG59: 309774.4666 | CH59: 13452.96258 | CI59: 237414.5136 | CJ59: 25072.5733 | CK59: 97511.41572 | CL59: 26751.78235 | CM59: =$IN59*CM$70/$IN$70 -> 280063.8612 | CN59: 376241.0999 | CO59: 22040.37548 | CP59: 108798.5677 | CQ59: 56420.30405 | CR59: 20920.41737 | CS59: 47973.17995 | CT59: 76659.20347 | CU59: 12939.15374 | CV59: 384549.0122 | CW59: =$IN59*CW$70/$IN$70 -> 285747.909 | CX59: 38260.3417 | CY59: 30734.53735 | CZ59: 101205.0574 | DA59: 22518.61692 | DB59: 11975.69086 | DC59: 277234.2207 | DD59: 13594.17978 | DE59: 261265.1213 | DF59: 5594.709554 | DG59: =$IN59*DG$70/$IN$70 -> 516163.1758 | DH59: 2768.607511 | DI59: 65540.36623 | DJ59: 3442.117687 | DK59: 62556.9516 | DL59: 174218.1133 | DM59: 531711.3381 | DN59: 8542.625742 | DO59: 120596.9603 | DP59: 44064.70541 | DQ59: =$IN59*DQ$70/$IN$70 -> 45445.48146 | DR59: 19609.20811 | DS59: 43900.24398 | DT59: 128587.0695 | DU59: 260106.1663 | DV59: 178911.6369 | DW59: 101240.9467 | DX59: 56638.00811 | DY59: 979103.2324 | DZ59: 28853.99308 | EA59: =$IN59*EA$70/$IN$70 -> 74809.45187 | EB59: 136036.6646 | EC59: 124654.1768 | ED59: 1028768.599 | EE59: 2458.409908 | EF59: 1300.132491 | EG59: 48229.84299 | EH59: 53512.76251 | EI59: 92239.96073 | EJ59: 350307.1854 | EK59: =$IN59*EK$70/$IN$70 -> 295266.1624 | EL59: 36686.7115 | EM59: 2032.681288 | EN59: 24268.79298 | EO59: 46293.50802 | EP59: 47082.06671 | EQ59: 44210.50427 | ER59: 113874.1898 | ES59: 47492.3365 | ET59: 118276.3313 | EU59: =$IN59*EU$70/$IN$70 -> 37982.86552 | EV59: 34039.95831 | EW59: 29893.18615 | EX59: 141452.2609 | EY59: 53977.65465 | EZ59: 29616.28323 | FA59: 36168.214 | FB59: 41563.1299 | FC59: 37506.19175 | FD59: 48820.55151 | FE59: =$IN59*FE$70/$IN$70 -> 349557.0558 | FF59: 29302.78924 | FG59: 32991.84682 | FH59: 31894.72618 | FI59: 32812.45415 | FJ59: 42997.61608 | FK59: 125933.9765 | FL59: 54501.67814 | FM59: 845.1240357 | FN59: 32211.86716 | FO59: =$IN59*FO$70/$IN$70 -> 36281.65964 | FP59: 3578.416874 | FQ59: 209209.3227 | FR59: 139884.5766 | FS59: 2603.33881 | FT59: 124891.9214 | FU59: 45094.34664 | FV59: 30393.15043 | FW59: 129271.3924 | FX59: 0.01392172704 | FY59: =$IN59*FY$70/$IN$70 -> 28328.30653 | FZ59: 26692.62797 | GA59: 44742.52189 | GB59: 71480.12179 | GC59: 34151.91635 | GD59: 11596.30265 | GE59: 24655.56421 | GF59: 181483.8462 | GG59: 183413.2184 | GH59: 48833.72577 | GI59: =$IN59*GI$70/$IN$70 -> 452111.112 | GJ59: 43277.71088 | GK59: 101632.3015 | GL59: 63767.65661 | GM59: 80568.75004 | GN59: 54508.59629 | GO59: 45029.24258 | GP59: 210487.1595 | GQ59: 51767.74724 | GR59: 36882.1379 | GS59: =$IN59*GS$70/$IN$70 -> 55169.53272 | GT59: 209302.6308 | GU59: 226203.2811 | GV59: 115646.4081 | GW59: 11903926.68 | GX59: 1242115.776 | GY59: 1399196.937 | GZ59: 8362147.318 | HA59: 1998005.761 | HB59: 437629.5385 | HC59: =$IN59*HC$70/$IN$70 -> 9155.196484 | HD59: 346070.4966 | HE59: 326567.6787 | HF59: 389.8113306 | HG59: 209341.0904 | HH59: 171812.7006 | HI59: 445777.8964 | HJ59: 23200.56339 | HK59: 7948.69837 | HL59: 1048481.909 | HM59: =$IN59*HM$70/$IN$70 -> 316242.0563 | HN59: 37503.61879 | HO59: 38900.97646 | HP59: 28758.97382 | HQ59: 39015.48435 | HR59: 36608.71183 | HS59: 114128.8731 | HT59: 25360.19267 | HU59: 26562.41114 | HV59: 212770.2607 | HW59: =$IN59*HW$70/$IN$70 -> 8471.329086 | HX59: 91924.02491 | HY59: 65828.35557 | HZ59: 75530.87844 | IA59: 41973.23843 | IB59: 79906.5709 | IC59: 136680.6343 | ID59: 842507.8924 | IE59: 42548.74535 | IF59: 123527.9217 | IG59: =$IN59*IG$70/$IN$70 -> 53335.00239 | IH59: 41577.83964 | II59: 2.708890112 | IJ59: 14814.32317 | IK59: 91850.94622 | IL59: 65227.56512 | IM59: 485313.4892 | IN59: 156517624.5
A60: =+MATCH(B60,RUT[EMPRESA],0) -> 32 | B60: CAPULLO | C60: -19477208.4 | D60: -19477208.4 | F60: =IFERROR(INDEX($B$9:$B$511,MATCH(0,INDEX(COUNTIF($F$8:F59,$B$9:$B$511),0,0),0)),"") -> CAPULLO | G60: -19477208.4 | J60: TAMAKAYA_ENERGIA | K60: 625736331.2 | L60: 387680313.6 | M60: 6013612.643 | N60: 1271055099 | O60: 206771897.9 | P60: 48013854.42 | Q60: 15164850.91 | R60: 633745.8538 | S60: 903034.3949 | T60: 4107795.168 | U60: 2047696.736 | V60: 9738656.983 | W60: 1801485.419 | X60: 13147734.56 | Y60: 2821157.947 | Z60: 1586825.465 | AA60: 8569461.52 | AB60: 8500727.642 | AC60: 52253161.69 | AD60: 2694771.538 | AE60: 5562.445666 | AF60: 1478458.377 | AG60: 244674.2574 | AH60: 1844998.384 | AI60: 9413306.817 | AJ60: 1134575.093 | AK60: 7112453.741 | AL60: 1923641.585 | AM60: 11804162.19 | AN60: 36673725.23 | AO60: 31552694.58 | AP60: 787309.3213 | AQ60: 2120749.839 | AR60: 131399116.9 | AS60: 11544560.12 | AT60: 1223607.69 | AU60: 159616902.4 | AV60: 1855389.355 | AW60: 15499661.86 | AX60: 12851536.25 | AY60: 4750091.945 | AZ60: 3841007.099 | BA60: 7989362.409 | BB60: 59424.94186 | BC60: 224492.2587 | BD60: 8712092.275 | BE60: 40490.88482 | BF60: 26156340.55 | BG60: 53906.20404 | BH60: 505618.5842 | BI60: 28013669.68 | BJ60: 6827286.19 | BK60: 458370.3346 | BL60: 333873.2796 | BM60: 175259304.6 | BN60: 1673766.195 | BO60: 42304851.47 | BP60: 19120421.25 | BQ60: 11557882.73 | BR60: 33117.06648 | BS60: 5652147.917 | BT60: 1138527.221 | BU60: 1178457.579 | BV60: 22943339.74 | BW60: 1376811.206 | BX60: 1273795.502 | BY60: 1215304.12 | BZ60: 24403358.91 | CA60: 67051728.22 | CB60: 7208206.597 | CC60: 1062877.145 | CD60: 8958097.568 | CE60: 32163424.81 | CF60: 31847137.41 | CG60: 10117640.7 | CH60: 439391.4168 | CI60: 7754269.656 | CJ60: 818903.1555 | CK60: 3184850.835 | CL60: 873748.3272 | CM60: 9147253.331 | CN60: 12288528.19 | CO60: 719867.5945 | CP60: 3553504.036 | CQ60: 1842761.19 | CR60: 683288.2924 | CS60: 1566867.029 | CT60: 2503790.212 | CU60: 422609.7455 | CV60: 12559875.51 | CW60: 9332901.794 | CX60: 1249632.982 | CY60: 1003830.333 | CZ60: 3305490.022 | DA60: 735487.5877 | DB60: 391141.7834 | DC60: 9054833.559 | DD60: 444003.7561 | DE60: 8533261.812 | DF60: 182730.5579 | DG60: 16858566.86 | DH60: 90426.3555 | DI60: 2140634.392 | DJ60: 112424.0819 | DK60: 2043192.154 | DL60: 5690192.266 | DM60: 17366390.25 | DN60: 279013.3702 | DO60: 3938855.026 | DP60: 1439211.12 | DQ60: 1484309.078 | DR60: 640462.4768 | DS60: 1433839.594 | DT60: 4199822.479 | DU60: 8495408.82 | DV60: 5843488.908 | DW60: 3306662.212 | DX60: 1849871.691 | DY60: 31978796.79 | DZ60: 942409.2892 | EA60: 2443374.896 | EB60: 4443136.034 | EC60: 4071369.04 | ED60: 33600932.86 | EE60: 80294.8946 | EF60: 42464.03378 | EG60: 1575249.981 | EH60: 1747797.067 | EI60: 3012678.196 | EJ60: 11441492.5 | EK60: 9643780.442 | EL60: 1198236.154 | EM60: 66390.03906 | EN60: 792650.635 | EO60: 1512006.739 | EP60: 1537762.101 | EQ60: 1443973.102 | ER60: 3719280.514 | ES60: 1551162.051 | ET60: 3863060.237 | EU60: 1240570.246 | EV60: 1111789.721 | EW60: 976350.6988 | EX60: 4620016.519 | EY60: 1762981.054 | EZ60: 967306.686 | FA60: 1181301.345 | FB60: 1357506.38 | FC60: 1225001.455 | FD60: 1594543.297 | FE60: 11416992.29 | FF60: 957067.5606 | FG60: 1077557.024 | FH60: 1041723.624 | FI60: 1071697.824 | FJ60: 1404358.582 | FK60: 4113168.978 | FL60: 1780096.349 | FM60: 27602.86035 | FN60: 1052081.864 | FO60: 1185006.629 | FP60: 116875.7923 | FQ60: 6833051.099 | FR60: 4568813.892 | FS60: 85028.46281 | FT60: 4079134.092 | FU60: 1472840.554 | FV60: 992680.1884 | FW60: 4222173.364 | FX60: 0.4547018796 | FY60: 925239.6763 | FZ60: 871816.2675 | GA60: 1461349.496 | GB60: 2334634.606 | GC60: 1115446.417 | GD60: 378750.4664 | GE60: 805283.0912 | GF60: 5927500.642 | GG60: 5990516.469 | GH60: 1594973.585 | GI60: 14766542.38 | GJ60: 1413506.846 | GK60: 3319444.373 | GL60: 2082735.369 | GM60: 2631481.135 | GN60: 1780322.305 | GO60: 1470714.17 | GP60: 6874786.926 | GQ60: 1690802.578 | GR60: 1204619.037 | GS60: 1801909.357 | GT60: 6836098.661 | GU60: 7388096.086 | GV60: 3777163.492 | GW60: 388797871 | GX60: 40569131.69 | GY60: 45699608.6 | GZ60: 273118707.9 | HA60: 65257490.84 | HB60: 14293555.18 | HC60: 299020.7347 | HD60: 11303116.69 | HE60: 10666129.05 | HF60: 12731.74974 | HG60: 6837354.803 | HH60: 5611628.331 | HI60: 14559691.24 | HJ60: 757760.8544 | HK60: 259614.9226 | HL60: 34244795.43 | HM60: 10328880.67 | HN60: 1224917.418 | HO60: 1270556.955 | HP60: 939305.8353 | HQ60: 1274296.932 | HR60: 1195688.582 | HS60: 3727598.807 | HT60: 828297.1817 | HU60: 867563.2148 | HV60: 6949356.006 | HW60: 276684.7278 | HX60: 3002359.317 | HY60: 2150040.502 | HZ60: 2466937.635 | IA60: 1370901.063 | IB60: 2609853.494 | IC60: 4464168.929 | ID60: 27517413.68 | IE60: 1389697.875 | IF60: 4034584.07 | IG60: 1741991.188 | IH60: 1357986.82 | II60: 88.47590686 | IJ60: 483855.2408 | IK60: 2999972.471 | IL60: 2130417.898 | IM60: 15850975.6 | IN60: 5112071069
A61: =+MATCH(B61,RUT[EMPRESA],0) -> 24 | B61: BE FORESTALES | C61: 1479339230 | D61: 1479339230 | F61: =IFERROR(INDEX($B$9:$B$511,MATCH(0,INDEX(COUNTIF($F$8:F60,$B$9:$B$511),0,0),0)),"") -> BE FORESTALES | H61: 1479339230 | J61: POZO_ALMONTE_SOLAR_2 | K61: 289862.7975 | L61: 179586.9836 | M61: 2785.714201 | N61: 588796.8595 | O61: 95783.92334 | P61: 22241.68467 | Q61: 7024.885545 | R61: 293.5730866 | S61: 418.31689 | T61: 1902.873367 | U61: 948.5642352 | V61: 4511.284093 | W61: 834.5106034 | X61: 6090.487209 | Y61: 1306.858327 | Z61: 735.0726586 | AA61: 3969.672154 | AB61: 3937.832235 | AC61: 24205.47901 | AD61: 1248.311754 | AE61: 2.57671799 | AF61: 684.8732601 | AG61: 113.3416124 | AH61: 854.6673197 | AI61: 4360.570598 | AJ61: 525.5745818 | AK61: 3294.735556 | AL61: 891.0975812 | AM61: 5468.097831 | AN61: 16988.54304 | AO61: 14616.30381 | AP61: 364.7090172 | AQ61: 982.4049691 | AR61: 60868.63382 | AS61: 5347.841137 | AT61: 566.8175724 | AU61: 73940.09194 | AV61: 859.4807783 | AW61: 7179.981607 | AX61: 5953.277865 | AY61: 2200.407538 | AZ61: 1779.287869 | BA61: 3700.950101 | BB61: 27.52769662 | BC61: 103.9926098 | BD61: 4035.743672 | BE61: 18.75678391 | BF61: 12116.52523 | BG61: 24.97122563 | BH61: 234.220086 | BI61: 12976.90458 | BJ61: 3162.636043 | BK61: 212.3330561 | BL61: 154.661697 | BM61: 81186.19584 | BN61: 775.3466238 | BO61: 19597.07625 | BP61: 8857.243088 | BQ61: 5354.012633 | BR61: 15.34097519 | BS61: 2618.271188 | BT61: 527.4053445 | BU61: 545.9024728 | BV61: 10628.15168 | BW61: 637.7867607 | BX61: 590.0663096 | BY61: 562.9710702 | BZ61: 11304.48326 | CA61: 31060.68891 | CB61: 3339.091604 | CC61: 492.3616024 | CD61: 4149.701867 | CE61: 14899.21526 | CF61: 14752.69995 | CG61: 4686.842512 | CH61: 203.5413623 | CI61: 3592.046975 | CJ61: 379.3443784 | CK61: 1475.333502 | CL61: 404.7505664 | CM61: 4237.325385 | CN61: 5692.472984 | CO61: 333.4676675 | CP61: 1646.106466 | CQ61: 853.6309739 | CR61: 316.5228645 | CS61: 725.8272179 | CT61: 1159.842571 | CU61: 195.7675094 | CV61: 5818.170485 | CW61: 4323.3242 | CX61: 578.8733914 | CY61: 465.0090689 | CZ61: 1531.217762 | DA61: 340.7033907 | DB61: 181.1904566 | DC61: 4194.513337 | DD61: 205.677958 | DE61: 3952.903192 | DF61: 84.64713981 | DG61: 7809.473591 | DH61: 41.88862796 | DI61: 991.6161849 | DJ61: 52.07873872 | DK61: 946.4775565 | DL61: 2635.894652 | DM61: 8044.715019 | DN61: 129.2486819 | DO61: 1824.614426 | DP61: 666.6925679 | DQ61: 687.5835083 | DR61: 296.6844596 | DS61: 664.2042905 | DT61: 1945.503613 | DU61: 3935.368372 | DV61: 2706.90698 | DW61: 1531.760762 | DX61: 856.9248046 | DY61: 14813.68915 | DZ61: 436.5567083 | EA61: 1131.856099 | EB61: 2058.214901 | EC61: 1885.999519 | ED61: 15565.1189 | EE61: 37.19538345 | EF61: 19.67081503 | EG61: 729.7104922 | EH61: 809.6402943 | EI61: 1395.577157 | EJ61: 5300.096638 | EK61: 4467.333985 | EL61: 555.0645959 | EM61: 30.75417151 | EN61: 367.1832993 | EO61: 700.4140264 | EP61: 712.3448044 | EQ61: 668.8984835 | ER61: 1722.899888 | ES61: 718.5521266 | ET61: 1789.503648 | EU61: 574.6752172 | EV61: 515.019606 | EW61: 452.2795479 | EX61: 2140.152083 | EY61: 816.6740446 | EZ61: 448.090047 | FA61: 547.2198043 | FB61: 628.8440952 | FC61: 567.4632126 | FD61: 738.6478261 | FE61: 5288.747287 | FF61: 443.3469286 | FG61: 499.1618321 | FH61: 482.5625567 | FI61: 496.4476471 | FJ61: 650.547662 | FK61: 1905.362702 | FL61: 824.6024436 | FM61: 12.78660344 | FN61: 487.3608535 | FO61: 548.9362203 | FP61: 54.14092556 | FQ61: 3165.306549 | FR61: 2116.433248 | FS61: 39.38813662 | FT61: 1889.596561 | FU61: 682.2708896 | FV61: 459.8439345 | FW61: 1955.857319 | FX61: 0.0002106337003 | FY61: 428.6031474 | FZ61: 403.8555692 | GA61: 676.9478325 | GB61: 1081.48382 | GC61: 516.7135148 | GD61: 175.4503683 | GE61: 373.0350916 | GF61: 2745.824132 | GG61: 2775.015251 | GH61: 738.8471507 | GI61: 6840.375204 | GJ61: 654.7854554 | GK61: 1537.681903 | GL61: 964.7953468 | GM61: 1218.993441 | GN61: 824.7071142 | GO61: 681.2858747 | GP61: 3184.640034 | GQ61: 783.2384678 | GR61: 558.0213688 | GS61: 834.7069861 | GT61: 3166.718286 | GU61: 3422.422662 | GV61: 1749.713293 | GW61: 180104.675 | GX61: 18793.03058 | GY61: 21169.64564 | GZ61: 126518.0697 | HA61: 30229.53585 | HB61: 6621.271109 | HC61: 138.5167879 | HD61: 5235.996155 | HE61: 4940.921363 | HF61: 5.897788595 | HG61: 3167.300175 | HH61: 2599.501109 | HI61: 6744.554575 | HJ61: 351.0211413 | HK61: 120.2626474 | HL61: 15863.37841 | HM61: 4784.696201 | HN61: 567.424284 | HO61: 588.5661019 | HP61: 435.1190807 | HQ61: 590.2985895 | HR61: 553.8844722 | HS61: 1726.75321 | HT61: 383.6960175 | HU61: 401.8854076 | HV61: 3219.183021 | HW61: 128.1699739 | HX61: 1390.797094 | HY61: 995.9734217 | HZ61: 1142.771178 | IA61: 635.0489775 | IB61: 1208.974767 | IC61: 2067.958068 | ID61: 12747.02157 | IE61: 643.7563134 | IF61: 1868.959444 | IG61: 806.9508096 | IH61: 629.0666515 | II61: 0.04098511242 | IJ61: 224.1385496 | IK61: 1389.691424 | IL61: 986.8835497 | IM61: 7342.72233 | IN61: 2368088.838
A62: =+MATCH(B62,RUT[EMPRESA],0) -> 10 | B62: ALLIPEN | C62: -69068312.49 | D62: -69068312.49 | F62: =IFERROR(INDEX($B$9:$B$511,MATCH(0,INDEX(COUNTIF($F$8:F61,$B$9:$B$511),0,0),0)),"") -> ALLIPEN | G62: -69068312.49 | J62: HORNITOS | K62: 92463975.65 | L62: 57286849.58 | M62: 888621.1417 | N62: 187821614 | O62: 30554325.81 | P62: 7094924.243 | Q62: 2240883.796 | R62: 93647.52896 | S62: 133439.831 | T62: 607001.7889 | U62: 302584.6059 | V62: 1439064.503 | W62: 266202.3853 | X62: 1942818.001 | Y62: 416877.6316 | Z62: 234482.4551 | AA62: 1266294.511 | AB62: 1256137.824 | AC62: 7721359.348 | AD62: 398201.7305 | AE62: 821.9529776 | AF62: 218469.2378 | AG62: 36155.09193 | AH62: 272632.2209 | AI62: 1390988.071 | AJ62: 167654.1997 | AK62: 1050994.991 | AL62: 284253.1907 | AM62: 1744280.635 | AN62: 5419212.962 | AO62: 4662487.118 | AP62: 116339.337 | AQ62: 313379.5365 | AR62: 19416620.29 | AS62: 1705919.687 | AT62: 180810.3926 | AU62: 23586313.66 | AV62: 274167.6767 | AW62: 2290358.232 | AX62: 1899049.289 | AY62: 701912.873 | AZ62: 567578.9773 | BA62: 1180574.268 | BB62: 8781.120902 | BC62: 33172.83288 | BD62: 1287370.811 | BE62: 5983.268035 | BF62: 3865077.215 | BG62: 7965.626558 | BH62: 74714.38389 | BI62: 4139531.528 | BJ62: 1008856.275 | BK62: 67732.59174 | BL62: 49335.8772 | BM62: 25897764.39 | BN62: 247329.5364 | BO62: 6251314.749 | BP62: 2825391.586 | BQ62: 1707888.346 | BR62: 4893.651648 | BS62: 835208.1241 | BT62: 168238.1987 | BU62: 174138.6386 | BV62: 3390297.64 | BW62: 203449.0111 | BX62: 188226.5587 | BY62: 179583.3883 | BZ62: 3606042.149 | CA62: 9908117.935 | CB62: 1065144.225 | CC62: 157059.5178 | CD62: 1323722.587 | CE62: 4752733.668 | CF62: 4705996.426 | CG62: 1495066.271 | CH62: 64928.10988 | CI62: 1145835.019 | CJ62: 121007.9033 | CK62: 470619.9008 | CL62: 129112.2794 | CM62: 1351673.808 | CN62: 1815854.562 | CO62: 106373.5897 | CP62: 525095.1467 | CQ62: 272301.6346 | CR62: 100968.3294 | CS62: 231533.2315 | CT62: 369980.7501 | CU62: 62448.31133 | CV62: 1855951.086 | CW62: 1379106.76 | CX62: 184656.105 | CY62: 148334.2726 | CZ62: 488446.5447 | DA62: 108681.729 | DB62: 57798.34498 | DC62: 1338017.098 | DD62: 65609.66728 | DE62: 1260945.342 | DF62: 27001.77857 | DG62: 2491161.274 | DH62: 13362.14619 | DI62: 316317.8426 | DJ62: 16612.71219 | DK62: 301918.9716 | DL62: 840829.8719 | DM62: 2566201.458 | DN62: 41229.32325 | DO62: 582037.7962 | DP62: 212669.7385 | DQ62: 219333.7859 | DR62: 94640.03273 | DS62: 211875.9974 | DT62: 620600.5055 | DU62: 1255351.871 | DV62: 863482.2515 | DW62: 488619.7573 | DX62: 273352.341 | DY62: 4725451.504 | DZ62: 139258.1911 | EA62: 361053.2834 | EB62: 656554.5288 | EC62: 601619.1629 | ED62: 4965151.746 | EE62: 11865.03773 | EF62: 6274.836844 | EG62: 232771.9658 | EH62: 258268.9503 | EI62: 445178.2476 | EJ62: 1690689.563 | EK62: 1425044.76 | EL62: 177061.2846 | EM62: 9810.341272 | EN62: 117128.6137 | EO62: 223426.6213 | EP62: 227232.4466 | EQ62: 213373.4084 | ER62: 549591.6503 | ES62: 229212.534 | ET62: 570837.7313 | EU62: 183316.9201 | EV62: 164287.2446 | EW62: 144273.6545 | EX62: 682691.8522 | EY62: 260512.6619 | EZ62: 142937.2363 | FA62: 174558.8571 | FB62: 200596.3704 | FC62: 181016.3468 | FD62: 235622.9057 | FE62: 1687069.208 | FF62: 141424.2185 | FG62: 159228.7381 | FH62: 153933.6985 | FI62: 158362.9343 | FJ62: 207519.6393 | FK62: 607795.8676 | FL62: 263041.7594 | FM62: 4078.826944 | FN62: 155464.3179 | FO62: 175106.3805 | FP62: 17270.53373 | FQ62: 1009708.145 | FR62: 675125.7285 | FS62: 12564.50892 | FT62: 602766.5913 | FU62: 217639.1019 | FV62: 146686.6349 | FW62: 623903.2571 | FX62: 0.06719051049 | FY62: 136721.0671 | FZ62: 128826.7823 | GA62: 215941.0881 | GB62: 344984.9187 | GC62: 164827.5883 | GD62: 55967.30149 | GE62: 118995.2899 | GF62: 875896.5203 | GG62: 885208.26 | GH62: 235686.4887 | GI62: 2182026.434 | GJ62: 208871.4624 | GK62: 490508.5551 | GL62: 307762.2041 | GM62: 388849.417 | GN62: 263075.1486 | GO62: 217324.8898 | GP62: 1015875.376 | GQ62: 249846.9732 | GR62: 178004.4721 | GS62: 266265.0299 | GT62: 1010158.478 | GU62: 1091726.183 | GV62: 558144.9179 | GW62: 57451989.1 | GX62: 5994830.44 | GY62: 6752952.14 | GZ62: 40358279.2 | HA62: 9642986.58 | HB62: 2112133.933 | HC62: 44185.77691 | HD62: 1670242.008 | HE62: 1576115.447 | HF62: 1881.348644 | HG62: 1010344.096 | HH62: 829220.615 | HI62: 2151460.399 | HJ62: 111973.0112 | HK62: 38362.84819 | HL62: 5060294.205 | HM62: 1526280.836 | HN62: 181003.9288 | HO62: 187748.0042 | HP62: 138799.5991 | HQ62: 188300.6542 | HR62: 176684.8343 | HS62: 550820.83 | HT62: 122396.0423 | HU62: 128198.3161 | HV62: 1026894.32 | HW62: 40885.22379 | HX62: 443653.4447 | HY62: 317707.7672 | HZ62: 364535.1086 | IA62: 202575.6796 | IB62: 385653.538 | IC62: 659662.5234 | ID62: 4066200.637 | IE62: 205353.2519 | IF62: 596183.5115 | IG62: 257411.0256 | IH62: 200667.3641 | II62: 13.07393177 | IJ62: 71498.45226 | IK62: 443300.7446 | IL62: 314808.1689 | IM62: 2342271.256 | IN62: 755401902.2
A63: =+MATCH(B63,RUT[EMPRESA],0) -> 90 | B63: EL CANELO | C63: 17195862.21 | D63: 17195862.21 | F63: =IFERROR(INDEX($B$9:$B$511,MATCH(0,INDEX(COUNTIF($F$8:F62,$B$9:$B$511),0,0),0)),"") -> EL CANELO | H63: 17195862.21 | J63: ON GROUP | K63: 15621511.01 | L63: 9678441.198 | M63: 150129.8733 | N63: 31731897.64 | O63: 5162061.587 | P63: 1198666.144 | Q63: 378590.5877 | R63: 15821.46878 | S63: 22544.25872 | T63: 102551.1293 | U63: 51120.76047 | V63: 243125.626 | W63: 44974.09356 | X63: 328233.2668 | Y63: 70430.22393 | Z63: 39615.10661 | AA63: 213936.6548 | AB63: 212220.7131 | AC63: 1304500.474 | AD63: 67274.98653 | AE63: 138.8664871 | AF63: 36909.72164 | AG63: 6108.294204 | AH63: 46060.39497 | AI63: 235003.2573 | AJ63: 28324.67355 | AK63: 177562.4474 | AL63: 48023.72292 | AM63: 294690.9751 | AN63: 915559.7555 | AO63: 787713.1966 | AP63: 19655.18161 | AQ63: 52944.53158 | AR63: 3280379.687 | AS63: 288210.008 | AT63: 30547.37283 | AU63: 3984836.861 | AV63: 46319.80562 | AW63: 386949.1451 | AX63: 320838.6743 | AY63: 118586.072 | AZ63: 95890.76372 | BA63: 199454.4772 | BB63: 1483.544006 | BC63: 5604.450493 | BD63: 217497.4324 | BE63: 1010.855166 | BF63: 652993.1882 | BG63: 1345.768685 | BH63: 12622.77078 | BI63: 699361.4202 | BJ63: 170443.2379 | BK63: 11443.21797 | BL63: 8335.148293 | BM63: 4375349.519 | BN63: 41785.58242 | BO63: 1056140.853 | BP63: 477341.4235 | BQ63: 288542.607 | BR63: 826.7677498 | BS63: 141105.9044 | BT63: 28423.33844 | BU63: 29420.20004 | BV63: 572780.6048 | BW63: 34372.09945 | BX63: 31800.31183 | BY63: 30340.07414 | BZ63: 609229.9917 | CA63: 1673946.77 | CB63: 179952.918 | CC63: 26534.73387 | CD63: 223638.9559 | CE63: 802960.0802 | CF63: 795063.9636 | CG63: 252586.9567 | CH63: 10969.40918 | CI63: 193585.3853 | CJ63: 20443.92186 | CK63: 79509.81892 | CL63: 21813.13187 | CM63: 228361.2306 | CN63: 306783.1751 | CO63: 17971.49852 | CP63: 88713.24812 | CQ63: 46004.54342 | CR63: 17058.29604 | CS63: 39116.84414 | CT63: 62507.13664 | CU63: 10550.45466 | CV63: 313557.3624 | CW63: 232995.9455 | CX63: 31197.09439 | CY63: 25060.62989 | CZ63: 82521.57687 | DA63: 18361.45174 | DB63: 9764.85681 | DC63: 226053.9704 | DD63: 11084.55625 | DE63: 213032.9288 | DF63: 4561.8694 | DG63: 420874.216 | DH63: 2257.494471 | DI63: 53440.94958 | DJ63: 2806.667834 | DK63: 51008.30356 | DL63: 142055.6818 | DM63: 433552.0297 | DN63: 6965.570347 | DO63: 98333.53775 | DP63: 35929.91366 | DQ63: 37055.78444 | DR63: 15989.14932 | DS63: 35795.81348 | DT63: 104848.5917 | DU63: 212087.9287 | DV63: 145882.7333 | DW63: 82550.84061 | DX63: 46182.0571 | DY63: 798350.8406 | DZ63: 23527.25317 | EA63: 60998.86795 | EB63: 110922.9159 | EC63: 101641.7508 | ED63: 838847.4766 | EE63: 2004.562493 | EF63: 1060.114841 | EG63: 39326.12458 | EH63: 43633.76355 | EI63: 75211.52801 | EJ63: 285636.9243 | EK63: 240757.0327 | EL63: 29913.97229 | EM63: 1657.427696 | EN63: 19788.52754 | EO63: 37747.25669 | EP63: 38390.23944 | EQ63: 36048.79657 | ER63: 92851.85884 | ES63: 38724.76927 | ET63: 96441.32041 | EU63: 30970.84312 | EV63: 27755.8366 | EW63: 24374.60066 | EX63: 115338.7382 | EY63: 44012.83188 | EZ63: 24148.81682 | FA63: 29491.19469 | FB63: 33890.15437 | FC63: 30582.16817 | FD63: 39807.78232 | FE63: 285025.2763 | FF63: 23893.197 | FG63: 26901.21713 | FH63: 26006.63609 | FI63: 26754.94216 | FJ63: 35059.81985 | FK63: 102685.2865 | FL63: 44440.11532 | FM63: 689.1055631 | FN63: 26265.22963 | FO63: 29583.69712 | FP63: 2917.804809 | FQ63: 170587.1589 | FR63: 114060.4644 | FS63: 2122.73605 | FT63: 101835.6054 | FU63: 36769.47267 | FV63: 24782.26645 | FW63: 105406.5816 | FX63: 0.01135163497 | FY63: 23098.61369 | FZ63: 21764.89799 | GA63: 36482.59834 | GB63: 58284.16598 | GC63: 27847.12604 | GD63: 9455.507511 | GE63: 20103.89687 | GF63: 147980.0867 | GG63: 149553.2771 | GH63: 39818.52447 | GI63: 368646.8131 | GJ63: 35288.2063 | GK63: 82869.94733 | GL63: 51995.50014 | GM63: 65694.94124 | GN63: 44445.75631 | GO63: 36716.38748 | GP63: 171629.0941 | GQ63: 42210.89581 | GR63: 30073.321 | GS63: 44984.67717 | GT63: 170663.2413 | GU63: 184443.8601 | GV63: 94296.90771 | GW63: 9706341.025 | GX63: 1012808.6 | GY63: 1140890.984 | GZ63: 6818410.071 | HA63: 1629153.624 | HB63: 356838.685 | HC63: 7465.054314 | HD63: 282182.3713 | HE63: 266279.9715 | HF63: 317.8482035 | HG63: 170694.6009 | HH63: 140094.3327 | HI63: 363482.7733 | HJ63: 18917.50397 | HK63: 6481.287994 | HL63: 854921.5094 | HM63: 257860.5637 | HN63: 30580.0702 | HO63: 31719.46148 | HP63: 23449.77543 | HQ63: 31812.83004 | HR63: 29850.37215 | HS63: 93059.52506 | HT63: 20678.44377 | HU63: 21658.72051 | HV63: 173490.7115 | HW63: 6907.435777 | HX63: 74953.91714 | HY63: 53675.77317 | HZ63: 61587.11186 | IA63: 34224.55271 | IB63: 65155.00708 | IC63: 111448.0023 | ID63: 686972.3864 | IE63: 34693.81521 | IF63: 100723.4139 | IG63: 43488.81975 | IH63: 33902.14855 | II63: 2.20880151 | IJ63: 12079.44879 | IK63: 74894.32953 | IL63: 53185.89473 | IM63: 395719.6945 | IN63: 127622882.8
A64: =+MATCH(B64,RUT[EMPRESA],0) -> 33 | B64: CARBOMET | C64: 143651815.8 | D64: 143651815.8 | F64: =IFERROR(INDEX($B$9:$B$511,MATCH(0,INDEX(COUNTIF($F$8:F63,$B$9:$B$511),0,0),0)),"") -> CARBOMET | H64: 143651815.8 | J64: LA HIGUERA | K64: 12594277.02 | L64: 7802892.403 | M64: 121036.7686 | N64: 25582692.29 | O64: 4161725.046 | P64: 966381.1308 | Q64: 305224.9386 | R64: 12755.48573 | S64: 18175.49143 | T64: 82678.13088 | U64: 41214.26016 | V64: 196011.2235 | W64: 36258.73277 | X64: 264626.174 | Y64: 56781.81517 | Z64: 31938.24378 | AA64: 172478.6734 | AB64: 171095.2576 | AC64: 1051706.223 | AD64: 54238.01938 | AE64: 111.9560718 | AF64: 29757.12521 | AG64: 4924.590796 | AH64: 37134.5239 | AI64: 189462.8581 | AJ64: 22835.74137 | AK64: 143153.2872 | AL64: 38717.3859 | AM64: 237583.9171 | AN64: 738136.8668 | AO64: 635065.2127 | AP64: 15846.27773 | AQ64: 42684.60951 | AR64: 2644687.22 | AS64: 232358.8722 | AT64: 24627.7121 | AU64: 3212630.281 | AV64: 37343.66434 | AW64: 311963.7225 | AX64: 258664.5518 | AY64: 95605.72217 | AZ64: 77308.45251 | BA64: 160802.9427 | BB64: 1196.053581 | BC64: 4518.385067 | BD64: 175349.4212 | BE64: 814.9653374 | BF64: 526452.089 | BG64: 1084.977223 | BH64: 10176.65141 | BI64: 563834.7954 | BJ64: 137413.6825 | BK64: 9225.679705 | BL64: 6719.911188 | BM64: 3527466.958 | BN64: 33688.11123 | BO64: 851475.2813 | BP64: 384839.2206 | BQ64: 232627.0181 | BR64: 666.5515305 | BS64: 113761.5207 | BT64: 22915.28636 | BU64: 23718.96989 | BV64: 461783.6012 | BW64: 27711.2593 | BX64: 25637.84876 | BY64: 24460.58505 | BZ64: 491169.5982 | CA64: 1349558.908 | CB64: 145080.5174 | CC64: 21392.66738 | CD64: 180300.802 | CE64: 647357.4599 | CF64: 640991.5021 | CG64: 203639.0784 | CH64: 8843.688544 | CI64: 156071.2001 | CJ64: 16482.17097 | CK64: 64101.90952 | CL64: 17586.04692 | CM64: 184107.9648 | CN64: 247332.815 | CO64: 14488.86927 | CP64: 71521.84073 | CQ64: 37089.49561 | CR64: 13752.63287 | CS64: 31536.53773 | CT64: 50394.11323 | CU64: 8505.92165 | CV64: 252794.258 | CW64: 187844.5357 | CX64: 25151.52656 | CY64: 20204.22448 | CZ64: 66530.03021 | DA64: 14803.25492 | DB64: 7872.561858 | DC64: 182247.8199 | DD64: 8936.5217 | DE64: 171750.0771 | DF64: 3677.84185 | DG64: 339314.5813 | DH64: 1820.02309 | DI64: 43084.82853 | DJ64: 2262.774209 | DK64: 41123.59586 | DL64: 114527.2443 | DM64: 349535.6091 | DN64: 5615.738612 | DO64: 79277.85053 | DP64: 28967.19054 | DQ64: 29874.88305 | DR64: 12890.67208 | DS64: 28859.07713 | DT64: 84530.3766 | DU64: 170988.205 | DV64: 117612.6659 | DW64: 66553.62304 | DX64: 37232.60958 | DY64: 643641.4276 | DZ64: 18967.99508 | EA64: 49178.12627 | EB64: 89427.58037 | EC64: 81944.97743 | ED64: 676290.3725 | EE64: 1616.105851 | EF64: 854.6791647 | EG64: 31705.26249 | EH64: 35178.14028 | EI64: 60636.56828 | EJ64: 230284.4168 | EK64: 194101.6309 | EL64: 24117.05588 | EM64: 1336.241004 | EN64: 15953.78306 | EO64: 30432.35749 | EP64: 30950.73903 | EQ64: 29063.03558 | ER64: 74858.4456 | ES64: 31220.44157 | ET64: 77752.31889 | EU64: 24969.11967 | EV64: 22377.1372 | EW64: 19651.13828 | EX64: 92987.67703 | EY64: 35483.75038 | EZ64: 19469.10825 | FA64: 23776.20676 | FB64: 27322.70855 | FC64: 24655.76458 | FD64: 32093.58159 | FE64: 229791.2978 | FF64: 19263.02403 | FG64: 21688.13123 | FH64: 20966.90769 | FI64: 21570.20234 | FJ64: 28265.70895 | FK64: 82786.29026 | FL64: 35828.23216 | FM64: 555.5663823 | FN64: 21175.38936 | FO64: 23850.78349 | FP64: 2352.374366 | FQ64: 137529.7136 | FR64: 91957.11506 | FS64: 1711.378998 | FT64: 82101.26566 | FU64: 29644.05456 | FV64: 19979.80405 | FW64: 84980.23579 | FX64: 0.009151844231 | FY64: 18622.42004 | FZ64: 17547.1601 | GA64: 29412.77253 | GB64: 46989.49621 | GC64: 22450.736 | GD64: 7623.160198 | GE64: 16208.03815 | GF64: 119303.5811 | GG64: 120571.9089 | GH64: 32102.24206 | GI64: 297208.1308 | GJ64: 28449.83725 | GK64: 66810.89126 | GL64: 41919.48732 | GM64: 52964.16514 | GN64: 35832.78001 | GO64: 29601.25655 | GP64: 138369.7361 | GQ64: 34031.00473 | GR64: 24245.52499 | GS64: 36267.26542 | GT64: 137591.0523 | GU64: 148701.1767 | GV64: 76023.46388 | GW64: 7825385.627 | GX64: 816540.2224 | GY64: 919802.0024 | GZ64: 5497095.974 | HA64: 1313446.057 | HB64: 287688.2555 | HC64: 6018.429456 | HD64: 227499.3087 | HE64: 214678.5752 | HF64: 256.2535931 | HG64: 137616.3348 | HH64: 112945.9777 | HI64: 293044.8109 | HJ64: 15251.55188 | HK64: 5225.303519 | HL64: 689249.4788 | HM64: 207890.7329 | HN64: 24654.07317 | HO64: 25572.66608 | HP64: 18905.53146 | HQ64: 25647.94111 | HR64: 24065.78056 | HS64: 75025.86897 | HT64: 16671.24576 | HU64: 17461.55835 | HV64: 139870.5977 | HW64: 5568.869723 | HX64: 60428.87886 | HY64: 43274.14654 | HZ64: 49652.3766 | IA64: 27592.30509 | IB64: 52528.8628 | IC64: 89850.91221 | ID64: 553846.586 | IE64: 27970.63098 | IF64: 81204.60153 | IG64: 35061.28459 | IH64: 27332.37842 | II64: 1.780766155 | IJ64: 9738.617746 | IK64: 60380.8385 | IL64: 42879.1998 | IM64: 319034.6601 | IN64: 102891323.3
A65: =+MATCH(B65,RUT[EMPRESA],0) -> 235 | B65: ORAZUL_CHILE | C65: -10163910.97 | D65: -10163910.97 | F65: =IFERROR(INDEX($B$9:$B$511,MATCH(0,INDEX(COUNTIF($F$8:F64,$B$9:$B$511),0,0),0)),"") -> ORAZUL_CHILE | G65: -10163910.97 | J65: LA CONFLUENCIA | K65: 14801582.42 | L65: 9170447.406 | M65: 142249.9841 | N65: 30066380.78 | O65: 4891119.688 | P65: 1135751.575 | Q65: 358719.4468 | R65: 14991.04498 | S65: 21360.97484 | T65: 97168.51286 | U65: 48437.57746 | V65: 230364.6549 | W65: 42613.53158 | X65: 311005.2382 | Y65: 66733.54223 | Z65: 37535.82258 | AA65: 202707.7295 | AB65: 201081.8528 | AC65: 1236030.962 | AD65: 63743.91424 | AE65: 131.577781 | AF65: 34972.43555 | AG65: 5787.687252 | AH65: 43642.81613 | AI65: 222668.6062 | AJ65: 26837.99217 | AK65: 168242.7007 | AL65: 45503.09458 | AM65: 279223.4858 | AN65: 867504.6336 | AO65: 746368.3761 | AP65: 18623.53715 | AQ65: 50165.62402 | AR65: 3108201.908 | AS65: 273082.6861 | AT65: 28944.0283 | AU65: 3775684.132 | AV65: 43888.61105 | AW65: 366639.2874 | AX65: 303998.7668 | AY65: 112361.8271 | AZ65: 90857.73085 | BA65: 188985.6802 | BB65: 1405.677009 | BC65: 5310.288861 | BD65: 206081.6121 | BE65: 957.7982597 | BF65: 618719.437 | BG65: 1275.133123 | BH65: 11960.23752 | BI65: 662653.9327 | BJ65: 161497.1582 | BK65: 10842.59607 | BL65: 7897.660116 | BM65: 4145699.894 | BN65: 39592.3763 | BO65: 1000707.03 | BP65: 452287.1327 | BQ65: 273397.828 | BR65: 783.3730671 | BS65: 133699.6576 | BT65: 26931.47842 | BU65: 27876.01759 | BV65: 542716.9835 | BW65: 32568.00592 | BX65: 30131.20411 | BY65: 28747.61013 | BZ65: 577253.2459 | CA65: 1586086.075 | CB65: 170507.7023 | CC65: 25142.00132 | CD65: 211900.7845 | CE65: 760814.9942 | CF65: 753333.3223 | CG65: 239329.3873 | CH65: 10393.65616 | CI65: 183424.6402 | CJ65: 19370.87867 | CK65: 75336.57515 | CL65: 20668.22276 | CM65: 216375.2005 | CN65: 290681.0007 | CO65: 17028.22579 | CP65: 84056.94259 | CQ65: 43589.89606 | CR65: 16162.9547 | CS65: 37063.71249 | CT65: 59226.3152 | CU65: 9996.691368 | CV65: 297099.6302 | CW65: 220766.6524 | CX65: 29559.64783 | CY65: 23745.26886 | CZ65: 78190.25452 | DA65: 17397.71147 | DB65: 9252.327309 | DC65: 214189.0418 | DD65: 10502.75949 | DE65: 201851.4376 | DF65: 4322.429878 | DG65: 398783.728 | DH65: 2139.005021 | DI65: 50635.98645 | DJ65: 2659.353839 | DK65: 48331.02309 | DL65: 134599.5839 | DM65: 410796.1194 | DN65: 6599.967413 | DO65: 93172.29063 | DP65: 34044.0549 | DQ65: 35110.83194 | DR65: 15149.92444 | DS65: 33916.99326 | DT65: 99345.38794 | DU65: 200956.0378 | DV65: 138225.7644 | DW65: 78217.98228 | DX65: 43758.09256 | DY65: 756447.6805 | DZ65: 22292.37471 | EA65: 57797.21124 | EB65: 105100.8882 | EC65: 96306.86505 | ED65: 794818.7636 | EE65: 1899.348721 | EF65: 1004.472435 | EG65: 37262.00839 | EH65: 41343.55167 | EI65: 71263.88928 | EJ65: 270644.6563 | EK65: 228120.3823 | EL65: 28343.87315 | EM65: 1570.434041 | EN65: 18749.88413 | EO65: 35766.01078 | EP65: 36375.2452 | EQ65: 34156.69799 | ER65: 87978.32942 | ES65: 36692.21651 | ET65: 91379.39039 | EU65: 29345.27185 | EV65: 26299.01185 | EW65: 23095.24734 | EX65: 109284.9366 | EY65: 41702.72378 | EZ65: 22881.31426 | FA65: 27943.28594 | FB65: 32111.35677 | FC65: 28976.99734 | FD65: 37718.38529 | FE65: 270065.112 | FF65: 22639.1112 | FG65: 25489.24892 | FH65: 24641.62189 | FI65: 25350.65151 | FJ65: 33219.62984 | FK65: 97295.62854 | FL65: 42107.58033 | FM65: 652.9363762 | FN65: 24886.64259 | FO65: 28030.93318 | FP65: 2764.657551 | FQ65: 161633.5251 | FR65: 108073.7557 | FS65: 2011.319685 | FT65: 96490.54476 | FU65: 34839.54785 | FV65: 23481.51592 | FW65: 99874.0906 | FX65: 0.01075582 | FY65: 21886.2333 | FZ65: 20622.52053 | GA65: 34567.73074 | GB65: 55224.99624 | GC65: 26385.50977 | GD65: 8959.214872 | GE65: 19048.70063 | GF65: 140213.0337 | GG65: 141703.6519 | GH65: 37728.56362 | GI65: 349297.5926 | GJ65: 33436.02894 | GK65: 78520.34 | GL65: 49266.40454 | GM65: 62246.80102 | GN65: 42112.92524 | GO65: 34789.24895 | GP65: 162620.7721 | GQ65: 39995.3662 | GR65: 28494.8581 | GS65: 42623.55969 | GT65: 161705.6142 | GU65: 174762.9276 | GV65: 89347.5318 | GW65: 9196882.85 | GX65: 959649.163 | GY65: 1081008.868 | GZ65: 6460531.161 | HA65: 1543643.994 | HB65: 338109.2395 | HC65: 7073.234891 | HD65: 267371.4229 | HE65: 252303.6948 | HF65: 301.1652572 | HG65: 161735.3278 | HH65: 132741.1805 | HI65: 344404.5986 | HJ65: 17924.57811 | HK65: 6141.103661 | HL65: 810049.1161 | HM65: 244326.1977 | HN65: 28975.00948 | HO65: 30054.59735 | HP65: 22218.96356 | HQ65: 30143.06527 | HR65: 28283.6112 | HS65: 88175.09584 | HT65: 19593.0912 | HU65: 20521.916 | HV65: 164384.6786 | HW65: 6544.884161 | HX65: 71019.79967 | HY65: 50858.48482 | HZ65: 58354.5799 | IA65: 32428.20349 | IB65: 61735.20647 | IC65: 105598.4143 | ID65: 650915.1639 | IE65: 32872.83574 | IF65: 95436.72897 | IG65: 41206.21556 | IH65: 32122.7214 | II65: 2.092867814 | IJ65: 11445.43295 | IK65: 70963.33964 | IL65: 50394.31871 | IM65: 374949.4957 | IN65: 120924321.5
A66: =+MATCH(B66,RUT[EMPRESA],0) -> 170 | B66: HIDRONALCAS | C66: 119108825.3 | D66: 119108825.3 | F66: =IFERROR(INDEX($B$9:$B$511,MATCH(0,INDEX(COUNTIF($F$8:F65,$B$9:$B$511),0,0),0)),"") -> HIDRONALCAS | H66: 119108825.3 | J66: TRANSELEC | K66: 8133459.18 | L66: 5039154.431 | M66: 78166.26671 | N66: 16521455.19 | O66: 2687666.845 | P66: 624094.6953 | Q66: 197116.0849 | R66: 8237.568725 | S66: 11737.84072 | T66: 53394.0298 | U66: 26616.41491 | V66: 126585.2166 | W66: 23416.10578 | X66: 170897.1607 | Y66: 36670.03474 | Z66: 20625.90823 | AA66: 111387.7555 | AB66: 110494.3374 | AC66: 679198.1485 | AD66: 35027.23626 | AE66: 72.30189859 | AF66: 19217.32886 | AG66: 3180.330094 | AH66: 23981.69691 | AI66: 122356.2432 | AJ66: 14747.45791 | AK66: 92449.24625 | AL66: 25003.91862 | AM66: 153433.11 | AN66: 476693.1889 | AO66: 410128.9003 | AP66: 10233.62063 | AQ66: 27565.97529 | AR66: 1707954.773 | AS66: 150058.7449 | AT66: 15904.72329 | AU66: 2074735.788 | AV66: 24116.76105 | AW66: 201468.0318 | AX66: 167047.1096 | AY66: 61742.74533 | AZ66: 49926.2595 | BA66: 103847.499 | BB66: 772.4185328 | BC66: 2918.000012 | BD66: 113241.7016 | BE66: 526.3094733 | BF66: 339985.8975 | BG66: 700.6847585 | BH66: 6572.142147 | BI66: 364127.8722 | BJ66: 88742.57538 | BK66: 5957.998952 | BL66: 4339.758706 | BM66: 2278059.19 | BN66: 21755.98306 | BO66: 549887.8127 | BP66: 248531.4629 | BQ66: 150231.9151 | BR66: 430.462952 | BS66: 73467.86828 | BT66: 14798.82854 | BU66: 15317.85216 | BV66: 298222.6026 | BW66: 17896.09646 | BX66: 16557.07557 | BY66: 15796.79165 | BZ66: 317200.2546 | CA66: 871553.1881 | CB66: 93693.86304 | CC66: 13815.51213 | CD66: 116439.3328 | CE66: 418067.3068 | CF66: 413956.1333 | CG66: 131511.3308 | CH66: 5711.306783 | CI66: 100791.7114 | CJ66: 10644.28427 | CK66: 41397.39531 | CL66: 11357.17394 | CM66: 118898.0212 | CN66: 159729.0064 | CO66: 9356.998152 | CP66: 46189.23112 | CQ66: 23952.61738 | CR66: 8881.532296 | CS66: 20366.48407 | CT66: 32544.81875 | CU66: 5493.174909 | CV66: 163256.0388 | CW66: 121311.121 | CX66: 16243.00579 | CY66: 13048.00862 | CZ66: 42965.49013 | DA66: 9560.030277 | DB66: 5084.14738 | DC66: 117696.7286 | DD66: 5771.258989 | DE66: 110917.2237 | DF66: 2375.172192 | DG66: 219131.3794 | DH66: 1175.381762 | DI66: 27824.43911 | DJ66: 1461.313073 | DK66: 26557.86336 | DL66: 73962.37715 | DM66: 225732.1801 | DN66: 3626.677474 | DO66: 51198.10848 | DP66: 18707.18434 | DQ66: 19293.37757 | DR66: 8324.872876 | DS66: 18637.36405 | DT66: 54590.22114 | DU66: 110425.2021 | DV66: 75954.96079 | DW66: 42980.72652 | DX66: 24045.04123 | DY66: 415667.471 | DZ66: 12249.6443 | EA66: 31759.52712 | EB66: 57752.86453 | EC66: 52920.55494 | ED66: 436752.3542 | EE66: 1043.690793 | EF66: 551.9568997 | EG66: 20475.44753 | EH66: 22718.2527 | EI66: 39159.45728 | EJ66: 148719.0492 | EK66: 125351.9904 | EL66: 15574.93846 | EM66: 862.9524061 | EN66: 10303.04821 | EO66: 19653.39789 | EP66: 19988.17178 | EQ66: 18769.08164 | ER66: 48344.03044 | ES66: 20162.34729 | ET66: 50212.91106 | EU66: 16125.20634 | EV66: 14451.2886 | EW66: 12690.82225 | EX66: 60051.99617 | EY66: 22915.61753 | EZ66: 12573.26617 | FA66: 15354.81606 | FB66: 17645.16807 | FC66: 15922.83975 | FD66: 20726.22631 | FE66: 148400.59 | FF66: 12440.17576 | FG66: 14006.32444 | FH66: 13540.55398 | FI66: 13930.16526 | FJ66: 18254.16334 | FK66: 53463.87978 | FL66: 23138.08592 | FM66: 358.7880817 | FN66: 13675.19268 | FO66: 15402.97816 | FP66: 1519.177389 | FQ66: 88817.50893 | FR66: 59386.4531 | FS66: 1105.218759 | FT66: 53021.48681 | FU66: 19144.30716 | FV66: 12903.07656 | FW66: 54880.74288 | FX66: 0.005910315563 | FY66: 12026.46988 | FZ66: 11332.0606 | GA66: 18994.94385 | GB66: 30346.09678 | GC66: 14498.81915 | GD66: 4923.082301 | GE66: 10467.24766 | GF66: 77046.96389 | GG66: 77866.05753 | GH66: 20731.8193 | GI66: 191938.7827 | GJ66: 18373.0745 | GK66: 43146.87187 | GL66: 27071.85481 | GM66: 34204.57359 | GN66: 23141.02294 | GO66: 19116.66795 | GP66: 89360.00044 | GQ66: 21977.42573 | GR66: 15657.90458 | GS66: 23421.61621 | GT66: 88857.12183 | GU66: 96032.1064 | GV66: 49096.40618 | GW66: 5053680.689 | GX66: 527326.5434 | GY66: 594013.6165 | GZ66: 3550057.351 | HA66: 848231.294 | HB66: 185790.7905 | HC66: 3886.737622 | HD66: 146920.4098 | HE66: 138640.7037 | HF66: 165.4900981 | HG66: 88873.44944 | HH66: 72941.18575 | HI66: 189250.0859 | HJ66: 9849.543123 | HK66: 3374.532163 | HL66: 445121.4223 | HM66: 134257.0746 | HN66: 15921.74743 | HO66: 16514.98021 | HP66: 12209.30492 | HQ66: 16563.59327 | HR66: 15541.82456 | HS66: 48452.15344 | HT66: 10766.3899 | HU66: 11276.77848 | HV66: 90329.26582 | HW66: 3596.409266 | HX66: 39025.33021 | HY66: 27946.70181 | HZ66: 32065.80081 | IA66: 17819.27512 | IB66: 33923.45275 | IC66: 58026.25475 | ID66: 357677.427 | IE66: 18063.60023 | IF66: 52442.41577 | IG66: 22642.78661 | IH66: 17651.41293 | II66: 1.150029399 | IJ66: 6289.257397 | IK66: 38994.30546 | IL66: 27691.64286 | IM66: 206034.4854 | IN66: 66447830
